{"text_format":"1","workbook":"xlsx","n_sheets":8,"sheets":["Format","Sous ensemble à exporter","Base de donées","Analyse Previsionnelle","Analyse Rentabilité","Articles","Opération","Sous ensemble existant"],"not_rendered":{"charts":0,"images":1,"macros":1,"external_links":0,"defined_names":3,"comments":2,"pivot_tables":0},"unopened":[],"bounds":{"document_bytes":16777216,"sheet_cells":100000,"rows_first":2000,"rows_last":500,"rows_between":2000,"halvings":0,"cell_chars":16384,"cell_head_chars":4096},"cells_cut":0,"cells_raw":0,"read":"whole","date_system":"1900"}

{"sheet":"Format","index":0,"n_rows":44,"n_cols":14,"rows_kept":44,"cut":false,"hidden":false,"merged":[]}
["Colonne","Entête","Description","Fourniture/sous-traitance","Opération","Sous-ensemble","Le X indique les colonnes correspondant au type de ligne (SE/F/ST/O)"]
[1,"Article/Opération","Code de l'article (15 car), du sous-ensemble (15 car) ou de l'opération (10 car) <=> Gencode ?","X","X","X","[OBLIGATOIRE]"]
[2,"SE/F/O/ST","Indique si c'est un Sous-ensemble (S), une Fourniture (F), une Sous-traitance (ST), ou une Opération (O)","X","X","X","[OBLIGATOIRE]"]
[3,"Désignation","Désignation de l’article (50 car), du SE (50 car) ou de l’opération (30 car)","X","X","X","[OBLIGATOIRE]"]
[4,"Article père (S/E)","Code article du S/E père si c’est un composant (fourniture, opération, sous-traitance)","X","X",null,"[OBLIGATOIRE pour un COMPOSANT de sous-ensemble]",null,null,null,null,null,"Le code article père(S/E) doit être présent dans une autre ligne du fichier de type SE.","Le code article père(S/E) doit être présent dans une autre ligne du fichier de type SE."]
[5,"Famille","Code de la famille de l'article (6 car) ou de la famille du matériel (6 car)","X","X","X"]
[6,"Variété","Variété de l'article (40 car)","X"]
[7,"Taille","Taille de l'article (15 car)","X"]
[8,"Conditionnement","Conditionnement de l'article (15 car)","X"]
[9,"Forme","Forme de l'article (15 car)","X"]
[10,"Unité achat","Code de l'unité d'achat (5 car)","X"]
[11,"Prix Achat/revient","Prix d’achat de l’article ou du matériel, ou prix de revient du Sous-ensemble","X","X","X"]
[12,"Date prix achat","Date du Prix d’achat de l’article (au format dd/mm/yyyy)","X"]
[13,"Unité vente","Code de l'unité de vente (5 car)","X","X","X","[OBLIGATOIRE]"]
[14,"Coef conv unité","Coefficient de conversion unité achat/unité vente (tel que quantité vente = quantité achat / coeff conversion)","X"]
[15,"Prix HT","Prix de vente HT de l'article","X",null,"X"]
[16,"Prix Evergold","Prix Evergold (Prix avec la carte fidélité Evergold) de l'article","X"]
[17,"Code tva","Code correspondant au taux de tva à appliquer sur l'article (1 car)","X"]
[18,"Compte vente","Compte de vente de l'article (15 car)","X",null,"X"]
[19,"Eco taxe","Montant de l'éco taxe pour l'article","X"]
[20,"Fournisseur","Code du fournisseur (8 car)","X",null,"X"]
[21,"Réf. Fournisseur","Référence de l'article chez le fournisseur (15 car)","X",null,"X"]
[22,"Texte descriptif","Texte descriptif de l'article (sans retour à la ligne) ","X","X",null,"(sans retour à la ligne)"]
[23,"Observation","Observation de l’article ou du matériel  (sans retour à la ligne) (30 car)","X","X",null,"(sans retour à la ligne)"]
[24,"Plantation","Si c'est une fourniture ou opération : O = oui/N = non: indique si c'est un végétal ou une opération de plantation","X","X"]
[25,"Gérer en stock","Indique si l'article est géré en stock (O = oui, N = non)","X"]
[26,"Quantité stock","Quantité en stock de l'article","X"]
[27,"Quantité SE","Si c'est un sous-ensemble : Quantité du sous-ensemble",null,null,"X"]
[28,"% marge","Si c'est unsous-ensemble: % de marge du sous-ensemble",null,null,"X"]
[29,"Quantité fourniture","Si c'est une fourniture : quantité de la fourniture dans le sous-ensemble","X"]
[30,"Coef maj","Si c'est une fourniture : coefficient de majoration du prix de la fourniture dans le sous-ensemble","X"]
[31,"Temps préparation","Si c'est une opération : temps de préparation de l'opération (en heures)",null,"X"]
[32,"Temps opération","Si c'est une opération : temps de l'opération (en heures)",null,"X"]
[33,"Qualification","Si c'est une opération : code de la qualification salarié correspondante (pour obtenir le coût horaire associé)",null,"X"]
[34,"% improductivité","Si c'est une opération : % d'improductivité",null,"X"]
[35,"Matériel","Si c'est une opération : code du matériel associé à l'opération (10 car)",null,"X"]
[36,"Quantité matériel","Si c'est une opération : quantité/nb heures du matériel associé pour l'opération.",null,"X"]
[37,"Unité matériel","Si c'est une opération : Unité du matériel associé (10 car)",null,"X"]
[38,"Coût horaire matériel","Si c'est une opération : coût horaire du matériel associé à l'opération",null,"X"]
[]
[]
[]
["Placer les lignes des fournitures et opération en premier"]
["Placer les lignes des sous-ensembles en dernier"]

{"sheet":"Sous ensemble à exporter","index":1,"n_rows":171,"n_cols":101,"rows_kept":171,"cut":false,"hidden":false,"merged":[]}
[1,"Article/Opération","SE/F/O/ST","Désignation","Article père (S/E)","Famille","Variété","Taille","conditionnement","Forme","Unité achat","Prix Achat/revient","Date prix achat","Unité vente","Coef conv unité","Prix HT","Prix evergold","Code tva","Compte vente","Eco taxe","Fournisseur","Réf. Fournisseur","Texte descriptif","Observation","Plantation","Gérer en stock","Quantité stock","Quantité SE","% marge","Quantité","Coef maj","Temps préparation","Temps opération","Qualification","% improductivité","Matériel","Quantité matériel","Unité matériel","Coût horaire matériel",null,null,null,null,null,null,null,null,null,null,null,null,null,null,null,null,null,null,null,null,null,null,null,null,"total colone à créer",null,null,null,null,null,null,null,null,null,null,null,null,null,null,null,null,null,null,null,null,null,null,null,null,null,null,null,null,null,null,null,null,null,null,null,null,"total ligne à créer =NBVAL(AO2:CV2)+1\nrecopier la formule et la dupliquer jusq'uen bas"]
[2,"BETON  0.10/350","SE","FONDATION BETON 350KG","","POUBEL","","","","","M2",30.56,"2012-10-19","M2",1,81.260000000000005,30.56,1,"",0,"","","Confection d'une fondation béton sur 15cm.","","N","N",0,19,10,0,0,0,0,0,0,0,0,"",0,null,null,null,null,null,null,null,null,null,null,null,null,null,null,null,null,null,null,null,null,null,null,null,null,null,null,null,null,null,null,null,null,null,null,null,null,null,null,null,null,null,null,null,null,null,null,null,null,null,null,null,null,null,null,null,null,null,null,null,null,null,0]
[3,"BETON 300KG","F","Béton gravier 0.14 dosé à 300 kg.","BETON  0.10/350","POUBEL","BPS C20/25","","","","M3",104.9,"2008-05-26","M3",1,157.35,104.9,1,12345,0.5,"LAFARGE","LAFARGE1","","observation","O","O",10,0,0,2.85,1.2,0,0,0,0,0,0,0,0]
[4,"TREILLIS","F","Treillis soudés 360x240","BETON  0.10/350","BETON","","","","","M2",20.96,"2012-01-01","M2",1,22.43,20.96,1,12345,0.5,"MARTIN R","MARTIN R",null,"observation","O","O",0,0,0,25,1.2,0,0,0,0,0,0,0,0]
[5,"COFFRAGE","O","Coffrage","BETON  0.10/350","","","","","","",10,"","",0,10,0,"","",0,"","","","","N","N",0,0,0,0,0,0,2,"O2",0,"",0,"H"]
[6,"MISE EN OE","O","Mise en oeuvre","BETON  0.10/350","","","","","","",10,"","",0,10,0,"","",0,"","","","","N","N",0,0,0,0,0,0,5,"O2",0,"",0,"H"]
[7,"AIDE","O","Aide stagiaire, apprenti...","BETON  0.10/350","","","","","","",10,"","",0,10,0,"","",0,"","","","","N","N",0,0,0,0,0,0,7,"O3",0,"L_pl2T5",0,"H",15]
[8,"APPORVI","O","Approvisionnement","BETON  0.10/350","","","","","","",10,"","",0,10,0,"","",0,"","","","","N","N",0,0,0,0,0,0,3,"O3",0,"",0,"H"]
[9,"J723MABL20-40","SE","Paillage galet Marbre blanc 20/40",null,"J",null,null,null,null,null,null,null,"m²",null,null,null,1,null,null,null,null,"Fourniture et mise en place de paillage en galet Marbre blanc, granulométrie 20/40, épaisseur 5",null,"N","N",null,null,null,null,null,null,null,null,null,null,null,null,null,"Gazon eurospace","Gazon euroclass","APPRO","DÉCAISSEM","PAILLAGE","NETTOYAGE",null,null,null,null,null,null,null,null,null,null,null,null,null,null,null,null,null,null,null,null,null,null,null,null,null,null,null,null,null,null,null,null,null,null,null,null,null,null,null,null,null,null,null,null,null,null,null,null,null,null,null,null,null,null,null,7]
[10,"J723MABL40-60","SE","Paillage galet Marbre blanc 40/60",null,"J",null,null,null,null,null,null,null,"m²",null,null,null,1,null,null,null,null,"Fourniture et mise en place de paillage en galet Marbre blanc, granulométrie 40/60, épaisseur 10",null,"N","N",null,null,null,null,null,null,null,null,null,null,null,null,null,"Gazon pro 28","Gazon pro 22","APPRO","DÉCAISSEM","PAILLAGE","NETTOYAGE",null,null,null,null,null,null,null,null,null,null,null,null,null,null,null,null,null,null,null,null,null,null,null,null,null,null,null,null,null,null,null,null,null,null,null,null,null,null,null,null,null,null,null,null,null,null,null,null,null,null,null,null,null,null,null,7]
[11,"J723MABL60-100","SE","Paillage galet Marbre blanc 60/100",null,"J",null,null,null,null,null,null,null,"m²",null,null,null,1,null,null,null,null,"Fourniture et mise en place de paillage en galet Marbre blanc, granulométrie 60/100, épaisseur 10",null,"N","N",null,null,null,null,null,null,null,null,null,null,null,null,null,"Gazon pro 12","Gazon eurospace","APPRO","DÉCAISSEM","PAILLAGE","NETTOYAGE",null,null,null,null,null,null,null,null,null,null,null,null,null,null,null,null,null,null,null,null,null,null,null,null,null,null,null,null,null,null,null,null,null,null,null,null,null,null,null,null,null,null,null,null,null,null,null,null,null,null,null,null,null,null,null,7]
[12,"J723MABL100-200","SE","Paillage galet Marbre blanc 100/200",null,"J",null,null,null,null,null,null,null,"m²",null,null,null,1,null,null,null,null,"Fourniture et mise en place de paillage en galet Marbre blanc, granulométrie 100/200, épaisseur 20",null,"N","N",null,null,null,null,null,null,null,null,null,null,null,null,null,"Gazon euros eco","Gazon pro 28","APPRO","DÉCAISSEM","PAILLAGE","NETTOYAGE",null,null,null,null,null,null,null,null,null,null,null,null,null,null,null,null,null,null,null,null,null,null,null,null,null,null,null,null,null,null,null,null,null,null,null,null,null,null,null,null,null,null,null,null,null,null,null,null,null,null,null,null,null,null,null,7]
[13,"J723MAS30-60","SE","Paillage galet Marbre rosé 30/60",null,"J",null,null,null,null,null,null,null,"m²",null,null,null,1,null,null,null,null,"Fourniture et mise en place de paillage en galet Marbre rosé, granulométrie 30/60, épaisseur 10",null,"N","N",null,null,null,null,null,null,null,null,null,null,null,null,null,"gazon grd espac","Gazon pro 12","APPRO","DÉCAISSEM","PAILLAGE","NETTOYAGE",null,null,null,null,null,null,null,null,null,null,null,null,null,null,null,null,null,null,null,null,null,null,null,null,null,null,null,null,null,null,null,null,null,null,null,null,null,null,null,null,null,null,null,null,null,null,null,null,null,null,null,null,null,null,null,7]
[14,"J723MARS50-100","SE","Paillage galet Marbre rosé 50/100",null,"J",null,null,null,null,null,null,null,"m²",null,null,null,1,null,null,null,null,"Fourniture et mise en place de paillage en galet Marbre rosé, granulométrie 50/100, épaisseur 10",null,"N","N",null,null,null,null,null,null,null,null,null,null,null,null,null,"Gazon pro 50","Gazon euros eco","APPRO","DÉCAISSEM","PAILLAGE","NETTOYAGE",null,null,null,null,null,null,null,null,null,null,null,null,null,null,null,null,null,null,null,null,null,null,null,null,null,null,null,null,null,null,null,null,null,null,null,null,null,null,null,null,null,null,null,null,null,null,null,null,null,null,null,null,null,null,null,7]
[15,"J723MARS100-150","SE","Paillage galet Marbre rosé 100/150",null,"J",null,null,null,null,null,null,null,"m²",null,null,null,1,null,null,null,null,"Fourniture et mise en place de paillage en galet Marbre rosé, granulométrie 100/150, épaisseur 20",null,"N","N",null,null,null,null,null,null,null,null,null,null,null,null,null,"gazon regarniss","gazon grd espac","APPRO","DÉCAISSEM","PAILLAGE","NETTOYAGE",null,null,null,null,null,null,null,null,null,null,null,null,null,null,null,null,null,null,null,null,null,null,null,null,null,null,null,null,null,null,null,null,null,null,null,null,null,null,null,null,null,null,null,null,null,null,null,null,null,null,null,null,null,null,null,7]
[16,"J723MARS150-300","SE","Paillage galet Marbre rosé 150/300",null,"J",null,null,null,null,null,null,null,"m²",null,null,null,1,null,null,null,null,"Fourniture et mise en place de paillage en galet Marbre rosé, granulométrie 150/300, épaisseur 30",null,"N","N",null,null,null,null,null,null,null,null,null,null,null,null,null,"Gaz Syn Summum","Gazon pro 50","APPRO","DÉCAISSEM","PAILLAGE","NETTOYAGE",null,null,null,null,null,null,null,null,null,null,null,null,null,null,null,null,null,null,null,null,null,null,null,null,null,null,null,null,null,null,null,null,null,null,null,null,null,null,null,null,null,null,null,null,null,null,null,null,null,null,null,null,null,null,null,7]
[17,"J723MARS300-500","SE","Paillage galet Marbre rosé 300/500",null,"J",null,null,null,null,null,null,null,"m²",null,null,null,1,null,null,null,null,"Fourniture et mise en place de paillage en galet Marbre rosé, granulométrie 300/500, épaisseur 50",null,"N","N",null,null,null,null,null,null,null,null,null,null,null,null,null,"Gaz Syn Eco","gazon regarniss","APPRO","DÉCAISSEM","PAILLAGE","NETTOYAGE",null,null,null,null,null,null,null,null,null,null,null,null,null,null,null,null,null,null,null,null,null,null,null,null,null,null,null,null,null,null,null,null,null,null,null,null,null,null,null,null,null,null,null,null,null,null,null,null,null,null,null,null,null,null,null,7]
[18,"J723WH20-40","SE","Paillage galet White 20/40",null,"J",null,null,null,null,null,null,null,"m²",null,null,null,1,null,null,null,null,"Fourniture et mise en place de paillage en galet White, granulométrie 20/40, épaisseur 5",null,"N","N",null,null,null,null,null,null,null,null,null,null,null,null,null,"Organi100%nat","Gaz Syn Summum","APPRO","DÉCAISSEM","PAILLAGE","NETTOYAGE",null,null,null,null,null,null,null,null,null,null,null,null,null,null,null,null,null,null,null,null,null,null,null,null,null,null,null,null,null,null,null,null,null,null,null,null,null,null,null,null,null,null,null,null,null,null,null,null,null,null,null,null,null,null,null,7]
[19,"J723WH40-60","SE","Paillage galet White 40/60",null,"J",null,null,null,null,null,null,null,"m²",null,null,null,1,null,null,null,null,"Fourniture et mise en place de paillage en galet White, granulométrie 40/60, épaisseur 10",null,"N","N",null,null,null,null,null,null,null,null,null,null,null,null,null,"Orgaequi7-2-9","Gaz Syn Eco","APPRO","DÉCAISSEM","PAILLAGE","NETTOYAGE",null,null,null,null,null,null,null,null,null,null,null,null,null,null,null,null,null,null,null,null,null,null,null,null,null,null,null,null,null,null,null,null,null,null,null,null,null,null,null,null,null,null,null,null,null,null,null,null,null,null,null,null,null,null,null,7]
[20,"J723WH50-100","SE","Paillage galet White 50/100",null,"J",null,null,null,null,null,null,null,"m²",null,null,null,1,null,null,null,null,"Fourniture et mise en place de paillage en galet White, granulométrie 50/100, épaisseur 10",null,"N","N",null,null,null,null,null,null,null,null,null,null,null,null,null,"Eng16-5-20+5 4M","Organi100%nat","APPRO","DÉCAISSEM","PAILLAGE","NETTOYAGE",null,null,null,null,null,null,null,null,null,null,null,null,null,null,null,null,null,null,null,null,null,null,null,null,null,null,null,null,null,null,null,null,null,null,null,null,null,null,null,null,null,null,null,null,null,null,null,null,null,null,null,null,null,null,null,7]
[21,"J723DOBL50-100","SE","Paillage galet Dolomite blanches 50/100",null,"J",null,null,null,null,null,null,null,"m²",null,null,null,1,null,null,null,null,"Fourniture et mise en place de paillage en galet Dolomite blanches, granulométrie 50/100, épaisseur 10",null,"N","N",null,null,null,null,null,null,null,null,null,null,null,null,null,"Pelle","Orgaequi7-2-9","APPRO","DÉCAISSEM","PAILLAGE","NETTOYAGE",null,null,null,null,null,null,null,null,null,null,null,null,null,null,null,null,null,null,null,null,null,null,null,null,null,null,null,null,null,null,null,null,null,null,null,null,null,null,null,null,null,null,null,null,null,null,null,null,null,null,null,null,null,null,null,7]
[22,"J723POBL60-120","SE","Paillage galet Porto blanches 60/120",null,"J",null,null,null,null,null,null,null,"m²",null,null,null,1,null,null,null,null,"Fourniture et mise en place de paillage en galet Porto blanches, granulométrie 60/120, épaisseur 10",null,"N","N",null,null,null,null,null,null,null,null,null,null,null,null,null,"Gazon eurospace","Eng16-5-20+5 4M","APPRO","DÉCAISSEM","PAILLAGE","NETTOYAGE",null,null,null,null,null,null,null,null,null,null,null,null,null,null,null,null,null,null,null,null,null,null,null,null,null,null,null,null,null,null,null,null,null,null,null,null,null,null,null,null,null,null,null,null,null,null,null,null,null,null,null,null,null,null,null,7]
[23,"J723POBL120-200","SE","Paillage galet Porto blanches 120/200",null,"J",null,null,null,null,null,null,null,"m²",null,null,null,1,null,null,null,null,"Fourniture et mise en place de paillage en galet Porto blanches, granulométrie 120/200, épaisseur 20",null,"N","N",null,null,null,null,null,null,null,null,null,null,null,null,null,"Gazon eurospace","Pelle","APPRO","DÉCAISSEM","PAILLAGE","NETTOYAGE",null,null,null,null,null,null,null,null,null,null,null,null,null,null,null,null,null,null,null,null,null,null,null,null,null,null,null,null,null,null,null,null,null,null,null,null,null,null,null,null,null,null,null,null,null,null,null,null,null,null,null,null,null,null,null,7]
[24,"J723EBON10-30","SE","Paillage Galet plat gris ebony 10/30",null,"J",null,null,null,null,null,null,null,"m²",null,null,null,1,null,null,null,null,"Fourniture et mise en place de paillage en Galet plat gris ebony, granulométrie 10/30, épaisseur 5",null,"N","N",null,null,null,null,null,null,null,null,null,null,null,null,null,"Gazon eurospace","Gazon euroclass","APPRO","DÉCAISSEM","PAILLAGE","NETTOYAGE",null,null,null,null,null,null,null,null,null,null,null,null,null,null,null,null,null,null,null,null,null,null,null,null,null,null,null,null,null,null,null,null,null,null,null,null,null,null,null,null,null,null,null,null,null,null,null,null,null,null,null,null,null,null,null,7]
[25,"J723EBON30-60","SE","Paillage Galet plat gris ebony 30/60",null,"J",null,null,null,null,null,null,null,"m²",null,null,null,1,null,null,null,null,"Fourniture et mise en place de paillage en Galet plat gris ebony, granulométrie 30/60, épaisseur 10",null,"N","N",null,null,null,null,null,null,null,null,null,null,null,null,null,"Gazon pro 28","Gazon pro 22","APPRO","DÉCAISSEM","PAILLAGE","NETTOYAGE",null,null,null,null,null,null,null,null,null,null,null,null,null,null,null,null,null,null,null,null,null,null,null,null,null,null,null,null,null,null,null,null,null,null,null,null,null,null,null,null,null,null,null,null,null,null,null,null,null,null,null,null,null,null,null,7]
[26,"J723EBON60-90","SE","Paillage Galet plat gris ebony 60/90",null,"J",null,null,null,null,null,null,null,"m²",null,null,null,1,null,null,null,null,"Fourniture et mise en place de paillage en Galet plat gris ebony, granulométrie 60/90, épaisseur 10",null,"N","N",null,null,null,null,null,null,null,null,null,null,null,null,null,"Gazon pro 12","Gazon eurospace","APPRO","DÉCAISSEM","PAILLAGE","NETTOYAGE",null,null,null,null,null,null,null,null,null,null,null,null,null,null,null,null,null,null,null,null,null,null,null,null,null,null,null,null,null,null,null,null,null,null,null,null,null,null,null,null,null,null,null,null,null,null,null,null,null,null,null,null,null,null,null,7]
[27,"J723EBON90-120","SE","Paillage Galet plat gris ebony 90/120",null,"J",null,null,null,null,null,null,null,"m²",null,null,null,1,null,null,null,null,"Fourniture et mise en place de paillage en Galet plat gris ebony, granulométrie 90/120, épaisseur 15",null,"N","N",null,null,null,null,null,null,null,null,null,null,null,null,null,"Gazon euros eco","Gazon pro 28","APPRO","DÉCAISSEM","PAILLAGE","NETTOYAGE",null,null,null,null,null,null,null,null,null,null,null,null,null,null,null,null,null,null,null,null,null,null,null,null,null,null,null,null,null,null,null,null,null,null,null,null,null,null,null,null,null,null,null,null,null,null,null,null,null,null,null,null,null,null,null,7]
[28,"J723EBON120-150","SE","Paillage Galet plat gris ebony 120/150",null,"J",null,null,null,null,null,null,null,"m²",null,null,null,1,null,null,null,null,"Fourniture et mise en place de paillage en Galet plat gris ebony, granulométrie 120/150, épaisseur 15",null,"N","N",null,null,null,null,null,null,null,null,null,null,null,null,null,"gazon grd espac","Gazon pro 12","APPRO","DÉCAISSEM","PAILLAGE","NETTOYAGE",null,null,null,null,null,null,null,null,null,null,null,null,null,null,null,null,null,null,null,null,null,null,null,null,null,null,null,null,null,null,null,null,null,null,null,null,null,null,null,null,null,null,null,null,null,null,null,null,null,null,null,null,null,null,null,7]
[29,"J723EBON150-200","SE","Paillage Galet plat gris ebony 150/200",null,"J",null,null,null,null,null,null,null,"m²",null,null,null,1,null,null,null,null,"Fourniture et mise en place de paillage en Galet plat gris ebony, granulométrie 150/200, épaisseur 20",null,"N","N",null,null,null,null,null,null,null,null,null,null,null,null,null,"Gazon pro 50","Gazon euros eco","APPRO","DÉCAISSEM","PAILLAGE","NETTOYAGE",null,null,null,null,null,null,null,null,null,null,null,null,null,null,null,null,null,null,null,null,null,null,null,null,null,null,null,null,null,null,null,null,null,null,null,null,null,null,null,null,null,null,null,null,null,null,null,null,null,null,null,null,null,null,null,7]
[30,"J723EARL10-30","SE","Paillage Galet plat gris earl grey 10/30",null,"J",null,null,null,null,null,null,null,"m²",null,null,null,1,null,null,null,null,"Fourniture et mise en place de paillage en Galet plat gris earl grey, granulométrie 10/30, épaisseur 5",null,"N","N",null,null,null,null,null,null,null,null,null,null,null,null,null,"gazon regarniss","gazon grd espac","APPRO","DÉCAISSEM","PAILLAGE","NETTOYAGE",null,null,null,null,null,null,null,null,null,null,null,null,null,null,null,null,null,null,null,null,null,null,null,null,null,null,null,null,null,null,null,null,null,null,null,null,null,null,null,null,null,null,null,null,null,null,null,null,null,null,null,null,null,null,null,7]
[31,"J723EARL120-150","SE","Paillage Galet plat gris earl grey 120/150",null,"J",null,null,null,null,null,null,null,"m²",null,null,null,1,null,null,null,null,"Fourniture et mise en place de paillage en Galet plat gris earl grey, granulométrie 120/150, épaisseur 15",null,"N","N",null,null,null,null,null,null,null,null,null,null,null,null,null,"Gaz Syn Summum","Gazon pro 50","APPRO","DÉCAISSEM","PAILLAGE","NETTOYAGE",null,null,null,null,null,null,null,null,null,null,null,null,null,null,null,null,null,null,null,null,null,null,null,null,null,null,null,null,null,null,null,null,null,null,null,null,null,null,null,null,null,null,null,null,null,null,null,null,null,null,null,null,null,null,null,7]
[32,"J723EARL150-200","SE","Paillage Galet plat gris earl grey 150/200",null,"J",null,null,null,null,null,null,null,"m²",null,null,null,1,null,null,null,null,"Fourniture et mise en place de paillage en Galet plat gris earl grey, granulométrie 150/200, épaisseur 20",null,"N","N",null,null,null,null,null,null,null,null,null,null,null,null,null,"Gaz Syn Eco","gazon regarniss","APPRO","DÉCAISSEM","PAILLAGE","NETTOYAGE",null,null,null,null,null,null,null,null,null,null,null,null,null,null,null,null,null,null,null,null,null,null,null,null,null,null,null,null,null,null,null,null,null,null,null,null,null,null,null,null,null,null,null,null,null,null,null,null,null,null,null,null,null,null,null,7]
[33,"J723METR20-40","SE","Paillage galet de mer gris triés main 20/40",null,"J",null,null,null,null,null,null,null,"m²",null,null,null,1,null,null,null,null,"Fourniture et mise en place de paillage en galet gris galet de mer triés main, granulométrie 20/40, épaisseur 5",null,"N","N",null,null,null,null,null,null,null,null,null,null,null,null,null,"Organi100%nat","Gaz Syn Summum","APPRO","DÉCAISSEM","PAILLAGE","NETTOYAGE",null,null,null,null,null,null,null,null,null,null,null,null,null,null,null,null,null,null,null,null,null,null,null,null,null,null,null,null,null,null,null,null,null,null,null,null,null,null,null,null,null,null,null,null,null,null,null,null,null,null,null,null,null,null,null,7]
[34,"J723METR30-50","SE","Paillage galet de mer gris triés main 30/50",null,"J",null,null,null,null,null,null,null,"m²",null,null,null,1,null,null,null,null,"Fourniture et mise en place de paillage en galet gris galet de mer triés main, granulométrie 30/50, épaisseur 5",null,"N","N",null,null,null,null,null,null,null,null,null,null,null,null,null,"Orgaequi7-2-9","Gaz Syn Eco","APPRO","DÉCAISSEM","PAILLAGE","NETTOYAGE",null,null,null,null,null,null,null,null,null,null,null,null,null,null,null,null,null,null,null,null,null,null,null,null,null,null,null,null,null,null,null,null,null,null,null,null,null,null,null,null,null,null,null,null,null,null,null,null,null,null,null,null,null,null,null,7]
[35,"J723METR40-60","SE","Paillage galet de mer gris triés main 40/60",null,"J",null,null,null,null,null,null,null,"m²",null,null,null,1,null,null,null,null,"Fourniture et mise en place de paillage en galet gris galet de mer triés main, granulométrie 40/60, épaisseur 10",null,"N","N",null,null,null,null,null,null,null,null,null,null,null,null,null,"Eng16-5-20+5 4M","Organi100%nat","APPRO","DÉCAISSEM","PAILLAGE","NETTOYAGE",null,null,null,null,null,null,null,null,null,null,null,null,null,null,null,null,null,null,null,null,null,null,null,null,null,null,null,null,null,null,null,null,null,null,null,null,null,null,null,null,null,null,null,null,null,null,null,null,null,null,null,null,null,null,null,7]
[36,"J723METR50-70","SE","Paillage galet de mer gris triés main 50/70",null,"J",null,null,null,null,null,null,null,"m²",null,null,null,1,null,null,null,null,"Fourniture et mise en place de paillage en galet gris galet de mer triés main, granulométrie 50/70, épaisseur 10",null,"N","N",null,null,null,null,null,null,null,null,null,null,null,null,null,"Pelle","Orgaequi7-2-9","APPRO","DÉCAISSEM","PAILLAGE","NETTOYAGE",null,null,null,null,null,null,null,null,null,null,null,null,null,null,null,null,null,null,null,null,null,null,null,null,null,null,null,null,null,null,null,null,null,null,null,null,null,null,null,null,null,null,null,null,null,null,null,null,null,null,null,null,null,null,null,7]
[37,"J723METR60-80","SE","Paillage galet de mer gris triés main 60/80",null,"J",null,null,null,null,null,null,null,"m²",null,null,null,1,null,null,null,null,"Fourniture et mise en place de paillage en galet gris galet de mer triés main, granulométrie 60/80, épaisseur 10",null,"N","N",null,null,null,null,null,null,null,null,null,null,null,null,null,"Gazon eurospace","Gazon euroclass","APPRO","DÉCAISSEM","PAILLAGE","NETTOYAGE",null,null,null,null,null,null,null,null,null,null,null,null,null,null,null,null,null,null,null,null,null,null,null,null,null,null,null,null,null,null,null,null,null,null,null,null,null,null,null,null,null,null,null,null,null,null,null,null,null,null,null,null,null,null,null,7]
[38,"J723METR80-100","SE","Paillage galet de mer gris triés main 80/100",null,"J",null,null,null,null,null,null,null,"m²",null,null,null,1,null,null,null,null,"Fourniture et mise en place de paillage en galet gris galet de mer triés main, granulométrie 80/100, épaisseur 10",null,"N","N",null,null,null,null,null,null,null,null,null,null,null,null,null,"Gazon pro 28","Gazon pro 22","APPRO","DÉCAISSEM","PAILLAGE","NETTOYAGE",null,null,null,null,null,null,null,null,null,null,null,null,null,null,null,null,null,null,null,null,null,null,null,null,null,null,null,null,null,null,null,null,null,null,null,null,null,null,null,null,null,null,null,null,null,null,null,null,null,null,null,null,null,null,null,7]
[39,"J723METR100-120","SE","Paillage galet de mer gris triés main 100/120",null,"J",null,null,null,null,null,null,null,"m²",null,null,null,1,null,null,null,null,"Fourniture et mise en place de paillage en galet gris galet de mer triés main, granulométrie 100/120, épaisseur 15",null,"N","N",null,null,null,null,null,null,null,null,null,null,null,null,null,"Gazon pro 12","Gazon eurospace","APPRO","DÉCAISSEM","PAILLAGE","NETTOYAGE",null,null,null,null,null,null,null,null,null,null,null,null,null,null,null,null,null,null,null,null,null,null,null,null,null,null,null,null,null,null,null,null,null,null,null,null,null,null,null,null,null,null,null,null,null,null,null,null,null,null,null,null,null,null,null,7]
[40,"J723METR120-150","SE","Paillage galet de mer gris triés main 120/150",null,"J",null,null,null,null,null,null,null,"m²",null,null,null,1,null,null,null,null,"Fourniture et mise en place de paillage en galet gris galet de mer triés main, granulométrie 120/150, épaisseur 15",null,"N","N",null,null,null,null,null,null,null,null,null,null,null,null,null,"Gazon euros eco","Gazon pro 28","APPRO","DÉCAISSEM","PAILLAGE","NETTOYAGE",null,null,null,null,null,null,null,null,null,null,null,null,null,null,null,null,null,null,null,null,null,null,null,null,null,null,null,null,null,null,null,null,null,null,null,null,null,null,null,null,null,null,null,null,null,null,null,null,null,null,null,null,null,null,null,7]
[41,"J723METR150-200","SE","Paillage galet de mer gris triés main 150/200",null,"J",null,null,null,null,null,null,null,"m²",null,null,null,1,null,null,null,null,"Fourniture et mise en place de paillage en galet gris galet de mer triés main, granulométrie 150/200, épaisseur 20",null,"N","N",null,null,null,null,null,null,null,null,null,null,null,null,null,"gazon grd espac","Gazon pro 12","APPRO","DÉCAISSEM","PAILLAGE","NETTOYAGE",null,null,null,null,null,null,null,null,null,null,null,null,null,null,null,null,null,null,null,null,null,null,null,null,null,null,null,null,null,null,null,null,null,null,null,null,null,null,null,null,null,null,null,null,null,null,null,null,null,null,null,null,null,null,null,7]
[42,"J723MENT20-50","SE","Paillage galet de mer gris tout venant 20/50",null,"J",null,null,null,null,null,null,null,"m²",null,null,null,1,null,null,null,null,"Fourniture et mise en place de paillage en galet gris galet de mer tout venant, granulométrie 20/50, épaisseur 5",null,"N","N",null,null,null,null,null,null,null,null,null,null,null,null,null,"Gazon pro 50","Gazon euros eco","APPRO","DÉCAISSEM","PAILLAGE","NETTOYAGE",null,null,null,null,null,null,null,null,null,null,null,null,null,null,null,null,null,null,null,null,null,null,null,null,null,null,null,null,null,null,null,null,null,null,null,null,null,null,null,null,null,null,null,null,null,null,null,null,null,null,null,null,null,null,null,7]
[43,"J723MENT40-80","SE","Paillage galet de mer gris tout venant 40/80",null,"J",null,null,null,null,null,null,null,"m²",null,null,null,1,null,null,null,null,"Fourniture et mise en place de paillage en galet gris galet de mer tout venant, granulométrie 40/80, épaisseur 10",null,"N","N",null,null,null,null,null,null,null,null,null,null,null,null,null,"gazon regarniss","gazon grd espac","APPRO","DÉCAISSEM","PAILLAGE","NETTOYAGE",null,null,null,null,null,null,null,null,null,null,null,null,null,null,null,null,null,null,null,null,null,null,null,null,null,null,null,null,null,null,null,null,null,null,null,null,null,null,null,null,null,null,null,null,null,null,null,null,null,null,null,null,null,null,null,7]
[44,"J723MENT20-150","SE","Paillage galet de mer gris tout venant 20/150",null,"J",null,null,null,null,null,null,null,"m²",null,null,null,1,null,null,null,null,"Fourniture et mise en place de paillage en galet gris galet de mer tout venant, granulométrie 20/150, épaisseur 15",null,"N","N",null,null,null,null,null,null,null,null,null,null,null,null,null,"Gaz Syn Summum","Gazon pro 50","APPRO","DÉCAISSEM","PAILLAGE","NETTOYAGE",null,null,null,null,null,null,null,null,null,null,null,null,null,null,null,null,null,null,null,null,null,null,null,null,null,null,null,null,null,null,null,null,null,null,null,null,null,null,null,null,null,null,null,null,null,null,null,null,null,null,null,null,null,null,null,7]
[45,"J723MENT60-180","SE","Paillage galet de mer gris tout venant 60/80",null,"J",null,null,null,null,null,null,null,"m²",null,null,null,1,null,null,null,null,"Fourniture et mise en place de paillage en galet gris galet de mer tout venant, granulométrie 60/80, épaisseur 10",null,"N","N",null,null,null,null,null,null,null,null,null,null,null,null,null,"Gaz Syn Eco","gazon regarniss","APPRO","DÉCAISSEM","PAILLAGE","NETTOYAGE",null,null,null,null,null,null,null,null,null,null,null,null,null,null,null,null,null,null,null,null,null,null,null,null,null,null,null,null,null,null,null,null,null,null,null,null,null,null,null,null,null,null,null,null,null,null,null,null,null,null,null,null,null,null,null,7]
[46,"J723MENT80-100","SE","Paillage galet de mer gris tout venant 80/100",null,"J",null,null,null,null,null,null,null,"m²",null,null,null,1,null,null,null,null,"Fourniture et mise en place de paillage en galet gris galet de mer tout venant, granulométrie 80/100, épaisseur 10",null,"N","N",null,null,null,null,null,null,null,null,null,null,null,null,null,"Organi100%nat","Gaz Syn Summum","APPRO","DÉCAISSEM","PAILLAGE","NETTOYAGE",null,null,null,null,null,null,null,null,null,null,null,null,null,null,null,null,null,null,null,null,null,null,null,null,null,null,null,null,null,null,null,null,null,null,null,null,null,null,null,null,null,null,null,null,null,null,null,null,null,null,null,null,null,null,null,7]
[47,"J723MENT100-120","SE","Paillage galet de mer gris tout venant 100/120",null,"J",null,null,null,null,null,null,null,"m²",null,null,null,1,null,null,null,null,"Fourniture et mise en place de paillage en galet gris galet de mer tout venant, granulométrie 100/120, épaisseur 15",null,"N","N",null,null,null,null,null,null,null,null,null,null,null,null,null,"Orgaequi7-2-9","Gaz Syn Eco","APPRO","DÉCAISSEM","PAILLAGE","NETTOYAGE",null,null,null,null,null,null,null,null,null,null,null,null,null,null,null,null,null,null,null,null,null,null,null,null,null,null,null,null,null,null,null,null,null,null,null,null,null,null,null,null,null,null,null,null,null,null,null,null,null,null,null,null,null,null,null,7]
[48,"J723GRISXXL","SE","Paillage galet gris Rocaille 150/400",null,"J",null,null,null,null,null,null,null,"m²",null,null,null,1,null,null,null,null,"Fourniture et mise en place de paillage en galet gris Rocaille, granulométrie 150/400, épaisseur 40",null,"N","N",null,null,null,null,null,null,null,null,null,null,null,null,null,"Eng16-5-20+5 4M","Organi100%nat","APPRO","DÉCAISSEM","PAILLAGE","NETTOYAGE",null,null,null,null,null,null,null,null,null,null,null,null,null,null,null,null,null,null,null,null,null,null,null,null,null,null,null,null,null,null,null,null,null,null,null,null,null,null,null,null,null,null,null,null,null,null,null,null,null,null,null,null,null,null,null,7]
[49,"J723BASA30-60","SE","Paillage galet gris basalte noir roulé 30/60",null,"J",null,null,null,null,null,null,null,"m²",null,null,null,1,null,null,null,null,"Fourniture et mise en place de paillage en galet gris basalte noir roulé, granulométrie 30/60, épaisseur 10",null,"N","N",null,null,null,null,null,null,null,null,null,null,null,null,null,"Pelle","Orgaequi7-2-9","APPRO","DÉCAISSEM","PAILLAGE","NETTOYAGE",null,null,null,null,null,null,null,null,null,null,null,null,null,null,null,null,null,null,null,null,null,null,null,null,null,null,null,null,null,null,null,null,null,null,null,null,null,null,null,null,null,null,null,null,null,null,null,null,null,null,null,null,null,null,null,7]
[50,"J723BASA60-120","SE","Paillage galet gris basalte noir roulé 60/120",null,"J",null,null,null,null,null,null,null,"m²",null,null,null,1,null,null,null,null,"Fourniture et mise en place de paillage en galet gris basalte noir roulé, granulométrie 60/120, épaisseur 15",null,"N","N",null,null,null,null,null,null,null,null,null,null,null,null,null,"Gazon eurospace","Eng16-5-20+5 4M","APPRO","DÉCAISSEM","PAILLAGE","NETTOYAGE",null,null,null,null,null,null,null,null,null,null,null,null,null,null,null,null,null,null,null,null,null,null,null,null,null,null,null,null,null,null,null,null,null,null,null,null,null,null,null,null,null,null,null,null,null,null,null,null,null,null,null,null,null,null,null,7]
[51,"J723BASA120-200","SE","Paillage galet gris basalte noir roulé 120/200",null,"J",null,null,null,null,null,null,null,"m²",null,null,null,1,null,null,null,null,"Fourniture et mise en place de paillage en galet gris basalte noir roulé, granulométrie 120/200, épaisseur 5",null,"N","N",null,null,null,null,null,null,null,null,null,null,null,null,null,"Gazon eurospace","Pelle","APPRO","DÉCAISSEM","PAILLAGE","NETTOYAGE",null,null,null,null,null,null,null,null,null,null,null,null,null,null,null,null,null,null,null,null,null,null,null,null,null,null,null,null,null,null,null,null,null,null,null,null,null,null,null,null,null,null,null,null,null,null,null,null,null,null,null,null,null,null,null,7]
[52,"J723BASA150-300","SE","Paillage galet gris basalte noir roulé 150/300",null,"J",null,null,null,null,null,null,null,"m²",null,null,null,1,null,null,null,null,"Fourniture et mise en place de paillage en galet gris basalte noir roulé, granulométrie 150/300, épaisseur 30",null,"N","N",null,null,null,null,null,null,null,null,null,null,null,null,null,"Gazon eurospace","Gazon euroclass","APPRO","DÉCAISSEM","PAILLAGE","NETTOYAGE",null,null,null,null,null,null,null,null,null,null,null,null,null,null,null,null,null,null,null,null,null,null,null,null,null,null,null,null,null,null,null,null,null,null,null,null,null,null,null,null,null,null,null,null,null,null,null,null,null,null,null,null,null,null,null,7]
[53,"J723GREE30-60","SE","Paillage galet de couleur green angels 30/60",null,"J",null,null,null,null,null,null,null,"m²",null,null,null,1,null,null,null,null,"Fourniture et mise en place de paillage en galet de couleur green angels, granulométrie 30/60, épaisseur 10",null,"N","N",null,null,null,null,null,null,null,null,null,null,null,null,null,"Gazon pro 28","Gazon pro 22","APPRO","DÉCAISSEM","PAILLAGE","NETTOYAGE",null,null,null,null,null,null,null,null,null,null,null,null,null,null,null,null,null,null,null,null,null,null,null,null,null,null,null,null,null,null,null,null,null,null,null,null,null,null,null,null,null,null,null,null,null,null,null,null,null,null,null,null,null,null,null,7]
[54,"J723GREE40-100","SE","Paillage galet de couleur green angels 40/100",null,"J",null,null,null,null,null,null,null,"m²",null,null,null,1,null,null,null,null,"Fourniture et mise en place de paillage en galet de couleur green angels, granulométrie 40/100, épaisseur 10",null,"N","N",null,null,null,null,null,null,null,null,null,null,null,null,null,"Gazon pro 12","Gazon eurospace","APPRO","DÉCAISSEM","PAILLAGE","NETTOYAGE",null,null,null,null,null,null,null,null,null,null,null,null,null,null,null,null,null,null,null,null,null,null,null,null,null,null,null,null,null,null,null,null,null,null,null,null,null,null,null,null,null,null,null,null,null,null,null,null,null,null,null,null,null,null,null,7]
[55,"J723GREE100-200","SE","Paillage galet de couleur green angels 100/200",null,"J",null,null,null,null,null,null,null,"m²",null,null,null,1,null,null,null,null,"Fourniture et mise en place de paillage en galet de couleur green angels, granulométrie 100/200, épaisseur 20",null,"N","N",null,null,null,null,null,null,null,null,null,null,null,null,null,"Gazon euros eco","Gazon pro 28","APPRO","DÉCAISSEM","PAILLAGE","NETTOYAGE",null,null,null,null,null,null,null,null,null,null,null,null,null,null,null,null,null,null,null,null,null,null,null,null,null,null,null,null,null,null,null,null,null,null,null,null,null,null,null,null,null,null,null,null,null,null,null,null,null,null,null,null,null,null,null,7]
[56,"J723BLAC50-100","SE","Paillage galet de couleur black angels 50/100",null,"J",null,null,null,null,null,null,null,"m²",null,null,null,1,null,null,null,null,"Fourniture et mise en place de paillage en galet de couleur black angels, granulométrie 50/100, épaisseur 10",null,"N","N",null,null,null,null,null,null,null,null,null,null,null,null,null,"gazon grd espac","Gazon pro 12","APPRO","DÉCAISSEM","PAILLAGE","NETTOYAGE",null,null,null,null,null,null,null,null,null,null,null,null,null,null,null,null,null,null,null,null,null,null,null,null,null,null,null,null,null,null,null,null,null,null,null,null,null,null,null,null,null,null,null,null,null,null,null,null,null,null,null,null,null,null,null,7]
[57,"J723BLAC100-200","SE","Paillage galet de couleur black angels 100/200",null,"J",null,null,null,null,null,null,null,"m²",null,null,null,1,null,null,null,null,"Fourniture et mise en place de paillage en galet de couleur black angels, granulométrie 100/200, épaisseur 20",null,"N","N",null,null,null,null,null,null,null,null,null,null,null,null,null,"Gazon pro 50","Gazon euros eco","APPRO","DÉCAISSEM","PAILLAGE","NETTOYAGE",null,null,null,null,null,null,null,null,null,null,null,null,null,null,null,null,null,null,null,null,null,null,null,null,null,null,null,null,null,null,null,null,null,null,null,null,null,null,null,null,null,null,null,null,null,null,null,null,null,null,null,null,null,null,null,7]
[58,"J723RAIN40-60","SE","Paillage galet de couleur rainbow 40/60",null,"J",null,null,null,null,null,null,null,"m²",null,null,null,1,null,null,null,null,"Fourniture et mise en place de paillage en galet de couleur rainbow, granulométrie 40/60, épaisseur 10",null,"N","N",null,null,null,null,null,null,null,null,null,null,null,null,null,"gazon regarniss","gazon grd espac","APPRO","DÉCAISSEM","PAILLAGE","NETTOYAGE",null,null,null,null,null,null,null,null,null,null,null,null,null,null,null,null,null,null,null,null,null,null,null,null,null,null,null,null,null,null,null,null,null,null,null,null,null,null,null,null,null,null,null,null,null,null,null,null,null,null,null,null,null,null,null,7]
[59,"J723RAIN50-100","SE","Paillage galet de couleur rainbow 50/100",null,"J",null,null,null,null,null,null,null,"m²",null,null,null,1,null,null,null,null,"Fourniture et mise en place de paillage en galet de couleur rainbow, granulométrie 50/100, épaisseur 10",null,"N","N",null,null,null,null,null,null,null,null,null,null,null,null,null,"Gaz Syn Summum","Gazon pro 50","APPRO","DÉCAISSEM","PAILLAGE","NETTOYAGE",null,null,null,null,null,null,null,null,null,null,null,null,null,null,null,null,null,null,null,null,null,null,null,null,null,null,null,null,null,null,null,null,null,null,null,null,null,null,null,null,null,null,null,null,null,null,null,null,null,null,null,null,null,null,null,7]
[60,"J723RAIN100-200","SE","Paillage galet de couleur rainbow 100/200",null,"J",null,null,null,null,null,null,null,"m²",null,null,null,1,null,null,null,null,"Fourniture et mise en place de paillage en galet de couleur rainbow, granulométrie 100/200, épaisseur 20",null,"N","N",null,null,null,null,null,null,null,null,null,null,null,null,null,"Gaz Syn Eco","gazon regarniss","APPRO","DÉCAISSEM","PAILLAGE","NETTOYAGE",null,null,null,null,null,null,null,null,null,null,null,null,null,null,null,null,null,null,null,null,null,null,null,null,null,null,null,null,null,null,null,null,null,null,null,null,null,null,null,null,null,null,null,null,null,null,null,null,null,null,null,null,null,null,null,7]
[61,"J723MICA50-100","SE","Paillage galet de couleur Mica rosa 50/100",null,"J",null,null,null,null,null,null,null,"m²",null,null,null,1,null,null,null,null,"Fourniture et mise en place de paillage en galet de couleur Mica rosa, granulométrie 50/100, épaisseur 10",null,"N","N",null,null,null,null,null,null,null,null,null,null,null,null,null,"Organi100%nat","Gaz Syn Summum","APPRO","DÉCAISSEM","PAILLAGE","NETTOYAGE",null,null,null,null,null,null,null,null,null,null,null,null,null,null,null,null,null,null,null,null,null,null,null,null,null,null,null,null,null,null,null,null,null,null,null,null,null,null,null,null,null,null,null,null,null,null,null,null,null,null,null,null,null,null,null,7]
[62,"J723MICA100-200","SE","Paillage galet de couleur Mica rosa 100/200",null,"J",null,null,null,null,null,null,null,"m²",null,null,null,1,null,null,null,null,"Fourniture et mise en place de paillage en galet de couleur Mica rosa, granulométrie 100/200, épaisseur 20",null,"N","N",null,null,null,null,null,null,null,null,null,null,null,null,null,"Orgaequi7-2-9","Gaz Syn Eco","APPRO","DÉCAISSEM","PAILLAGE","NETTOYAGE",null,null,null,null,null,null,null,null,null,null,null,null,null,null,null,null,null,null,null,null,null,null,null,null,null,null,null,null,null,null,null,null,null,null,null,null,null,null,null,null,null,null,null,null,null,null,null,null,null,null,null,null,null,null,null,7]
[63,"J723MICA200-400","SE","Paillage galet de couleur Mica rosa 200/400",null,"J",null,null,null,null,null,null,null,"m²",null,null,null,1,null,null,null,null,"Fourniture et mise en place de paillage en galet de couleur Mica rosa, granulométrie 200/400, épaisseur 40",null,"N","N",null,null,null,null,null,null,null,null,null,null,null,null,null,"Eng16-5-20+5 4M","Organi100%nat","APPRO","DÉCAISSEM","PAILLAGE","NETTOYAGE",null,null,null,null,null,null,null,null,null,null,null,null,null,null,null,null,null,null,null,null,null,null,null,null,null,null,null,null,null,null,null,null,null,null,null,null,null,null,null,null,null,null,null,null,null,null,null,null,null,null,null,null,null,null,null,7]
[64,"J723ROSA50-100","SE","Paillage galet de couleur rosa aegean 50/100",null,"J",null,null,null,null,null,null,null,"m²",null,null,null,1,null,null,null,null,"Fourniture et mise en place de paillage en galet de couleur rosa aegean, granulométrie 50/100, épaisseur 10",null,"N","N",null,null,null,null,null,null,null,null,null,null,null,null,null,"Pelle","Orgaequi7-2-9","APPRO","DÉCAISSEM","PAILLAGE","NETTOYAGE",null,null,null,null,null,null,null,null,null,null,null,null,null,null,null,null,null,null,null,null,null,null,null,null,null,null,null,null,null,null,null,null,null,null,null,null,null,null,null,null,null,null,null,null,null,null,null,null,null,null,null,null,null,null,null,7]
[65,"J723ROSA100-200","SE","Paillage galet de couleur rosa aegean 100/200",null,"J",null,null,null,null,null,null,null,"m²",null,null,null,1,null,null,null,null,"Fourniture et mise en place de paillage en galet de couleur rosa aegean, granulométrie 100/200, épaisseur 20",null,"N","N",null,null,null,null,null,null,null,null,null,null,null,null,null,"Gazon eurospace","Gazon euroclass","APPRO","DÉCAISSEM","PAILLAGE","NETTOYAGE",null,null,null,null,null,null,null,null,null,null,null,null,null,null,null,null,null,null,null,null,null,null,null,null,null,null,null,null,null,null,null,null,null,null,null,null,null,null,null,null,null,null,null,null,null,null,null,null,null,null,null,null,null,null,null,7]
[66,"J723BORD40-60","SE","Paillage galet de couleur Bordo 40/60",null,"J",null,null,null,null,null,null,null,"m²",null,null,null,1,null,null,null,null,"Fourniture et mise en place de paillage en galet de couleur Bordo, granulométrie 40/60, épaisseur 10",null,"N","N",null,null,null,null,null,null,null,null,null,null,null,null,null,"Gazon pro 28","Gazon pro 22","APPRO","DÉCAISSEM","PAILLAGE","NETTOYAGE",null,null,null,null,null,null,null,null,null,null,null,null,null,null,null,null,null,null,null,null,null,null,null,null,null,null,null,null,null,null,null,null,null,null,null,null,null,null,null,null,null,null,null,null,null,null,null,null,null,null,null,null,null,null,null,7]
[67,"J723BORD50-100","SE","Paillage galet de couleur Bordo 50/100",null,"J",null,null,null,null,null,null,null,"m²",null,null,null,1,null,null,null,null,"Fourniture et mise en place de paillage en galet de couleur Bordo, granulométrie 50/100, épaisseur 10",null,"N","N",null,null,null,null,null,null,null,null,null,null,null,null,null,"Gazon pro 12","Gazon eurospace","APPRO","DÉCAISSEM","PAILLAGE","NETTOYAGE",null,null,null,null,null,null,null,null,null,null,null,null,null,null,null,null,null,null,null,null,null,null,null,null,null,null,null,null,null,null,null,null,null,null,null,null,null,null,null,null,null,null,null,null,null,null,null,null,null,null,null,null,null,null,null,7]
[68,"J723BORD100-200","SE","Paillage galet de couleur Bordo 100/200",null,"J",null,null,null,null,null,null,null,"m²",null,null,null,1,null,null,null,null,"Fourniture et mise en place de paillage en galet de couleur Bordo, granulométrie 100/200, épaisseur 20",null,"N","N",null,null,null,null,null,null,null,null,null,null,null,null,null,"Gazon euros eco","Gazon pro 28","APPRO","DÉCAISSEM","PAILLAGE","NETTOYAGE",null,null,null,null,null,null,null,null,null,null,null,null,null,null,null,null,null,null,null,null,null,null,null,null,null,null,null,null,null,null,null,null,null,null,null,null,null,null,null,null,null,null,null,null,null,null,null,null,null,null,null,null,null,null,null,7]
[69,"J723MAVE40-60","SE","Paillage galet de couleur marbre vert 40/60",null,"J",null,null,null,null,null,null,null,"m²",null,null,null,1,null,null,null,null,"Fourniture et mise en place de paillage en galet de couleur marbre vert, granulométrie 40/60, épaisseur 10",null,"N","N",null,null,null,null,null,null,null,null,null,null,null,null,null,"gazon grd espac","Gazon pro 12","APPRO","DÉCAISSEM","PAILLAGE","NETTOYAGE",null,null,null,null,null,null,null,null,null,null,null,null,null,null,null,null,null,null,null,null,null,null,null,null,null,null,null,null,null,null,null,null,null,null,null,null,null,null,null,null,null,null,null,null,null,null,null,null,null,null,null,null,null,null,null,7]
[70,"J723MAVE100-200","SE","Paillage galet de couleur marbre vert 100/200",null,"J",null,null,null,null,null,null,null,"m²",null,null,null,1,null,null,null,null,"Fourniture et mise en place de paillage en galet de couleur marbre vert, granulométrie 100/200, épaisseur 20",null,"N","N",null,null,null,null,null,null,null,null,null,null,null,null,null,"Gazon pro 50","Gazon euros eco","APPRO","DÉCAISSEM","PAILLAGE","NETTOYAGE",null,null,null,null,null,null,null,null,null,null,null,null,null,null,null,null,null,null,null,null,null,null,null,null,null,null,null,null,null,null,null,null,null,null,null,null,null,null,null,null,null,null,null,null,null,null,null,null,null,null,null,null,null,null,null,7]
[71,"J723GRPE10-30","SE","Paillage galet de couleur green pepper 10/30",null,"J",null,null,null,null,null,null,null,"m²",null,null,null,1,null,null,null,null,"Fourniture et mise en place de paillage en galet de couleur green pepper, granulométrie 10/30, épaisseur 5",null,"N","N",null,null,null,null,null,null,null,null,null,null,null,null,null,"gazon regarniss","gazon grd espac","APPRO","DÉCAISSEM","PAILLAGE","NETTOYAGE",null,null,null,null,null,null,null,null,null,null,null,null,null,null,null,null,null,null,null,null,null,null,null,null,null,null,null,null,null,null,null,null,null,null,null,null,null,null,null,null,null,null,null,null,null,null,null,null,null,null,null,null,null,null,null,7]
[72,"J723NIKK15-30","SE","Paillage galet de couleur Nikko 15/30",null,"J",null,null,null,null,null,null,null,"m²",null,null,null,1,null,null,null,null,"Fourniture et mise en place de paillage en galet de couleur Nikko, granulométrie 15/30, épaisseur 5",null,"N","N",null,null,null,null,null,null,null,null,null,null,null,null,null,"Gaz Syn Summum","Gazon pro 50","APPRO","DÉCAISSEM","PAILLAGE","NETTOYAGE",null,null,null,null,null,null,null,null,null,null,null,null,null,null,null,null,null,null,null,null,null,null,null,null,null,null,null,null,null,null,null,null,null,null,null,null,null,null,null,null,null,null,null,null,null,null,null,null,null,null,null,null,null,null,null,7]
[73,"J723NIKK50-70","SE","Paillage galet de couleur Nikko 50/70",null,"J",null,null,null,null,null,null,null,"m²",null,null,null,1,null,null,null,null,"Fourniture et mise en place de paillage en galet de couleur Nikko, granulométrie 50/70, épaisseur 10",null,"N","N",null,null,null,null,null,null,null,null,null,null,null,null,null,"Gaz Syn Eco","gazon regarniss","APPRO","DÉCAISSEM","PAILLAGE","NETTOYAGE",null,null,null,null,null,null,null,null,null,null,null,null,null,null,null,null,null,null,null,null,null,null,null,null,null,null,null,null,null,null,null,null,null,null,null,null,null,null,null,null,null,null,null,null,null,null,null,null,null,null,null,null,null,null,null,7]
[74,"J723NIKK70-120","SE","Paillage galet de couleur Nikko 70/120",null,"J",null,null,null,null,null,null,null,"m²",null,null,null,1,null,null,null,null,"Fourniture et mise en place de paillage en galet de couleur Nikko, granulométrie 70/120, épaisseur 15",null,"N","N",null,null,null,null,null,null,null,null,null,null,null,null,null,"Organi100%nat","Gaz Syn Summum","APPRO","DÉCAISSEM","PAILLAGE","NETTOYAGE",null,null,null,null,null,null,null,null,null,null,null,null,null,null,null,null,null,null,null,null,null,null,null,null,null,null,null,null,null,null,null,null,null,null,null,null,null,null,null,null,null,null,null,null,null,null,null,null,null,null,null,null,null,null,null,7]
[75,"J723GRBE30-60","SE","Paillage galet de couleur granit roulé beige 30/60",null,"J",null,null,null,null,null,null,null,"m²",null,null,null,1,null,null,null,null,"Fourniture et mise en place de paillage en galet de couleur granit roulé beige, granulométrie 30/60, épaisseur 10",null,"N","N",null,null,null,null,null,null,null,null,null,null,null,null,null,"Orgaequi7-2-9","Gaz Syn Eco","APPRO","DÉCAISSEM","PAILLAGE","NETTOYAGE",null,null,null,null,null,null,null,null,null,null,null,null,null,null,null,null,null,null,null,null,null,null,null,null,null,null,null,null,null,null,null,null,null,null,null,null,null,null,null,null,null,null,null,null,null,null,null,null,null,null,null,null,null,null,null,7]
[76,"J723GRBE60-120","SE","Paillage galet roulé beige 60/120",null,"J",null,null,null,null,null,null,null,"m²",null,null,null,1,null,null,null,null,"Fourniture et mise en place de paillage en galet roulé beige, granulométrie 60/120, épaisseur 15",null,"N","N",null,null,null,null,null,null,null,null,null,null,null,null,null,"Eng16-5-20+5 4M","Organi100%nat","APPRO","DÉCAISSEM","PAILLAGE","NETTOYAGE",null,null,null,null,null,null,null,null,null,null,null,null,null,null,null,null,null,null,null,null,null,null,null,null,null,null,null,null,null,null,null,null,null,null,null,null,null,null,null,null,null,null,null,null,null,null,null,null,null,null,null,null,null,null,null,7]
[77,"J723GRBE120-300","SE","Paillage galet roulé beige 120/300",null,"J",null,null,null,null,null,null,null,"m²",null,null,null,1,null,null,null,null,"Fourniture et mise en place de paillage en galet roulé beige, granulométrie 120/300, épaisseur 30",null,"N","N",null,null,null,null,null,null,null,null,null,null,null,null,null,"Pelle","Orgaequi7-2-9","APPRO","DÉCAISSEM","PAILLAGE","NETTOYAGE",null,null,null,null,null,null,null,null,null,null,null,null,null,null,null,null,null,null,null,null,null,null,null,null,null,null,null,null,null,null,null,null,null,null,null,null,null,null,null,null,null,null,null,null,null,null,null,null,null,null,null,null,null,null,null,7]
[78,"J723GRBE300-500","SE","Paillage galet roulé beige 300/500",null,"J",null,null,null,null,null,null,null,"m²",null,null,null,1,null,null,null,null,"Fourniture et mise en place de paillage en galet roulé beige, granulométrie 300/500, épaisseur 50",null,"N","N",null,null,null,null,null,null,null,null,null,null,null,null,null,"Gazon eurospace","Eng16-5-20+5 4M","APPRO","DÉCAISSEM","PAILLAGE","NETTOYAGE",null,null,null,null,null,null,null,null,null,null,null,null,null,null,null,null,null,null,null,null,null,null,null,null,null,null,null,null,null,null,null,null,null,null,null,null,null,null,null,null,null,null,null,null,null,null,null,null,null,null,null,null,null,null,null,7]
[79,"J723JAUN80-150","SE","Paillage galet de couleur galet jaunes 80/150",null,"J",null,null,null,null,null,null,null,"m²",null,null,null,1,null,null,null,null,"Fourniture et mise en place de paillage en galet de couleur galet jaunes, granulométrie 80/150, épaisseur 15",null,"N","N",null,null,null,null,null,null,null,null,null,null,null,null,null,"Gazon eurospace","Pelle","APPRO","DÉCAISSEM","PAILLAGE","NETTOYAGE",null,null,null,null,null,null,null,null,null,null,null,null,null,null,null,null,null,null,null,null,null,null,null,null,null,null,null,null,null,null,null,null,null,null,null,null,null,null,null,null,null,null,null,null,null,null,null,null,null,null,null,null,null,null,null,7]
[80,"J723OCRE40-60","SE","Paillage galet de couleur galet ocres 40/60",null,"J",null,null,null,null,null,null,null,"m²",null,null,null,1,null,null,null,null,"Fourniture et mise en place de paillage en galet de couleur galet ocres, granulométrie 40/60, épaisseur 10",null,"N","N",null,null,null,null,null,null,null,null,null,null,null,null,null,"Gazon eurospace","Gazon euroclass","APPRO","DÉCAISSEM","PAILLAGE","NETTOYAGE",null,null,null,null,null,null,null,null,null,null,null,null,null,null,null,null,null,null,null,null,null,null,null,null,null,null,null,null,null,null,null,null,null,null,null,null,null,null,null,null,null,null,null,null,null,null,null,null,null,null,null,null,null,null,null,7]
[81,"J723OCRE60-80","SE","Paillage galet de couleur galet ocres 60/80",null,"J",null,null,null,null,null,null,null,"m²",null,null,null,1,null,null,null,null,"Fourniture et mise en place de paillage en galet de couleur galet ocres, granulométrie 60/80, épaisseur 10",null,"N","N",null,null,null,null,null,null,null,null,null,null,null,null,null,"Gazon pro 28","Gazon pro 22","APPRO","DÉCAISSEM","PAILLAGE","NETTOYAGE",null,null,null,null,null,null,null,null,null,null,null,null,null,null,null,null,null,null,null,null,null,null,null,null,null,null,null,null,null,null,null,null,null,null,null,null,null,null,null,null,null,null,null,null,null,null,null,null,null,null,null,null,null,null,null,7]
[82,"J723OCRE80-100","SE","Paillage galet de couleur galet ocres 80/100",null,"J",null,null,null,null,null,null,null,"m²",null,null,null,1,null,null,null,null,"Fourniture et mise en place de paillage en galet de couleur galet ocres, granulométrie 80/100, épaisseur 10",null,"N","N",null,null,null,null,null,null,null,null,null,null,null,null,null,"Gazon pro 12","Gazon eurospace","APPRO","DÉCAISSEM","PAILLAGE","NETTOYAGE",null,null,null,null,null,null,null,null,null,null,null,null,null,null,null,null,null,null,null,null,null,null,null,null,null,null,null,null,null,null,null,null,null,null,null,null,null,null,null,null,null,null,null,null,null,null,null,null,null,null,null,null,null,null,null,7]
[83,"J723OCRE100-120","SE","Paillage galet de couleur galet ocres 100/120",null,"J",null,null,null,null,null,null,null,"m²",null,null,null,1,null,null,null,null,"Fourniture et mise en place de paillage en galet de couleur galet ocres, granulométrie 100/120, épaisseur 15",null,"N","N",null,null,null,null,null,null,null,null,null,null,null,null,null,"Gazon euros eco","Gazon pro 28","APPRO","DÉCAISSEM","PAILLAGE","NETTOYAGE",null,null,null,null,null,null,null,null,null,null,null,null,null,null,null,null,null,null,null,null,null,null,null,null,null,null,null,null,null,null,null,null,null,null,null,null,null,null,null,null,null,null,null,null,null,null,null,null,null,null,null,null,null,null,null,7]
[84,"J723OCRE120-150","SE","Paillage galet de couleur galet ocres 120/150",null,"J",null,null,null,null,null,null,null,"m²",null,null,null,1,null,null,null,null,"Fourniture et mise en place de paillage en galet de couleur galet ocres, granulométrie 120/150, épaisseur 15",null,"N","N",null,null,null,null,null,null,null,null,null,null,null,null,null,"gazon grd espac","Gazon pro 12","APPRO","DÉCAISSEM","PAILLAGE","NETTOYAGE",null,null,null,null,null,null,null,null,null,null,null,null,null,null,null,null,null,null,null,null,null,null,null,null,null,null,null,null,null,null,null,null,null,null,null,null,null,null,null,null,null,null,null,null,null,null,null,null,null,null,null,null,null,null,null,7]
[85,"J723OCRE150-200","SE","Paillage galet de couleur galet ocres 150/200",null,"J",null,null,null,null,null,null,null,"m²",null,null,null,1,null,null,null,null,"Fourniture et mise en place de paillage en galet de couleur galet ocres, granulométrie 150/200, épaisseur 20",null,"N","N",null,null,null,null,null,null,null,null,null,null,null,null,null,"Gazon pro 50","Gazon euros eco","APPRO","DÉCAISSEM","PAILLAGE","NETTOYAGE",null,null,null,null,null,null,null,null,null,null,null,null,null,null,null,null,null,null,null,null,null,null,null,null,null,null,null,null,null,null,null,null,null,null,null,null,null,null,null,null,null,null,null,null,null,null,null,null,null,null,null,null,null,null,null,7]
[86,"J723POBL10-50","SE","Paillage Galet poli Blanc 10/50",null,"J",null,null,null,null,null,null,null,"m²",null,null,null,1,null,null,null,null,"Fourniture et mise en place de paillage en Galet poli Blanc, granulométrie 10/50, épaisseur 5",null,"N","N",null,null,null,null,null,null,null,null,null,null,null,null,null,"gazon regarniss","gazon grd espac","APPRO","DÉCAISSEM","PAILLAGE","NETTOYAGE",null,null,null,null,null,null,null,null,null,null,null,null,null,null,null,null,null,null,null,null,null,null,null,null,null,null,null,null,null,null,null,null,null,null,null,null,null,null,null,null,null,null,null,null,null,null,null,null,null,null,null,null,null,null,null,7]
[87,"J723POJA10-50","SE","Paillage Galet poli Jaunes 10/50",null,"J",null,null,null,null,null,null,null,"m²",null,null,null,1,null,null,null,null,"Fourniture et mise en place de paillage en Galet poli Jaunes, granulométrie 10/50, épaisseur 5",null,"N","N",null,null,null,null,null,null,null,null,null,null,null,null,null,"Gaz Syn Summum","Gazon pro 50","APPRO","DÉCAISSEM","PAILLAGE","NETTOYAGE",null,null,null,null,null,null,null,null,null,null,null,null,null,null,null,null,null,null,null,null,null,null,null,null,null,null,null,null,null,null,null,null,null,null,null,null,null,null,null,null,null,null,null,null,null,null,null,null,null,null,null,null,null,null,null,7]
[88,"J723PONO10-50","SE","Paillage Galet poli Noirs 10/50",null,"J",null,null,null,null,null,null,null,"m²",null,null,null,1,null,null,null,null,"Fourniture et mise en place de paillage en Galet poli Noirs, granulométrie 10/50, épaisseur 5",null,"N","N",null,null,null,null,null,null,null,null,null,null,null,null,null,"Gaz Syn Eco","gazon regarniss","APPRO","DÉCAISSEM","PAILLAGE","NETTOYAGE",null,null,null,null,null,null,null,null,null,null,null,null,null,null,null,null,null,null,null,null,null,null,null,null,null,null,null,null,null,null,null,null,null,null,null,null,null,null,null,null,null,null,null,null,null,null,null,null,null,null,null,null,null,null,null,7]
[89,"J723PORA10-50","SE","Paillage Galet poli Rayés 10/50",null,"J",null,null,null,null,null,null,null,"m²",null,null,null,1,null,null,null,null,"Fourniture et mise en place de paillage en Galet poli Rayés, granulométrie 10/50, épaisseur 5",null,"N","N",null,null,null,null,null,null,null,null,null,null,null,null,null,"Organi100%nat","Gaz Syn Summum","APPRO","DÉCAISSEM","PAILLAGE","NETTOYAGE",null,null,null,null,null,null,null,null,null,null,null,null,null,null,null,null,null,null,null,null,null,null,null,null,null,null,null,null,null,null,null,null,null,null,null,null,null,null,null,null,null,null,null,null,null,null,null,null,null,null,null,null,null,null,null,7]
[90,"J723PORG10-50","SE","Paillage Galet poli Rouges 10/50",null,"J",null,null,null,null,null,null,null,"m²",null,null,null,1,null,null,null,null,"Fourniture et mise en place de paillage en Galet poli Rouges, granulométrie 10/50, épaisseur 5",null,"N","N",null,null,null,null,null,null,null,null,null,null,null,null,null,"Orgaequi7-2-9","Gaz Syn Eco","APPRO","DÉCAISSEM","PAILLAGE","NETTOYAGE",null,null,null,null,null,null,null,null,null,null,null,null,null,null,null,null,null,null,null,null,null,null,null,null,null,null,null,null,null,null,null,null,null,null,null,null,null,null,null,null,null,null,null,null,null,null,null,null,null,null,null,null,null,null,null,7]
[91,"J723POVE10-50","SE","Paillage Galet poli Vert 10/50",null,"J",null,null,null,null,null,null,null,"m²",null,null,null,1,null,null,null,null,"Fourniture et mise en place de paillage en Galet poli Vert, granulométrie 10/50, épaisseur 5",null,"N","N",null,null,null,null,null,null,null,null,null,null,null,null,null,"Eng16-5-20+5 4M","Organi100%nat","APPRO","DÉCAISSEM","PAILLAGE","NETTOYAGE",null,null,null,null,null,null,null,null,null,null,null,null,null,null,null,null,null,null,null,null,null,null,null,null,null,null,null,null,null,null,null,null,null,null,null,null,null,null,null,null,null,null,null,null,null,null,null,null,null,null,null,null,null,null,null,7]
[92,"J721MABL7-15","SE","Paillage gravillon roulé marbre blanc 7/15",null,"J",null,null,null,null,null,null,null,"m²",null,null,null,1,null,null,null,null,"Fourniture et mise en place de paillage en gravillon roulé marbre blanc, granulométrie 7/15, épaisseur 5",null,"N","N",null,null,null,null,null,null,null,null,null,null,null,null,null,"Pelle","Orgaequi7-2-9","APPRO","DÉCAISSEM","PAILLAGE","NETTOYAGE",null,null,null,null,null,null,null,null,null,null,null,null,null,null,null,null,null,null,null,null,null,null,null,null,null,null,null,null,null,null,null,null,null,null,null,null,null,null,null,null,null,null,null,null,null,null,null,null,null,null,null,null,null,null,null,7]
[93,"J721MABL15-25","SE","Paillage gravillon roulé marbre blanc 15/25",null,"J",null,null,null,null,null,null,null,"m²",null,null,null,1,null,null,null,null,"Fourniture et mise en place de paillage en gravillon roulé marbre blanc, granulométrie 15/25, épaisseur 5",null,"N","N",null,null,null,null,null,null,null,null,null,null,null,null,null,"Gazon eurospace","Gazon euroclass","APPRO","DÉCAISSEM","PAILLAGE","NETTOYAGE",null,null,null,null,null,null,null,null,null,null,null,null,null,null,null,null,null,null,null,null,null,null,null,null,null,null,null,null,null,null,null,null,null,null,null,null,null,null,null,null,null,null,null,null,null,null,null,null,null,null,null,null,null,null,null,7]
[94,"J721MABL20-40","SE","Paillage gravillon roulé marbre blanc 25/40",null,"J",null,null,null,null,null,null,null,"m²",null,null,null,1,null,null,null,null,"Fourniture et mise en place de paillage en gravillon roulé marbre blanc, granulométrie 25/40, épaisseur 5",null,"N","N",null,null,null,null,null,null,null,null,null,null,null,null,null,"Gazon pro 28","Gazon pro 22","APPRO","DÉCAISSEM","PAILLAGE","NETTOYAGE",null,null,null,null,null,null,null,null,null,null,null,null,null,null,null,null,null,null,null,null,null,null,null,null,null,null,null,null,null,null,null,null,null,null,null,null,null,null,null,null,null,null,null,null,null,null,null,null,null,null,null,null,null,null,null,7]
[95,"J721MBRS8-15","SE","Paillage gravillon roulé Marbre rosé 8/15",null,"J",null,null,null,null,null,null,null,"m²",null,null,null,1,null,null,null,null,"Fourniture et mise en place de paillage en gravillon roulé Marbre rosé, granulométrie 8/15, épaisseur 5",null,"N","N",null,null,null,null,null,null,null,null,null,null,null,null,null,"Gazon pro 12","Gazon eurospace","APPRO","DÉCAISSEM","PAILLAGE","NETTOYAGE",null,null,null,null,null,null,null,null,null,null,null,null,null,null,null,null,null,null,null,null,null,null,null,null,null,null,null,null,null,null,null,null,null,null,null,null,null,null,null,null,null,null,null,null,null,null,null,null,null,null,null,null,null,null,null,7]
[96,"J721MBVE15-27","SE","Paillage gravillon roulé Marbre vert 15/27",null,"J",null,null,null,null,null,null,null,"m²",null,null,null,1,null,null,null,null,"Fourniture et mise en place de paillage en gravillon roulé Marbre vert, granulométrie 15/27, épaisseur 5",null,"N","N",null,null,null,null,null,null,null,null,null,null,null,null,null,"Gazon euros eco","Gazon pro 28","APPRO","DÉCAISSEM","PAILLAGE","NETTOYAGE",null,null,null,null,null,null,null,null,null,null,null,null,null,null,null,null,null,null,null,null,null,null,null,null,null,null,null,null,null,null,null,null,null,null,null,null,null,null,null,null,null,null,null,null,null,null,null,null,null,null,null,null,null,null,null,7]
[97,"J723MBVE40-60","SE","Paillage gravillon roulé Marbre vert 40/60",null,"J",null,null,null,null,null,null,null,"m²",null,null,null,1,null,null,null,null,"Fourniture et mise en place de paillage en gravillon roulé Marbre vert, granulométrie 40/60, épaisseur 10",null,"N","N",null,null,null,null,null,null,null,null,null,null,null,null,null,"gazon grd espac","Gazon pro 12","APPRO","DÉCAISSEM","PAILLAGE","NETTOYAGE",null,null,null,null,null,null,null,null,null,null,null,null,null,null,null,null,null,null,null,null,null,null,null,null,null,null,null,null,null,null,null,null,null,null,null,null,null,null,null,null,null,null,null,null,null,null,null,null,null,null,null,null,null,null,null,7]
[98,"J723MBJA100-200","SE","Paillage Marbre jaune sienne roulé100/200",null,"J",null,null,null,null,null,null,null,"m²",null,null,null,1,null,null,null,null,"Fourniture et mise en place de paillage Marbre jaune sienne roulé, granulométrie 100/200, épaisseur 20",null,"N","N",null,null,null,null,null,null,null,null,null,null,null,null,null,"Gazon pro 50","Gazon euros eco","APPRO","DÉCAISSEM","PAILLAGE","NETTOYAGE",null,null,null,null,null,null,null,null,null,null,null,null,null,null,null,null,null,null,null,null,null,null,null,null,null,null,null,null,null,null,null,null,null,null,null,null,null,null,null,null,null,null,null,null,null,null,null,null,null,null,null,null,null,null,null,7]
[99,"J721MBJA7-15","SE","Paillage gravillon roulé Marbre jaune rouge 7/15",null,"J",null,null,null,null,null,null,null,"m²",null,null,null,1,null,null,null,null,"Fourniture et mise en place de paillage en gravillon roulé Marbre jaune rouge, granulométrie 7/15, épaisseur 5",null,"N","N",null,null,null,null,null,null,null,null,null,null,null,null,null,"gazon regarniss","gazon grd espac","APPRO","DÉCAISSEM","PAILLAGE","NETTOYAGE",null,null,null,null,null,null,null,null,null,null,null,null,null,null,null,null,null,null,null,null,null,null,null,null,null,null,null,null,null,null,null,null,null,null,null,null,null,null,null,null,null,null,null,null,null,null,null,null,null,null,null,null,null,null,null,7]
[100,"J721ROUL5-13","SE","Paillage gravillon roulé 5/13",null,"J",null,null,null,null,null,null,null,"m²",null,null,null,1,null,null,null,null,"Fourniture et mise en place de paillage en gravillon roulé, granulométrie 5/13, épaisseur 5",null,"N","N",null,null,null,null,null,null,null,null,null,null,null,null,null,"Gaz Syn Summum","Gazon pro 50","APPRO","DÉCAISSEM","PAILLAGE","NETTOYAGE",null,null,null,null,null,null,null,null,null,null,null,null,null,null,null,null,null,null,null,null,null,null,null,null,null,null,null,null,null,null,null,null,null,null,null,null,null,null,null,null,null,null,null,null,null,null,null,null,null,null,null,null,null,null,null,7]
[101,"J721ROUL10-20","SE","Paillage gravillon roulé 10/20",null,"J",null,null,null,null,null,null,null,"m²",null,null,null,1,null,null,null,null,"Fourniture et mise en place de paillage en gravillon roulé, granulométrie 10/20, épaisseur 5",null,"N","N",null,null,null,null,null,null,null,null,null,null,null,null,null,"Gaz Syn Eco","gazon regarniss","APPRO","DÉCAISSEM","PAILLAGE","NETTOYAGE",null,null,null,null,null,null,null,null,null,null,null,null,null,null,null,null,null,null,null,null,null,null,null,null,null,null,null,null,null,null,null,null,null,null,null,null,null,null,null,null,null,null,null,null,null,null,null,null,null,null,null,null,null,null,null,7]
[102,"J721ROUL20-40","SE","Paillage gravillon roulé 20/40",null,"J",null,null,null,null,null,null,null,"m²",null,null,null,1,null,null,null,null,"Fourniture et mise en place de paillage en gravillon roulé, granulométrie 20/40, épaisseur 5",null,"N","N",null,null,null,null,null,null,null,null,null,null,null,null,null,"Organi100%nat","Gaz Syn Summum","APPRO","DÉCAISSEM","PAILLAGE","NETTOYAGE",null,null,null,null,null,null,null,null,null,null,null,null,null,null,null,null,null,null,null,null,null,null,null,null,null,null,null,null,null,null,null,null,null,null,null,null,null,null,null,null,null,null,null,null,null,null,null,null,null,null,null,null,null,null,null,7]
[103,"J721MA4-8","SE","Paillage gravillon roulé MA 4/8",null,"J",null,null,null,null,null,null,null,"m²",null,null,null,1,null,null,null,null,"Fourniture et mise en place de paillage en gravillon roulé MA, granulométrie 4/8, épaisseur 5",null,"N","N",null,null,null,null,null,null,null,null,null,null,null,null,null,"Orgaequi7-2-9","Gaz Syn Eco","APPRO","DÉCAISSEM","PAILLAGE","NETTOYAGE",null,null,null,null,null,null,null,null,null,null,null,null,null,null,null,null,null,null,null,null,null,null,null,null,null,null,null,null,null,null,null,null,null,null,null,null,null,null,null,null,null,null,null,null,null,null,null,null,null,null,null,null,null,null,null,7]
[104,"J721MA4-14","SE","Paillage gravillon roulé MA 4/14",null,"J",null,null,null,null,null,null,null,"m²",null,null,null,1,null,null,null,null,"Fourniture et mise en place de paillage en gravillon roulé MA, granulométrie 4/14, épaisseur 5",null,"N","N",null,null,null,null,null,null,null,null,null,null,null,null,null,"Eng16-5-20+5 4M","Organi100%nat","APPRO","DÉCAISSEM","PAILLAGE","NETTOYAGE",null,null,null,null,null,null,null,null,null,null,null,null,null,null,null,null,null,null,null,null,null,null,null,null,null,null,null,null,null,null,null,null,null,null,null,null,null,null,null,null,null,null,null,null,null,null,null,null,null,null,null,null,null,null,null,7]
[105,"J721MA4-20","SE","Paillage gravillon roulé MA 4/20",null,"J",null,null,null,null,null,null,null,"m²",null,null,null,1,null,null,null,null,"Fourniture et mise en place de paillage en gravillon roulé MA, granulométrie 4/20, épaisseur 5",null,"N","N",null,null,null,null,null,null,null,null,null,null,null,null,null,"Pelle","Orgaequi7-2-9","APPRO","DÉCAISSEM","PAILLAGE","NETTOYAGE",null,null,null,null,null,null,null,null,null,null,null,null,null,null,null,null,null,null,null,null,null,null,null,null,null,null,null,null,null,null,null,null,null,null,null,null,null,null,null,null,null,null,null,null,null,null,null,null,null,null,null,null,null,null,null,7]
[106,"J721MA8-20","SE","Paillage gravillon roulé MA 8/20",null,"J",null,null,null,null,null,null,null,"m²",null,null,null,1,null,null,null,null,"Fourniture et mise en place de paillage en gravillon roulé MA, granulométrie 8/20, épaisseur 5",null,"N","N",null,null,null,null,null,null,null,null,null,null,null,null,null,"Gazon eurospace","Eng16-5-20+5 4M","APPRO","DÉCAISSEM","PAILLAGE","NETTOYAGE",null,null,null,null,null,null,null,null,null,null,null,null,null,null,null,null,null,null,null,null,null,null,null,null,null,null,null,null,null,null,null,null,null,null,null,null,null,null,null,null,null,null,null,null,null,null,null,null,null,null,null,null,null,null,null,7]
[107,"J721BASA8-15","SE","Paillage gravillon roulé Basalt noir 8/15",null,"J",null,null,null,null,null,null,null,"m²",null,null,null,1,null,null,null,null,"Fourniture et mise en place de paillage en gravillon roulé Basalt noir, granulométrie 8/15, épaisseur 5",null,"N","N",null,null,null,null,null,null,null,null,null,null,null,null,null,"Gazon eurospace","Pelle","APPRO","DÉCAISSEM","PAILLAGE","NETTOYAGE",null,null,null,null,null,null,null,null,null,null,null,null,null,null,null,null,null,null,null,null,null,null,null,null,null,null,null,null,null,null,null,null,null,null,null,null,null,null,null,null,null,null,null,null,null,null,null,null,null,null,null,null,null,null,null,7]
[108,"J721BB4-8","SE","Paillage gravillon roulé BB 4/8",null,"J",null,null,null,null,null,null,null,"m²",null,null,null,1,null,null,null,null,"Fourniture et mise en place de paillage en gravillon roulé BB, granulométrie 4/8, épaisseur 5",null,"N","N",null,null,null,null,null,null,null,null,null,null,null,null,null,"Gazon eurospace","Gazon euroclass","APPRO","DÉCAISSEM","PAILLAGE","NETTOYAGE",null,null,null,null,null,null,null,null,null,null,null,null,null,null,null,null,null,null,null,null,null,null,null,null,null,null,null,null,null,null,null,null,null,null,null,null,null,null,null,null,null,null,null,null,null,null,null,null,null,null,null,null,null,null,null,7]
[109,"J721BB8-15","SE","Paillage gravillon roulé BB 8/15",null,"J",null,null,null,null,null,null,null,"m²",null,null,null,1,null,null,null,null,"Fourniture et mise en place de paillage en gravillon roulé BB, granulométrie 8/15, épaisseur 5",null,"N","N",null,null,null,null,null,null,null,null,null,null,null,null,null,"Gazon pro 28","Gazon pro 22","APPRO","DÉCAISSEM","PAILLAGE","NETTOYAGE",null,null,null,null,null,null,null,null,null,null,null,null,null,null,null,null,null,null,null,null,null,null,null,null,null,null,null,null,null,null,null,null,null,null,null,null,null,null,null,null,null,null,null,null,null,null,null,null,null,null,null,null,null,null,null,7]
[110,"J721FIVE4-12","SE","Paillage gravillon roulé Five color 8/12",null,"J",null,null,null,null,null,null,null,"m²",null,null,null,1,null,null,null,null,"Fourniture et mise en place de paillage en gravillon roulé Five color, granulométrie 8/12, épaisseur 5",null,"N","N",null,null,null,null,null,null,null,null,null,null,null,null,null,"Gazon pro 12","Gazon eurospace","APPRO","DÉCAISSEM","PAILLAGE","NETTOYAGE",null,null,null,null,null,null,null,null,null,null,null,null,null,null,null,null,null,null,null,null,null,null,null,null,null,null,null,null,null,null,null,null,null,null,null,null,null,null,null,null,null,null,null,null,null,null,null,null,null,null,null,null,null,null,null,7]
[111,"J722BASA4-6","SE","Paillage gravillons concassé Basalt noir 4/6",null,"J",null,null,null,null,null,null,null,"m²",null,null,null,1,null,null,null,null,"Fourniture et mise en place de paillage en gravillons concassé Basalt noir, granulométrie 4/6, épaisseur 5",null,"N","N",null,null,null,null,null,null,null,null,null,null,null,null,null,"Gazon euros eco","Gazon pro 28","APPRO","DÉCAISSEM","PAILLAGE","NETTOYAGE",null,null,null,null,null,null,null,null,null,null,null,null,null,null,null,null,null,null,null,null,null,null,null,null,null,null,null,null,null,null,null,null,null,null,null,null,null,null,null,null,null,null,null,null,null,null,null,null,null,null,null,null,null,null,null,7]
[112,"J722BASA10-16","SE","Paillage gravillons concassé Basalt noir 10/16",null,"J",null,null,null,null,null,null,null,"m²",null,null,null,1,null,null,null,null,"Fourniture et mise en place de paillage en gravillons concassé Basalt noir, granulométrie 10/16, épaisseur 5",null,"N","N",null,null,null,null,null,null,null,null,null,null,null,null,null,"gazon grd espac","Gazon pro 12","APPRO","DÉCAISSEM","PAILLAGE","NETTOYAGE",null,null,null,null,null,null,null,null,null,null,null,null,null,null,null,null,null,null,null,null,null,null,null,null,null,null,null,null,null,null,null,null,null,null,null,null,null,null,null,null,null,null,null,null,null,null,null,null,null,null,null,null,null,null,null,7]
[113,"J722CALC5-10","SE","Paillage gravillons concassé Calcite 5/10",null,"J",null,null,null,null,null,null,null,"m²",null,null,null,1,null,null,null,null,"Fourniture et mise en place de paillage en gravillons concassé Calcite, granulométrie 5/10, épaisseur 5",null,"N","N",null,null,null,null,null,null,null,null,null,null,null,null,null,"Gazon pro 50","Gazon euros eco","APPRO","DÉCAISSEM","PAILLAGE","NETTOYAGE",null,null,null,null,null,null,null,null,null,null,null,null,null,null,null,null,null,null,null,null,null,null,null,null,null,null,null,null,null,null,null,null,null,null,null,null,null,null,null,null,null,null,null,null,null,null,null,null,null,null,null,null,null,null,null,7]
[114,"J722MABL8-12","SE","Paillage gravillons concassé Marbre blanc 8/12",null,"J",null,null,null,null,null,null,null,"m²",null,null,null,1,null,null,null,null,"Fourniture et mise en place de paillage en gravillons concassé Marbre blanc, granulométrie 8/12, épaisseur 5",null,"N","N",null,null,null,null,null,null,null,null,null,null,null,null,null,"gazon regarniss","gazon grd espac","APPRO","DÉCAISSEM","PAILLAGE","NETTOYAGE",null,null,null,null,null,null,null,null,null,null,null,null,null,null,null,null,null,null,null,null,null,null,null,null,null,null,null,null,null,null,null,null,null,null,null,null,null,null,null,null,null,null,null,null,null,null,null,null,null,null,null,null,null,null,null,7]
[115,"J722MABL12-18","SE","Paillage gravillons concassé Marbre blanc 12/18",null,"J",null,null,null,null,null,null,null,"m²",null,null,null,1,null,null,null,null,"Fourniture et mise en place de paillage en gravillons concassé Marbre blanc, granulométrie 12/18, épaisseur 5",null,"N","N",null,null,null,null,null,null,null,null,null,null,null,null,null,"Gaz Syn Summum","Gazon pro 50","APPRO","DÉCAISSEM","PAILLAGE","NETTOYAGE",null,null,null,null,null,null,null,null,null,null,null,null,null,null,null,null,null,null,null,null,null,null,null,null,null,null,null,null,null,null,null,null,null,null,null,null,null,null,null,null,null,null,null,null,null,null,null,null,null,null,null,null,null,null,null,7]
[116,"J722MABE5-8","SE","Paillage gravillons concassé marbre bleu 5/8",null,"J",null,null,null,null,null,null,null,"m²",null,null,null,1,null,null,null,null,"Fourniture et mise en place de paillage en gravillons concassé marbre bleu, granulométrie 5/8, épaisseur 5",null,"N","N",null,null,null,null,null,null,null,null,null,null,null,null,null,"Gaz Syn Eco","gazon regarniss","APPRO","DÉCAISSEM","PAILLAGE","NETTOYAGE",null,null,null,null,null,null,null,null,null,null,null,null,null,null,null,null,null,null,null,null,null,null,null,null,null,null,null,null,null,null,null,null,null,null,null,null,null,null,null,null,null,null,null,null,null,null,null,null,null,null,null,null,null,null,null,7]
[117,"J722MAVE8-12","SE","Paillage gravillons concassé Marbre vert 8/12",null,"J",null,null,null,null,null,null,null,"m²",null,null,null,1,null,null,null,null,"Fourniture et mise en place de paillage en gravillons concassé Marbre vert, granulométrie 8/12, épaisseur 5",null,"N","N",null,null,null,null,null,null,null,null,null,null,null,null,null,"Organi100%nat","Gaz Syn Summum","APPRO","DÉCAISSEM","PAILLAGE","NETTOYAGE",null,null,null,null,null,null,null,null,null,null,null,null,null,null,null,null,null,null,null,null,null,null,null,null,null,null,null,null,null,null,null,null,null,null,null,null,null,null,null,null,null,null,null,null,null,null,null,null,null,null,null,null,null,null,null,7]
[118,"J722MAVE12-22","SE","Paillage gravillons concassé Marbre vert 12/22",null,"J",null,null,null,null,null,null,null,"m²",null,null,null,1,null,null,null,null,"Fourniture et mise en place de paillage en gravillons concassé Marbre vert, granulométrie 12/22, épaisseur 5",null,"N","N",null,null,null,null,null,null,null,null,null,null,null,null,null,"Orgaequi7-2-9","Gaz Syn Eco","APPRO","DÉCAISSEM","PAILLAGE","NETTOYAGE",null,null,null,null,null,null,null,null,null,null,null,null,null,null,null,null,null,null,null,null,null,null,null,null,null,null,null,null,null,null,null,null,null,null,null,null,null,null,null,null,null,null,null,null,null,null,null,null,null,null,null,null,null,null,null,7]
[119,"J722MARG5-8","SE","Paillage gravillons concassé Marbre rouge 5/8",null,"J",null,null,null,null,null,null,null,"m²",null,null,null,1,null,null,null,null,"Fourniture et mise en place de paillage en gravillons concassé Marbre rouge, granulométrie 5/8, épaisseur 5",null,"N","N",null,null,null,null,null,null,null,null,null,null,null,null,null,"Eng16-5-20+5 4M","Organi100%nat","APPRO","DÉCAISSEM","PAILLAGE","NETTOYAGE",null,null,null,null,null,null,null,null,null,null,null,null,null,null,null,null,null,null,null,null,null,null,null,null,null,null,null,null,null,null,null,null,null,null,null,null,null,null,null,null,null,null,null,null,null,null,null,null,null,null,null,null,null,null,null,7]
[120,"J722MARS5-8","SE","Paillage gravillons concassé mrabre rose 5/8",null,"J",null,null,null,null,null,null,null,"m²",null,null,null,1,null,null,null,null,"Fourniture et mise en place de paillage en gravillons concassé mrabre rose, granulométrie 5/8, épaisseur 5",null,"N","N",null,null,null,null,null,null,null,null,null,null,null,null,null,"Pelle","Orgaequi7-2-9","APPRO","DÉCAISSEM","PAILLAGE","NETTOYAGE",null,null,null,null,null,null,null,null,null,null,null,null,null,null,null,null,null,null,null,null,null,null,null,null,null,null,null,null,null,null,null,null,null,null,null,null,null,null,null,null,null,null,null,null,null,null,null,null,null,null,null,null,null,null,null,7]
[121,"J722MANO8-16","SE","Paillage gravillons concassé Marbre noir 8/16",null,"J",null,null,null,null,null,null,null,"m²",null,null,null,1,null,null,null,null,"Fourniture et mise en place de paillage en gravillons concassé Marbre noir, granulométrie 8/16, épaisseur 5",null,"N","N",null,null,null,null,null,null,null,null,null,null,null,null,null,"Gazon eurospace","Gazon euroclass","APPRO","DÉCAISSEM","PAILLAGE","NETTOYAGE",null,null,null,null,null,null,null,null,null,null,null,null,null,null,null,null,null,null,null,null,null,null,null,null,null,null,null,null,null,null,null,null,null,null,null,null,null,null,null,null,null,null,null,null,null,null,null,null,null,null,null,null,null,null,null,7]
[122,"J722BLAC1,5-2,5","SE","Paillage gravillons concassé Black caviar 1,5/2,5",null,"J",null,null,null,null,null,null,null,"m²",null,null,null,1,null,null,null,null,"Fourniture et mise en place de paillage en gravillons concassé Black caviar, granulométrie 1,5/2,5, épaisseur 5",null,"N","N",null,null,null,null,null,null,null,null,null,null,null,null,null,"Gazon pro 28","Gazon pro 22","APPRO","DÉCAISSEM","PAILLAGE","NETTOYAGE",null,null,null,null,null,null,null,null,null,null,null,null,null,null,null,null,null,null,null,null,null,null,null,null,null,null,null,null,null,null,null,null,null,null,null,null,null,null,null,null,null,null,null,null,null,null,null,null,null,null,null,null,null,null,null,7]
[123,"J722CEND5-15","SE","Paillage gravillons concassé cendre 5/15",null,"J",null,null,null,null,null,null,null,"m²",null,null,null,1,null,null,null,null,"Fourniture et mise en place de paillage en gravillons concassé cendre, granulométrie 5/15, épaisseur 5",null,"N","N",null,null,null,null,null,null,null,null,null,null,null,null,null,"Gazon pro 12","Gazon eurospace","APPRO","DÉCAISSEM","PAILLAGE","NETTOYAGE",null,null,null,null,null,null,null,null,null,null,null,null,null,null,null,null,null,null,null,null,null,null,null,null,null,null,null,null,null,null,null,null,null,null,null,null,null,null,null,null,null,null,null,null,null,null,null,null,null,null,null,null,null,null,null,7]
[124,"J722CEND20-40","SE","Paillage gravillons concassé cendre 20/40",null,"J",null,null,null,null,null,null,null,"m²",null,null,null,1,null,null,null,null,"Fourniture et mise en place de paillage en gravillons concassé cendre, granulométrie 20/40, épaisseur 5",null,"N","N",null,null,null,null,null,null,null,null,null,null,null,null,null,"Gazon euros eco","Gazon pro 28","APPRO","DÉCAISSEM","PAILLAGE","NETTOYAGE",null,null,null,null,null,null,null,null,null,null,null,null,null,null,null,null,null,null,null,null,null,null,null,null,null,null,null,null,null,null,null,null,null,null,null,null,null,null,null,null,null,null,null,null,null,null,null,null,null,null,null,null,null,null,null,7]
[125,"J722MICA10-30","SE","Paillage gravillons concassé Mica rosa 10/30",null,"J",null,null,null,null,null,null,null,"m²",null,null,null,1,null,null,null,null,"Fourniture et mise en place de paillage en gravillons concassé Mica rosa, granulométrie 10/30, épaisseur 5",null,"N","N",null,null,null,null,null,null,null,null,null,null,null,null,null,"gazon grd espac","Gazon pro 12","APPRO","DÉCAISSEM","PAILLAGE","NETTOYAGE",null,null,null,null,null,null,null,null,null,null,null,null,null,null,null,null,null,null,null,null,null,null,null,null,null,null,null,null,null,null,null,null,null,null,null,null,null,null,null,null,null,null,null,null,null,null,null,null,null,null,null,null,null,null,null,7]
[126,"J722ARLE4-8","SE","Paillage gravillons concassé arlequin 4/8",null,"J",null,null,null,null,null,null,null,"m²",null,null,null,1,null,null,null,null,"Fourniture et mise en place de paillage en gravillons concassé arlequin, granulométrie 4/8, épaisseur 5",null,"N","N",null,null,null,null,null,null,null,null,null,null,null,null,null,"Gazon pro 50","Gazon euros eco","APPRO","DÉCAISSEM","PAILLAGE","NETTOYAGE",null,null,null,null,null,null,null,null,null,null,null,null,null,null,null,null,null,null,null,null,null,null,null,null,null,null,null,null,null,null,null,null,null,null,null,null,null,null,null,null,null,null,null,null,null,null,null,null,null,null,null,null,null,null,null,7]
[127,"J722ARLE6-20","SE","Paillage gravillons concassé arlequin 6/20",null,"J",null,null,null,null,null,null,null,"m²",null,null,null,1,null,null,null,null,"Fourniture et mise en place de paillage en gravillons concassé arlequin, granulométrie 6/20, épaisseur 5",null,"N","N",null,null,null,null,null,null,null,null,null,null,null,null,null,"gazon regarniss","gazon grd espac","APPRO","DÉCAISSEM","PAILLAGE","NETTOYAGE",null,null,null,null,null,null,null,null,null,null,null,null,null,null,null,null,null,null,null,null,null,null,null,null,null,null,null,null,null,null,null,null,null,null,null,null,null,null,null,null,null,null,null,null,null,null,null,null,null,null,null,null,null,null,null,7]
[128,"J722MALI4-8","SE","Paillage gravillons concassé mali 4/8",null,"J",null,null,null,null,null,null,null,"m²",null,null,null,1,null,null,null,null,"Fourniture et mise en place de paillage en gravillons concassé mali, granulométrie 4/8, épaisseur 5",null,"N","N",null,null,null,null,null,null,null,null,null,null,null,null,null,"Gaz Syn Summum","Gazon pro 50","APPRO","DÉCAISSEM","PAILLAGE","NETTOYAGE",null,null,null,null,null,null,null,null,null,null,null,null,null,null,null,null,null,null,null,null,null,null,null,null,null,null,null,null,null,null,null,null,null,null,null,null,null,null,null,null,null,null,null,null,null,null,null,null,null,null,null,null,null,null,null,7]
[129,"J722MALI6-20","SE","Paillage gravillons concassé mali 6/20",null,"J",null,null,null,null,null,null,null,"m²",null,null,null,1,null,null,null,null,"Fourniture et mise en place de paillage en gravillons concassé mali, granulométrie 6/20, épaisseur 5",null,"N","N",null,null,null,null,null,null,null,null,null,null,null,null,null,"Gaz Syn Eco","gazon regarniss","APPRO","DÉCAISSEM","PAILLAGE","NETTOYAGE",null,null,null,null,null,null,null,null,null,null,null,null,null,null,null,null,null,null,null,null,null,null,null,null,null,null,null,null,null,null,null,null,null,null,null,null,null,null,null,null,null,null,null,null,null,null,null,null,null,null,null,null,null,null,null,7]
[130,"J722MALI8-16","SE","Paillage gravillons concassé mali 8/16",null,"J",null,null,null,null,null,null,null,"m²",null,null,null,1,null,null,null,null,"Fourniture et mise en place de paillage en gravillons concassé mali, granulométrie 8/16, épaisseur 5",null,"N","N",null,null,null,null,null,null,null,null,null,null,null,null,null,"Organi100%nat","Gaz Syn Summum","APPRO","DÉCAISSEM","PAILLAGE","NETTOYAGE",null,null,null,null,null,null,null,null,null,null,null,null,null,null,null,null,null,null,null,null,null,null,null,null,null,null,null,null,null,null,null,null,null,null,null,null,null,null,null,null,null,null,null,null,null,null,null,null,null,null,null,null,null,null,null,7]
[131,"J722MALI15-30","SE","Paillage gravillons concassé mali 15/30",null,"J",null,null,null,null,null,null,null,"m²",null,null,null,1,null,null,null,null,"Fourniture et mise en place de paillage en gravillons concassé mali, granulométrie 15/30, épaisseur 5",null,"N","N",null,null,null,null,null,null,null,null,null,null,null,null,null,"Orgaequi7-2-9","Gaz Syn Eco","APPRO","DÉCAISSEM","PAILLAGE","NETTOYAGE",null,null,null,null,null,null,null,null,null,null,null,null,null,null,null,null,null,null,null,null,null,null,null,null,null,null,null,null,null,null,null,null,null,null,null,null,null,null,null,null,null,null,null,null,null,null,null,null,null,null,null,null,null,null,null,7]
[132,"J722MALI20-40","SE","Paillage gravillons concassé mali 20/40",null,"J",null,null,null,null,null,null,null,"m²",null,null,null,1,null,null,null,null,"Fourniture et mise en place de paillage en gravillons concassé mali, granulométrie 20/40, épaisseur 5",null,"N","N",null,null,null,null,null,null,null,null,null,null,null,null,null,"Eng16-5-20+5 4M","Organi100%nat","APPRO","DÉCAISSEM","PAILLAGE","NETTOYAGE",null,null,null,null,null,null,null,null,null,null,null,null,null,null,null,null,null,null,null,null,null,null,null,null,null,null,null,null,null,null,null,null,null,null,null,null,null,null,null,null,null,null,null,null,null,null,null,null,null,null,null,null,null,null,null,7]
[133,"J722MALI40-60","SE","Paillage gravillons concassé mali 40/60",null,"J",null,null,null,null,null,null,null,"m²",null,null,null,1,null,null,null,null,"Fourniture et mise en place de paillage en gravillons concassé mali, granulométrie 40/60, épaisseur 10",null,"N","N",null,null,null,null,null,null,null,null,null,null,null,null,null,"Pelle","Orgaequi7-2-9","APPRO","DÉCAISSEM","PAILLAGE","NETTOYAGE",null,null,null,null,null,null,null,null,null,null,null,null,null,null,null,null,null,null,null,null,null,null,null,null,null,null,null,null,null,null,null,null,null,null,null,null,null,null,null,null,null,null,null,null,null,null,null,null,null,null,null,null,null,null,null,7]
[134,"J722QUARTZ4-6","SE","Paillage concassé quartz blanc beige 4/6",null,"J",null,null,null,null,null,null,null,"m²",null,null,null,1,null,null,null,null,"Fourniture et mise en place de paillage en gravillons concassé quartz blanc beige, granulométrie 4/6, épaisseur 5",null,"N","N",null,null,null,null,null,null,null,null,null,null,null,null,null,"Gazon eurospace","Eng16-5-20+5 4M","APPRO","DÉCAISSEM","PAILLAGE","NETTOYAGE",null,null,null,null,null,null,null,null,null,null,null,null,null,null,null,null,null,null,null,null,null,null,null,null,null,null,null,null,null,null,null,null,null,null,null,null,null,null,null,null,null,null,null,null,null,null,null,null,null,null,null,null,null,null,null,7]
[135,"J722QUARTZ6-10","SE","Paillage concassé quartz blanc beige 6/10",null,"J",null,null,null,null,null,null,null,"m²",null,null,null,1,null,null,null,null,"Fourniture et mise en place de paillage en gravillons concassé quartz blanc beige, granulométrie 6/10, épaisseur 5",null,"N","N",null,null,null,null,null,null,null,null,null,null,null,null,null,"Gazon eurospace","Pelle","APPRO","DÉCAISSEM","PAILLAGE","NETTOYAGE",null,null,null,null,null,null,null,null,null,null,null,null,null,null,null,null,null,null,null,null,null,null,null,null,null,null,null,null,null,null,null,null,null,null,null,null,null,null,null,null,null,null,null,null,null,null,null,null,null,null,null,null,null,null,null,7]
[136,"J722QUARTZ10-16","SE","Paillage concassé quartz blanc beige 10/16",null,"J",null,null,null,null,null,null,null,"m²",null,null,null,1,null,null,null,null,"Fourniture et mise en place de paillage en gravillons concassé quartz blanc beige, granulométrie 10/16, épaisseur 5",null,"N","N",null,null,null,null,null,null,null,null,null,null,null,null,null,"Gazon eurospace","Gazon euroclass","APPRO","DÉCAISSEM","PAILLAGE","NETTOYAGE",null,null,null,null,null,null,null,null,null,null,null,null,null,null,null,null,null,null,null,null,null,null,null,null,null,null,null,null,null,null,null,null,null,null,null,null,null,null,null,null,null,null,null,null,null,null,null,null,null,null,null,null,null,null,null,7]
[137,"J722QUARTZ30-40","SE","Paillage concassé Quartz transparent 30/40",null,"J",null,null,null,null,null,null,null,"m²",null,null,null,1,null,null,null,null,"Fourniture et mise en place de paillage en gravillons concassé Quartz transparent, granulométrie 30/40, épaisseur 5",null,"N","N",null,null,null,null,null,null,null,null,null,null,null,null,null,"Gazon pro 28","Gazon pro 22","APPRO","DÉCAISSEM","PAILLAGE","NETTOYAGE",null,null,null,null,null,null,null,null,null,null,null,null,null,null,null,null,null,null,null,null,null,null,null,null,null,null,null,null,null,null,null,null,null,null,null,null,null,null,null,null,null,null,null,null,null,null,null,null,null,null,null,null,null,null,null,7]
[138,"J722SCRG3-6","SE","Paillage gravillons concassé Schiste rouge 3/6",null,"J",null,null,null,null,null,null,null,"m²",null,null,null,1,null,null,null,null,"Fourniture et mise en place de paillage en gravillons concassé Schiste rouge, granulométrie 3/6, épaisseur 5",null,"N","N",null,null,null,null,null,null,null,null,null,null,null,null,null,"Gazon pro 12","Gazon eurospace","APPRO","DÉCAISSEM","PAILLAGE","NETTOYAGE",null,null,null,null,null,null,null,null,null,null,null,null,null,null,null,null,null,null,null,null,null,null,null,null,null,null,null,null,null,null,null,null,null,null,null,null,null,null,null,null,null,null,null,null,null,null,null,null,null,null,null,null,null,null,null,7]
[139,"J722SCRG6-20","SE","Paillage gravillons concassé Schiste rouge 6/20",null,"J",null,null,null,null,null,null,null,"m²",null,null,null,1,null,null,null,null,"Fourniture et mise en place de paillage en gravillons concassé Schiste rouge, granulométrie 6/20, épaisseur 5",null,"N","N",null,null,null,null,null,null,null,null,null,null,null,null,null,"Gazon euros eco","Gazon pro 28","APPRO","DÉCAISSEM","PAILLAGE","NETTOYAGE",null,null,null,null,null,null,null,null,null,null,null,null,null,null,null,null,null,null,null,null,null,null,null,null,null,null,null,null,null,null,null,null,null,null,null,null,null,null,null,null,null,null,null,null,null,null,null,null,null,null,null,null,null,null,null,7]
[140,"J722SIBL1,6-3","SE","Paillage gravillons concassé Siliblanc 1,6/3",null,"J",null,null,null,null,null,null,null,"m²",null,null,null,1,null,null,null,null,"Fourniture et mise en place de paillage en gravillons concassé Siliblanc, granulométrie 1,6/3, épaisseur 5",null,"N","N",null,null,null,null,null,null,null,null,null,null,null,null,null,"gazon grd espac","Gazon pro 12","APPRO","DÉCAISSEM","PAILLAGE","NETTOYAGE",null,null,null,null,null,null,null,null,null,null,null,null,null,null,null,null,null,null,null,null,null,null,null,null,null,null,null,null,null,null,null,null,null,null,null,null,null,null,null,null,null,null,null,null,null,null,null,null,null,null,null,null,null,null,null,7]
[141,"J722SIBL2-5","SE","Paillage gravillons concassé Siliblanc 2/5",null,"J",null,null,null,null,null,null,null,"m²",null,null,null,1,null,null,null,null,"Fourniture et mise en place de paillage en gravillons concassé Siliblanc, granulométrie 2/5, épaisseur 5",null,"N","N",null,null,null,null,null,null,null,null,null,null,null,null,null,"Gazon pro 50","Gazon euros eco","APPRO","DÉCAISSEM","PAILLAGE","NETTOYAGE",null,null,null,null,null,null,null,null,null,null,null,null,null,null,null,null,null,null,null,null,null,null,null,null,null,null,null,null,null,null,null,null,null,null,null,null,null,null,null,null,null,null,null,null,null,null,null,null,null,null,null,null,null,null,null,7]
[142,"J722SIBL3-8","SE","Paillage gravillons concassé Siliblanc 3/8",null,"J",null,null,null,null,null,null,null,"m²",null,null,null,1,null,null,null,null,"Fourniture et mise en place de paillage en gravillons concassé Siliblanc, granulométrie 3/8, épaisseur 5",null,"N","N",null,null,null,null,null,null,null,null,null,null,null,null,null,"gazon regarniss","gazon grd espac","APPRO","DÉCAISSEM","PAILLAGE","NETTOYAGE",null,null,null,null,null,null,null,null,null,null,null,null,null,null,null,null,null,null,null,null,null,null,null,null,null,null,null,null,null,null,null,null,null,null,null,null,null,null,null,null,null,null,null,null,null,null,null,null,null,null,null,null,null,null,null,7]
[143,"J722SIBL5-8","SE","Paillage gravillons concassé Siliblanc 5/8",null,"J",null,null,null,null,null,null,null,"m²",null,null,null,1,null,null,null,null,"Fourniture et mise en place de paillage en gravillons concassé Siliblanc, granulométrie 5/8, épaisseur 5",null,"N","N",null,null,null,null,null,null,null,null,null,null,null,null,null,"Gaz Syn Summum","Gazon pro 50","APPRO","DÉCAISSEM","PAILLAGE","NETTOYAGE",null,null,null,null,null,null,null,null,null,null,null,null,null,null,null,null,null,null,null,null,null,null,null,null,null,null,null,null,null,null,null,null,null,null,null,null,null,null,null,null,null,null,null,null,null,null,null,null,null,null,null,null,null,null,null,7]
[144,"J722SIBL8/10","SE","Paillage gravillons concassé Siliblanc 8/10",null,"J",null,null,null,null,null,null,null,"m²",null,null,null,1,null,null,null,null,"Fourniture et mise en place de paillage en gravillons concassé Siliblanc, granulométrie 8/10, épaisseur 5",null,"N","N",null,null,null,null,null,null,null,null,null,null,null,null,null,"Gaz Syn Eco","gazon regarniss","APPRO","DÉCAISSEM","PAILLAGE","NETTOYAGE",null,null,null,null,null,null,null,null,null,null,null,null,null,null,null,null,null,null,null,null,null,null,null,null,null,null,null,null,null,null,null,null,null,null,null,null,null,null,null,null,null,null,null,null,null,null,null,null,null,null,null,null,null,null,null,7]
[145,"J722SIRS1,6-3","SE","Paillage gravillons concassé Silirose 1,6/3",null,"J",null,null,null,null,null,null,null,"m²",null,null,null,1,null,null,null,null,"Fourniture et mise en place de paillage en gravillons concassé Silirose, granulométrie 1,6/3, épaisseur 5",null,"N","N",null,null,null,null,null,null,null,null,null,null,null,null,null,"Organi100%nat","Gaz Syn Summum","APPRO","DÉCAISSEM","PAILLAGE","NETTOYAGE",null,null,null,null,null,null,null,null,null,null,null,null,null,null,null,null,null,null,null,null,null,null,null,null,null,null,null,null,null,null,null,null,null,null,null,null,null,null,null,null,null,null,null,null,null,null,null,null,null,null,null,null,null,null,null,7]
[146,"J722SIRS3-8","SE","Paillage gravillons concassé Silirose 3/8",null,"J",null,null,null,null,null,null,null,"m²",null,null,null,1,null,null,null,null,"Fourniture et mise en place de paillage en gravillons concassé Silirose, granulométrie 3/8, épaisseur 5",null,"N","N",null,null,null,null,null,null,null,null,null,null,null,null,null,"Orgaequi7-2-9","Gaz Syn Eco","APPRO","DÉCAISSEM","PAILLAGE","NETTOYAGE",null,null,null,null,null,null,null,null,null,null,null,null,null,null,null,null,null,null,null,null,null,null,null,null,null,null,null,null,null,null,null,null,null,null,null,null,null,null,null,null,null,null,null,null,null,null,null,null,null,null,null,null,null,null,null,7]
[147,"J722SIRS8-10","SE","Paillage gravillons concassé Silirose 8/10",null,"J",null,null,null,null,null,null,null,"m²",null,null,null,1,null,null,null,null,"Fourniture et mise en place de paillage en gravillons concassé Silirose, granulométrie 8/10, épaisseur 5",null,"N","N",null,null,null,null,null,null,null,null,null,null,null,null,null,"Eng16-5-20+5 4M","Organi100%nat","APPRO","DÉCAISSEM","PAILLAGE","NETTOYAGE",null,null,null,null,null,null,null,null,null,null,null,null,null,null,null,null,null,null,null,null,null,null,null,null,null,null,null,null,null,null,null,null,null,null,null,null,null,null,null,null,null,null,null,null,null,null,null,null,null,null,null,null,null,null,null,7]
[148,"J722BALAST","SE","Paillage ballast 40/250",null,"J",null,null,null,null,null,null,null,"m²",null,null,null,1,null,null,null,null,"Fourniture et mise en place de paillage en ballast, granulométrie 40/250, épaisseur 20",null,"N","N",null,null,null,null,null,null,null,null,null,null,null,null,null,"Pelle","Orgaequi7-2-9","APPRO","DÉCAISSEM","PAILLAGE","NETTOYAGE",null,null,null,null,null,null,null,null,null,null,null,null,null,null,null,null,null,null,null,null,null,null,null,null,null,null,null,null,null,null,null,null,null,null,null,null,null,null,null,null,null,null,null,null,null,null,null,null,null,null,null,null,null,null,null,7]
[149,"J729SABLE0-1","SE","Paillage  sable 0/1",null,"J",null,null,null,null,null,null,null,"m²",null,null,null,1,null,null,null,null,"Fourniture et mise en place de paillage en  sable, granulométrie 0/1, épaisseur 5",null,"N","N",null,null,null,null,null,null,null,null,null,null,null,null,null,"Gazon eurospace","Gazon euroclass","APPRO","DÉCAISSEM","PAILLAGE","NETTOYAGE",null,null,null,null,null,null,null,null,null,null,null,null,null,null,null,null,null,null,null,null,null,null,null,null,null,null,null,null,null,null,null,null,null,null,null,null,null,null,null,null,null,null,null,null,null,null,null,null,null,null,null,null,null,null,null,7]
[150,"J729BB","SE","Paillage  BB ",null,"J",null,null,null,null,null,null,null,"m²",null,null,null,1,null,null,null,null,"Fourniture et mise en place de paillage en  BB, granulométrie , épaisseur 5",null,"N","N",null,null,null,null,null,null,null,null,null,null,null,null,null,"Gazon pro 28","Gazon pro 22","APPRO","DÉCAISSEM","PAILLAGE","NETTOYAGE",null,null,null,null,null,null,null,null,null,null,null,null,null,null,null,null,null,null,null,null,null,null,null,null,null,null,null,null,null,null,null,null,null,null,null,null,null,null,null,null,null,null,null,null,null,null,null,null,null,null,null,null,null,null,null,7]
[151,"J729COQUILLEMAR","SE","Paillage  Coquille marines ",null,"J",null,null,null,null,null,null,null,"m²",null,null,null,1,null,null,null,null,"Fourniture et mise en place de paillage en  Coquille marines, granulométrie , épaisseur 5",null,"N","N",null,null,null,null,null,null,null,null,null,null,null,null,null,"Gazon pro 12","Gazon eurospace","APPRO","DÉCAISSEM","PAILLAGE","NETTOYAGE",null,null,null,null,null,null,null,null,null,null,null,null,null,null,null,null,null,null,null,null,null,null,null,null,null,null,null,null,null,null,null,null,null,null,null,null,null,null,null,null,null,null,null,null,null,null,null,null,null,null,null,null,null,null,null,7]
[152,"J729COQUILLEHUI","SE","Paillage  Ecaille de coquilles d'huitres ",null,"J",null,null,null,null,null,null,null,"m²",null,null,null,1,null,null,null,null,"Fourniture et mise en place de paillage en  Ecaille de coquilles d'huitres, granulométrie , épaisseur 5",null,"N","N",null,null,null,null,null,null,null,null,null,null,null,null,null,"Gazon euros eco","Gazon pro 28","APPRO","DÉCAISSEM","PAILLAGE","NETTOYAGE",null,null,null,null,null,null,null,null,null,null,null,null,null,null,null,null,null,null,null,null,null,null,null,null,null,null,null,null,null,null,null,null,null,null,null,null,null,null,null,null,null,null,null,null,null,null,null,null,null,null,null,null,null,null,null,7]
[153,"J729QUARTZ0-1","SE","Paillage  Quatrz blanc beige 0/1",null,"J",null,null,null,null,null,null,null,"m²",null,null,null,1,null,null,null,null,"Fourniture et mise en place de paillage en  Quatrz blanc beige, granulométrie 0/1, épaisseur 5",null,"N","N",null,null,null,null,null,null,null,null,null,null,null,null,null,"gazon grd espac","Gazon pro 12","APPRO","DÉCAISSEM","PAILLAGE","NETTOYAGE",null,null,null,null,null,null,null,null,null,null,null,null,null,null,null,null,null,null,null,null,null,null,null,null,null,null,null,null,null,null,null,null,null,null,null,null,null,null,null,null,null,null,null,null,null,null,null,null,null,null,null,null,null,null,null,7]
[154,"J729BSBEIGE125","SE","Paillage  BS Beige 125 0,8/1,25",null,"J",null,null,null,null,null,null,null,"m²",null,null,null,1,null,null,null,null,"Fourniture et mise en place de paillage en  BS Beige 125, granulométrie 0,8/1,25, épaisseur 5",null,"N","N",null,null,null,null,null,null,null,null,null,null,null,null,null,"Gazon pro 50","Gazon euros eco","APPRO","DÉCAISSEM","PAILLAGE","NETTOYAGE",null,null,null,null,null,null,null,null,null,null,null,null,null,null,null,null,null,null,null,null,null,null,null,null,null,null,null,null,null,null,null,null,null,null,null,null,null,null,null,null,null,null,null,null,null,null,null,null,null,null,null,null,null,null,null,7]
[155,"J729VPVE5-10","SE","Paillage Verre pilé Vert 5/10",null,"J",null,null,null,null,null,null,null,"m²",null,null,null,1,null,null,null,null,"Fourniture et mise en place de paillage en Verre pilé Vert, granulométrie 5/10, épaisseur 5",null,"N","N",null,null,null,null,null,null,null,null,null,null,null,null,null,"gazon regarniss","gazon grd espac","APPRO","DÉCAISSEM","PAILLAGE","NETTOYAGE",null,null,null,null,null,null,null,null,null,null,null,null,null,null,null,null,null,null,null,null,null,null,null,null,null,null,null,null,null,null,null,null,null,null,null,null,null,null,null,null,null,null,null,null,null,null,null,null,null,null,null,null,null,null,null,7]
[156,"J729VPVE100-200","SE","Paillage Verre pilé Vert 100/200",null,"J",null,null,null,null,null,null,null,"m²",null,null,null,1,null,null,null,null,"Fourniture et mise en place de paillage en Verre pilé Vert, granulométrie 100/200, épaisseur 20",null,"N","N",null,null,null,null,null,null,null,null,null,null,null,null,null,"Gaz Syn Summum","Gazon pro 50","APPRO","DÉCAISSEM","PAILLAGE","NETTOYAGE",null,null,null,null,null,null,null,null,null,null,null,null,null,null,null,null,null,null,null,null,null,null,null,null,null,null,null,null,null,null,null,null,null,null,null,null,null,null,null,null,null,null,null,null,null,null,null,null,null,null,null,null,null,null,null,7]
[157,"J729VPBE5-10","SE","Paillage Verre pilé Bleu 5/10",null,"J",null,null,null,null,null,null,null,"m²",null,null,null,1,null,null,null,null,"Fourniture et mise en place de paillage en Verre pilé Bleu, granulométrie 5/10, épaisseur 5",null,"N","N",null,null,null,null,null,null,null,null,null,null,null,null,null,"Gaz Syn Eco","gazon regarniss","APPRO","DÉCAISSEM","PAILLAGE","NETTOYAGE",null,null,null,null,null,null,null,null,null,null,null,null,null,null,null,null,null,null,null,null,null,null,null,null,null,null,null,null,null,null,null,null,null,null,null,null,null,null,null,null,null,null,null,null,null,null,null,null,null,null,null,null,null,null,null,7]
[158,"J720ARDVT10-50","SE","Paillage ardoise vert turquoise 10/50 ",null,"J",null,null,null,null,null,null,null,"m²",null,null,null,1,null,null,null,null,"Fourniture et mise en place de paillage en ardoise vert turquoise 10/50, granulométrie , épaisseur 5",null,"N","N",null,null,null,null,null,null,null,null,null,null,null,null,null,"Organi100%nat","Gaz Syn Summum","APPRO","DÉCAISSEM","PAILLAGE","NETTOYAGE",null,null,null,null,null,null,null,null,null,null,null,null,null,null,null,null,null,null,null,null,null,null,null,null,null,null,null,null,null,null,null,null,null,null,null,null,null,null,null,null,null,null,null,null,null,null,null,null,null,null,null,null,null,null,null,7]
[159,"J720ARDBM10-50","SE","Paillage ardoise bleu marine 10/50 ",null,"J",null,null,null,null,null,null,null,"m²",null,null,null,1,null,null,null,null,"Fourniture et mise en place de paillage en ardoise bleu marine 10/50, granulométrie , épaisseur 5",null,"N","N",null,null,null,null,null,null,null,null,null,null,null,null,null,"Orgaequi7-2-9","Gaz Syn Eco","APPRO","DÉCAISSEM","PAILLAGE","NETTOYAGE",null,null,null,null,null,null,null,null,null,null,null,null,null,null,null,null,null,null,null,null,null,null,null,null,null,null,null,null,null,null,null,null,null,null,null,null,null,null,null,null,null,null,null,null,null,null,null,null,null,null,null,null,null,null,null,7]
[160,"J720ARDVK10-50","SE","Paillage ardoise vert kiwi 10/50 ",null,"J",null,null,null,null,null,null,null,"m²",null,null,null,1,null,null,null,null,"Fourniture et mise en place de paillage en ardoise vert kiwi 10/50, granulométrie , épaisseur 5",null,"N","N",null,null,null,null,null,null,null,null,null,null,null,null,null,"Eng16-5-20+5 4M","Organi100%nat","APPRO","DÉCAISSEM","PAILLAGE","NETTOYAGE",null,null,null,null,null,null,null,null,null,null,null,null,null,null,null,null,null,null,null,null,null,null,null,null,null,null,null,null,null,null,null,null,null,null,null,null,null,null,null,null,null,null,null,null,null,null,null,null,null,null,null,null,null,null,null,7]
[161,"J720ARDCR10-50","SE","Paillage ardoise créme 10/50 ",null,"J",null,null,null,null,null,null,null,"m²",null,null,null,1,null,null,null,null,"Fourniture et mise en place de paillage en ardoise créme 10/50, granulométrie , épaisseur 5",null,"N","N",null,null,null,null,null,null,null,null,null,null,null,null,null,"Pelle","Orgaequi7-2-9","APPRO","DÉCAISSEM","PAILLAGE","NETTOYAGE",null,null,null,null,null,null,null,null,null,null,null,null,null,null,null,null,null,null,null,null,null,null,null,null,null,null,null,null,null,null,null,null,null,null,null,null,null,null,null,null,null,null,null,null,null,null,null,null,null,null,null,null,null,null,null,7]
[162,"J716","SE","Paillage Miscanthus  ",null,"J",null,null,null,null,null,null,null,"m²",null,null,null,1,null,null,null,null,"Fourniture et mise en place de paillage en Miscanthus  , épaisseur 5",null,"N","N",null,null,null,null,null,null,null,null,null,null,null,null,null,"Gazon eurospace","Eng16-5-20+5 4M","APPRO","DÉCAISSEM","PAILLAGE","NETTOYAGE",null,null,null,null,null,null,null,null,null,null,null,null,null,null,null,null,null,null,null,null,null,null,null,null,null,null,null,null,null,null,null,null,null,null,null,null,null,null,null,null,null,null,null,null,null,null,null,null,null,null,null,null,null,null,null,7]
[163,"J717","SE","Paillage Coque de cacao  ",null,"J",null,null,null,null,null,null,null,"m²",null,null,null,1,null,null,null,null,"Fourniture et mise en place de paillage en Coque de cacao  , épaisseur 5",null,"N","N",null,null,null,null,null,null,null,null,null,null,null,null,null,"Gazon eurospace","Pelle","APPRO","DÉCAISSEM","PAILLAGE","NETTOYAGE",null,null,null,null,null,null,null,null,null,null,null,null,null,null,null,null,null,null,null,null,null,null,null,null,null,null,null,null,null,null,null,null,null,null,null,null,null,null,null,null,null,null,null,null,null,null,null,null,null,null,null,null,null,null,null,7]
[164,"J720BRIQUE0-2","SE","Paillage  Brique pilée 0/2",null,"J",null,null,null,null,null,null,null,"m²",null,null,null,1,null,null,null,null,"Fourniture et mise en place de paillage en  Brique pilée, granulométrie 0/2, épaisseur 5",null,"N","N",null,null,null,null,null,null,null,null,null,null,null,null,null,"Gazon eurospace","Gazon euroclass","APPRO","DÉCAISSEM","PAILLAGE","NETTOYAGE",null,null,null,null,null,null,null,null,null,null,null,null,null,null,null,null,null,null,null,null,null,null,null,null,null,null,null,null,null,null,null,null,null,null,null,null,null,null,null,null,null,null,null,null,null,null,null,null,null,null,null,null,null,null,null,7]
[165,"J720BRIQUE2-5","SE","Paillage  Brique pilée 2/5",null,"J",null,null,null,null,null,null,null,"m²",null,null,null,1,null,null,null,null,"Fourniture et mise en place de paillage en  Brique pilée, granulométrie 2/5, épaisseur 5",null,"N","N",null,null,null,null,null,null,null,null,null,null,null,null,null,"Gazon pro 28","Gazon pro 22","APPRO","DÉCAISSEM","PAILLAGE","NETTOYAGE",null,null,null,null,null,null,null,null,null,null,null,null,null,null,null,null,null,null,null,null,null,null,null,null,null,null,null,null,null,null,null,null,null,null,null,null,null,null,null,null,null,null,null,null,null,null,null,null,null,null,null,null,null,null,null,7]
[166,"J720BRIQUE2-10","SE","Paillage  Brique pilée 2/10",null,"J",null,null,null,null,null,null,null,"m²",null,null,null,1,null,null,null,null,"Fourniture et mise en place de paillage en  Brique pilée, granulométrie 2/10, épaisseur 5",null,"N","N",null,null,null,null,null,null,null,null,null,null,null,null,null,"Gazon pro 12","Gazon eurospace","APPRO","DÉCAISSEM","PAILLAGE","NETTOYAGE",null,null,null,null,null,null,null,null,null,null,null,null,null,null,null,null,null,null,null,null,null,null,null,null,null,null,null,null,null,null,null,null,null,null,null,null,null,null,null,null,null,null,null,null,null,null,null,null,null,null,null,null,null,null,null,7]
[167,"J720BRIQUE5-10","SE","Paillage  Brique pilée 5/10",null,"J",null,null,null,null,null,null,null,"m²",null,null,null,1,null,null,null,null,"Fourniture et mise en place de paillage en  Brique pilée, granulométrie 5/10, épaisseur 5",null,"N","N",null,null,null,null,null,null,null,null,null,null,null,null,null,"Gazon euros eco","Gazon pro 28","APPRO","DÉCAISSEM","PAILLAGE","NETTOYAGE",null,null,null,null,null,null,null,null,null,null,null,null,null,null,null,null,null,null,null,null,null,null,null,null,null,null,null,null,null,null,null,null,null,null,null,null,null,null,null,null,null,null,null,null,null,null,null,null,null,null,null,null,null,null,null,7]
[168,"J720BRIQUE4-12","SE","Paillage  Brique pilée 4/12",null,"J",null,null,null,null,null,null,null,"m²",null,null,null,1,null,null,null,null,"Fourniture et mise en place de paillage en  Brique pilée, granulométrie 4/12, épaisseur 5",null,"N","N",null,null,null,null,null,null,null,null,null,null,null,null,null,"gazon grd espac","Gazon pro 12","APPRO","DÉCAISSEM","PAILLAGE","NETTOYAGE",null,null,null,null,null,null,null,null,null,null,null,null,null,null,null,null,null,null,null,null,null,null,null,null,null,null,null,null,null,null,null,null,null,null,null,null,null,null,null,null,null,null,null,null,null,null,null,null,null,null,null,null,null,null,null,7]
[169,"J720BRIQUE10-20","SE","Paillage  Brique pilée 10/20",null,"J",null,null,null,null,null,null,null,"m²",null,null,null,1,null,null,null,null,"Fourniture et mise en place de paillage en  Brique pilée, granulométrie 10/20, épaisseur 5",null,"N","N",null,null,null,null,null,null,null,null,null,null,null,null,null,"Gazon pro 50","Gazon euros eco","APPRO","DÉCAISSEM","PAILLAGE","NETTOYAGE",null,null,null,null,null,null,null,null,null,null,null,null,null,null,null,null,null,null,null,null,null,null,null,null,null,null,null,null,null,null,null,null,null,null,null,null,null,null,null,null,null,null,null,null,null,null,null,null,null,null,null,null,null,null,null,7]
[170,"J720BRIQUE10-50","SE","Paillage  Brique pilée 10/50",null,"J",null,null,null,null,null,null,null,"m²",null,null,null,1,null,null,null,null,"Fourniture et mise en place de paillage en  Brique pilée, granulométrie 10/50, épaisseur 5",null,"N","N",null,null,null,null,null,null,null,null,null,null,null,null,null,"gazon regarniss","gazon grd espac","APPRO","DÉCAISSEM","PAILLAGE","NETTOYAGE",null,null,null,null,null,null,null,null,null,null,null,null,null,null,null,null,null,null,null,null,null,null,null,null,null,null,null,null,null,null,null,null,null,null,null,null,null,null,null,null,null,null,null,null,null,null,null,null,null,null,null,null,null,null,null,7]
[171,"J550","SE","Transplantation manuel de végataux",null,"J",null,null,null,null,null,null,null,"F",null,null,null,1,null,null,null,null,"Main d'œuvre pour transplantation manuel de plante présente sur site et génant à la réalisation d'un ouvrage où devenant genante, comprenant: Arrachage avec soin, transport à pied ou motorisé vers le nouvel emplacement, puis plantation suivant les régles de l'art, griffage fin, et arrosage, tuteurage si bessoin prévus par ailleurs. Aucune garantie ne peut être appliqué sur les végétaux provenant de transplantation.",null,"O","N",null,null,null,null,null,null,null,null,null,null,null,null,null,"APPRO","DÉCAISSEM","NETTOYAGE"]

{"sheet":"Base de donées","index":2,"n_rows":37,"n_cols":21,"rows_kept":37,"cut":false,"hidden":false,"merged":[[3,18,3,19],[4,18,4,19],[5,18,5,19],[6,18,6,19]]}
["conditionnement","unité","Fournisseur","Famille","dispo","taux du coeff des fgx","FGX","Poste complet","Liste des chapitres",null,null,"R","joint résine",null,null,"Main d'œuvre taux 1","MO taux 1",38]
[null,null,null,null,null,"Taux de fgx végétaux","VGTX","Données incomplétes",null,null,null,"D","joint en résine drainnante",null,null,"Main d'œuvre taux 2","MO taux 2",40]
["bag","m²","Agrial","bassin","en stock","Taux de fgx matériaux vrac","VRAC",null,"A - instalation et sécuriété de chantier",null,null,"JGL","Joint granit lavé",null,null,"Main d'œuvre taux 3","MO taux 3",45]
["bidon","m3","Aquamat","bois","sur commande","Taux de fgx quincallerie","QUINC",null,"B - travaux préliminaires",null,null,"JSB","Joint sable lavé",null,null,"Taux de fgx végétaux",{"$f":"ROUND((2*(1-0.1))/1.15,1)","v":1.6},null,"Taux de fgx petite fourniture",null,1.4]
["big","cm","billmat","circulation",null,"Taux de fgx petite fourniture","FOURNI",null,"C - terrassements",null,null,"CH","pose en chevron",null,null,"Taux de fgx matériaux vrac",1.4,null,"Taux de fgx végétaux valeur",null,1.75]
["big bag","ct","Bricomarché","clôture",null,"Taux de fgx végétaux valeur","VGTX_VAL",null,"D - réseaux",null,null,"EC","Ecaille",null,null,"Taux de fgx quincallerie",1.8,null,"Taux de fgx réduit",null,1.2]
["boite","f","Carrière GBN vire","consommables",null,"Taux de fgx réduit","FGX_REDU",null,"E - Arrosage",null,null,"EV","Eventail",null,null,"Taux de frais généraux location",{"$f":"ROUND(100/70,1)","v":1.4},null,"Taux de fgx sous traitance",null,{"$f":"ROUND(100/75,1)","v":1.3}]
["bombe","g","Carrière grente sainte marie","dallage/pavage",null,null,null,null,"F - Fontainerie",null,null,"QP","Queue de paon"]
["carton","h","Cemex","décoration",null,null,null,null,"G - Maçonneries",null,null,"SP","Spire"]
["cartouche","j","cupa pierre","équipement",null,null,null,null,"H - Revêtement de sols"]
["conteneur","Kg","Cyclelec","gazon",null,null,null,null,"I - équipement",null,null,"a seller","sans soubassement","couleur","hauteur"]
["gabion","km","Didier heury","granulat",null,null,null,null,"J-plantations",null,null,"S= sceller","0= sans plaque","A = Anthracite 7016"]
["godet","l","Dirickx","maçonnerie",null,null,null,null,"K - Entretien et maintenance",null,null,"P= platine","G= béton brut","B= blanc 9010"]
["motte","ml","Districo","paillage",null,null,null,null,"L ratio d’aménagement paysagers pour programmation",null,null,"A= applique","A= anthracite","C= Bleu 5002"]
["palette","ml","Giles debreuil","plantation",null,null,null,null,"M - éléments bois",null,null,null,"B= bois","D"]
["RN","mm","Guilloux","produit phyto",null,null,null,null,"N - toiture végétalisé",null,null,null,null,"E= Elegance"]
["rouleau","Sac","Jardi leclerc","quincaillerie",null,null,null,null,null,null,null,null,null,"F"]
["sac","T","Jardin services","réseaux",null,null,null,null,null,null,null,null,null,"G= gris 9006"]
["sceau","u","Kabelis","végétaux",null,null,null,null,null,null,null,null,null,"H"]
["Scion",null,"KDI",null,null,null,null,null,null,null,null,null,null,"I"]
["Baliveau",null,"Lecoufle",null,null,null,null,null,null,null,null,null,null,"J"]
["Tige et 1/2 tige",null,"Pépiniére d'elle",null,null,null,null,null,null,null,null,null,null,"K"]
["Quenouille",null,"Pépiniére de percy",null,null,null,null,null,null,null,null,null,null,"L"]
["Tige",null,"Pépinière lechevallier",null,null,null,null,null,null,null,null,null,null,"M"]
["Tige fléchée",null,"Pépinière leroy",null,null,null,null,null,null,null,null,null,null,"N= Noir 9005"]
["Palemette verrier",null,"pigeon matériaux",null,null,null,null,null,null,null,null,null,null,"O"]
["Touffe",null,"Point P",null,null,null,null,null,null,null,null,null,null,"P"]
["Tige ramifiée",null,"ribanjou",null,null,null,null,null,null,null,null,null,null,"Q"]
["Tigette",null,"Rivière matériaux",null,null,null,null,null,null,null,null,null,null,"R = rouge 3004"]
["Plançon",null,"sacab",null,null,null,null,null,null,null,null,null,null,"S"]
["Tige et 1/2 tige (gréffé en tête)",null,"sapronat",null,null,null,null,null,null,null,null,null,null,"T"]
["vrac",null,"sas laisney",null,null,null,null,null,null,null,null,null,null,"U"]
[null,null,"Scea vivaces de l'Odon",null,null,null,null,null,null,null,null,null,null,"V = vert 6005"]
[null,null,"Scierie milcent",null,null,null,null,null,null,null,null,null,null,"W"]
[null,null,"Scirie gaté",null,null,null,null,null,null,null,null,null,null,"X"]
[null,null,null,null,null,null,null,null,null,null,null,null,null,"Y"]
[null,null,null,null,null,null,null,null,null,null,null,null,null,"Z"]

{"sheet":"Analyse Previsionnelle","index":3,"n_rows":942,"n_cols":10,"rows_kept":942,"cut":false,"hidden":true,"merged":[[53,1,54,1],[1,3,3,9],[6,7,6,8],[7,7,7,8],[8,7,8,8],[6,1,7,1],[8,1,10,1],[48,8,54,8],[48,9,54,9],[48,3,54,7],[100,1,102,1],[143,1,144,1],[55,1,57,1],[98,1,99,1],[55,3,57,9],[100,3,102,9],[93,3,99,7],[93,8,99,8],[93,9,99,9],[138,3,144,7],[138,8,144,8],[138,9,144,9],[190,1,192,1],[233,1,234,1],[145,1,147,1],[188,1,189,1],[145,3,147,9],[190,3,192,9],[183,3,189,7],[183,8,189,8],[183,9,189,9],[228,3,234,7],[228,8,234,8],[228,9,234,9],[280,1,282,1],[323,1,324,1],[235,1,237,1],[278,1,279,1],[235,3,237,9],[280,3,282,9],[273,3,279,7],[273,8,279,8],[273,9,279,9],[318,3,324,7],[318,8,324,8],[318,9,324,9],[370,1,372,1],[413,1,414,1],[325,1,327,1],[368,1,369,1],[325,3,327,9],[370,3,372,9],[363,3,369,7],[363,8,369,8],[363,9,369,9],[408,3,414,7],[408,8,414,8],[408,9,414,9],[460,1,462,1],[503,1,504,1],[415,1,417,1],[458,1,459,1],[415,3,417,9],[460,3,462,9],[453,3,459,7],[453,8,459,8],[453,9,459,9],[498,3,504,7],[498,8,504,8],[498,9,504,9],[550,1,552,1],[593,1,594,1],[505,1,507,1],[548,1,549,1],[505,3,507,9],[550,3,552,9],[543,3,549,7],[543,8,549,8],[543,9,549,9],[588,3,594,7],[588,8,594,8],[588,9,594,9],[640,1,642,1],[683,1,684,1],[595,1,597,1],[638,1,639,1],[595,3,597,9],[640,3,642,9],[633,3,639,7],[633,8,639,8],[633,9,639,9],[678,3,684,7],[678,8,684,8],[678,9,684,9],[730,1,732,1],[773,1,774,1],[685,1,687,1],[728,1,729,1],[685,3,687,9],[730,3,732,9],[723,3,729,7],[723,8,729,8],[723,9,729,9],[768,3,774,7],[768,8,774,8],[768,9,774,9],[775,1,777,1],[818,1,819,1],[775,3,777,9],[820,3,822,9],[813,3,819,7],[813,8,819,8],[813,9,819,9],[858,3,864,7],[858,8,864,8],[858,9,864,9],[910,1,912,1],[865,1,867,1],[908,1,909,1],[865,3,867,9],[910,3,912,9],[903,3,909,7],[903,8,909,8],[903,9,909,9],[820,1,822,1],[863,1,864,1]]}
[]
[]
[]
[]
[]
[null,"client :"]
[null,{"$f":"IF(#REF!<>\"\",#REF!,\"\")","v":{"$error":"#REF!"}}]
[]
[" ",{"$f":"IF(#REF!<>\"\",#REF!,\"\")","v":{"$error":"#REF!"}}]
[]
[]
[]
[]
[]
[null,null,null,"Prix de revient",null,"frais généraux",null,"couts directs",null,"% s/ P.R"]
[]
[]
[null,"MAIN D'OEUVRE",null,{"$f":"IF(F18<>\"\",F18+H18,\"\")","v":{"$error":"#NAME?"}},null,{"$f":"IF(H18<>\"\",H18*Fgx_mo,\"\")","v":{"$error":"#NAME?"}},null,{"$f":"IF(Total_HT_devis<>\"\",SUMIF(#REF!,Réf_mo,#REF!)/(1+Fgx_mo))","v":{"$error":"#NAME?"}},null,{"$f":"IF(Total_HT_devis<>\"\",D18*1/D30,\"\")","v":{"$error":"#NAME?"}}]
[]
[null,"MATERIEL",null,{"$f":"IF(F20<>\"\",F20+H20,\"\")","v":{"$error":"#REF!"}},null,{"$f":"SUMIF(#REF!,Code_racine_matériel,#REF!)","v":{"$error":"#REF!"}},null,{"$f":"SUMIF(#REF!,Code_racine_matériel,#REF!)","v":{"$error":"#REF!"}},null,{"$f":"IF(Total_HT_devis<>\"\",D20*1/D30,\"\")","v":{"$error":"#NAME?"}}]
[]
[null,"MATERIAUX",null,{"$f":"IF(F22<>\"\",F22+H22,\"\")","v":{"$error":"#REF!"}},null,{"$f":"SUMIF(#REF!,Code_racine_matériaux,#REF!)","v":{"$error":"#REF!"}},null,{"$f":"SUMIF(#REF!,Code_racine_matériaux,#REF!)","v":{"$error":"#REF!"}},null,{"$f":"IF(Total_HT_devis<>\"\",D22*1/D30,\"\")","v":{"$error":"#NAME?"}}]
[]
[null,"LOCATION",null,{"$f":"IF(F24<>\"\",F24+H24,\"\")","v":{"$error":"#REF!"}},null,{"$f":"SUMIF(#REF!,Code_racine_location,#REF!)","v":{"$error":"#REF!"}},null,{"$f":"SUMIF(#REF!,Code_racine_location,#REF!)","v":{"$error":"#REF!"}},null,{"$f":"IF(Total_HT_devis<>\"\",D24*1/D30,\"\")","v":{"$error":"#NAME?"}}]
[]
[null,"SOUS-TRAITANCE",null,{"$f":"IF(F26<>\"\",F26+H26,\"\")","v":{"$error":"#REF!"}},null,{"$f":"SUMIF(#REF!,Code_racine_sous_traitantce,#REF!)","v":{"$error":"#REF!"}},null,{"$f":"SUMIF(#REF!,Code_racine_sous_traitantce,#REF!)","v":{"$error":"#REF!"}},null,{"$f":"IF(Total_HT_devis<>\"\",D26*1/D30,\"\")","v":{"$error":"#NAME?"}}]
[]
[]
[null,null,null,null,null,null,null,null,"ECHELLE"]
[null,"TOTAL",null,{"$f":"IF(Total_HT_devis<>\"\",D18+D20+D22+D24+D26,\"\")","v":{"$error":"#NAME?"}},null,{"$f":"IF(Total_HT_devis<>\"\",F18+F20+F22+F24+F26,\"\")","v":{"$error":"#NAME?"}},null,{"$f":"IF(Total_HT_devis<>\"\",H18+H20+H22+H24+H26,\"\")","v":{"$error":"#NAME?"}},"DE RISQUES"]
[null,null,null,null,null,null,null,null,{"$f":"IF(AND(0%<=J18,J18<=10%),1,IF(AND(11%<=J18,J18<=20%),2,IF(AND(21%<=J18,J18<=30%),3,IF(AND(31%<=J18,J18<=40%),4,IF(AND(41%<=J18,J18<=50%),5,IF(AND(51%<=J18,J18<=60%),6,IF(AND(61%<=J18,J18<=70%),7,IF(AND(71%<=J18,J18<=80%),8,IF(AND(81%<=J18,J18<=90%),9,IF(AND(91%<=J18,J18<=100%),10,\"\"))))))))))","v":{"$error":"#NAME?"}},{"$f":"IF(AND(0%<=J18,J18<=10%),\"nul\",IF(AND(11%<=J18,J18<=20%),\"quasi nul\",IF(AND(21%<=J18,J18<=30%),\"très faible\",IF(AND(31%<=J18,J18<=40%),\"faible\",IF(AND(41%<=J18,J18<=50%),\"moyen\",IF(AND(51%<=J18,J18<=60%),\"moyen élevé\",IF(AND(61%<=J18,J18<=70%),\"élevé\",IF(AND(71%<=J18,J18<=80%),\"très élevés\",IF(AND(81%<=J18,J18<=90%),\"trés fort\",IF(AND(91%<=J18,J18<=100%),\"extreme\",\"\"))))))))))","v":{"$error":"#NAME?"}}]
[null,"MARGE",null,{"$f":"IF(D34<>\"\",D34-D30,\"\")","v":{"$error":"#NAME?"}},null,null,"bénéfice/H",{"$f":"IF(D32<>\"\",D32/H34,\"\")","v":{"$error":"#NAME?"}}]
[]
[null,"PRIX DE VENTE",null,{"$f":"IF(D30<>\"\",Total_HT_devis,\"\")","v":{"$error":"#NAME?"}},null,null,"heures",{"$f":"Somme_heure_prévisionel","v":{"$error":"#NAME?"}}]
[]
[]
[]
[null,"coeff de marge",null,{"$f":"IF(D34<>\"\",D34/D30,\"\")","v":{"$error":"#NAME?"}}]
[]
[null,"% de bénéfice =",null,{"$f":"IF(D34<>\"\",D32/D34*1,\"\")","v":{"$error":"#NAME?"}}]
[]
[]
[]
[]
[]
[]
[{"$f":"IF(#REF!<>\"\",\"Poste 1\",\"\")","v":{"$error":"#REF!"}}]
[]
[null,null,null,{"$f":"IF(A47<>\"\",#REF!,\"\")","v":{"$error":"#REF!"}},null,null,null,null,{"$f":"IF(A47<>\"\",#REF!,\"\")","v":{"$error":"#REF!"}},{"$f":"IF(A47<>\"\",#REF!,\"\")","v":{"$error":"#REF!"}}]
[]
[]
[]
[null,"client :"]
[null,{"$f":"IF(#REF!<>\"\",#REF!,\"\")","v":{"$error":"#REF!"}}]
[]
[" ",{"$f":"IF(#REF!<>\"\",#REF!,\"\")","v":{"$error":"#REF!"}},null,{"$f":"IF(A47<>\"\",#REF!,\"\")","v":{"$error":"#REF!"}}]
[]
[]
[]
[]
[]
[null,null,null,"Prix de revient",null,"frais généraux",null,"couts directs",null,"% s/ P.R"]
[]
[]
[null,"MAIN D'OEUVRE",null,{"$f":"IF(F65<>\"\",F65+H65,\"\")","v":{"$error":"#NAME?"}},null,{"$f":"IF(H65<>\"\",H65*Fgx_mo,\"\")","v":{"$error":"#NAME?"}},null,{"$f":"IF(PVHT_devis_poste_1<>\"\",SUMIF(#REF!,Réf_mo,#REF!)/(1+Fgx_mo),\"\")","v":{"$error":"#NAME?"}},null,{"$f":"IF(AND(Total_HT_devis<>\"\",PVHT_devis_poste_1<>\"\"),D65*1/D77,\"\")","v":{"$error":"#NAME?"}}]
[]
[null,"MATERIEL",null,{"$f":"IF(F67<>\"\",F67+H67,\"\")","v":{"$error":"#NAME?"}},null,{"$f":"IF(PVHT_devis_poste_1<>\"\",SUMIF(#REF!,Code_racine_matériel,#REF!),\"\")","v":{"$error":"#NAME?"}},null,{"$f":"IF(PVHT_devis_poste_1<>\"\",SUMIF(#REF!,Code_racine_matériel,#REF!),\"\")","v":{"$error":"#NAME?"}},null,{"$f":"IF(AND(Total_HT_devis<>\"\",PVHT_devis_poste_1<>\"\"),D67*1/D77,\"\")","v":{"$error":"#NAME?"}}]
[]
[null,"MATERIAUX",null,{"$f":"IF(F69<>\"\",F69+H69,\"\")","v":{"$error":"#NAME?"}},null,{"$f":"IF(PVHT_devis_poste_1<>\"\",SUMIF(#REF!,Code_racine_matériaux,#REF!),\"\")","v":{"$error":"#NAME?"}},null,{"$f":"IF(PVHT_devis_poste_1<>\"\",SUMIF(#REF!,Code_racine_matériaux,#REF!),\"\")","v":{"$error":"#NAME?"}},null,{"$f":"IF(AND(Total_HT_devis<>\"\",PVHT_devis_poste_1<>\"\"),D69*1/D77,\"\")","v":{"$error":"#NAME?"}}]
[]
[null,"LOCATION",null,{"$f":"IF(F71<>\"\",F71+H71,\"\")","v":{"$error":"#NAME?"}},null,{"$f":"IF(PVHT_devis_poste_1<>\"\",SUMIF(#REF!,Code_racine_location,#REF!),\"\")","v":{"$error":"#NAME?"}},null,{"$f":"IF(PVHT_devis_poste_1<>\"\",SUMIF(#REF!,Code_racine_location,#REF!),\"\")","v":{"$error":"#NAME?"}},null,{"$f":"IF(AND(Total_HT_devis<>\"\",PVHT_devis_poste_1<>\"\"),D71*1/D77,\"\")","v":{"$error":"#NAME?"}}]
[]
[null,"SOUS-TRAITANCE",null,{"$f":"IF(F73<>\"\",F73+H73,\"\")","v":{"$error":"#NAME?"}},null,{"$f":"IF(PVHT_devis_poste_1<>\"\",SUMIF(#REF!,Code_racine_sous_traitantce,#REF!),\"\")","v":{"$error":"#NAME?"}},null,{"$f":"IF(PVHT_devis_poste_1<>\"\",SUMIF(#REF!,Code_racine_sous_traitantce,#REF!),\"\")","v":{"$error":"#NAME?"}},null,{"$f":"IF(AND(Total_HT_devis<>\"\",PVHT_devis_poste_1<>\"\"),D73*1/D77,\"\")","v":{"$error":"#NAME?"}}]
[]
[]
[null,null,null,null,null,null,null,null,"ECHELLE"]
[null,"TOTAL",null,{"$f":"IF(PVHT_devis_poste_1<>\"\",D65+D67+D69+D71+D73,\"\")","v":{"$error":"#NAME?"}},null,{"$f":"IF(PVHT_devis_poste_1<>\"\",F65+F67+F69+F71+F73,\"\")","v":{"$error":"#NAME?"}},null,{"$f":"IF(PVHT_devis_poste_1<>\"\",H65+H67+H69+H71+H73,\"\")","v":{"$error":"#NAME?"}},"DE RISQUES"]
[null,null,null,null,null,null,null,null,{"$f":"IF(AND(0%<=J65,J65<=10%),1,IF(AND(11%<=J65,J65<=20%),2,IF(AND(21%<=J65,J65<=30%),3,IF(AND(31%<=J65,J65<=40%),4,IF(AND(41%<=J65,J65<=50%),5,IF(AND(51%<=J65,J65<=60%),6,IF(AND(61%<=J65,J65<=70%),7,IF(AND(71%<=J65,J65<=80%),8,IF(AND(81%<=J65,J65<=90%),9,IF(AND(91%<=J65,J65<=100%),10,\"\"))))))))))","v":{"$error":"#NAME?"}},{"$f":"IF(AND(0%<=J65,J65<=10%),\"nul\",IF(AND(11%<=J65,J65<=20%),\"quasi nul\",IF(AND(21%<=J65,J65<=30%),\"très faible\",IF(AND(31%<=J65,J65<=40%),\"faible\",IF(AND(41%<=J65,J65<=50%),\"moyen\",IF(AND(51%<=J65,J65<=60%),\"moyen élevé\",IF(AND(61%<=J65,J65<=70%),\"élevé\",IF(AND(71%<=J65,J65<=80%),\"très élevés\",IF(AND(81%<=J65,J65<=90%),\"trés fort\",IF(AND(91%<=J65,J65<=100%),\"extreme\",\"\"))))))))))","v":{"$error":"#NAME?"}}]
[null,"MARGE",null,{"$f":"IF(D81<>\"\",D81-D77,\"\")","v":{"$error":"#NAME?"}},null,null,"bénéfice/H",{"$f":"IF(D79<>\"\",D79/H81,\"\")","v":{"$error":"#NAME?"}}]
[]
[null,"PRIX DE VENTE",null,{"$f":"IF(D77<>\"\",PVHT_devis_poste_1,\"\")","v":{"$error":"#NAME?"}},null,null,"heures",{"$f":"IF(PVHT_devis_poste_1<>\"\",heures_prév_poste_1,\"\")","v":{"$error":"#NAME?"}}]
[]
[]
[]
[null,"coeff de marge",null,{"$f":"IF(D81<>\"\",D81/D77,\"\")","v":{"$error":"#NAME?"}}]
[]
[null,"% de bénéfice =",null,{"$f":"IF(D81<>\"\",D79/D81*1,\"\")","v":{"$error":"#NAME?"}}]
[]
[]
[]
[]
[{"$f":"IF(#REF!<>\"\",\"Poste 2\",\"\")","v":{"$error":"#REF!"}}]
[]
[null,null,null,{"$f":"IF(A92<>\"\",#REF!,\"\")","v":{"$error":"#REF!"}},null,null,null,null,{"$f":"IF(A92<>\"\",#REF!,\"\")","v":{"$error":"#REF!"}},{"$f":"IF(A92<>\"\",#REF!,\"\")","v":{"$error":"#REF!"}}]
[]
[]
[]
[null,"client :"]
[null,{"$f":"IF(#REF!<>\"\",#REF!,\"\")","v":{"$error":"#REF!"}}]
[]
[" ",{"$f":"IF(#REF!<>\"\",#REF!,\"\")","v":{"$error":"#REF!"}},null,{"$f":"IF(A92<>\"\",#REF!,\"\")","v":{"$error":"#REF!"}}]
[]
[]
[]
[]
[]
[null,null,null,"Prix de revient",null,"frais généraux",null,"couts directs",null,"% s/ P.R"]
[]
[]
[null,"MAIN D'OEUVRE",null,{"$f":"IF(F110<>\"\",F110+H110,\"\")","v":{"$error":"#NAME?"}},null,{"$f":"IF(H110<>\"\",H110*Fgx_mo,\"\")","v":{"$error":"#NAME?"}},null,{"$f":"IF(PVHT_devis_poste_2<>\"\",SUMIF(#REF!,Réf_mo,#REF!)/(1+Fgx_mo),\"\")","v":{"$error":"#NAME?"}},null,{"$f":"IF(AND(Total_HT_devis<>\"\",PVHT_devis_poste_2<>\"\"),D110*1/D122,\"\")","v":{"$error":"#NAME?"}}]
[]
[null,"MATERIEL",null,{"$f":"IF(F112<>\"\",F112+H112,\"\")","v":{"$error":"#NAME?"}},null,{"$f":"IF(PVHT_devis_poste_2<>\"\",SUMIF(#REF!,Code_racine_matériel,#REF!),\"\")","v":{"$error":"#NAME?"}},null,{"$f":"IF(PVHT_devis_poste_2<>\"\",SUMIF(#REF!,Code_racine_matériel,#REF!),\"\")","v":{"$error":"#NAME?"}},null,{"$f":"IF(AND(Total_HT_devis<>\"\",PVHT_devis_poste_2<>\"\"),D112*1/D122,\"\")","v":{"$error":"#NAME?"}}]
[]
[null,"MATERIAUX",null,{"$f":"IF(F114<>\"\",F114+H114,\"\")","v":{"$error":"#NAME?"}},null,{"$f":"IF(PVHT_devis_poste_2<>\"\",SUMIF(#REF!,Code_racine_matériaux,#REF!),\"\")","v":{"$error":"#NAME?"}},null,{"$f":"IF(PVHT_devis_poste_2<>\"\",SUMIF(#REF!,Code_racine_matériaux,#REF!),\"\")","v":{"$error":"#NAME?"}},null,{"$f":"IF(AND(Total_HT_devis<>\"\",PVHT_devis_poste_2<>\"\"),D114*1/D122,\"\")","v":{"$error":"#NAME?"}}]
[]
[null,"LOCATION",null,{"$f":"IF(F116<>\"\",F116+H116,\"\")","v":{"$error":"#NAME?"}},null,{"$f":"IF(PVHT_devis_poste_2<>\"\",SUMIF(#REF!,Code_racine_location,#REF!),\"\")","v":{"$error":"#NAME?"}},null,{"$f":"IF(PVHT_devis_poste_2<>\"\",SUMIF(#REF!,Code_racine_location,#REF!),\"\")","v":{"$error":"#NAME?"}},null,{"$f":"IF(AND(Total_HT_devis<>\"\",PVHT_devis_poste_2<>\"\"),D116*1/D122,\"\")","v":{"$error":"#NAME?"}}]
[]
[null,"SOUS-TRAITANCE",null,{"$f":"IF(F118<>\"\",F118+H118,\"\")","v":{"$error":"#NAME?"}},null,{"$f":"IF(PVHT_devis_poste_2<>\"\",SUMIF(#REF!,Code_racine_sous_traitantce,#REF!),\"\")","v":{"$error":"#NAME?"}},null,{"$f":"IF(PVHT_devis_poste_2<>\"\",SUMIF(#REF!,Code_racine_sous_traitantce,#REF!),\"\")","v":{"$error":"#NAME?"}},null,{"$f":"IF(AND(Total_HT_devis<>\"\",PVHT_devis_poste_2<>\"\"),D118*1/D122,\"\")","v":{"$error":"#NAME?"}}]
[]
[]
[null,null,null,null,null,null,null,null,"ECHELLE"]
[null,"TOTAL",null,{"$f":"IF(PVHT_devis_poste_2<>\"\",D110+D112+D114+D116+D118,\"\")","v":{"$error":"#NAME?"}},null,{"$f":"IF(PVHT_devis_poste_2<>\"\",F110+F112+F114+F116+F118,\"\")","v":{"$error":"#NAME?"}},null,{"$f":"IF(PVHT_devis_poste_2<>\"\",H110+H112+H114+H116+H118,\"\")","v":{"$error":"#NAME?"}},"DE RISQUES"]
[null,null,null,null,null,null,null,null,{"$f":"IF(AND(0%<=J110,J110<=10%),1,IF(AND(11%<=J110,J110<=20%),2,IF(AND(21%<=J110,J110<=30%),3,IF(AND(31%<=J110,J110<=40%),4,IF(AND(41%<=J110,J110<=50%),5,IF(AND(51%<=J110,J110<=60%),6,IF(AND(61%<=J110,J110<=70%),7,IF(AND(71%<=J110,J110<=80%),8,IF(AND(81%<=J110,J110<=90%),9,IF(AND(91%<=J110,J110<=100%),10,\"\"))))))))))","v":{"$error":"#NAME?"}},{"$f":"IF(AND(0%<=J110,J110<=10%),\"nul\",IF(AND(11%<=J110,J110<=20%),\"quasi nul\",IF(AND(21%<=J110,J110<=30%),\"très faible\",IF(AND(31%<=J110,J110<=40%),\"faible\",IF(AND(41%<=J110,J110<=50%),\"moyen\",IF(AND(51%<=J110,J110<=60%),\"moyen élevé\",IF(AND(61%<=J110,J110<=70%),\"élevé\",IF(AND(71%<=J110,J110<=80%),\"très élevés\",IF(AND(81%<=J110,J110<=90%),\"trés fort\",IF(AND(91%<=J110,J110<=100%),\"extreme\",\"\"))))))))))","v":{"$error":"#NAME?"}}]
[null,"MARGE",null,{"$f":"IF(D126<>\"\",D126-D122,\"\")","v":{"$error":"#NAME?"}},null,null,"bénéfice/H",{"$f":"IF(D124<>\"\",D124/H126,\"\")","v":{"$error":"#NAME?"}}]
[]
[null,"PRIX DE VENTE",null,{"$f":"IF(D122<>\"\",PVHT_devis_poste_2,\"\")","v":{"$error":"#NAME?"}},null,null,"heures",{"$f":"IF(PVHT_devis_poste_2<>\"\",heures_prév_poste_2,\"\")","v":{"$error":"#NAME?"}}]
[]
[]
[]
[null,"coeff de marge",null,{"$f":"IF(D126<>\"\",D126/D122,\"\")","v":{"$error":"#NAME?"}}]
[]
[null,"% de bénéfice =",null,{"$f":"IF(D126<>\"\",D124/D126*1,\"\")","v":{"$error":"#NAME?"}}]
[]
[]
[]
[]
[{"$f":"IF(#REF!<>\"\",\"Poste 3\",\"\")","v":{"$error":"#REF!"}}]
[]
[null,null,null,{"$f":"IF(A137<>\"\",#REF!,\"\")","v":{"$error":"#REF!"}},null,null,null,null,{"$f":"IF(A137<>\"\",#REF!,\"\")","v":{"$error":"#REF!"}},{"$f":"IF(A137<>\"\",#REF!,\"\")","v":{"$error":"#REF!"}}]
[]
[]
[]
[null,"client :"]
[null,{"$f":"IF(#REF!<>\"\",#REF!,\"\")","v":{"$error":"#REF!"}}]
[]
[" ",{"$f":"IF(#REF!<>\"\",#REF!,\"\")","v":{"$error":"#REF!"}},null,{"$f":"IF(A137<>\"\",#REF!,\"\")","v":{"$error":"#REF!"}}]
[]
[]
[]
[]
[]
[null,null,null,"Prix de revient",null,"frais généraux",null,"couts directs",null,"% s/ P.R"]
[]
[]
[null,"MAIN D'OEUVRE",null,{"$f":"IF(F155<>\"\",F155+H155,\"\")","v":{"$error":"#NAME?"}},null,{"$f":"IF(H155<>\"\",H155*Fgx_mo,\"\")","v":{"$error":"#NAME?"}},null,{"$f":"IF(PVHT_devis_poste_3<>\"\",SUMIF(#REF!,Réf_mo,#REF!)/(1+Fgx_mo),\"\")","v":{"$error":"#NAME?"}},null,{"$f":"IF(AND(Total_HT_devis<>\"\",PVHT_devis_poste_3<>\"\"),D155*1/D167,\"\")","v":{"$error":"#NAME?"}}]
[]
[null,"MATERIEL",null,{"$f":"IF(F157<>\"\",F157+H157,\"\")","v":{"$error":"#NAME?"}},null,{"$f":"IF(PVHT_devis_poste_3<>\"\",SUMIF(#REF!,Code_racine_matériel,#REF!),\"\")","v":{"$error":"#NAME?"}},null,{"$f":"IF(PVHT_devis_poste_3<>\"\",SUMIF(#REF!,Code_racine_matériel,#REF!),\"\")","v":{"$error":"#NAME?"}},null,{"$f":"IF(AND(Total_HT_devis<>\"\",PVHT_devis_poste_3<>\"\"),D157*1/D167,\"\")","v":{"$error":"#NAME?"}}]
[]
[null,"MATERIAUX",null,{"$f":"IF(F159<>\"\",F159+H159,\"\")","v":{"$error":"#NAME?"}},null,{"$f":"IF(PVHT_devis_poste_3<>\"\",SUMIF(#REF!,Code_racine_matériaux,#REF!),\"\")","v":{"$error":"#NAME?"}},null,{"$f":"IF(PVHT_devis_poste_3<>\"\",SUMIF(#REF!,Code_racine_matériaux,#REF!),\"\")","v":{"$error":"#NAME?"}},null,{"$f":"IF(AND(Total_HT_devis<>\"\",PVHT_devis_poste_3<>\"\"),D159*1/D167,\"\")","v":{"$error":"#NAME?"}}]
[]
[null,"LOCATION",null,{"$f":"IF(F161<>\"\",F161+H161,\"\")","v":{"$error":"#NAME?"}},null,{"$f":"IF(PVHT_devis_poste_3<>\"\",SUMIF(#REF!,Code_racine_location,#REF!),\"\")","v":{"$error":"#NAME?"}},null,{"$f":"IF(PVHT_devis_poste_3<>\"\",SUMIF(#REF!,Code_racine_location,#REF!),\"\")","v":{"$error":"#NAME?"}},null,{"$f":"IF(AND(Total_HT_devis<>\"\",PVHT_devis_poste_3<>\"\"),D161*1/D167,\"\")","v":{"$error":"#NAME?"}}]
[]
[null,"SOUS-TRAITANCE",null,{"$f":"IF(F163<>\"\",F163+H163,\"\")","v":{"$error":"#NAME?"}},null,{"$f":"IF(PVHT_devis_poste_3<>\"\",SUMIF(#REF!,Code_racine_sous_traitantce,#REF!),\"\")","v":{"$error":"#NAME?"}},null,{"$f":"IF(PVHT_devis_poste_3<>\"\",SUMIF(#REF!,Code_racine_sous_traitantce,#REF!),\"\")","v":{"$error":"#NAME?"}},null,{"$f":"IF(AND(Total_HT_devis<>\"\",PVHT_devis_poste_3<>\"\"),D163*1/D167,\"\")","v":{"$error":"#NAME?"}}]
[]
[]
[null,null,null,null,null,null,null,null,"ECHELLE"]
[null,"TOTAL",null,{"$f":"IF(PVHT_devis_poste_3<>\"\",D155+D157+D159+D161+D163,\"\")","v":{"$error":"#NAME?"}},null,{"$f":"IF(PVHT_devis_poste_3<>\"\",F155+F157+F159+F161+F163,\"\")","v":{"$error":"#NAME?"}},null,{"$f":"IF(PVHT_devis_poste_3<>\"\",H155+H157+H159+H161+H163,\"\")","v":{"$error":"#NAME?"}},"DE RISQUES"]
[null,null,null,null,null,null,null,null,{"$f":"IF(AND(0%<=J155,J155<=10%),1,IF(AND(11%<=J155,J155<=20%),2,IF(AND(21%<=J155,J155<=30%),3,IF(AND(31%<=J155,J155<=40%),4,IF(AND(41%<=J155,J155<=50%),5,IF(AND(51%<=J155,J155<=60%),6,IF(AND(61%<=J155,J155<=70%),7,IF(AND(71%<=J155,J155<=80%),8,IF(AND(81%<=J155,J155<=90%),9,IF(AND(91%<=J155,J155<=100%),10,\"\"))))))))))","v":{"$error":"#NAME?"}},{"$f":"IF(AND(0%<=J155,J155<=10%),\"nul\",IF(AND(11%<=J155,J155<=20%),\"quasi nul\",IF(AND(21%<=J155,J155<=30%),\"très faible\",IF(AND(31%<=J155,J155<=40%),\"faible\",IF(AND(41%<=J155,J155<=50%),\"moyen\",IF(AND(51%<=J155,J155<=60%),\"moyen élevé\",IF(AND(61%<=J155,J155<=70%),\"élevé\",IF(AND(71%<=J155,J155<=80%),\"très élevés\",IF(AND(81%<=J155,J155<=90%),\"trés fort\",IF(AND(91%<=J155,J155<=100%),\"extreme\",\"\"))))))))))","v":{"$error":"#NAME?"}}]
[null,"MARGE",null,{"$f":"IF(D171<>\"\",D171-D167,\"\")","v":{"$error":"#NAME?"}},null,null,"bénéfice/H",{"$f":"IF(D169<>\"\",D169/H171,\"\")","v":{"$error":"#NAME?"}}]
[]
[null,"PRIX DE VENTE",null,{"$f":"IF(D167<>\"\",PVHT_devis_poste_3,\"\")","v":{"$error":"#NAME?"}},null,null,"heures",{"$f":"IF(PVHT_devis_poste_3<>\"\",heures_prév_poste_3,\"\")","v":{"$error":"#NAME?"}}]
[]
[]
[]
[null,"coeff de marge",null,{"$f":"IF(D171<>\"\",D171/D167,\"\")","v":{"$error":"#NAME?"}}]
[]
[null,"% de bénéfice =",null,{"$f":"IF(D171<>\"\",D169/D171*1,\"\")","v":{"$error":"#NAME?"}}]
[]
[]
[]
[]
[{"$f":"IF(#REF!<>\"\",\"Poste 4\",\"\")","v":{"$error":"#REF!"}}]
[]
[null,null,null,{"$f":"IF(A182<>\"\",#REF!,\"\")","v":{"$error":"#REF!"}},null,null,null,null,{"$f":"IF(A182<>\"\",#REF!,\"\")","v":{"$error":"#REF!"}},{"$f":"IF(A182<>\"\",#REF!,\"\")","v":{"$error":"#REF!"}}]
[]
[]
[]
[null,"client :"]
[null,{"$f":"IF(#REF!<>\"\",#REF!,\"\")","v":{"$error":"#REF!"}}]
[]
[" ",{"$f":"IF(#REF!<>\"\",#REF!,\"\")","v":{"$error":"#REF!"}},null,{"$f":"IF(A182<>\"\",#REF!,\"\")","v":{"$error":"#REF!"}}]
[]
[]
[]
[]
[]
[null,null,null,"Prix de revient",null,"frais généraux",null,"couts directs",null,"% s/ P.R"]
[]
[]
[null,"MAIN D'OEUVRE",null,{"$f":"IF(F200<>\"\",F200+H200,\"\")","v":{"$error":"#NAME?"}},null,{"$f":"IF(H200<>\"\",H200*Fgx_mo,\"\")","v":{"$error":"#NAME?"}},null,{"$f":"IF(PVHT_devis_poste_4<>\"\",SUMIF(#REF!,Réf_mo,#REF!)/(1+Fgx_mo),\"\")","v":{"$error":"#NAME?"}},null,{"$f":"IF(AND(Total_HT_devis<>\"\",PVHT_devis_poste_4<>\"\"),D200*1/D212,\"\")","v":{"$error":"#NAME?"}}]
[]
[null,"MATERIEL",null,{"$f":"IF(F202<>\"\",F202+H202,\"\")","v":{"$error":"#NAME?"}},null,{"$f":"IF(PVHT_devis_poste_4<>\"\",SUMIF(#REF!,Code_racine_matériel,#REF!),\"\")","v":{"$error":"#NAME?"}},null,{"$f":"IF(PVHT_devis_poste_4<>\"\",SUMIF(#REF!,Code_racine_matériel,#REF!),\"\")","v":{"$error":"#NAME?"}},null,{"$f":"IF(AND(Total_HT_devis<>\"\",PVHT_devis_poste_4<>\"\"),D202*1/D212,\"\")","v":{"$error":"#NAME?"}}]
[]
[null,"MATERIAUX",null,{"$f":"IF(F204<>\"\",F204+H204,\"\")","v":{"$error":"#NAME?"}},null,{"$f":"IF(PVHT_devis_poste_4<>\"\",SUMIF(#REF!,Code_racine_matériaux,#REF!),\"\")","v":{"$error":"#NAME?"}},null,{"$f":"IF(PVHT_devis_poste_4<>\"\",SUMIF(#REF!,Code_racine_matériaux,#REF!),\"\")","v":{"$error":"#NAME?"}},null,{"$f":"IF(AND(Total_HT_devis<>\"\",PVHT_devis_poste_4<>\"\"),D204*1/D212,\"\")","v":{"$error":"#NAME?"}}]
[]
[null,"LOCATION",null,{"$f":"IF(F206<>\"\",F206+H206,\"\")","v":{"$error":"#NAME?"}},null,{"$f":"IF(PVHT_devis_poste_4<>\"\",SUMIF(#REF!,Code_racine_location,#REF!),\"\")","v":{"$error":"#NAME?"}},null,{"$f":"IF(PVHT_devis_poste_4<>\"\",SUMIF(#REF!,Code_racine_location,#REF!),\"\")","v":{"$error":"#NAME?"}},null,{"$f":"IF(AND(Total_HT_devis<>\"\",PVHT_devis_poste_4<>\"\"),D206*1/D212,\"\")","v":{"$error":"#NAME?"}}]
[]
[null,"SOUS-TRAITANCE",null,{"$f":"IF(F208<>\"\",F208+H208,\"\")","v":{"$error":"#NAME?"}},null,{"$f":"IF(PVHT_devis_poste_4<>\"\",SUMIF(#REF!,Code_racine_sous_traitantce,#REF!),\"\")","v":{"$error":"#NAME?"}},null,{"$f":"IF(PVHT_devis_poste_4<>\"\",SUMIF(#REF!,Code_racine_sous_traitantce,#REF!),\"\")","v":{"$error":"#NAME?"}},null,{"$f":"IF(AND(Total_HT_devis<>\"\",PVHT_devis_poste_4<>\"\"),D208*1/D212,\"\")","v":{"$error":"#NAME?"}}]
[]
[]
[null,null,null,null,null,null,null,null,"ECHELLE"]
[null,"TOTAL",null,{"$f":"IF(PVHT_devis_poste_4<>\"\",D200+D202+D204+D206+D208,\"\")","v":{"$error":"#NAME?"}},null,{"$f":"IF(PVHT_devis_poste_4<>\"\",F200+F202+F204+F206+F208,\"\")","v":{"$error":"#NAME?"}},null,{"$f":"IF(PVHT_devis_poste_4<>\"\",H200+H202+H204+H206+H208,\"\")","v":{"$error":"#NAME?"}},"DE RISQUES"]
[null,null,null,null,null,null,null,null,{"$f":"IF(AND(0%<=J200,J200<=10%),1,IF(AND(11%<=J200,J200<=20%),2,IF(AND(21%<=J200,J200<=30%),3,IF(AND(31%<=J200,J200<=40%),4,IF(AND(41%<=J200,J200<=50%),5,IF(AND(51%<=J200,J200<=60%),6,IF(AND(61%<=J200,J200<=70%),7,IF(AND(71%<=J200,J200<=80%),8,IF(AND(81%<=J200,J200<=90%),9,IF(AND(91%<=J200,J200<=100%),10,\"\"))))))))))","v":{"$error":"#NAME?"}},{"$f":"IF(AND(0%<=J200,J200<=10%),\"nul\",IF(AND(11%<=J200,J200<=20%),\"quasi nul\",IF(AND(21%<=J200,J200<=30%),\"très faible\",IF(AND(31%<=J200,J200<=40%),\"faible\",IF(AND(41%<=J200,J200<=50%),\"moyen\",IF(AND(51%<=J200,J200<=60%),\"moyen élevé\",IF(AND(61%<=J200,J200<=70%),\"élevé\",IF(AND(71%<=J200,J200<=80%),\"très élevés\",IF(AND(81%<=J200,J200<=90%),\"trés fort\",IF(AND(91%<=J200,J200<=100%),\"extreme\",\"\"))))))))))","v":{"$error":"#NAME?"}}]
[null,"MARGE",null,{"$f":"IF(D216<>\"\",D216-D212,\"\")","v":{"$error":"#NAME?"}},null,null,"bénéfice/H",{"$f":"IF(D214<>\"\",D214/H216,\"\")","v":{"$error":"#NAME?"}}]
[]
[null,"PRIX DE VENTE",null,{"$f":"IF(D212<>\"\",PVHT_devis_poste_4,\"\")","v":{"$error":"#NAME?"}},null,null,"heures",{"$f":"IF(PVHT_devis_poste_4<>\"\",heures_prév_poste_4,\"\")","v":{"$error":"#NAME?"}}]
[]
[]
[]
[null,"coeff de marge",null,{"$f":"IF(D216<>\"\",D216/D212,\"\")","v":{"$error":"#NAME?"}}]
[]
[null,"% de bénéfice =",null,{"$f":"IF(D216<>\"\",D214/D216*1,\"\")","v":{"$error":"#NAME?"}}]
[]
[]
[]
[]
[{"$f":"IF(#REF!<>\"\",\"Poste 5\",\"\")","v":{"$error":"#REF!"}}]
[]
[null,null,null,{"$f":"IF(A227<>\"\",#REF!,\"\")","v":{"$error":"#REF!"}},null,null,null,null,{"$f":"IF(A227<>\"\",#REF!,\"\")","v":{"$error":"#REF!"}},{"$f":"IF(A227<>\"\",#REF!,\"\")","v":{"$error":"#REF!"}}]
[]
[]
[]
[null,"client :"]
[null,{"$f":"IF(#REF!<>\"\",#REF!,\"\")","v":{"$error":"#REF!"}}]
[]
[" ",{"$f":"IF(#REF!<>\"\",#REF!,\"\")","v":{"$error":"#REF!"}},null,{"$f":"IF(A227<>\"\",#REF!,\"\")","v":{"$error":"#REF!"}}]
[]
[]
[]
[]
[]
[null,null,null,"Prix de revient",null,"frais généraux",null,"couts directs",null,"% s/ P.R"]
[]
[]
[null,"MAIN D'OEUVRE",null,{"$f":"IF(F245<>\"\",F245+H245,\"\")","v":{"$error":"#NAME?"}},null,{"$f":"IF(H245<>\"\",H245*Fgx_mo,\"\")","v":{"$error":"#NAME?"}},null,{"$f":"IF(PVHT_devis_poste_5<>\"\",SUMIF(#REF!,Réf_mo,#REF!)/(1+Fgx_mo),\"\")","v":{"$error":"#NAME?"}},null,{"$f":"IF(AND(Total_HT_devis<>\"\",PVHT_devis_poste_5<>\"\"),D245*1/D257,\"\")","v":{"$error":"#NAME?"}}]
[]
[null,"MATERIEL",null,{"$f":"IF(F247<>\"\",F247+H247,\"\")","v":{"$error":"#NAME?"}},null,{"$f":"IF(PVHT_devis_poste_5<>\"\",SUMIF(#REF!,Code_racine_matériel,#REF!),\"\")","v":{"$error":"#NAME?"}},null,{"$f":"IF(PVHT_devis_poste_5<>\"\",SUMIF(#REF!,Code_racine_matériel,#REF!),\"\")","v":{"$error":"#NAME?"}},null,{"$f":"IF(AND(Total_HT_devis<>\"\",PVHT_devis_poste_5<>\"\"),D247*1/D257,\"\")","v":{"$error":"#NAME?"}}]
[]
[null,"MATERIAUX",null,{"$f":"IF(F249<>\"\",F249+H249,\"\")","v":{"$error":"#NAME?"}},null,{"$f":"IF(PVHT_devis_poste_5<>\"\",SUMIF(#REF!,Code_racine_matériaux,#REF!),\"\")","v":{"$error":"#NAME?"}},null,{"$f":"IF(PVHT_devis_poste_5<>\"\",SUMIF(#REF!,Code_racine_matériaux,#REF!),\"\")","v":{"$error":"#NAME?"}},null,{"$f":"IF(AND(Total_HT_devis<>\"\",PVHT_devis_poste_5<>\"\"),D249*1/D257,\"\")","v":{"$error":"#NAME?"}}]
[]
[null,"LOCATION",null,{"$f":"IF(F251<>\"\",F251+H251,\"\")","v":{"$error":"#NAME?"}},null,{"$f":"IF(PVHT_devis_poste_5<>\"\",SUMIF(#REF!,Code_racine_location,#REF!),\"\")","v":{"$error":"#NAME?"}},null,{"$f":"IF(PVHT_devis_poste_5<>\"\",SUMIF(#REF!,Code_racine_location,#REF!),\"\")","v":{"$error":"#NAME?"}},null,{"$f":"IF(AND(Total_HT_devis<>\"\",PVHT_devis_poste_5<>\"\"),D251*1/D257,\"\")","v":{"$error":"#NAME?"}}]
[]
[null,"SOUS-TRAITANCE",null,{"$f":"IF(F253<>\"\",F253+H253,\"\")","v":{"$error":"#NAME?"}},null,{"$f":"IF(PVHT_devis_poste_5<>\"\",SUMIF(#REF!,Code_racine_sous_traitantce,#REF!),\"\")","v":{"$error":"#NAME?"}},null,{"$f":"IF(PVHT_devis_poste_5<>\"\",SUMIF(#REF!,Code_racine_sous_traitantce,#REF!),\"\")","v":{"$error":"#NAME?"}},null,{"$f":"IF(AND(Total_HT_devis<>\"\",PVHT_devis_poste_5<>\"\"),D253*1/D257,\"\")","v":{"$error":"#NAME?"}}]
[]
[]
[null,null,null,null,null,null,null,null,"ECHELLE"]
[null,"TOTAL",null,{"$f":"IF(PVHT_devis_poste_5<>\"\",D245+D247+D249+D251+D253,\"\")","v":{"$error":"#NAME?"}},null,{"$f":"IF(PVHT_devis_poste_5<>\"\",F245+F247+F249+F251+F253,\"\")","v":{"$error":"#NAME?"}},null,{"$f":"IF(PVHT_devis_poste_5<>\"\",H245+H247+H249+H251+H253,\"\")","v":{"$error":"#NAME?"}},"DE RISQUES"]
[null,null,null,null,null,null,null,null,{"$f":"IF(AND(0%<=J245,J245<=10%),1,IF(AND(11%<=J245,J245<=20%),2,IF(AND(21%<=J245,J245<=30%),3,IF(AND(31%<=J245,J245<=40%),4,IF(AND(41%<=J245,J245<=50%),5,IF(AND(51%<=J245,J245<=60%),6,IF(AND(61%<=J245,J245<=70%),7,IF(AND(71%<=J245,J245<=80%),8,IF(AND(81%<=J245,J245<=90%),9,IF(AND(91%<=J245,J245<=100%),10,\"\"))))))))))","v":{"$error":"#NAME?"}},{"$f":"IF(AND(0%<=J245,J245<=10%),\"nul\",IF(AND(11%<=J245,J245<=20%),\"quasi nul\",IF(AND(21%<=J245,J245<=30%),\"très faible\",IF(AND(31%<=J245,J245<=40%),\"faible\",IF(AND(41%<=J245,J245<=50%),\"moyen\",IF(AND(51%<=J245,J245<=60%),\"moyen élevé\",IF(AND(61%<=J245,J245<=70%),\"élevé\",IF(AND(71%<=J245,J245<=80%),\"très élevés\",IF(AND(81%<=J245,J245<=90%),\"trés fort\",IF(AND(91%<=J245,J245<=100%),\"extreme\",\"\"))))))))))","v":{"$error":"#NAME?"}}]
[null,"MARGE",null,{"$f":"IF(D261<>\"\",D261-D257,\"\")","v":{"$error":"#NAME?"}},null,null,"bénéfice/H",{"$f":"IF(D259<>\"\",D259/H261,\"\")","v":{"$error":"#NAME?"}}]
[]
[null,"PRIX DE VENTE",null,{"$f":"IF(D257<>\"\",PVHT_devis_poste_5,\"\")","v":{"$error":"#NAME?"}},null,null,"heures",{"$f":"IF(PVHT_devis_poste_5<>\"\",heures_prév_poste_5,\"\")","v":{"$error":"#NAME?"}}]
[]
[]
[]
[null,"coeff de marge",null,{"$f":"IF(D261<>\"\",D261/D257,\"\")","v":{"$error":"#NAME?"}}]
[]
[null,"% de bénéfice =",null,{"$f":"IF(D261<>\"\",D259/D261*1,\"\")","v":{"$error":"#NAME?"}}]
[]
[]
[]
[]
[{"$f":"IF(#REF!<>\"\",\"Poste 6\",\"\")","v":{"$error":"#REF!"}}]
[]
[null,null,null,{"$f":"IF(A272<>\"\",#REF!,\"\")","v":{"$error":"#REF!"}},null,null,null,null,{"$f":"IF(A272<>\"\",#REF!,\"\")","v":{"$error":"#REF!"}},{"$f":"IF(A272<>\"\",#REF!,\"\")","v":{"$error":"#REF!"}}]
[]
[]
[]
[null,"client :"]
[null,{"$f":"IF(#REF!<>\"\",#REF!,\"\")","v":{"$error":"#REF!"}}]
[]
[" ",{"$f":"IF(#REF!<>\"\",#REF!,\"\")","v":{"$error":"#REF!"}},null,{"$f":"IF(A272<>\"\",#REF!,\"\")","v":{"$error":"#REF!"}}]
[]
[]
[]
[]
[]
[null,null,null,"Prix de revient",null,"frais généraux",null,"couts directs",null,"% s/ P.R"]
[]
[]
[null,"MAIN D'OEUVRE",null,{"$f":"IF(F290<>\"\",F290+H290,\"\")","v":{"$error":"#NAME?"}},null,{"$f":"IF(H290<>\"\",H290*Fgx_mo,\"\")","v":{"$error":"#NAME?"}},null,{"$f":"IF(PVHT_devis_poste_6<>\"\",SUMIF(#REF!,Réf_mo,#REF!)/(1+Fgx_mo),\"\")","v":{"$error":"#NAME?"}},null,{"$f":"IF(AND(Total_HT_devis<>\"\",PVHT_devis_poste_6<>\"\"),D290*1/D302,\"\")","v":{"$error":"#NAME?"}}]
[]
[null,"MATERIEL",null,{"$f":"IF(F292<>\"\",F292+H292,\"\")","v":{"$error":"#NAME?"}},null,{"$f":"IF(PVHT_devis_poste_6<>\"\",SUMIF(#REF!,Code_racine_matériaux,#REF!),\"\")","v":{"$error":"#NAME?"}},null,{"$f":"IF(PVHT_devis_poste_6<>\"\",SUMIF(#REF!,Code_racine_matériel,#REF!),\"\")","v":{"$error":"#NAME?"}},null,{"$f":"IF(AND(Total_HT_devis<>\"\",PVHT_devis_poste_6<>\"\"),D292*1/D302,\"\")","v":{"$error":"#NAME?"}}]
[]
[null,"MATERIAUX",null,{"$f":"IF(F294<>\"\",F294+H294,\"\")","v":{"$error":"#NAME?"}},null,{"$f":"IF(PVHT_devis_poste_6<>\"\",SUMIF(#REF!,Code_racine_matériaux,#REF!),\"\")","v":{"$error":"#NAME?"}},null,{"$f":"IF(PVHT_devis_poste_6<>\"\",SUMIF(#REF!,Code_racine_matériaux,#REF!),\"\")","v":{"$error":"#NAME?"}},null,{"$f":"IF(AND(Total_HT_devis<>\"\",PVHT_devis_poste_6<>\"\"),D294*1/D302,\"\")","v":{"$error":"#NAME?"}}]
[]
[null,"LOCATION",null,{"$f":"IF(F296<>\"\",F296+H296,\"\")","v":{"$error":"#NAME?"}},null,{"$f":"IF(PVHT_devis_poste_6<>\"\",SUMIF(#REF!,Code_racine_location,#REF!),\"\")","v":{"$error":"#NAME?"}},null,{"$f":"IF(PVHT_devis_poste_6<>\"\",SUMIF(#REF!,Code_racine_location,#REF!),\"\")","v":{"$error":"#NAME?"}},null,{"$f":"IF(AND(Total_HT_devis<>\"\",PVHT_devis_poste_6<>\"\"),D296*1/D302,\"\")","v":{"$error":"#NAME?"}}]
[]
[null,"SOUS-TRAITANCE",null,{"$f":"IF(F298<>\"\",F298+H298,\"\")","v":{"$error":"#NAME?"}},null,{"$f":"IF(PVHT_devis_poste_6<>\"\",SUMIF(#REF!,Code_racine_sous_traitantce,#REF!),\"\")","v":{"$error":"#NAME?"}},null,{"$f":"IF(PVHT_devis_poste_6<>\"\",SUMIF(#REF!,Code_racine_sous_traitantce,#REF!),\"\")","v":{"$error":"#NAME?"}},null,{"$f":"IF(AND(Total_HT_devis<>\"\",PVHT_devis_poste_6<>\"\"),D298*1/D302,\"\")","v":{"$error":"#NAME?"}}]
[]
[]
[null,null,null,null,null,null,null,null,"ECHELLE"]
[null,"TOTAL",null,{"$f":"IF(PVHT_devis_poste_6<>\"\",IF(Total_HT_devis<>\"\",D290+D292+D294+D296+D298,\"\"),\"\")","v":{"$error":"#NAME?"}},null,{"$f":"IF(PVHT_devis_poste_6<>\"\",IF(Total_HT_devis<>\"\",F290+F292+F294+F296+F298,\"\"),\"\")","v":{"$error":"#NAME?"}},null,{"$f":"IF(PVHT_devis_poste_6<>\"\",IF(Total_HT_devis<>\"\",H290+H292+H294+H296+H298,\"\"),\"\")","v":{"$error":"#NAME?"}},"DE RISQUES"]
[null,null,null,null,null,null,null,null,{"$f":"IF(AND(0%<=J290,J290<=10%),1,IF(AND(11%<=J290,J290<=20%),2,IF(AND(21%<=J290,J290<=30%),3,IF(AND(31%<=J290,J290<=40%),4,IF(AND(41%<=J290,J290<=50%),5,IF(AND(51%<=J290,J290<=60%),6,IF(AND(61%<=J290,J290<=70%),7,IF(AND(71%<=J290,J290<=80%),8,IF(AND(81%<=J290,J290<=90%),9,IF(AND(91%<=J290,J290<=100%),10,\"\"))))))))))","v":{"$error":"#NAME?"}},{"$f":"IF(AND(0%<=J290,J290<=10%),\"nul\",IF(AND(11%<=J290,J290<=20%),\"quasi nul\",IF(AND(21%<=J290,J290<=30%),\"très faible\",IF(AND(31%<=J290,J290<=40%),\"faible\",IF(AND(41%<=J290,J290<=50%),\"moyen\",IF(AND(51%<=J290,J290<=60%),\"moyen élevé\",IF(AND(61%<=J290,J290<=70%),\"élevé\",IF(AND(71%<=J290,J290<=80%),\"très élevés\",IF(AND(81%<=J290,J290<=90%),\"trés fort\",IF(AND(91%<=J290,J290<=100%),\"extreme\",\"\"))))))))))","v":{"$error":"#NAME?"}}]
[null,"MARGE",null,{"$f":"IF(D306<>\"\",D306-D302,\"\")","v":{"$error":"#NAME?"}},null,null,"bénéfice/H",{"$f":"IF(D304<>\"\",D304/H306,\"\")","v":{"$error":"#NAME?"}}]
[]
[null,"PRIX DE VENTE",null,{"$f":"IF(D302<>\"\",PVHT_devis_poste_6,\"\")","v":{"$error":"#NAME?"}},null,null,"heures",{"$f":"IF(PVHT_devis_poste_6<>\"\",heures_prév_poste_6,\"\")","v":{"$error":"#NAME?"}}]
[]
[]
[]
[null,"coeff de marge",null,{"$f":"IF(D306<>\"\",D306/D302,\"\")","v":{"$error":"#NAME?"}}]
[]
[null,"% de bénéfice =",null,{"$f":"IF(D306<>\"\",D304/D306*1,\"\")","v":{"$error":"#NAME?"}}]
[]
[]
[]
[]
[{"$f":"IF(#REF!<>\"\",\"Poste 7\",\"\")","v":{"$error":"#REF!"}}]
[]
[null,null,null,{"$f":"IF(A317<>\"\",#REF!,\"\")","v":{"$error":"#REF!"}},null,null,null,null,{"$f":"IF(A317<>\"\",#REF!,\"\")","v":{"$error":"#REF!"}},{"$f":"IF(A317<>\"\",#REF!,\"\")","v":{"$error":"#REF!"}}]
[]
[]
[]
[null,"client :"]
[null,{"$f":"IF(#REF!<>\"\",#REF!,\"\")","v":{"$error":"#REF!"}}]
[]
[" ",{"$f":"IF(#REF!<>\"\",#REF!,\"\")","v":{"$error":"#REF!"}},null,{"$f":"IF(A317<>\"\",#REF!,\"\")","v":{"$error":"#REF!"}}]
[]
[]
[]
[]
[]
[null,null,null,"Prix de revient",null,"frais généraux",null,"couts directs",null,"% s/ P.R"]
[]
[]
[null,"MAIN D'OEUVRE",null,{"$f":"IF(F335<>\"\",F335+H335,\"\")","v":{"$error":"#NAME?"}},null,{"$f":"IF(H335<>\"\",H335*Fgx_mo,\"\")","v":{"$error":"#NAME?"}},null,{"$f":"IF(PVHT_devis_poste_7<>\"\",SUMIF(#REF!,Réf_mo,#REF!)/(1+Fgx_mo),\"\")","v":{"$error":"#NAME?"}},null,{"$f":"IF(AND(Total_HT_devis<>\"\",PVHT_devis_poste_7<>\"\"),D335*1/D347,\"\")","v":{"$error":"#NAME?"}}]
[]
[null,"MATERIEL",null,{"$f":"IF(F337<>\"\",F337+H337,\"\")","v":{"$error":"#NAME?"}},null,{"$f":"IF(PVHT_devis_poste_7<>\"\",SUMIF(#REF!,Code_racine_matériel,#REF!),\"\")","v":{"$error":"#NAME?"}},null,{"$f":"IF(PVHT_devis_poste_7<>\"\",SUMIF(#REF!,Code_racine_matériel,#REF!),\"\")","v":{"$error":"#NAME?"}},null,{"$f":"IF(AND(Total_HT_devis<>\"\",PVHT_devis_poste_7<>\"\"),D337*1/D347,\"\")","v":{"$error":"#NAME?"}}]
[]
[null,"MATERIAUX",null,{"$f":"IF(F339<>\"\",F339+H339,\"\")","v":{"$error":"#NAME?"}},null,{"$f":"IF(PVHT_devis_poste_7<>\"\",SUMIF(#REF!,Code_racine_matériaux,#REF!),\"\")","v":{"$error":"#NAME?"}},null,{"$f":"IF(PVHT_devis_poste_7<>\"\",SUMIF(#REF!,Code_racine_matériaux,#REF!),\"\")","v":{"$error":"#NAME?"}},null,{"$f":"IF(AND(Total_HT_devis<>\"\",PVHT_devis_poste_7<>\"\"),D339*1/D347,\"\")","v":{"$error":"#NAME?"}}]
[]
[null,"LOCATION",null,{"$f":"IF(F341<>\"\",F341+H341,\"\")","v":{"$error":"#NAME?"}},null,{"$f":"IF(PVHT_devis_poste_7<>\"\",SUMIF(#REF!,Code_racine_location,#REF!),\"\")","v":{"$error":"#NAME?"}},null,{"$f":"IF(PVHT_devis_poste_7<>\"\",SUMIF(#REF!,Code_racine_location,#REF!),\"\")","v":{"$error":"#NAME?"}},null,{"$f":"IF(AND(Total_HT_devis<>\"\",PVHT_devis_poste_7<>\"\"),D341*1/D347,\"\")","v":{"$error":"#NAME?"}}]
[]
[null,"SOUS-TRAITANCE",null,{"$f":"IF(F343<>\"\",F343+H343,\"\")","v":{"$error":"#NAME?"}},null,{"$f":"IF(PVHT_devis_poste_7<>\"\",SUMIF(#REF!,Code_racine_sous_traitantce,#REF!),\"\")","v":{"$error":"#NAME?"}},null,{"$f":"IF(PVHT_devis_poste_7<>\"\",SUMIF(#REF!,Code_racine_sous_traitantce,#REF!),\"\")","v":{"$error":"#NAME?"}},null,{"$f":"IF(AND(Total_HT_devis<>\"\",PVHT_devis_poste_7<>\"\"),D343*1/D347,\"\")","v":{"$error":"#NAME?"}}]
[]
[]
[null,null,null,null,null,null,null,null,"ECHELLE"]
[null,"TOTAL",null,{"$f":"IF(PVHT_devis_poste_7<>\"\",D335+D337+D339+D341+D343,\"\")","v":{"$error":"#NAME?"}},null,{"$f":"IF(PVHT_devis_poste_7<>\"\",F335+F337+F339+F341+F343,\"\")","v":{"$error":"#NAME?"}},null,{"$f":"IF(PVHT_devis_poste_7<>\"\",IF(Total_HT_devis<>\"\",H335+H337+H339+H341+H343,\"\"),\"\")","v":{"$error":"#NAME?"}},"DE RISQUES"]
[null,null,null,null,null,null,null,null,{"$f":"IF(AND(0%<=J335,J335<=10%),1,IF(AND(11%<=J335,J335<=20%),2,IF(AND(21%<=J335,J335<=30%),3,IF(AND(31%<=J335,J335<=40%),4,IF(AND(41%<=J335,J335<=50%),5,IF(AND(51%<=J335,J335<=60%),6,IF(AND(61%<=J335,J335<=70%),7,IF(AND(71%<=J335,J335<=80%),8,IF(AND(81%<=J335,J335<=90%),9,IF(AND(91%<=J335,J335<=100%),10,\"\"))))))))))","v":{"$error":"#NAME?"}},{"$f":"IF(AND(0%<=J335,J335<=10%),\"nul\",IF(AND(11%<=J335,J335<=20%),\"quasi nul\",IF(AND(21%<=J335,J335<=30%),\"très faible\",IF(AND(31%<=J335,J335<=40%),\"faible\",IF(AND(41%<=J335,J335<=50%),\"moyen\",IF(AND(51%<=J335,J335<=60%),\"moyen élevé\",IF(AND(61%<=J335,J335<=70%),\"élevé\",IF(AND(71%<=J335,J335<=80%),\"très élevés\",IF(AND(81%<=J335,J335<=90%),\"trés fort\",IF(AND(91%<=J335,J335<=100%),\"extreme\",\"\"))))))))))","v":{"$error":"#NAME?"}}]
[null,"MARGE",null,{"$f":"IF(D351<>\"\",D351-D347,\"\")","v":{"$error":"#NAME?"}},null,null,"bénéfice/H",{"$f":"IF(D349<>\"\",D349/H351,\"\")","v":{"$error":"#NAME?"}}]
[]
[null,"PRIX DE VENTE",null,{"$f":"IF(D347<>\"\",PVHT_devis_poste_7,\"\")","v":{"$error":"#NAME?"}},null,null,"heures",{"$f":"IF(PVHT_devis_poste_7<>\"\",heures_prév_poste_7,\"\")","v":{"$error":"#NAME?"}}]
[]
[]
[]
[null,"coeff de marge",null,{"$f":"IF(D351<>\"\",D351/D347,\"\")","v":{"$error":"#NAME?"}}]
[]
[null,"% de bénéfice =",null,{"$f":"IF(D351<>\"\",D349/D351*1,\"\")","v":{"$error":"#NAME?"}}]
[]
[]
[]
[]
[{"$f":"IF(#REF!<>\"\",\"Poste 8\",\"\")","v":{"$error":"#REF!"}}]
[]
[null,null,null,{"$f":"IF(A362<>\"\",#REF!,\"\")","v":{"$error":"#REF!"}},null,null,null,null,{"$f":"IF(A362<>\"\",#REF!,\"\")","v":{"$error":"#REF!"}},{"$f":"IF(A362<>\"\",#REF!,\"\")","v":{"$error":"#REF!"}}]
[]
[]
[]
[null,"client :"]
[null,{"$f":"IF(#REF!<>\"\",#REF!,\"\")","v":{"$error":"#REF!"}}]
[]
[" ",{"$f":"IF(#REF!<>\"\",#REF!,\"\")","v":{"$error":"#REF!"}},null,{"$f":"IF(A362<>\"\",#REF!,\"\")","v":{"$error":"#REF!"}}]
[]
[]
[]
[]
[]
[null,null,null,"Prix de revient",null,"frais généraux",null,"couts directs",null,"% s/ P.R"]
[]
[]
[null,"MAIN D'OEUVRE",null,{"$f":"IF(F380<>\"\",F380+H380,\"\")","v":{"$error":"#NAME?"}},null,{"$f":"IF(H380<>\"\",H380*Fgx_mo,\"\")","v":{"$error":"#NAME?"}},null,{"$f":"IF(PVHT_devis_poste_8<>\"\",SUMIF(#REF!,Réf_mo,#REF!)/(1+Fgx_mo),\"\")","v":{"$error":"#NAME?"}},null,{"$f":"IF(AND(Total_HT_devis<>\"\",PVHT_devis_poste_8<>\"\"),D380*1/D392,\"\")","v":{"$error":"#NAME?"}}]
[]
[null,"MATERIEL",null,{"$f":"IF(F382<>\"\",F382+H382,\"\")","v":{"$error":"#NAME?"}},null,{"$f":"IF(PVHT_devis_poste_8<>\"\",SUMIF(#REF!,Code_racine_matériel,#REF!),\"\")","v":{"$error":"#NAME?"}},null,{"$f":"IF(PVHT_devis_poste_8<>\"\",SUMIF(#REF!,Code_racine_matériel,#REF!),\"\")","v":{"$error":"#NAME?"}},null,{"$f":"IF(AND(Total_HT_devis<>\"\",PVHT_devis_poste_8<>\"\"),D382*1/D392,\"\")","v":{"$error":"#NAME?"}}]
[]
[null,"MATERIAUX",null,{"$f":"IF(F384<>\"\",F384+H384,\"\")","v":{"$error":"#NAME?"}},null,{"$f":"IF(PVHT_devis_poste_8<>\"\",SUMIF(#REF!,Code_racine_matériaux,#REF!),\"\")","v":{"$error":"#NAME?"}},null,{"$f":"IF(PVHT_devis_poste_8<>\"\",SUMIF(#REF!,Code_racine_matériaux,#REF!),\"\")","v":{"$error":"#NAME?"}},null,{"$f":"IF(AND(Total_HT_devis<>\"\",PVHT_devis_poste_8<>\"\"),D384*1/D392,\"\")","v":{"$error":"#NAME?"}}]
[]
[null,"LOCATION",null,{"$f":"IF(F386<>\"\",F386+H386,\"\")","v":{"$error":"#NAME?"}},null,{"$f":"IF(PVHT_devis_poste_8<>\"\",SUMIF(#REF!,Code_racine_location,#REF!),\"\")","v":{"$error":"#NAME?"}},null,{"$f":"IF(PVHT_devis_poste_8<>\"\",SUMIF(#REF!,Code_racine_location,#REF!),\"\")","v":{"$error":"#NAME?"}},null,{"$f":"IF(AND(Total_HT_devis<>\"\",PVHT_devis_poste_8<>\"\"),D386*1/D392,\"\")","v":{"$error":"#NAME?"}}]
[]
[null,"SOUS-TRAITANCE",null,{"$f":"IF(F388<>\"\",F388+H388,\"\")","v":{"$error":"#NAME?"}},null,{"$f":"IF(PVHT_devis_poste_8<>\"\",SUMIF(#REF!,Code_racine_sous_traitantce,#REF!),\"\")","v":{"$error":"#NAME?"}},null,{"$f":"IF(PVHT_devis_poste_8<>\"\",SUMIF(#REF!,Code_racine_sous_traitantce,#REF!),\"\")","v":{"$error":"#NAME?"}},null,{"$f":"IF(AND(Total_HT_devis<>\"\",PVHT_devis_poste_8<>\"\"),D388*1/D392,\"\")","v":{"$error":"#NAME?"}}]
[]
[]
[null,null,null,null,null,null,null,null,"ECHELLE"]
[null,"TOTAL",null,{"$f":"IF(PVHT_devis_poste_8<>\"\",D380+D382+D384+D386+D388,\"\")","v":{"$error":"#NAME?"}},null,{"$f":"IF(PVHT_devis_poste_8<>\"\",F380+F382+F384+F386+F388,\"\")","v":{"$error":"#NAME?"}},null,{"$f":"IF(PVHT_devis_poste_8<>\"\",H380+H382+H384+H386+H388,\"\")","v":{"$error":"#NAME?"}},"DE RISQUES"]
[null,null,null,null,null,null,null,null,{"$f":"IF(AND(0%<=J380,J380<=10%),1,IF(AND(11%<=J380,J380<=20%),2,IF(AND(21%<=J380,J380<=30%),3,IF(AND(31%<=J380,J380<=40%),4,IF(AND(41%<=J380,J380<=50%),5,IF(AND(51%<=J380,J380<=60%),6,IF(AND(61%<=J380,J380<=70%),7,IF(AND(71%<=J380,J380<=80%),8,IF(AND(81%<=J380,J380<=90%),9,IF(AND(91%<=J380,J380<=100%),10,\"\"))))))))))","v":{"$error":"#NAME?"}},{"$f":"IF(AND(0%<=J380,J380<=10%),\"nul\",IF(AND(11%<=J380,J380<=20%),\"quasi nul\",IF(AND(21%<=J380,J380<=30%),\"très faible\",IF(AND(31%<=J380,J380<=40%),\"faible\",IF(AND(41%<=J380,J380<=50%),\"moyen\",IF(AND(51%<=J380,J380<=60%),\"moyen élevé\",IF(AND(61%<=J380,J380<=70%),\"élevé\",IF(AND(71%<=J380,J380<=80%),\"très élevés\",IF(AND(81%<=J380,J380<=90%),\"trés fort\",IF(AND(91%<=J380,J380<=100%),\"extreme\",\"\"))))))))))","v":{"$error":"#NAME?"}}]
[null,"MARGE",null,{"$f":"IF(D396<>\"\",D396-D392,\"\")","v":{"$error":"#NAME?"}},null,null,"bénéfice/H",{"$f":"IF(D394<>\"\",D394/H396,\"\")","v":{"$error":"#NAME?"}}]
[]
[null,"PRIX DE VENTE",null,{"$f":"IF(D392<>\"\",PVHT_devis_poste_8,\"\")","v":{"$error":"#NAME?"}},null,null,"heures",{"$f":"IF(PVHT_devis_poste_8<>\"\",heures_prév_poste_8,\"\")","v":{"$error":"#NAME?"}}]
[]
[]
[]
[null,"coeff de marge",null,{"$f":"IF(D396<>\"\",D396/D392,\"\")","v":{"$error":"#NAME?"}}]
[]
[null,"% de bénéfice =",null,{"$f":"IF(D396<>\"\",D394/D396*1,\"\")","v":{"$error":"#NAME?"}}]
[]
[]
[]
[]
[{"$f":"IF(#REF!<>\"\",\"Poste 9\",\"\")","v":{"$error":"#REF!"}}]
[]
[null,null,null,{"$f":"IF(A407<>\"\",#REF!,\"\")","v":{"$error":"#REF!"}},null,null,null,null,{"$f":"IF(A407<>\"\",#REF!,\"\")","v":{"$error":"#REF!"}},{"$f":"IF(A407<>\"\",#REF!,\"\")","v":{"$error":"#REF!"}}]
[]
[]
[]
[null,"client :"]
[null,{"$f":"IF(#REF!<>\"\",#REF!,\"\")","v":{"$error":"#REF!"}}]
[]
[" ",{"$f":"IF(#REF!<>\"\",#REF!,\"\")","v":{"$error":"#REF!"}},null,{"$f":"IF(A407<>\"\",#REF!,\"\")","v":{"$error":"#REF!"}}]
[]
[]
[]
[]
[]
[null,null,null,"Prix de revient",null,"frais généraux",null,"couts directs",null,"% s/ P.R"]
[]
[]
[null,"MAIN D'OEUVRE",null,{"$f":"IF(F425<>\"\",F425+H425,\"\")","v":{"$error":"#NAME?"}},null,{"$f":"IF(H425<>\"\",H425*Fgx_mo,\"\")","v":{"$error":"#NAME?"}},null,{"$f":"IF(PVHT_devis_poste_9<>\"\",SUMIF(#REF!,Réf_mo,#REF!)/(1+Fgx_mo),\"\")","v":{"$error":"#NAME?"}},null,{"$f":"IF(AND(Total_HT_devis<>\"\",PVHT_devis_poste_9<>\"\"),D425*1/D437,\"\")","v":{"$error":"#NAME?"}}]
[]
[null,"MATERIEL",null,{"$f":"IF(F427<>\"\",F427+H427,\"\")","v":{"$error":"#NAME?"}},null,{"$f":"IF(PVHT_devis_poste_9<>\"\",SUMIF(#REF!,Code_racine_matériel,#REF!),\"\")","v":{"$error":"#NAME?"}},null,{"$f":"IF(PVHT_devis_poste_9<>\"\",SUMIF(#REF!,Code_racine_matériel,#REF!),\"\")","v":{"$error":"#NAME?"}},null,{"$f":"IF(AND(Total_HT_devis<>\"\",PVHT_devis_poste_9<>\"\"),D427*1/D437,\"\")","v":{"$error":"#NAME?"}}]
[]
[null,"MATERIAUX",null,{"$f":"IF(F429<>\"\",F429+H429,\"\")","v":{"$error":"#NAME?"}},null,{"$f":"IF(PVHT_devis_poste_9<>\"\",SUMIF(#REF!,Code_racine_matériaux,#REF!),\"\")","v":{"$error":"#NAME?"}},null,{"$f":"IF(PVHT_devis_poste_9<>\"\",SUMIF(#REF!,Code_racine_matériaux,#REF!),\"\")","v":{"$error":"#NAME?"}},null,{"$f":"IF(AND(Total_HT_devis<>\"\",PVHT_devis_poste_9<>\"\"),D429*1/D437,\"\")","v":{"$error":"#NAME?"}}]
[]
[null,"LOCATION",null,{"$f":"IF(F431<>\"\",F431+H431,\"\")","v":{"$error":"#NAME?"}},null,{"$f":"IF(PVHT_devis_poste_9<>\"\",SUMIF(#REF!,Code_racine_location,#REF!),\"\")","v":{"$error":"#NAME?"}},null,{"$f":"IF(PVHT_devis_poste_9<>\"\",SUMIF(#REF!,Code_racine_location,#REF!),\"\")","v":{"$error":"#NAME?"}},null,{"$f":"IF(AND(Total_HT_devis<>\"\",PVHT_devis_poste_9<>\"\"),D431*1/D437,\"\")","v":{"$error":"#NAME?"}}]
[]
[null,"SOUS-TRAITANCE",null,{"$f":"IF(F433<>\"\",F433+H433,\"\")","v":{"$error":"#NAME?"}},null,{"$f":"IF(PVHT_devis_poste_9<>\"\",SUMIF(#REF!,Code_racine_sous_traitantce,#REF!),\"\")","v":{"$error":"#NAME?"}},null,{"$f":"IF(PVHT_devis_poste_9<>\"\",SUMIF(#REF!,Code_racine_sous_traitantce,#REF!),\"\")","v":{"$error":"#NAME?"}},null,{"$f":"IF(AND(Total_HT_devis<>\"\",PVHT_devis_poste_9<>\"\"),D433*1/D437,\"\")","v":{"$error":"#NAME?"}}]
[]
[]
[null,null,null,null,null,null,null,null,"ECHELLE"]
[null,"TOTAL",null,{"$f":"IF(PVHT_devis_poste_9<>\"\",D425+D427+D429+D431+D433,\"\")","v":{"$error":"#NAME?"}},null,{"$f":"IF(PVHT_devis_poste_9<>\"\",F425+F427+F429+F431+F433,\"\")","v":{"$error":"#NAME?"}},null,{"$f":"IF(PVHT_devis_poste_9<>\"\",H425+H427+H429+H431+H433,\"\")","v":{"$error":"#NAME?"}},"DE RISQUES"]
[null,null,null,null,null,null,null,null,{"$f":"IF(AND(0%<=J425,J425<=10%),1,IF(AND(11%<=J425,J425<=20%),2,IF(AND(21%<=J425,J425<=30%),3,IF(AND(31%<=J425,J425<=40%),4,IF(AND(41%<=J425,J425<=50%),5,IF(AND(51%<=J425,J425<=60%),6,IF(AND(61%<=J425,J425<=70%),7,IF(AND(71%<=J425,J425<=80%),8,IF(AND(81%<=J425,J425<=90%),9,IF(AND(91%<=J425,J425<=100%),10,\"\"))))))))))","v":{"$error":"#NAME?"}},{"$f":"IF(AND(0%<=J425,J425<=10%),\"nul\",IF(AND(11%<=J425,J425<=20%),\"quasi nul\",IF(AND(21%<=J425,J425<=30%),\"très faible\",IF(AND(31%<=J425,J425<=40%),\"faible\",IF(AND(41%<=J425,J425<=50%),\"moyen\",IF(AND(51%<=J425,J425<=60%),\"moyen élevé\",IF(AND(61%<=J425,J425<=70%),\"élevé\",IF(AND(71%<=J425,J425<=80%),\"très élevés\",IF(AND(81%<=J425,J425<=90%),\"trés fort\",IF(AND(91%<=J425,J425<=100%),\"extreme\",\"\"))))))))))","v":{"$error":"#NAME?"}}]
[null,"MARGE",null,{"$f":"IF(D441<>\"\",D441-D437,\"\")","v":{"$error":"#NAME?"}},null,null,"bénéfice/H",{"$f":"IF(D439<>\"\",D439/H441,\"\")","v":{"$error":"#NAME?"}}]
[]
[null,"PRIX DE VENTE",null,{"$f":"IF(D437<>\"\",PVHT_devis_poste_9,\"\")","v":{"$error":"#NAME?"}},null,null,"heures",{"$f":"IF(PVHT_devis_poste_9<>\"\",heures_prév_poste_9,\"\")","v":{"$error":"#NAME?"}}]
[]
[]
[]
[null,"coeff de marge",null,{"$f":"IF(D441<>\"\",D441/D437,\"\")","v":{"$error":"#NAME?"}}]
[]
[null,"% de bénéfice =",null,{"$f":"IF(D441<>\"\",D439/D441*1,\"\")","v":{"$error":"#NAME?"}}]
[]
[]
[]
[]
[{"$f":"IF(#REF!<>\"\",\"Poste 10\",\"\")","v":{"$error":"#REF!"}}]
[]
[null,null,null,{"$f":"IF(A452<>\"\",#REF!,\"\")","v":{"$error":"#REF!"}},null,null,null,null,{"$f":"IF(A452<>\"\",#REF!,\"\")","v":{"$error":"#REF!"}},{"$f":"IF(A452<>\"\",#REF!,\"\")","v":{"$error":"#REF!"}}]
[]
[]
[]
[null,"client :"]
[null,{"$f":"IF(#REF!<>\"\",#REF!,\"\")","v":{"$error":"#REF!"}}]
[]
[" ",{"$f":"IF(#REF!<>\"\",#REF!,\"\")","v":{"$error":"#REF!"}},null,{"$f":"IF(A452<>\"\",#REF!,\"\")","v":{"$error":"#REF!"}}]
[]
[]
[]
[]
[]
[null,null,null,"Prix de revient",null,"frais généraux",null,"couts directs",null,"% s/ P.R"]
[]
[]
[null,"MAIN D'OEUVRE",null,{"$f":"IF(F470<>\"\",F470+H470,\"\")","v":{"$error":"#NAME?"}},null,{"$f":"IF(H470<>\"\",H470*Fgx_mo,\"\")","v":{"$error":"#NAME?"}},null,{"$f":"IF(PVHT_devis_poste_10<>\"\",SUMIF(#REF!,Réf_mo,#REF!)/(1+Fgx_mo),\"\")","v":{"$error":"#NAME?"}},null,{"$f":"IF(AND(Total_HT_devis<>\"\",PVHT_devis_poste_10<>\"\"),D470*1/D482,\"\")","v":{"$error":"#NAME?"}}]
[]
[null,"MATERIEL",null,{"$f":"IF(F472<>\"\",F472+H472,\"\")","v":{"$error":"#NAME?"}},null,{"$f":"IF(PVHT_devis_poste_10<>\"\",SUMIF(#REF!,Code_racine_matériel,#REF!),\"\")","v":{"$error":"#NAME?"}},null,{"$f":"IF(PVHT_devis_poste_10<>\"\",SUMIF(#REF!,Code_racine_matériel,#REF!),\"\")","v":{"$error":"#NAME?"}},null,{"$f":"IF(AND(Total_HT_devis<>\"\",PVHT_devis_poste_10<>\"\"),D472*1/D482,\"\")","v":{"$error":"#NAME?"}}]
[]
[null,"MATERIAUX",null,{"$f":"IF(F474<>\"\",F474+H474,\"\")","v":{"$error":"#NAME?"}},null,{"$f":"IF(PVHT_devis_poste_10<>\"\",SUMIF(#REF!,Code_racine_matériaux,#REF!),\"\")","v":{"$error":"#NAME?"}},null,{"$f":"IF(PVHT_devis_poste_10<>\"\",SUMIF(#REF!,Code_racine_matériaux,#REF!),\"\")","v":{"$error":"#NAME?"}},null,{"$f":"IF(AND(Total_HT_devis<>\"\",PVHT_devis_poste_10<>\"\"),D474*1/D482,\"\")","v":{"$error":"#NAME?"}}]
[]
[null,"LOCATION",null,{"$f":"IF(F476<>\"\",F476+H476,\"\")","v":{"$error":"#NAME?"}},null,{"$f":"IF(PVHT_devis_poste_10<>\"\",SUMIF(#REF!,Code_racine_location,#REF!),\"\")","v":{"$error":"#NAME?"}},null,{"$f":"IF(PVHT_devis_poste_10<>\"\",SUMIF(#REF!,Code_racine_location,#REF!),\"\")","v":{"$error":"#NAME?"}},null,{"$f":"IF(AND(Total_HT_devis<>\"\",PVHT_devis_poste_10<>\"\"),D476*1/D482,\"\")","v":{"$error":"#NAME?"}}]
[]
[null,"SOUS-TRAITANCE",null,{"$f":"IF(F478<>\"\",F478+H478,\"\")","v":{"$error":"#NAME?"}},null,{"$f":"IF(PVHT_devis_poste_10<>\"\",SUMIF(#REF!,Code_racine_sous_traitantce,#REF!),\"\")","v":{"$error":"#NAME?"}},null,{"$f":"IF(PVHT_devis_poste_10<>\"\",SUMIF(#REF!,Code_racine_sous_traitantce,#REF!),\"\")","v":{"$error":"#NAME?"}},null,{"$f":"IF(AND(Total_HT_devis<>\"\",PVHT_devis_poste_10<>\"\"),D478*1/D482,\"\")","v":{"$error":"#NAME?"}}]
[]
[]
[null,null,null,null,null,null,null,null,"ECHELLE"]
[null,"TOTAL",null,{"$f":"IF(PVHT_devis_poste_10<>\"\",D470+D472+D474+D476+D478,\"\")","v":{"$error":"#NAME?"}},null,{"$f":"IF(PVHT_devis_poste_10<>\"\",F470+F472+F474+F476+F478,\"\")","v":{"$error":"#NAME?"}},null,{"$f":"IF(PVHT_devis_poste_10<>\"\",H470+H472+H474+H476+H478,\"\")","v":{"$error":"#NAME?"}},"DE RISQUES"]
[null,null,null,null,null,null,null,null,{"$f":"IF(AND(0%<=J470,J470<=10%),1,IF(AND(11%<=J470,J470<=20%),2,IF(AND(21%<=J470,J470<=30%),3,IF(AND(31%<=J470,J470<=40%),4,IF(AND(41%<=J470,J470<=50%),5,IF(AND(51%<=J470,J470<=60%),6,IF(AND(61%<=J470,J470<=70%),7,IF(AND(71%<=J470,J470<=80%),8,IF(AND(81%<=J470,J470<=90%),9,IF(AND(91%<=J470,J470<=100%),10,\"\"))))))))))","v":{"$error":"#NAME?"}},{"$f":"IF(AND(0%<=J470,J470<=10%),\"nul\",IF(AND(11%<=J470,J470<=20%),\"quasi nul\",IF(AND(21%<=J470,J470<=30%),\"très faible\",IF(AND(31%<=J470,J470<=40%),\"faible\",IF(AND(41%<=J470,J470<=50%),\"moyen\",IF(AND(51%<=J470,J470<=60%),\"moyen élevé\",IF(AND(61%<=J470,J470<=70%),\"élevé\",IF(AND(71%<=J470,J470<=80%),\"très élevés\",IF(AND(81%<=J470,J470<=90%),\"trés fort\",IF(AND(91%<=J470,J470<=100%),\"extreme\",\"\"))))))))))","v":{"$error":"#NAME?"}}]
[null,"MARGE",null,{"$f":"IF(D486<>\"\",D486-D482,\"\")","v":{"$error":"#NAME?"}},null,null,"bénéfice/H",{"$f":"IF(D484<>\"\",D484/H486,\"\")","v":{"$error":"#NAME?"}}]
[]
[null,"PRIX DE VENTE",null,{"$f":"IF(D482<>\"\",PVHT_devis_poste_10,\"\")","v":{"$error":"#NAME?"}},null,null,"heures",{"$f":"IF(PVHT_devis_poste_10<>\"\",heures_prév_poste_10,\"\")","v":{"$error":"#NAME?"}}]
[]
[]
[]
[null,"coeff de marge",null,{"$f":"IF(D486<>\"\",D486/D482,\"\")","v":{"$error":"#NAME?"}}]
[]
[null,"% de bénéfice =",null,{"$f":"IF(D486<>\"\",D484/D486*1,\"\")","v":{"$error":"#NAME?"}}]
[]
[]
[]
[]
[{"$f":"IF(#REF!<>\"\",\"Poste 11\",\"\")","v":{"$error":"#REF!"}}]
[]
[null,null,null,{"$f":"IF(A497<>\"\",#REF!,\"\")","v":{"$error":"#REF!"}},null,null,null,null,{"$f":"IF(A497<>\"\",#REF!,\"\")","v":{"$error":"#REF!"}},{"$f":"IF(A497<>\"\",#REF!,\"\")","v":{"$error":"#REF!"}}]
[]
[]
[]
[null,"client :"]
[null,{"$f":"IF(#REF!<>\"\",#REF!,\"\")","v":{"$error":"#REF!"}}]
[]
[" ",{"$f":"IF(#REF!<>\"\",#REF!,\"\")","v":{"$error":"#REF!"}},null,{"$f":"IF(A497<>\"\",#REF!,\"\")","v":{"$error":"#REF!"}}]
[]
[]
[]
[]
[]
[null,null,null,"Prix de revient",null,"frais généraux",null,"couts directs",null,"% s/ P.R"]
[]
[]
[null,"MAIN D'OEUVRE",null,{"$f":"IF(F515<>\"\",F515+H515,\"\")","v":{"$error":"#NAME?"}},null,{"$f":"IF(H515<>\"\",H515*Fgx_mo,\"\")","v":{"$error":"#NAME?"}},null,{"$f":"IF(PVHT_devis_poste_11<>\"\",SUMIF(#REF!,Réf_mo,#REF!)/(1+Fgx_mo),\"\")","v":{"$error":"#NAME?"}},null,{"$f":"IF(AND(Total_HT_devis<>\"\",PVHT_devis_poste_11<>\"\"),D515*1/D527,\"\")","v":{"$error":"#NAME?"}}]
[]
[null,"MATERIEL",null,{"$f":"IF(F517<>\"\",F517+H517,\"\")","v":{"$error":"#NAME?"}},null,{"$f":"IF(PVHT_devis_poste_11<>\"\",SUMIF(#REF!,Code_racine_matériel,#REF!),\"\")","v":{"$error":"#NAME?"}},null,{"$f":"IF(PVHT_devis_poste_11<>\"\",SUMIF(#REF!,Code_racine_matériel,#REF!),\"\")","v":{"$error":"#NAME?"}},null,{"$f":"IF(AND(Total_HT_devis<>\"\",PVHT_devis_poste_11<>\"\"),D517*1/D527,\"\")","v":{"$error":"#NAME?"}}]
[]
[null,"MATERIAUX",null,{"$f":"IF(F519<>\"\",F519+H519,\"\")","v":{"$error":"#NAME?"}},null,{"$f":"IF(PVHT_devis_poste_11<>\"\",SUMIF(#REF!,Code_racine_matériaux,#REF!),\"\")","v":{"$error":"#NAME?"}},null,{"$f":"IF(PVHT_devis_poste_11<>\"\",SUMIF(#REF!,Code_racine_matériaux,#REF!),\"\")","v":{"$error":"#NAME?"}},null,{"$f":"IF(AND(Total_HT_devis<>\"\",PVHT_devis_poste_11<>\"\"),D519*1/D527,\"\")","v":{"$error":"#NAME?"}}]
[]
[null,"LOCATION",null,{"$f":"IF(F521<>\"\",F521+H521,\"\")","v":{"$error":"#NAME?"}},null,{"$f":"IF(PVHT_devis_poste_11<>\"\",SUMIF(#REF!,Code_racine_location,#REF!),\"\")","v":{"$error":"#NAME?"}},null,{"$f":"IF(PVHT_devis_poste_11<>\"\",SUMIF(#REF!,Code_racine_location,#REF!),\"\")","v":{"$error":"#NAME?"}},null,{"$f":"IF(AND(Total_HT_devis<>\"\",PVHT_devis_poste_11<>\"\"),D521*1/D527,\"\")","v":{"$error":"#NAME?"}}]
[]
[null,"SOUS-TRAITANCE",null,{"$f":"IF(F523<>\"\",F523+H523,\"\")","v":{"$error":"#NAME?"}},null,{"$f":"IF(PVHT_devis_poste_11<>\"\",SUMIF(#REF!,Code_racine_sous_traitantce,#REF!),\"\")","v":{"$error":"#NAME?"}},null,{"$f":"IF(PVHT_devis_poste_11<>\"\",SUMIF(#REF!,Code_racine_sous_traitantce,#REF!),\"\")","v":{"$error":"#NAME?"}},null,{"$f":"IF(AND(Total_HT_devis<>\"\",PVHT_devis_poste_11<>\"\"),D523*1/D527,\"\")","v":{"$error":"#NAME?"}}]
[]
[]
[null,null,null,null,null,null,null,null,"ECHELLE"]
[null,"TOTAL",null,{"$f":"IF(PVHT_devis_poste_11<>\"\",D515+D517+D519+D521+D523,\"\")","v":{"$error":"#NAME?"}},null,{"$f":"IF(PVHT_devis_poste_11<>\"\",F515+F517+F519+F521+F523,\"\")","v":{"$error":"#NAME?"}},null,{"$f":"IF(PVHT_devis_poste_11<>\"\",H515+H517+H519+H521+H523,\"\")","v":{"$error":"#NAME?"}},"DE RISQUES"]
[null,null,null,null,null,null,null,null,{"$f":"IF(AND(0%<=J515,J515<=10%),1,IF(AND(11%<=J515,J515<=20%),2,IF(AND(21%<=J515,J515<=30%),3,IF(AND(31%<=J515,J515<=40%),4,IF(AND(41%<=J515,J515<=50%),5,IF(AND(51%<=J515,J515<=60%),6,IF(AND(61%<=J515,J515<=70%),7,IF(AND(71%<=J515,J515<=80%),8,IF(AND(81%<=J515,J515<=90%),9,IF(AND(91%<=J515,J515<=100%),10,\"\"))))))))))","v":{"$error":"#NAME?"}},{"$f":"IF(AND(0%<=J515,J515<=10%),\"nul\",IF(AND(11%<=J515,J515<=20%),\"quasi nul\",IF(AND(21%<=J515,J515<=30%),\"très faible\",IF(AND(31%<=J515,J515<=40%),\"faible\",IF(AND(41%<=J515,J515<=50%),\"moyen\",IF(AND(51%<=J515,J515<=60%),\"moyen élevé\",IF(AND(61%<=J515,J515<=70%),\"élevé\",IF(AND(71%<=J515,J515<=80%),\"très élevés\",IF(AND(81%<=J515,J515<=90%),\"trés fort\",IF(AND(91%<=J515,J515<=100%),\"extreme\",\"\"))))))))))","v":{"$error":"#NAME?"}}]
[null,"MARGE",null,{"$f":"IF(D531<>\"\",D531-D527,\"\")","v":{"$error":"#NAME?"}},null,null,"bénéfice/H",{"$f":"IF(D529<>\"\",D529/H531,\"\")","v":{"$error":"#NAME?"}}]
[]
[null,"PRIX DE VENTE",null,{"$f":"IF(D527<>\"\",PVHT_devis_poste_11,\"\")","v":{"$error":"#NAME?"}},null,null,"heures",{"$f":"IF(PVHT_devis_poste_11<>\"\",heures_prév_poste_11,\"\")","v":{"$error":"#NAME?"}}]
[]
[]
[]
[null,"coeff de marge",null,{"$f":"IF(D531<>\"\",D531/D527,\"\")","v":{"$error":"#NAME?"}}]
[]
[null,"% de bénéfice =",null,{"$f":"IF(D531<>\"\",D529/D531*1,\"\")","v":{"$error":"#NAME?"}}]
[]
[]
[]
[]
[{"$f":"IF(#REF!<>\"\",\"Poste 12\",\"\")","v":{"$error":"#REF!"}}]
[]
[null,null,null,{"$f":"IF(A542<>\"\",#REF!,\"\")","v":{"$error":"#REF!"}},null,null,null,null,{"$f":"IF(A542<>\"\",#REF!,\"\")","v":{"$error":"#REF!"}},{"$f":"IF(A542<>\"\",#REF!,\"\")","v":{"$error":"#REF!"}}]
[]
[]
[]
[null,"client :"]
[null,{"$f":"IF(#REF!<>\"\",#REF!,\"\")","v":{"$error":"#REF!"}}]
[]
[" ",{"$f":"IF(#REF!<>\"\",#REF!,\"\")","v":{"$error":"#REF!"}},null,{"$f":"IF(A542<>\"\",#REF!,\"\")","v":{"$error":"#REF!"}}]
[]
[]
[]
[]
[]
[null,null,null,"Prix de revient",null,"frais généraux",null,"couts directs",null,"% s/ P.R"]
[]
[]
[null,"MAIN D'OEUVRE",null,{"$f":"IF(F560<>\"\",F560+H560,\"\")","v":{"$error":"#NAME?"}},null,{"$f":"IF(H560<>\"\",H560*Fgx_mo,\"\")","v":{"$error":"#NAME?"}},null,{"$f":"IF(PVHT_devis_poste_12<>\"\",SUMIF(#REF!,Réf_mo,#REF!)/(1+Fgx_mo),\"\")","v":{"$error":"#NAME?"}},null,{"$f":"IF(AND(Total_HT_devis<>\"\",PVHT_devis_poste_12<>\"\"),D560*1/D572,\"\")","v":{"$error":"#NAME?"}}]
[]
[null,"MATERIEL",null,{"$f":"IF(F562<>\"\",F562+H562,\"\")","v":{"$error":"#NAME?"}},null,{"$f":"IF(PVHT_devis_poste_12<>\"\",SUMIF(#REF!,Code_racine_matériel,#REF!),\"\")","v":{"$error":"#NAME?"}},null,{"$f":"IF(PVHT_devis_poste_12<>\"\",SUMIF(#REF!,Code_racine_matériel,#REF!),\"\")","v":{"$error":"#NAME?"}},null,{"$f":"IF(AND(Total_HT_devis<>\"\",PVHT_devis_poste_12<>\"\"),D562*1/D572,\"\")","v":{"$error":"#NAME?"}}]
[]
[null,"MATERIAUX",null,{"$f":"IF(F564<>\"\",F564+H564,\"\")","v":{"$error":"#NAME?"}},null,{"$f":"IF(PVHT_devis_poste_12<>\"\",SUMIF(#REF!,Code_racine_matériaux,#REF!),\"\")","v":{"$error":"#NAME?"}},null,{"$f":"IF(PVHT_devis_poste_12<>\"\",SUMIF(#REF!,Code_racine_matériaux,#REF!),\"\")","v":{"$error":"#NAME?"}},null,{"$f":"IF(AND(Total_HT_devis<>\"\",PVHT_devis_poste_12<>\"\"),D564*1/D572,\"\")","v":{"$error":"#NAME?"}}]
[]
[null,"LOCATION",null,{"$f":"IF(F566<>\"\",F566+H566,\"\")","v":{"$error":"#NAME?"}},null,{"$f":"IF(PVHT_devis_poste_12<>\"\",SUMIF(#REF!,Code_racine_location,#REF!),\"\")","v":{"$error":"#NAME?"}},null,{"$f":"IF(PVHT_devis_poste_12<>\"\",SUMIF(#REF!,Code_racine_location,#REF!),\"\")","v":{"$error":"#NAME?"}},null,{"$f":"IF(AND(Total_HT_devis<>\"\",PVHT_devis_poste_12<>\"\"),D566*1/D572,\"\")","v":{"$error":"#NAME?"}}]
[]
[null,"SOUS-TRAITANCE",null,{"$f":"IF(F568<>\"\",F568+H568,\"\")","v":{"$error":"#NAME?"}},null,{"$f":"IF(PVHT_devis_poste_12<>\"\",SUMIF(#REF!,Code_racine_sous_traitantce,#REF!),\"\")","v":{"$error":"#NAME?"}},null,{"$f":"IF(PVHT_devis_poste_12<>\"\",SUMIF(#REF!,Code_racine_sous_traitantce,#REF!),\"\")","v":{"$error":"#NAME?"}},null,{"$f":"IF(AND(Total_HT_devis<>\"\",PVHT_devis_poste_12<>\"\"),D568*1/D572,\"\")","v":{"$error":"#NAME?"}}]
[]
[]
[null,null,null,null,null,null,null,null,"ECHELLE"]
[null,"TOTAL",null,{"$f":"IF(PVHT_devis_poste_12<>\"\",D560+D562+D564+D566+D568,\"\")","v":{"$error":"#NAME?"}},null,{"$f":"IF(PVHT_devis_poste_12<>\"\",F560+F562+F564+F566+F568,\"\")","v":{"$error":"#NAME?"}},null,{"$f":"IF(PVHT_devis_poste_12<>\"\",H560+H562+H564+H566+H568,\"\")","v":{"$error":"#NAME?"}},"DE RISQUES"]
[null,null,null,null,null,null,null,null,{"$f":"IF(AND(0%<=J560,J560<=10%),1,IF(AND(11%<=J560,J560<=20%),2,IF(AND(21%<=J560,J560<=30%),3,IF(AND(31%<=J560,J560<=40%),4,IF(AND(41%<=J560,J560<=50%),5,IF(AND(51%<=J560,J560<=60%),6,IF(AND(61%<=J560,J560<=70%),7,IF(AND(71%<=J560,J560<=80%),8,IF(AND(81%<=J560,J560<=90%),9,IF(AND(91%<=J560,J560<=100%),10,\"\"))))))))))","v":{"$error":"#NAME?"}},{"$f":"IF(AND(0%<=J560,J560<=10%),\"nul\",IF(AND(11%<=J560,J560<=20%),\"quasi nul\",IF(AND(21%<=J560,J560<=30%),\"très faible\",IF(AND(31%<=J560,J560<=40%),\"faible\",IF(AND(41%<=J560,J560<=50%),\"moyen\",IF(AND(51%<=J560,J560<=60%),\"moyen élevé\",IF(AND(61%<=J560,J560<=70%),\"élevé\",IF(AND(71%<=J560,J560<=80%),\"très élevés\",IF(AND(81%<=J560,J560<=90%),\"trés fort\",IF(AND(91%<=J560,J560<=100%),\"extreme\",\"\"))))))))))","v":{"$error":"#NAME?"}}]
[null,"MARGE",null,{"$f":"IF(D576<>\"\",D576-D572,\"\")","v":{"$error":"#NAME?"}},null,null,"bénéfice/H",{"$f":"IF(D574<>\"\",D574/H576,\"\")","v":{"$error":"#NAME?"}}]
[]
[null,"PRIX DE VENTE",null,{"$f":"IF(D572<>\"\",PVHT_devis_poste_12,\"\")","v":{"$error":"#NAME?"}},null,null,"heures",{"$f":"IF(PVHT_devis_poste_12<>\"\",heures_prév_poste_12,\"\")","v":{"$error":"#NAME?"}}]
[]
[]
[]
[null,"coeff de marge",null,{"$f":"IF(D576<>\"\",D576/D572,\"\")","v":{"$error":"#NAME?"}}]
[]
[null,"% de bénéfice =",null,{"$f":"IF(D576<>\"\",D574/D576*1,\"\")","v":{"$error":"#NAME?"}}]
[]
[]
[]
[]
[{"$f":"IF(#REF!<>\"\",\"Poste 13\",\"\")","v":{"$error":"#REF!"}}]
[]
[null,null,null,{"$f":"IF(A587<>\"\",#REF!,\"\")","v":{"$error":"#REF!"}},null,null,null,null,{"$f":"IF(A587<>\"\",#REF!,\"\")","v":{"$error":"#REF!"}},{"$f":"IF(A587<>\"\",#REF!,\"\")","v":{"$error":"#REF!"}}]
[]
[]
[]
[null,"client :"]
[null,{"$f":"IF(#REF!<>\"\",#REF!,\"\")","v":{"$error":"#REF!"}}]
[]
[" ",{"$f":"IF(#REF!<>\"\",#REF!,\"\")","v":{"$error":"#REF!"}},null,{"$f":"IF(A587<>\"\",#REF!,\"\")","v":{"$error":"#REF!"}}]
[]
[]
[]
[]
[]
[null,null,null,"Prix de revient",null,"frais généraux",null,"couts directs",null,"% s/ P.R"]
[]
[]
[null,"MAIN D'OEUVRE",null,{"$f":"IF(F605<>\"\",F605+H605,\"\")","v":{"$error":"#NAME?"}},null,{"$f":"IF(H605<>\"\",H605*Fgx_mo,\"\")","v":{"$error":"#NAME?"}},null,{"$f":"IF(PVHT_devis_poste_13<>\"\",SUMIF(#REF!,Réf_mo,#REF!)/(1+Fgx_mo),\"\")","v":{"$error":"#NAME?"}},null,{"$f":"IF(AND(Total_HT_devis<>\"\",PVHT_devis_poste_13<>\"\"),D605*1/D617,\"\")","v":{"$error":"#NAME?"}}]
[]
[null,"MATERIEL",null,{"$f":"IF(F607<>\"\",F607+H607,\"\")","v":{"$error":"#NAME?"}},null,{"$f":"IF(PVHT_devis_poste_13<>\"\",SUMIF(#REF!,Code_racine_matériel,#REF!),\"\")","v":{"$error":"#NAME?"}},null,{"$f":"IF(PVHT_devis_poste_13<>\"\",SUMIF(#REF!,Code_racine_matériel,#REF!),\"\")","v":{"$error":"#NAME?"}},null,{"$f":"IF(AND(Total_HT_devis<>\"\",PVHT_devis_poste_13<>\"\"),D607*1/D617,\"\")","v":{"$error":"#NAME?"}}]
[]
[null,"MATERIAUX",null,{"$f":"IF(F609<>\"\",F609+H609,\"\")","v":{"$error":"#NAME?"}},null,{"$f":"IF(PVHT_devis_poste_13<>\"\",SUMIF(#REF!,Code_racine_matériaux,#REF!),\"\")","v":{"$error":"#NAME?"}},null,{"$f":"IF(PVHT_devis_poste_13<>\"\",SUMIF(#REF!,Code_racine_matériaux,#REF!),\"\")","v":{"$error":"#NAME?"}},null,{"$f":"IF(AND(Total_HT_devis<>\"\",PVHT_devis_poste_13<>\"\"),D609*1/D617,\"\")","v":{"$error":"#NAME?"}}]
[]
[null,"LOCATION",null,{"$f":"IF(F611<>\"\",F611+H611,\"\")","v":{"$error":"#NAME?"}},null,{"$f":"IF(PVHT_devis_poste_13<>\"\",SUMIF(#REF!,Code_racine_location,#REF!),\"\")","v":{"$error":"#NAME?"}},null,{"$f":"IF(PVHT_devis_poste_13<>\"\",SUMIF(#REF!,Code_racine_location,#REF!),\"\")","v":{"$error":"#NAME?"}},null,{"$f":"IF(AND(Total_HT_devis<>\"\",PVHT_devis_poste_13<>\"\"),D611*1/D617,\"\")","v":{"$error":"#NAME?"}}]
[]
[null,"SOUS-TRAITANCE",null,{"$f":"IF(F613<>\"\",F613+H613,\"\")","v":{"$error":"#NAME?"}},null,{"$f":"IF(PVHT_devis_poste_13<>\"\",SUMIF(#REF!,Code_racine_sous_traitantce,#REF!),\"\")","v":{"$error":"#NAME?"}},null,{"$f":"IF(PVHT_devis_poste_13<>\"\",SUMIF(#REF!,Code_racine_sous_traitantce,#REF!),\"\")","v":{"$error":"#NAME?"}},null,{"$f":"IF(AND(Total_HT_devis<>\"\",PVHT_devis_poste_13<>\"\"),D613*1/D617,\"\")","v":{"$error":"#NAME?"}}]
[]
[]
[null,null,null,null,null,null,null,null,"ECHELLE"]
[null,"TOTAL",null,{"$f":"IF(PVHT_devis_poste_13<>\"\",D605+D607+D609+D611+D613,\"\")","v":{"$error":"#NAME?"}},null,{"$f":"IF(PVHT_devis_poste_13<>\"\",F605+F607+F609+F611+F613,\"\")","v":{"$error":"#NAME?"}},null,{"$f":"IF(PVHT_devis_poste_13<>\"\",H605+H607+H609+H611+H613,\"\")","v":{"$error":"#NAME?"}},"DE RISQUES"]
[null,null,null,null,null,null,null,null,{"$f":"IF(AND(0%<=J605,J605<=10%),1,IF(AND(11%<=J605,J605<=20%),2,IF(AND(21%<=J605,J605<=30%),3,IF(AND(31%<=J605,J605<=40%),4,IF(AND(41%<=J605,J605<=50%),5,IF(AND(51%<=J605,J605<=60%),6,IF(AND(61%<=J605,J605<=70%),7,IF(AND(71%<=J605,J605<=80%),8,IF(AND(81%<=J605,J605<=90%),9,IF(AND(91%<=J605,J605<=100%),10,\"\"))))))))))","v":{"$error":"#NAME?"}},{"$f":"IF(AND(0%<=J605,J605<=10%),\"nul\",IF(AND(11%<=J605,J605<=20%),\"quasi nul\",IF(AND(21%<=J605,J605<=30%),\"très faible\",IF(AND(31%<=J605,J605<=40%),\"faible\",IF(AND(41%<=J605,J605<=50%),\"moyen\",IF(AND(51%<=J605,J605<=60%),\"moyen élevé\",IF(AND(61%<=J605,J605<=70%),\"élevé\",IF(AND(71%<=J605,J605<=80%),\"très élevés\",IF(AND(81%<=J605,J605<=90%),\"trés fort\",IF(AND(91%<=J605,J605<=100%),\"extreme\",\"\"))))))))))","v":{"$error":"#NAME?"}}]
[null,"MARGE",null,{"$f":"IF(D621<>\"\",D621-D617,\"\")","v":{"$error":"#NAME?"}},null,null,"bénéfice/H",{"$f":"IF(D619<>\"\",D619/H621,\"\")","v":{"$error":"#NAME?"}}]
[]
[null,"PRIX DE VENTE",null,{"$f":"IF(D617<>\"\",PVHT_devis_poste_13,\"\")","v":{"$error":"#NAME?"}},null,null,"heures",{"$f":"IF(PVHT_devis_poste_13<>\"\",heures_prév_poste_13,\"\")","v":{"$error":"#NAME?"}}]
[]
[]
[]
[null,"coeff de marge",null,{"$f":"IF(D621<>\"\",D621/D617,\"\")","v":{"$error":"#NAME?"}}]
[]
[null,"% de bénéfice =",null,{"$f":"IF(D621<>\"\",D619/D621*1,\"\")","v":{"$error":"#NAME?"}}]
[]
[]
[]
[]
[{"$f":"IF(#REF!<>\"\",\"Poste 14\",\"\")","v":{"$error":"#REF!"}}]
[]
[null,null,null,{"$f":"IF(A632<>\"\",#REF!,\"\")","v":{"$error":"#REF!"}},null,null,null,null,{"$f":"IF(A632<>\"\",#REF!,\"\")","v":{"$error":"#REF!"}},{"$f":"IF(A632<>\"\",#REF!,\"\")","v":{"$error":"#REF!"}}]
[]
[]
[]
[null,"client :"]
[null,{"$f":"IF(#REF!<>\"\",#REF!,\"\")","v":{"$error":"#REF!"}}]
[]
[" ",{"$f":"IF(#REF!<>\"\",#REF!,\"\")","v":{"$error":"#REF!"}},null,{"$f":"IF(A632<>\"\",#REF!,\"\")","v":{"$error":"#REF!"}}]
[]
[]
[]
[]
[]
[null,null,null,"Prix de revient",null,"frais généraux",null,"couts directs",null,"% s/ P.R"]
[]
[]
[null,"MAIN D'OEUVRE",null,{"$f":"IF(F650<>\"\",F650+H650,\"\")","v":{"$error":"#NAME?"}},null,{"$f":"IF(H650<>\"\",H650*Fgx_mo,\"\")","v":{"$error":"#NAME?"}},null,{"$f":"IF(PVHT_devis_poste_14<>\"\",SUMIF(#REF!,Réf_mo,#REF!)/(1+Fgx_mo),\"\")","v":{"$error":"#NAME?"}},null,{"$f":"IF(AND(Total_HT_devis<>\"\",PVHT_devis_poste_14<>\"\"),D650*1/D662,\"\")","v":{"$error":"#NAME?"}}]
[]
[null,"MATERIEL",null,{"$f":"IF(F652<>\"\",F652+H652,\"\")","v":{"$error":"#NAME?"}},null,{"$f":"IF(PVHT_devis_poste_14<>\"\",SUMIF(#REF!,Code_racine_matériel,#REF!),\"\")","v":{"$error":"#NAME?"}},null,{"$f":"IF(PVHT_devis_poste_14<>\"\",SUMIF(#REF!,Code_racine_matériel,#REF!),\"\")","v":{"$error":"#NAME?"}},null,{"$f":"IF(AND(Total_HT_devis<>\"\",PVHT_devis_poste_14<>\"\"),D652*1/D662,\"\")","v":{"$error":"#NAME?"}}]
[]
[null,"MATERIAUX",null,{"$f":"IF(F654<>\"\",F654+H654,\"\")","v":{"$error":"#NAME?"}},null,{"$f":"IF(PVHT_devis_poste_14<>\"\",SUMIF(#REF!,Code_racine_matériaux,#REF!),\"\")","v":{"$error":"#NAME?"}},null,{"$f":"IF(PVHT_devis_poste_14<>\"\",SUMIF(#REF!,Code_racine_matériaux,#REF!),\"\")","v":{"$error":"#NAME?"}},null,{"$f":"IF(AND(Total_HT_devis<>\"\",PVHT_devis_poste_14<>\"\"),D654*1/D662,\"\")","v":{"$error":"#NAME?"}}]
[]
[null,"LOCATION",null,{"$f":"IF(F656<>\"\",F656+H656,\"\")","v":{"$error":"#NAME?"}},null,{"$f":"IF(PVHT_devis_poste_14<>\"\",SUMIF(#REF!,Code_racine_location,#REF!),\"\")","v":{"$error":"#NAME?"}},null,{"$f":"IF(PVHT_devis_poste_14<>\"\",SUMIF(#REF!,Code_racine_location,#REF!),\"\")","v":{"$error":"#NAME?"}},null,{"$f":"IF(AND(Total_HT_devis<>\"\",PVHT_devis_poste_14<>\"\"),D656*1/D662,\"\")","v":{"$error":"#NAME?"}}]
[]
[null,"SOUS-TRAITANCE",null,{"$f":"IF(F658<>\"\",F658+H658,\"\")","v":{"$error":"#NAME?"}},null,{"$f":"IF(PVHT_devis_poste_14<>\"\",SUMIF(#REF!,Code_racine_sous_traitantce,#REF!),\"\")","v":{"$error":"#NAME?"}},null,{"$f":"IF(PVHT_devis_poste_14<>\"\",SUMIF(#REF!,Code_racine_sous_traitantce,#REF!),\"\")","v":{"$error":"#NAME?"}},null,{"$f":"IF(AND(Total_HT_devis<>\"\",PVHT_devis_poste_14<>\"\"),D658*1/D662,\"\")","v":{"$error":"#NAME?"}}]
[]
[]
[null,null,null,null,null,null,null,null,"ECHELLE"]
[null,"TOTAL",null,{"$f":"IF(PVHT_devis_poste_14<>\"\",D650+D652+D654+D656+D658,\"\")","v":{"$error":"#NAME?"}},null,{"$f":"IF(PVHT_devis_poste_14<>\"\",F650+F652+F654+F656+F658,\"\")","v":{"$error":"#NAME?"}},null,{"$f":"IF(PVHT_devis_poste_14<>\"\",H650+H652+H654+H656+H658,\"\")","v":{"$error":"#NAME?"}},"DE RISQUES"]
[null,null,null,null,null,null,null,null,{"$f":"IF(AND(0%<=J650,J650<=10%),1,IF(AND(11%<=J650,J650<=20%),2,IF(AND(21%<=J650,J650<=30%),3,IF(AND(31%<=J650,J650<=40%),4,IF(AND(41%<=J650,J650<=50%),5,IF(AND(51%<=J650,J650<=60%),6,IF(AND(61%<=J650,J650<=70%),7,IF(AND(71%<=J650,J650<=80%),8,IF(AND(81%<=J650,J650<=90%),9,IF(AND(91%<=J650,J650<=100%),10,\"\"))))))))))","v":{"$error":"#NAME?"}},{"$f":"IF(AND(0%<=J650,J650<=10%),\"nul\",IF(AND(11%<=J650,J650<=20%),\"quasi nul\",IF(AND(21%<=J650,J650<=30%),\"très faible\",IF(AND(31%<=J650,J650<=40%),\"faible\",IF(AND(41%<=J650,J650<=50%),\"moyen\",IF(AND(51%<=J650,J650<=60%),\"moyen élevé\",IF(AND(61%<=J650,J650<=70%),\"élevé\",IF(AND(71%<=J650,J650<=80%),\"très élevés\",IF(AND(81%<=J650,J650<=90%),\"trés fort\",IF(AND(91%<=J650,J650<=100%),\"extreme\",\"\"))))))))))","v":{"$error":"#NAME?"}}]
[null,"MARGE",null,{"$f":"IF(D666<>\"\",D666-D662,\"\")","v":{"$error":"#NAME?"}},null,null,"bénéfice/H",{"$f":"IF(D664<>\"\",D664/H666,\"\")","v":{"$error":"#NAME?"}}]
[]
[null,"PRIX DE VENTE",null,{"$f":"IF(D662<>\"\",PVHT_devis_poste_14,\"\")","v":{"$error":"#NAME?"}},null,null,"heures",{"$f":"IF(PVHT_devis_poste_14<>\"\",heures_prév_poste_14,\"\")","v":{"$error":"#NAME?"}}]
[]
[]
[]
[null,"coeff de marge",null,{"$f":"IF(D666<>\"\",D666/D662,\"\")","v":{"$error":"#NAME?"}}]
[]
[null,"% de bénéfice =",null,{"$f":"IF(D666<>\"\",D664/D666*1,\"\")","v":{"$error":"#NAME?"}}]
[]
[]
[]
[]
[{"$f":"IF(#REF!<>\"\",\"Poste 15\",\"\")","v":{"$error":"#REF!"}}]
[]
[null,null,null,{"$f":"IF(A677<>\"\",#REF!,\"\")","v":{"$error":"#REF!"}},null,null,null,null,{"$f":"IF(A677<>\"\",#REF!,\"\")","v":{"$error":"#REF!"}},{"$f":"IF(A677<>\"\",#REF!,\"\")","v":{"$error":"#REF!"}}]
[]
[]
[]
[null,"client :"]
[null,{"$f":"IF(#REF!<>\"\",#REF!,\"\")","v":{"$error":"#REF!"}}]
[]
[" ",{"$f":"IF(#REF!<>\"\",#REF!,\"\")","v":{"$error":"#REF!"}},null,{"$f":"IF(A677<>\"\",#REF!,\"\")","v":{"$error":"#REF!"}}]
[]
[]
[]
[]
[]
[null,null,null,"Prix de revient",null,"frais généraux",null,"couts directs",null,"% s/ P.R"]
[]
[]
[null,"MAIN D'OEUVRE",null,{"$f":"IF(F695<>\"\",F695+H695,\"\")","v":{"$error":"#NAME?"}},null,{"$f":"IF(H695<>\"\",H695*Fgx_mo,\"\")","v":{"$error":"#NAME?"}},null,{"$f":"IF(PVHT_devis_poste_15<>\"\",SUMIF(#REF!,Réf_mo,#REF!)/(1+Fgx_mo),\"\")","v":{"$error":"#NAME?"}},null,{"$f":"IF(AND(Total_HT_devis<>\"\",PVHT_devis_poste_15<>\"\"),D695*1/D707,\"\")","v":{"$error":"#NAME?"}}]
[]
[null,"MATERIEL",null,{"$f":"IF(F697<>\"\",F697+H697,\"\")","v":{"$error":"#NAME?"}},null,{"$f":"IF(PVHT_devis_poste_15<>\"\",SUMIF(#REF!,Code_racine_matériel,#REF!),\"\")","v":{"$error":"#NAME?"}},null,{"$f":"IF(PVHT_devis_poste_15<>\"\",SUMIF(#REF!,Code_racine_matériaux,#REF!),\"\")","v":{"$error":"#NAME?"}},null,{"$f":"IF(AND(Total_HT_devis<>\"\",PVHT_devis_poste_15<>\"\"),D697*1/D707,\"\")","v":{"$error":"#NAME?"}}]
[]
[null,"MATERIAUX",null,{"$f":"IF(F699<>\"\",F699+H699,\"\")","v":{"$error":"#NAME?"}},null,{"$f":"IF(PVHT_devis_poste_15<>\"\",SUMIF(#REF!,Code_racine_matériaux,#REF!),\"\")","v":{"$error":"#NAME?"}},null,{"$f":"IF(PVHT_devis_poste_15<>\"\",SUMIF(#REF!,Code_racine_matériaux,#REF!),\"\")","v":{"$error":"#NAME?"}},null,{"$f":"IF(AND(Total_HT_devis<>\"\",PVHT_devis_poste_15<>\"\"),D699*1/D707,\"\")","v":{"$error":"#NAME?"}}]
[]
[null,"LOCATION",null,{"$f":"IF(F701<>\"\",F701+H701,\"\")","v":{"$error":"#NAME?"}},null,{"$f":"IF(PVHT_devis_poste_15<>\"\",SUMIF(#REF!,Code_racine_location,#REF!),\"\")","v":{"$error":"#NAME?"}},null,{"$f":"IF(PVHT_devis_poste_15<>\"\",SUMIF(#REF!,Code_racine_location,#REF!),\"\")","v":{"$error":"#NAME?"}},null,{"$f":"IF(AND(Total_HT_devis<>\"\",PVHT_devis_poste_15<>\"\"),D701*1/D707,\"\")","v":{"$error":"#NAME?"}}]
[]
[null,"SOUS-TRAITANCE",null,{"$f":"IF(F703<>\"\",F703+H703,\"\")","v":{"$error":"#NAME?"}},null,{"$f":"IF(PVHT_devis_poste_15<>\"\",SUMIF(#REF!,Code_racine_sous_traitantce,#REF!),\"\")","v":{"$error":"#NAME?"}},null,{"$f":"IF(PVHT_devis_poste_15<>\"\",SUMIF(#REF!,Code_racine_sous_traitantce,#REF!),\"\")","v":{"$error":"#NAME?"}},null,{"$f":"IF(AND(Total_HT_devis<>\"\",PVHT_devis_poste_15<>\"\"),D703*1/D707,\"\")","v":{"$error":"#NAME?"}}]
[]
[]
[null,null,null,null,null,null,null,null,"ECHELLE"]
[null,"TOTAL",null,{"$f":"IF(PVHT_devis_poste_15<>\"\",D695+D697+D699+D701+D703,\"\")","v":{"$error":"#NAME?"}},null,{"$f":"IF(PVHT_devis_poste_15<>\"\",F695+F697+F699+F701+F703,\"\")","v":{"$error":"#NAME?"}},null,{"$f":"IF(PVHT_devis_poste_15<>\"\",H695+H697+H699+H701+H703,\"\")","v":{"$error":"#NAME?"}},"DE RISQUES"]
[null,null,null,null,null,null,null,null,{"$f":"IF(AND(0%<=J695,J695<=10%),1,IF(AND(11%<=J695,J695<=20%),2,IF(AND(21%<=J695,J695<=30%),3,IF(AND(31%<=J695,J695<=40%),4,IF(AND(41%<=J695,J695<=50%),5,IF(AND(51%<=J695,J695<=60%),6,IF(AND(61%<=J695,J695<=70%),7,IF(AND(71%<=J695,J695<=80%),8,IF(AND(81%<=J695,J695<=90%),9,IF(AND(91%<=J695,J695<=100%),10,\"\"))))))))))","v":{"$error":"#NAME?"}},{"$f":"IF(AND(0%<=J695,J695<=10%),\"nul\",IF(AND(11%<=J695,J695<=20%),\"quasi nul\",IF(AND(21%<=J695,J695<=30%),\"très faible\",IF(AND(31%<=J695,J695<=40%),\"faible\",IF(AND(41%<=J695,J695<=50%),\"moyen\",IF(AND(51%<=J695,J695<=60%),\"moyen élevé\",IF(AND(61%<=J695,J695<=70%),\"élevé\",IF(AND(71%<=J695,J695<=80%),\"très élevés\",IF(AND(81%<=J695,J695<=90%),\"trés fort\",IF(AND(91%<=J695,J695<=100%),\"extreme\",\"\"))))))))))","v":{"$error":"#NAME?"}}]
[null,"MARGE",null,{"$f":"IF(D711<>\"\",D711-D707,\"\")","v":{"$error":"#NAME?"}},null,null,"bénéfice/H",{"$f":"IF(D709<>\"\",D709/H711,\"\")","v":{"$error":"#NAME?"}}]
[]
[null,"PRIX DE VENTE",null,{"$f":"IF(D707<>\"\",PVHT_devis_poste_15,\"\")","v":{"$error":"#NAME?"}},null,null,"heures",{"$f":"IF(PVHT_devis_poste_15<>\"\",heures_prév_poste_15,\"\")","v":{"$error":"#NAME?"}}]
[]
[]
[]
[null,"coeff de marge",null,{"$f":"IF(D711<>\"\",D711/D707,\"\")","v":{"$error":"#NAME?"}}]
[]
[null,"% de bénéfice =",null,{"$f":"IF(D711<>\"\",D709/D711*1,\"\")","v":{"$error":"#NAME?"}}]
[]
[]
[]
[]
[{"$f":"IF(#REF!<>\"\",\"Poste 16\",\"\")","v":{"$error":"#REF!"}}]
[]
[null,null,null,{"$f":"IF(A722<>\"\",#REF!,\"\")","v":{"$error":"#REF!"}},null,null,null,null,{"$f":"IF(A722<>\"\",#REF!,\"\")","v":{"$error":"#REF!"}},{"$f":"IF(A722<>\"\",#REF!,\"\")","v":{"$error":"#REF!"}}]
[]
[]
[]
[null,"client :"]
[null,{"$f":"IF(#REF!<>\"\",#REF!,\"\")","v":{"$error":"#REF!"}}]
[]
[" ",{"$f":"IF(#REF!<>\"\",#REF!,\"\")","v":{"$error":"#REF!"}},null,{"$f":"IF(A722<>\"\",#REF!,\"\")","v":{"$error":"#REF!"}}]
[]
[]
[]
[]
[]
[null,null,null,"Prix de revient",null,"frais généraux",null,"couts directs",null,"% s/ P.R"]
[]
[]
[null,"MAIN D'OEUVRE",null,{"$f":"IF(F740<>\"\",F740+H740,\"\")","v":{"$error":"#NAME?"}},null,{"$f":"IF(H740<>\"\",H740*Fgx_mo,\"\")","v":{"$error":"#NAME?"}},null,{"$f":"IF(PVHT_devis_poste_16<>\"\",SUMIF(#REF!,Réf_mo,#REF!)/(1+Fgx_mo),\"\")","v":{"$error":"#NAME?"}},null,{"$f":"IF(AND(Total_HT_devis<>\"\",PVHT_devis_poste_16<>\"\"),D740*1/D752,\"\")","v":{"$error":"#NAME?"}}]
[]
[null,"MATERIEL",null,{"$f":"IF(F742<>\"\",F742+H742,\"\")","v":{"$error":"#NAME?"}},null,{"$f":"IF(PVHT_devis_poste_16<>\"\",SUMIF(#REF!,Code_racine_matériel,#REF!),\"\")","v":{"$error":"#NAME?"}},null,{"$f":"IF(PVHT_devis_poste_16<>\"\",SUMIF(#REF!,Code_racine_matériel,#REF!),\"\")","v":{"$error":"#NAME?"}},null,{"$f":"IF(AND(Total_HT_devis<>\"\",PVHT_devis_poste_16<>\"\"),D742*1/D752,\"\")","v":{"$error":"#NAME?"}}]
[]
[null,"MATERIAUX",null,{"$f":"IF(F744<>\"\",F744+H744,\"\")","v":{"$error":"#NAME?"}},null,{"$f":"IF(PVHT_devis_poste_16<>\"\",SUMIF(#REF!,Code_racine_matériaux,#REF!),\"\")","v":{"$error":"#NAME?"}},null,{"$f":"IF(PVHT_devis_poste_16<>\"\",SUMIF(#REF!,Code_racine_matériaux,#REF!),\"\")","v":{"$error":"#NAME?"}},null,{"$f":"IF(AND(Total_HT_devis<>\"\",PVHT_devis_poste_16<>\"\"),D744*1/D752,\"\")","v":{"$error":"#NAME?"}}]
[]
[null,"LOCATION",null,{"$f":"IF(F746<>\"\",F746+H746,\"\")","v":{"$error":"#NAME?"}},null,{"$f":"IF(PVHT_devis_poste_16<>\"\",SUMIF(#REF!,Code_racine_location,#REF!),\"\")","v":{"$error":"#NAME?"}},null,{"$f":"IF(PVHT_devis_poste_16<>\"\",SUMIF(#REF!,Code_racine_location,#REF!),\"\")","v":{"$error":"#NAME?"}},null,{"$f":"IF(AND(Total_HT_devis<>\"\",PVHT_devis_poste_16<>\"\"),D746*1/D752,\"\")","v":{"$error":"#NAME?"}}]
[]
[null,"SOUS-TRAITANCE",null,{"$f":"IF(F748<>\"\",F748+H748,\"\")","v":{"$error":"#NAME?"}},null,{"$f":"IF(PVHT_devis_poste_16<>\"\",SUMIF(#REF!,Code_racine_sous_traitantce,#REF!),\"\")","v":{"$error":"#NAME?"}},null,{"$f":"IF(PVHT_devis_poste_16<>\"\",SUMIF(#REF!,Code_racine_sous_traitantce,#REF!),\"\")","v":{"$error":"#NAME?"}},null,{"$f":"IF(AND(Total_HT_devis<>\"\",PVHT_devis_poste_16<>\"\"),D748*1/D752,\"\")","v":{"$error":"#NAME?"}}]
[]
[]
[null,null,null,null,null,null,null,null,"ECHELLE"]
[null,"TOTAL",null,{"$f":"IF(PVHT_devis_poste_16<>\"\",D740+D742+D744+D746+D748,\"\")","v":{"$error":"#NAME?"}},null,{"$f":"IF(PVHT_devis_poste_16<>\"\",F740+F742+F744+F746+F748,\"\")","v":{"$error":"#NAME?"}},null,{"$f":"IF(PVHT_devis_poste_16<>\"\",H740+H742+H744+H746+H748,\"\")","v":{"$error":"#NAME?"}},"DE RISQUES"]
[null,null,null,null,null,null,null,null,{"$f":"IF(AND(0%<=J740,J740<=10%),1,IF(AND(11%<=J740,J740<=20%),2,IF(AND(21%<=J740,J740<=30%),3,IF(AND(31%<=J740,J740<=40%),4,IF(AND(41%<=J740,J740<=50%),5,IF(AND(51%<=J740,J740<=60%),6,IF(AND(61%<=J740,J740<=70%),7,IF(AND(71%<=J740,J740<=80%),8,IF(AND(81%<=J740,J740<=90%),9,IF(AND(91%<=J740,J740<=100%),10,\"\"))))))))))","v":{"$error":"#NAME?"}},{"$f":"IF(AND(0%<=J740,J740<=10%),\"nul\",IF(AND(11%<=J740,J740<=20%),\"quasi nul\",IF(AND(21%<=J740,J740<=30%),\"très faible\",IF(AND(31%<=J740,J740<=40%),\"faible\",IF(AND(41%<=J740,J740<=50%),\"moyen\",IF(AND(51%<=J740,J740<=60%),\"moyen élevé\",IF(AND(61%<=J740,J740<=70%),\"élevé\",IF(AND(71%<=J740,J740<=80%),\"très élevés\",IF(AND(81%<=J740,J740<=90%),\"trés fort\",IF(AND(91%<=J740,J740<=100%),\"extreme\",\"\"))))))))))","v":{"$error":"#NAME?"}}]
[null,"MARGE",null,{"$f":"IF(D756<>\"\",D756-D752,\"\")","v":{"$error":"#NAME?"}},null,null,"bénéfice/H",{"$f":"IF(D754<>\"\",D754/H756,\"\")","v":{"$error":"#NAME?"}}]
[]
[null,"PRIX DE VENTE",null,{"$f":"IF(D752<>\"\",PVHT_devis_poste_16,\"\")","v":{"$error":"#NAME?"}},null,null,"heures",{"$f":"IF(PVHT_devis_poste_16<>\"\",heures_prév_poste_16,\"\")","v":{"$error":"#NAME?"}}]
[]
[]
[]
[null,"coeff de marge",null,{"$f":"IF(D756<>\"\",D756/D752,\"\")","v":{"$error":"#NAME?"}}]
[]
[null,"% de bénéfice =",null,{"$f":"IF(D756<>\"\",D754/D756*1,\"\")","v":{"$error":"#NAME?"}}]
[]
[]
[]
[]
[{"$f":"IF(#REF!<>\"\",\"Poste 17\",\"\")","v":{"$error":"#REF!"}}]
[]
[null,null,null,{"$f":"IF(A767<>\"\",#REF!,\"\")","v":{"$error":"#REF!"}},null,null,null,null,{"$f":"IF(A767<>\"\",#REF!,\"\")","v":{"$error":"#REF!"}},{"$f":"IF(A767<>\"\",#REF!,\"\")","v":{"$error":"#REF!"}}]
[]
[]
[]
[null,"client :"]
[null,{"$f":"IF(#REF!<>\"\",#REF!,\"\")","v":{"$error":"#REF!"}}]
[]
[" ",{"$f":"IF(#REF!<>\"\",#REF!,\"\")","v":{"$error":"#REF!"}},null,{"$f":"IF(A767<>\"\",#REF!,\"\")","v":{"$error":"#REF!"}}]
[]
[]
[]
[]
[]
[null,null,null,"Prix de revient",null,"frais généraux",null,"couts directs",null,"% s/ P.R"]
[]
[]
[null,"MAIN D'OEUVRE",null,{"$f":"IF(F785<>\"\",F785+H785,\"\")","v":{"$error":"#NAME?"}},null,{"$f":"IF(H785<>\"\",H785*Fgx_mo,\"\")","v":{"$error":"#NAME?"}},null,{"$f":"IF(PVHT_devis_poste_17<>\"\",SUMIF(#REF!,Réf_mo,#REF!)/(1+Fgx_mo),\"\")","v":{"$error":"#NAME?"}},null,{"$f":"IF(AND(Total_HT_devis<>\"\",PVHT_devis_poste_17<>\"\"),D785*1/D797,\"\")","v":{"$error":"#NAME?"}}]
[]
[null,"MATERIEL",null,{"$f":"IF(F787<>\"\",F787+H787,\"\")","v":{"$error":"#NAME?"}},null,{"$f":"IF(PVHT_devis_poste_17<>\"\",SUMIF(#REF!,Code_racine_matériel,#REF!),\"\")","v":{"$error":"#NAME?"}},null,{"$f":"IF(PVHT_devis_poste_17<>\"\",SUMIF(#REF!,Code_racine_matériel,#REF!),\"\")","v":{"$error":"#NAME?"}},null,{"$f":"IF(AND(Total_HT_devis<>\"\",PVHT_devis_poste_17<>\"\"),D787*1/D797,\"\")","v":{"$error":"#NAME?"}}]
[]
[null,"MATERIAUX",null,{"$f":"IF(F789<>\"\",F789+H789,\"\")","v":{"$error":"#NAME?"}},null,{"$f":"IF(PVHT_devis_poste_17<>\"\",SUMIF(#REF!,Code_racine_matériaux,#REF!),\"\")","v":{"$error":"#NAME?"}},null,{"$f":"IF(PVHT_devis_poste_17<>\"\",SUMIF(#REF!,Code_racine_matériaux,#REF!),\"\")","v":{"$error":"#NAME?"}},null,{"$f":"IF(AND(Total_HT_devis<>\"\",PVHT_devis_poste_17<>\"\"),D789*1/D797,\"\")","v":{"$error":"#NAME?"}}]
[]
[null,"LOCATION",null,{"$f":"IF(F791<>\"\",F791+H791,\"\")","v":{"$error":"#NAME?"}},null,{"$f":"IF(PVHT_devis_poste_17<>\"\",SUMIF(#REF!,Code_racine_location,#REF!),\"\")","v":{"$error":"#NAME?"}},null,{"$f":"IF(PVHT_devis_poste_17<>\"\",SUMIF(#REF!,Code_racine_location,#REF!),\"\")","v":{"$error":"#NAME?"}},null,{"$f":"IF(AND(Total_HT_devis<>\"\",PVHT_devis_poste_17<>\"\"),D791*1/D797,\"\")","v":{"$error":"#NAME?"}}]
[]
[null,"SOUS-TRAITANCE",null,{"$f":"IF(F793<>\"\",F793+H793,\"\")","v":{"$error":"#NAME?"}},null,{"$f":"IF(PVHT_devis_poste_17<>\"\",SUMIF(#REF!,Code_racine_sous_traitantce,#REF!),\"\")","v":{"$error":"#NAME?"}},null,{"$f":"IF(PVHT_devis_poste_17<>\"\",SUMIF(#REF!,Code_racine_sous_traitantce,#REF!),\"\")","v":{"$error":"#NAME?"}},null,{"$f":"IF(AND(Total_HT_devis<>\"\",PVHT_devis_poste_17<>\"\"),D793*1/D797,\"\")","v":{"$error":"#NAME?"}}]
[]
[]
[null,null,null,null,null,null,null,null,"ECHELLE"]
[null,"TOTAL",null,{"$f":"IF(PVHT_devis_poste_17<>\"\",D785+D787+D789+D791+D793,\"\")","v":{"$error":"#NAME?"}},null,{"$f":"IF(PVHT_devis_poste_17<>\"\",F785+F787+F789+F791+F793,\"\")","v":{"$error":"#NAME?"}},null,{"$f":"IF(PVHT_devis_poste_17<>\"\",H785+H787+H789+H791+H793,\"\")","v":{"$error":"#NAME?"}},"DE RISQUES"]
[null,null,null,null,null,null,null,null,{"$f":"IF(AND(0%<=J785,J785<=10%),1,IF(AND(11%<=J785,J785<=20%),2,IF(AND(21%<=J785,J785<=30%),3,IF(AND(31%<=J785,J785<=40%),4,IF(AND(41%<=J785,J785<=50%),5,IF(AND(51%<=J785,J785<=60%),6,IF(AND(61%<=J785,J785<=70%),7,IF(AND(71%<=J785,J785<=80%),8,IF(AND(81%<=J785,J785<=90%),9,IF(AND(91%<=J785,J785<=100%),10,\"\"))))))))))","v":{"$error":"#NAME?"}},{"$f":"IF(AND(0%<=J785,J785<=10%),\"nul\",IF(AND(11%<=J785,J785<=20%),\"quasi nul\",IF(AND(21%<=J785,J785<=30%),\"très faible\",IF(AND(31%<=J785,J785<=40%),\"faible\",IF(AND(41%<=J785,J785<=50%),\"moyen\",IF(AND(51%<=J785,J785<=60%),\"moyen élevé\",IF(AND(61%<=J785,J785<=70%),\"élevé\",IF(AND(71%<=J785,J785<=80%),\"très élevés\",IF(AND(81%<=J785,J785<=90%),\"trés fort\",IF(AND(91%<=J785,J785<=100%),\"extreme\",\"\"))))))))))","v":{"$error":"#NAME?"}}]
[null,"MARGE",null,{"$f":"IF(D801<>\"\",D801-D797,\"\")","v":{"$error":"#NAME?"}},null,null,"bénéfice/H",{"$f":"IF(D799<>\"\",D799/H801,\"\")","v":{"$error":"#NAME?"}}]
[]
[null,"PRIX DE VENTE",null,{"$f":"IF(D797<>\"\",PVHT_devis_poste_17,\"\")","v":{"$error":"#NAME?"}},null,null,"heures",{"$f":"IF(PVHT_devis_poste_17<>\"\",heures_prév_poste_17,\"\")","v":{"$error":"#NAME?"}}]
[]
[]
[]
[null,"coeff de marge",null,{"$f":"IF(D801<>\"\",D801/D797,\"\")","v":{"$error":"#NAME?"}}]
[]
[null,"% de bénéfice =",null,{"$f":"IF(D801<>\"\",D799/D801*1,\"\")","v":{"$error":"#NAME?"}}]
[]
[]
[]
[]
[{"$f":"IF(#REF!<>\"\",\"Poste 18\",\"\")","v":{"$error":"#REF!"}}]
[]
[null,null,null,{"$f":"IF(A812<>\"\",#REF!,\"\")","v":{"$error":"#REF!"}},null,null,null,null,{"$f":"IF(A812<>\"\",#REF!,\"\")","v":{"$error":"#REF!"}},{"$f":"IF(A812<>\"\",#REF!,\"\")","v":{"$error":"#REF!"}}]
[]
[]
[]
[null,"client :"]
[null,{"$f":"IF(#REF!<>\"\",#REF!,\"\")","v":{"$error":"#REF!"}}]
[]
[" ",{"$f":"IF(#REF!<>\"\",#REF!,\"\")","v":{"$error":"#REF!"}},null,{"$f":"IF(A812<>\"\",#REF!,\"\")","v":{"$error":"#REF!"}}]
[]
[]
[]
[]
[]
[null,null,null,"Prix de revient",null,"frais généraux",null,"couts directs",null,"% s/ P.R"]
[]
[]
[null,"MAIN D'OEUVRE",null,{"$f":"IF(F830<>\"\",F830+H830,\"\")","v":{"$error":"#NAME?"}},null,{"$f":"IF(H830<>\"\",H830*Fgx_mo,\"\")","v":{"$error":"#NAME?"}},null,{"$f":"IF(PVHT_devis_poste_18<>\"\",SUMIF(#REF!,Réf_mo,#REF!)/(1+Fgx_mo),\"\")","v":{"$error":"#NAME?"}},null,{"$f":"IF(AND(Total_HT_devis<>\"\",PVHT_devis_poste_18<>\"\"),D830*1/D842,\"\")","v":{"$error":"#NAME?"}}]
[]
[null,"MATERIEL",null,{"$f":"IF(F832<>\"\",F832+H832,\"\")","v":{"$error":"#NAME?"}},null,{"$f":"IF(PVHT_devis_poste_18<>\"\",SUMIF(#REF!,Code_racine_matériel,#REF!),\"\")","v":{"$error":"#NAME?"}},null,{"$f":"IF(PVHT_devis_poste_18<>\"\",SUMIF(#REF!,Code_racine_matériel,#REF!),\"\")","v":{"$error":"#NAME?"}},null,{"$f":"IF(AND(Total_HT_devis<>\"\",PVHT_devis_poste_18<>\"\"),D832*1/D842,\"\")","v":{"$error":"#NAME?"}}]
[]
[null,"MATERIAUX",null,{"$f":"IF(F834<>\"\",F834+H834,\"\")","v":{"$error":"#NAME?"}},null,{"$f":"IF(PVHT_devis_poste_18<>\"\",SUMIF(#REF!,Code_racine_matériaux,#REF!),\"\")","v":{"$error":"#NAME?"}},null,{"$f":"IF(PVHT_devis_poste_18<>\"\",SUMIF(#REF!,Code_racine_matériaux,#REF!),\"\")","v":{"$error":"#NAME?"}},null,{"$f":"IF(AND(Total_HT_devis<>\"\",PVHT_devis_poste_18<>\"\"),D834*1/D842,\"\")","v":{"$error":"#NAME?"}}]
[]
[null,"LOCATION",null,{"$f":"IF(F836<>\"\",F836+H836,\"\")","v":{"$error":"#NAME?"}},null,{"$f":"IF(PVHT_devis_poste_18<>\"\",SUMIF(#REF!,Code_racine_location,#REF!),\"\")","v":{"$error":"#NAME?"}},null,{"$f":"IF(PVHT_devis_poste_18<>\"\",SUMIF(#REF!,Code_racine_location,#REF!),\"\")","v":{"$error":"#NAME?"}},null,{"$f":"IF(AND(Total_HT_devis<>\"\",PVHT_devis_poste_18<>\"\"),D836*1/D842,\"\")","v":{"$error":"#NAME?"}}]
[]
[null,"SOUS-TRAITANCE",null,{"$f":"IF(F838<>\"\",F838+H838,\"\")","v":{"$error":"#NAME?"}},null,{"$f":"IF(PVHT_devis_poste_18<>\"\",SUMIF(#REF!,Code_racine_sous_traitantce,#REF!),\"\")","v":{"$error":"#NAME?"}},null,{"$f":"IF(PVHT_devis_poste_18<>\"\",SUMIF(#REF!,Code_racine_sous_traitantce,#REF!),\"\")","v":{"$error":"#NAME?"}},null,{"$f":"IF(AND(Total_HT_devis<>\"\",PVHT_devis_poste_18<>\"\"),D838*1/D842,\"\")","v":{"$error":"#NAME?"}}]
[]
[]
[null,null,null,null,null,null,null,null,"ECHELLE"]
[null,"TOTAL",null,{"$f":"IF(PVHT_devis_poste_18<>\"\",D830+D832+D834+D836+D838,\"\")","v":{"$error":"#NAME?"}},null,{"$f":"IF(PVHT_devis_poste_18<>\"\",F830+F832+F834+F836+F838,\"\")","v":{"$error":"#NAME?"}},null,{"$f":"IF(PVHT_devis_poste_18<>\"\",H830+H832+H834+H836+H838,\"\")","v":{"$error":"#NAME?"}},"DE RISQUES"]
[null,null,null,null,null,null,null,null,{"$f":"IF(AND(0%<=J830,J830<=10%),1,IF(AND(11%<=J830,J830<=20%),2,IF(AND(21%<=J830,J830<=30%),3,IF(AND(31%<=J830,J830<=40%),4,IF(AND(41%<=J830,J830<=50%),5,IF(AND(51%<=J830,J830<=60%),6,IF(AND(61%<=J830,J830<=70%),7,IF(AND(71%<=J830,J830<=80%),8,IF(AND(81%<=J830,J830<=90%),9,IF(AND(91%<=J830,J830<=100%),10,\"\"))))))))))","v":{"$error":"#NAME?"}},{"$f":"IF(AND(0%<=J830,J830<=10%),\"nul\",IF(AND(11%<=J830,J830<=20%),\"quasi nul\",IF(AND(21%<=J830,J830<=30%),\"très faible\",IF(AND(31%<=J830,J830<=40%),\"faible\",IF(AND(41%<=J830,J830<=50%),\"moyen\",IF(AND(51%<=J830,J830<=60%),\"moyen élevé\",IF(AND(61%<=J830,J830<=70%),\"élevé\",IF(AND(71%<=J830,J830<=80%),\"très élevés\",IF(AND(81%<=J830,J830<=90%),\"trés fort\",IF(AND(91%<=J830,J830<=100%),\"extreme\",\"\"))))))))))","v":{"$error":"#NAME?"}}]
[null,"MARGE",null,{"$f":"IF(D846<>\"\",D846-D842,\"\")","v":{"$error":"#NAME?"}},null,null,"bénéfice/H",{"$f":"IF(D844<>\"\",D844/H846,\"\")","v":{"$error":"#NAME?"}}]
[]
[null,"PRIX DE VENTE",null,{"$f":"IF(D842<>\"\",PVHT_devis_poste_18,\"\")","v":{"$error":"#NAME?"}},null,null,"heures",{"$f":"IF(PVHT_devis_poste_18<>\"\",heures_prév_poste_18,\"\")","v":{"$error":"#NAME?"}}]
[]
[]
[]
[null,"coeff de marge",null,{"$f":"IF(D846<>\"\",D846/D842,\"\")","v":{"$error":"#NAME?"}}]
[]
[null,"% de bénéfice =",null,{"$f":"IF(D846<>\"\",D844/D846*1,\"\")","v":{"$error":"#NAME?"}}]
[]
[]
[]
[]
[{"$f":"IF(#REF!<>\"\",\"Poste 19\",\"\")","v":{"$error":"#REF!"}}]
[]
[null,null,null,{"$f":"IF(A857<>\"\",#REF!,\"\")","v":{"$error":"#REF!"}},null,null,null,null,{"$f":"IF(A857<>\"\",#REF!,\"\")","v":{"$error":"#REF!"}},{"$f":"IF(A857<>\"\",#REF!,\"\")","v":{"$error":"#REF!"}}]
[]
[]
[]
[null,"client :"]
[null,{"$f":"IF(#REF!<>\"\",#REF!,\"\")","v":{"$error":"#REF!"}}]
[]
[" ",{"$f":"IF(#REF!<>\"\",#REF!,\"\")","v":{"$error":"#REF!"}},null,{"$f":"IF(A857<>\"\",#REF!,\"\")","v":{"$error":"#REF!"}}]
[]
[]
[]
[]
[]
[null,null,null,"Prix de revient",null,"frais généraux",null,"couts directs",null,"% s/ P.R"]
[]
[]
[null,"MAIN D'OEUVRE",null,{"$f":"IF(F875<>\"\",F875+H875,\"\")","v":{"$error":"#NAME?"}},null,{"$f":"IF(H875<>\"\",H875*Fgx_mo,\"\")","v":{"$error":"#NAME?"}},null,{"$f":"IF(PVHT_devis_poste_19<>\"\",SUMIF(#REF!,Réf_mo,#REF!)/(1+Fgx_mo),\"\")","v":{"$error":"#NAME?"}},null,{"$f":"IF(AND(Total_HT_devis<>\"\",PVHT_devis_poste_19<>\"\"),D875*1/D887,\"\")","v":{"$error":"#NAME?"}}]
[]
[null,"MATERIEL",null,{"$f":"IF(F877<>\"\",F877+H877,\"\")","v":{"$error":"#NAME?"}},null,{"$f":"IF(PVHT_devis_poste_19<>\"\",SUMIF(#REF!,Code_racine_matériel,#REF!),\"\")","v":{"$error":"#NAME?"}},null,{"$f":"IF(PVHT_devis_poste_19<>\"\",SUMIF(#REF!,Code_racine_matériel,#REF!),\"\")","v":{"$error":"#NAME?"}},null,{"$f":"IF(AND(Total_HT_devis<>\"\",PVHT_devis_poste_19<>\"\"),D877*1/D887,\"\")","v":{"$error":"#NAME?"}}]
[]
[null,"MATERIAUX",null,{"$f":"IF(F879<>\"\",F879+H879,\"\")","v":{"$error":"#NAME?"}},null,{"$f":"IF(PVHT_devis_poste_19<>\"\",SUMIF(#REF!,Code_racine_matériaux,#REF!),\"\")","v":{"$error":"#NAME?"}},null,{"$f":"IF(PVHT_devis_poste_19<>\"\",SUMIF(#REF!,Code_racine_matériaux,#REF!),\"\")","v":{"$error":"#NAME?"}},null,{"$f":"IF(AND(Total_HT_devis<>\"\",PVHT_devis_poste_19<>\"\"),D879*1/D887,\"\")","v":{"$error":"#NAME?"}}]
[]
[null,"LOCATION",null,{"$f":"IF(F881<>\"\",F881+H881,\"\")","v":{"$error":"#NAME?"}},null,{"$f":"IF(PVHT_devis_poste_19<>\"\",SUMIF(#REF!,Code_racine_location,#REF!),\"\")","v":{"$error":"#NAME?"}},null,{"$f":"IF(PVHT_devis_poste_19<>\"\",SUMIF(#REF!,Code_racine_location,#REF!),\"\")","v":{"$error":"#NAME?"}},null,{"$f":"IF(AND(Total_HT_devis<>\"\",PVHT_devis_poste_19<>\"\"),D881*1/D887,\"\")","v":{"$error":"#NAME?"}}]
[]
[null,"SOUS-TRAITANCE",null,{"$f":"IF(F883<>\"\",F883+H883,\"\")","v":{"$error":"#NAME?"}},null,{"$f":"IF(PVHT_devis_poste_19<>\"\",SUMIF(#REF!,Code_racine_sous_traitantce,#REF!),\"\")","v":{"$error":"#NAME?"}},null,{"$f":"IF(PVHT_devis_poste_19<>\"\",SUMIF(#REF!,Code_racine_sous_traitantce,#REF!),\"\")","v":{"$error":"#NAME?"}},null,{"$f":"IF(AND(Total_HT_devis<>\"\",PVHT_devis_poste_19<>\"\"),D883*1/D887,\"\")","v":{"$error":"#NAME?"}}]
[]
[]
[null,null,null,null,null,null,null,null,"ECHELLE"]
[null,"TOTAL",null,{"$f":"IF(PVHT_devis_poste_19<>\"\",D875+D877+D879+D881+D883,\"\")","v":{"$error":"#NAME?"}},null,{"$f":"IF(PVHT_devis_poste_19<>\"\",F875+F877+F879+F881+F883,\"\")","v":{"$error":"#NAME?"}},null,{"$f":"IF(PVHT_devis_poste_19<>\"\",H875+H877+H879+H881+H883,\"\")","v":{"$error":"#NAME?"}},"DE RISQUES"]
[null,null,null,null,null,null,null,null,{"$f":"IF(AND(0%<=J875,J875<=10%),1,IF(AND(11%<=J875,J875<=20%),2,IF(AND(21%<=J875,J875<=30%),3,IF(AND(31%<=J875,J875<=40%),4,IF(AND(41%<=J875,J875<=50%),5,IF(AND(51%<=J875,J875<=60%),6,IF(AND(61%<=J875,J875<=70%),7,IF(AND(71%<=J875,J875<=80%),8,IF(AND(81%<=J875,J875<=90%),9,IF(AND(91%<=J875,J875<=100%),10,\"\"))))))))))","v":{"$error":"#NAME?"}},{"$f":"IF(AND(0%<=J875,J875<=10%),\"nul\",IF(AND(11%<=J875,J875<=20%),\"quasi nul\",IF(AND(21%<=J875,J875<=30%),\"très faible\",IF(AND(31%<=J875,J875<=40%),\"faible\",IF(AND(41%<=J875,J875<=50%),\"moyen\",IF(AND(51%<=J875,J875<=60%),\"moyen élevé\",IF(AND(61%<=J875,J875<=70%),\"élevé\",IF(AND(71%<=J875,J875<=80%),\"très élevés\",IF(AND(81%<=J875,J875<=90%),\"trés fort\",IF(AND(91%<=J875,J875<=100%),\"extreme\",\"\"))))))))))","v":{"$error":"#NAME?"}}]
[null,"MARGE",null,{"$f":"IF(D891<>\"\",D891-D887,\"\")","v":{"$error":"#NAME?"}},null,null,"bénéfice/H",{"$f":"IF(D889<>\"\",D889/H891,\"\")","v":{"$error":"#NAME?"}}]
[]
[null,"PRIX DE VENTE",null,{"$f":"IF(D887<>\"\",PVHT_devis_poste_19,\"\")","v":{"$error":"#NAME?"}},null,null,"heures",{"$f":"IF(PVHT_devis_poste_19<>\"\",heures_prév_poste_19,\"\")","v":{"$error":"#NAME?"}}]
[]
[]
[]
[null,"coeff de marge",null,{"$f":"IF(D891<>\"\",D891/D887,\"\")","v":{"$error":"#NAME?"}}]
[]
[null,"% de bénéfice =",null,{"$f":"IF(D891<>\"\",D889/D891*1,\"\")","v":{"$error":"#NAME?"}}]
[]
[]
[]
[]
[{"$f":"IF(#REF!<>\"\",\"Poste 20\",\"\")","v":{"$error":"#REF!"}}]
[]
[null,null,null,{"$f":"IF(A902<>\"\",#REF!,\"\")","v":{"$error":"#REF!"}},null,null,null,null,{"$f":"IF(A902<>\"\",#REF!,\"\")","v":{"$error":"#REF!"}},{"$f":"IF(A902<>\"\",#REF!,\"\")","v":{"$error":"#REF!"}}]
[]
[]
[]
[null,"client :"]
[null,{"$f":"IF(#REF!<>\"\",#REF!,\"\")","v":{"$error":"#REF!"}}]
[]
[" ",{"$f":"IF(#REF!<>\"\",#REF!,\"\")","v":{"$error":"#REF!"}},null,{"$f":"IF(A902<>\"\",#REF!,\"\")","v":{"$error":"#REF!"}}]
[]
[]
[]
[]
[]
[null,null,null,"Prix de revient",null,"frais généraux",null,"couts directs",null,"% s/ P.R"]
[]
[]
[null,"MAIN D'OEUVRE",null,{"$f":"IF(F920<>\"\",F920+H920,\"\")","v":{"$error":"#NAME?"}},null,{"$f":"IF(H920<>\"\",H920*Fgx_mo,\"\")","v":{"$error":"#NAME?"}},null,{"$f":"IF(PVHT_devis_poste_20<>\"\",SUMIF(#REF!,Réf_mo,#REF!)/(1+Fgx_mo),\"\")","v":{"$error":"#NAME?"}},null,{"$f":"IF(AND(Total_HT_devis<>\"\",PVHT_devis_poste_20<>\"\"),D920*1/D932,\"\")","v":{"$error":"#NAME?"}}]
[]
[null,"MATERIEL",null,{"$f":"IF(F922<>\"\",F922+H922,\"\")","v":{"$error":"#NAME?"}},null,{"$f":"IF(PVHT_devis_poste_20<>\"\",SUMIF(#REF!,Code_racine_matériel,#REF!),\"\")","v":{"$error":"#NAME?"}},null,{"$f":"IF(PVHT_devis_poste_20<>\"\",SUMIF(#REF!,Code_racine_matériel,#REF!),\"\")","v":{"$error":"#NAME?"}},null,{"$f":"IF(AND(Total_HT_devis<>\"\",PVHT_devis_poste_20<>\"\"),D922*1/D932,\"\")","v":{"$error":"#NAME?"}}]
[]
[null,"MATERIAUX",null,{"$f":"IF(F924<>\"\",F924+H924,\"\")","v":{"$error":"#NAME?"}},null,{"$f":"IF(PVHT_devis_poste_20<>\"\",SUMIF(#REF!,Code_racine_matériaux,#REF!),\"\")","v":{"$error":"#NAME?"}},null,{"$f":"IF(PVHT_devis_poste_20<>\"\",SUMIF(#REF!,Code_racine_location,#REF!),\"\")","v":{"$error":"#NAME?"}},null,{"$f":"IF(AND(Total_HT_devis<>\"\",PVHT_devis_poste_20<>\"\"),D924*1/D932,\"\")","v":{"$error":"#NAME?"}}]
[]
[null,"LOCATION",null,{"$f":"IF(F926<>\"\",F926+H926,\"\")","v":{"$error":"#NAME?"}},null,{"$f":"IF(PVHT_devis_poste_20<>\"\",SUMIF(#REF!,Code_racine_location,#REF!),\"\")","v":{"$error":"#NAME?"}},null,{"$f":"IF(PVHT_devis_poste_20<>\"\",SUMIF(#REF!,Code_racine_location,#REF!),\"\")","v":{"$error":"#NAME?"}},null,{"$f":"IF(AND(Total_HT_devis<>\"\",PVHT_devis_poste_20<>\"\"),D926*1/D932,\"\")","v":{"$error":"#NAME?"}}]
[]
[null,"SOUS-TRAITANCE",null,{"$f":"IF(F928<>\"\",F928+H928,\"\")","v":{"$error":"#NAME?"}},null,{"$f":"IF(PVHT_devis_poste_20<>\"\",SUMIF(#REF!,Code_racine_sous_traitantce,#REF!),\"\")","v":{"$error":"#NAME?"}},null,{"$f":"IF(PVHT_devis_poste_20<>\"\",SUMIF(#REF!,Code_racine_sous_traitantce,#REF!),\"\")","v":{"$error":"#NAME?"}},null,{"$f":"IF(AND(Total_HT_devis<>\"\",PVHT_devis_poste_20<>\"\"),D928*1/D932,\"\")","v":{"$error":"#NAME?"}}]
[]
[]
[null,null,null,null,null,null,null,null,"ECHELLE"]
[null,"TOTAL",null,{"$f":"IF(PVHT_devis_poste_20<>\"\",D920+D922+D924+D926+D928,\"\")","v":{"$error":"#NAME?"}},null,{"$f":"IF(PVHT_devis_poste_20<>\"\",F920+F922+F924+F926+F928,\"\")","v":{"$error":"#NAME?"}},null,{"$f":"IF(PVHT_devis_poste_20<>\"\",H920+H922+H924+H926+H928,\"\")","v":{"$error":"#NAME?"}},"DE RISQUES"]
[null,null,null,null,null,null,null,null,{"$f":"IF(AND(0%<=J920,J920<=10%),1,IF(AND(11%<=J920,J920<=20%),2,IF(AND(21%<=J920,J920<=30%),3,IF(AND(31%<=J920,J920<=40%),4,IF(AND(41%<=J920,J920<=50%),5,IF(AND(51%<=J920,J920<=60%),6,IF(AND(61%<=J920,J920<=70%),7,IF(AND(71%<=J920,J920<=80%),8,IF(AND(81%<=J920,J920<=90%),9,IF(AND(91%<=J920,J920<=100%),10,\"\"))))))))))","v":{"$error":"#NAME?"}},{"$f":"IF(AND(0%<=J920,J920<=10%),\"nul\",IF(AND(11%<=J920,J920<=20%),\"quasi nul\",IF(AND(21%<=J920,J920<=30%),\"très faible\",IF(AND(31%<=J920,J920<=40%),\"faible\",IF(AND(41%<=J920,J920<=50%),\"moyen\",IF(AND(51%<=J920,J920<=60%),\"moyen élevé\",IF(AND(61%<=J920,J920<=70%),\"élevé\",IF(AND(71%<=J920,J920<=80%),\"très élevés\",IF(AND(81%<=J920,J920<=90%),\"trés fort\",IF(AND(91%<=J920,J920<=100%),\"extreme\",\"\"))))))))))","v":{"$error":"#NAME?"}}]
[null,"MARGE",null,{"$f":"IF(D936<>\"\",D936-D932,\"\")","v":{"$error":"#NAME?"}},null,null,"bénéfice/H",{"$f":"IF(D934<>\"\",D934/H936,\"\")","v":{"$error":"#NAME?"}}]
[]
[null,"PRIX DE VENTE",null,{"$f":"IF(D932<>\"\",PVHT_devis_poste_20,\"\")","v":{"$error":"#NAME?"}},null,null,"heures",{"$f":"IF(PVHT_devis_poste_20<>\"\",heures_prév_poste_20,\"\")","v":{"$error":"#NAME?"}}]
[]
[]
[]
[null,"coeff de marge",null,{"$f":"IF(D936<>\"\",D936/D932,\"\")","v":{"$error":"#NAME?"}}]
[]
[null,"% de bénéfice =",null,{"$f":"IF(D936<>\"\",D934/D936*1,\"\")","v":{"$error":"#NAME?"}}]

{"sheet":"Analyse Rentabilité","index":4,"n_rows":905,"n_cols":10,"rows_kept":905,"cut":false,"hidden":true,"merged":[[830,1,831,1],[830,3,832,9],[866,3,872,7],[866,8,872,8],[866,9,872,9],[871,1,872,1],[744,1,745,1],[744,3,746,9],[780,3,786,7],[780,8,786,8],[780,9,786,9],[785,1,786,1],[823,3,829,7],[823,8,829,8],[823,9,829,9],[828,1,829,1],[658,1,659,1],[658,3,660,9],[694,3,700,7],[694,8,700,8],[694,9,700,9],[699,1,700,1],[737,3,743,7],[737,8,743,8],[737,9,743,9],[742,1,743,1],[479,3,485,7],[479,8,485,8],[479,9,485,9],[484,1,485,1],[486,1,487,1],[486,3,488,9],[522,3,528,7],[522,8,528,8],[522,9,528,9],[527,1,528,1],[357,1,358,1],[357,3,359,9],[393,3,399,7],[393,8,399,8],[393,9,399,9],[398,1,399,1],[400,1,401,1],[400,3,402,9],[436,3,442,7],[436,8,442,8],[436,9,442,9],[441,1,442,1],[271,3,273,9],[307,3,313,7],[307,8,313,8],[307,9,313,9],[312,1,313,1],[314,1,315,1],[314,3,316,9],[350,3,356,7],[350,8,356,8],[350,9,356,9],[355,1,356,1],[271,1,272,1],[264,3,270,7],[264,8,270,8],[264,9,270,9],[269,1,270,1],[135,3,141,7],[135,8,141,8],[135,9,141,9],[140,1,141,1],[142,1,143,1],[142,3,144,9],[178,3,184,7],[178,8,184,8],[178,9,184,9],[183,1,184,1],[873,1,874,1],[873,3,875,9],[787,1,788,1],[787,3,789,9],[701,1,702,1],[701,3,703,9],[615,1,616,1],[615,3,617,9],[529,1,530,1],[529,3,531,9],[565,3,571,7],[565,8,571,8],[565,9,571,9],[570,1,571,1],[572,1,573,1],[572,3,574,9],[608,3,614,7],[608,8,614,8],[608,9,614,9],[613,1,614,1],[651,3,657,7],[651,8,657,8],[651,9,657,9],[656,1,657,1],[443,1,444,1],[443,3,445,9],[92,3,98,7],[92,8,98,8],[92,9,98,9],[97,1,98,1],[99,1,100,1],[99,3,101,9],[6,1,7,1],[8,1,9,1],[53,1,54,1],[55,1,56,1],[55,3,57,9],[48,3,54,7],[48,8,54,8],[48,9,54,9],[185,1,186,1],[185,3,187,9],[221,3,227,7],[221,8,227,8],[221,9,227,9],[226,1,227,1],[228,1,229,1],[228,3,230,9]]}
[]
[]
[]
[]
[]
[null,"client :"]
[null,{"$f":"IF(#REF!<>\"\",#REF!,\"\")","v":{"$error":"#REF!"}}]
[]
[" ",{"$f":"IF(#REF!<>\"\",#REF!,\"\")","v":{"$error":"#REF!"}}]
[]
[]
[]
[]
[]
[null,null,null,"Prix de revient",null,"frais généraux",null,"couts directs",null,"% s/ P.R"]
[]
[]
[null,"MAIN D'OEUVRE",null,{"$f":"IF(F18<>\"\",F18+H18,\"\")","v":{"$error":"#NAME?"}},null,{"$f":"IF(H18<>\"\",H18*Fgx_mo,\"\")","v":{"$error":"#NAME?"}},null,{"$f":"IF(Total_HT_Facture<>\"\",SUMIF(#REF!,Réf_mo,#REF!)/(1+Fgx_mo),\"\")","v":{"$error":"#NAME?"}},null,{"$f":"IF(Total_HT_Facture<>\"\",D18*1/D30,\"\")","v":{"$error":"#NAME?"}}]
[]
[null,"MATERIEL",null,{"$f":"IF(F20<>\"\",F20+H20,\"\")","v":{"$error":"#NAME?"}},null,{"$f":"IF(Total_HT_Facture<>\"\",SUMIF(#REF!,Code_racine_matériel,#REF!),\"\")","v":{"$error":"#NAME?"}},null,{"$f":"IF(Total_HT_Facture<>\"\",SUMIF(#REF!,Code_racine_matériel,#REF!),\"\")","v":{"$error":"#NAME?"}},null,{"$f":"IF(Total_HT_Facture<>\"\",D20*1/D30,\"\")","v":{"$error":"#NAME?"}}]
[]
[null,"MATERIAUX",null,{"$f":"IF(F22<>\"\",F22+H22,\"\")","v":{"$error":"#NAME?"}},null,{"$f":"IF(Total_HT_Facture<>\"\",SUMIF(#REF!,Code_racine_matériaux,#REF!),\"\")","v":{"$error":"#NAME?"}},null,{"$f":"IF(Total_HT_Facture<>\"\",SUMIF(#REF!,Code_racine_matériaux,#REF!),\"\")","v":{"$error":"#NAME?"}},null,{"$f":"IF(Total_HT_Facture<>\"\",D22*1/D30,\"\")","v":{"$error":"#NAME?"}}]
[]
[null,"LOCATION",null,{"$f":"IF(F24<>\"\",F24+H24,\"\")","v":{"$error":"#NAME?"}},null,{"$f":"IF(Total_HT_Facture<>\"\",SUMIF(#REF!,Code_racine_location,#REF!),\"\")","v":{"$error":"#NAME?"}},null,{"$f":"IF(Total_HT_Facture<>\"\",SUMIF(#REF!,Code_racine_location,#REF!),\"\")","v":{"$error":"#NAME?"}},null,{"$f":"IF(Total_HT_Facture<>\"\",D24*1/D30,\"\")","v":{"$error":"#NAME?"}}]
[]
[null,"SOUS-TRAITANCE",null,{"$f":"IF(F26<>\"\",F26+H26,\"\")","v":{"$error":"#NAME?"}},null,{"$f":"IF(Total_HT_Facture<>\"\",SUMIF(#REF!,Code_racine_sous_traitantce,#REF!),\"\")","v":{"$error":"#NAME?"}},null,{"$f":"IF(Total_HT_Facture<>\"\",SUMIF(#REF!,Code_racine_sous_traitantce,#REF!),\"\")","v":{"$error":"#NAME?"}},null,{"$f":"IF(Total_HT_Facture<>\"\",D26*1/D30,\"\")","v":{"$error":"#NAME?"}}]
[]
[]
[null,null,null,null,null,null,null,null,"ECHELLE"]
[null,"TOTAL",null,{"$f":"IF(Total_HT_Facture<>\"\",D18+D20+D22+D24+D26,\"\")","v":{"$error":"#NAME?"}},null,{"$f":"IF(Total_HT_Facture<>\"\",F18+F20+F22+F24+F26,\"\")","v":{"$error":"#NAME?"}},null,{"$f":"IF(Total_HT_Facture<>\"\",H18+H20+H22+H24+H26,\"\")","v":{"$error":"#NAME?"}},"DE RISQUES"]
[null,null,null,null,null,null,null,null,{"$f":"IF(AND(0%<=J18,J18<=10%),1,IF(AND(11%<=J18,J18<=20%),2,IF(AND(21%<=J18,J18<=30%),3,IF(AND(31%<=J18,J18<=40%),4,IF(AND(41%<=J18,J18<=50%),5,IF(AND(51%<=J18,J18<=60%),6,IF(AND(61%<=J18,J18<=70%),7,IF(AND(71%<=J18,J18<=80%),8,IF(AND(81%<=J18,J18<=90%),9,IF(AND(91%<=J18,J18<=100%),10,\"\"))))))))))","v":{"$error":"#NAME?"}},{"$f":"IF(AND(0%<=J18,J18<=10%),\"nul\",IF(AND(11%<=J18,J18<=20%),\"quasi nul\",IF(AND(21%<=J18,J18<=30%),\"très faible\",IF(AND(31%<=J18,J18<=40%),\"faible\",IF(AND(41%<=J18,J18<=50%),\"moyen\",IF(AND(51%<=J18,J18<=60%),\"moyen élevé\",IF(AND(61%<=J18,J18<=70%),\"élevé\",IF(AND(71%<=J18,J18<=80%),\"très élevés\",IF(AND(81%<=J18,J18<=90%),\"trés fort\",IF(AND(91%<=J18,J18<=100%),\"extreme\",\"\"))))))))))","v":{"$error":"#NAME?"}}]
[null,"MARGE",null,{"$f":"IF(D34<>\"\",D34-D30,\"\")","v":{"$error":"#NAME?"}},null,null,"bénéfice/H",{"$f":"IF(D32<>\"\",D32/H34,\"\")","v":{"$error":"#NAME?"}}]
[]
[null,"PRIX DE VENTE",null,{"$f":"IF(D30<>\"\",IF(Total_HT_Facture<>\"\",Total_HT_Facture),\"\")","v":{"$error":"#NAME?"}},null,null,"heures",{"$f":"IF(Total_HT_Facture<>\"\",Nombre_heures_total_réel,\"\")","v":{"$error":"#NAME?"}}]
[]
[]
[]
[null,"coeff de marge",null,{"$f":"IF(D34<>\"\",D34/D30,\"\")","v":{"$error":"#NAME?"}}]
[]
[null,"% de bénéfice =",null,{"$f":"IF(D34<>\"\",D32/D34*1,\"\")","v":{"$error":"#NAME?"}}]
[]
[]
[]
[]
[]
[]
[{"$f":"IF(#REF!<>\"\",\"Poste 1\",\"\")","v":{"$error":"#REF!"}}]
[]
[null,null,null,{"$f":"IF(A47<>\"\",#REF!,\"\")","v":{"$error":"#REF!"}},null,null,null,null,{"$f":"IF(A47<>\"\",#REF!,\"\")","v":{"$error":"#REF!"}},{"$f":"IF(A47<>\"\",#REF!,\"\")","v":{"$error":"#REF!"}}]
[]
[]
[]
[null,"client :"]
[null,{"$f":"IF(#REF!<>\"\",#REF!,\"\")","v":{"$error":"#REF!"}}]
[]
[" ",{"$f":"IF(#REF!<>\"\",#REF!,\"\")","v":{"$error":"#REF!"}},null,{"$f":"IF(A47<>\"\",#REF!,\"\")","v":{"$error":"#REF!"}}]
[]
[]
[]
[]
[]
[null,null,null,"Prix de revient",null,"frais généraux",null,"couts directs",null,"% s/ P.R"]
[]
[]
[null,"MAIN D'OEUVRE",null,{"$f":"IF(F65<>\"\",F65+H65,\"\")","v":{"$error":"#NAME?"}},null,{"$f":"IF(H65<>\"\",H65*Fgx_mo,\"\")","v":{"$error":"#NAME?"}},null,{"$f":"IF(PVHT_facture_poste_1<>\"\",SUMIF(#REF!,Réf_mo,#REF!)/(1+Fgx_mo),\"\")","v":{"$error":"#NAME?"}},null,{"$f":"IF(Total_HT_Facture<>\"\",D65*1/D77,\"\")","v":{"$error":"#NAME?"}}]
[]
[null,"MATERIEL",null,{"$f":"IF(F67<>\"\",F67+H67,\"\")","v":{"$error":"#NAME?"}},null,{"$f":"IF(PVHT_facture_poste_1<>\"\",SUMIF(#REF!,Code_racine_matériel,#REF!),\"\")","v":{"$error":"#NAME?"}},null,{"$f":"IF(PVHT_facture_poste_1<>\"\",SUMIF(#REF!,Code_racine_matériel,#REF!),\"\")","v":{"$error":"#NAME?"}},null,{"$f":"IF(Total_HT_Facture<>\"\",D67*1/D77,\"\")","v":{"$error":"#NAME?"}}]
[]
[null,"MATERIAUX",null,{"$f":"IF(F69<>\"\",F69+H69,\"\")","v":{"$error":"#NAME?"}},null,{"$f":"IF(PVHT_facture_poste_1<>\"\",SUMIF(#REF!,Code_racine_matériaux,#REF!),\"\")","v":{"$error":"#NAME?"}},null,{"$f":"IF(PVHT_facture_poste_1<>\"\",SUMIF(#REF!,Code_racine_matériaux,#REF!),\"\")","v":{"$error":"#NAME?"}},null,{"$f":"IF(Total_HT_Facture<>\"\",D69*1/D77,\"\")","v":{"$error":"#NAME?"}}]
[]
[null,"LOCATION",null,{"$f":"IF(F71<>\"\",F71+H71,\"\")","v":{"$error":"#NAME?"}},null,{"$f":"IF(PVHT_facture_poste_1<>\"\",SUMIF(#REF!,Code_racine_location,#REF!),\"\")","v":{"$error":"#NAME?"}},null,{"$f":"IF(PVHT_facture_poste_1<>\"\",SUMIF(#REF!,Code_racine_location,#REF!),\"\")","v":{"$error":"#NAME?"}},null,{"$f":"IF(Total_HT_Facture<>\"\",D71*1/D77,\"\")","v":{"$error":"#NAME?"}}]
[]
[null,"SOUS-TRAITANCE",null,{"$f":"IF(F73<>\"\",F73+H73,\"\")","v":{"$error":"#NAME?"}},null,{"$f":"IF(PVHT_facture_poste_1<>\"\",SUMIF(#REF!,Code_racine_sous_traitantce,#REF!),\"\")","v":{"$error":"#NAME?"}},null,{"$f":"IF(PVHT_facture_poste_1<>\"\",SUMIF(#REF!,Code_racine_sous_traitantce,#REF!),\"\")","v":{"$error":"#NAME?"}},null,{"$f":"IF(Total_HT_Facture<>\"\",D73*1/D77,\"\")","v":{"$error":"#NAME?"}}]
[]
[]
[null,null,null,null,null,null,null,null,"ECHELLE"]
[null,"TOTAL",null,{"$f":"IF(PVHT_facture_poste_1<>\"\",D65+D67+D69+D71+D73,\"\")","v":{"$error":"#NAME?"}},null,{"$f":"IF(PVHT_facture_poste_1<>\"\",F65+F67+F69+F71+F73,\"\")","v":{"$error":"#NAME?"}},null,{"$f":"IF(PVHT_facture_poste_1<>\"\",H65+H67+H69+H71+H73,\"\")","v":{"$error":"#NAME?"}},"DE RISQUES"]
[null,null,null,null,null,null,null,null,{"$f":"IF(AND(0%<=J65,J65<=10%),1,IF(AND(11%<=J65,J65<=20%),2,IF(AND(21%<=J65,J65<=30%),3,IF(AND(31%<=J65,J65<=40%),4,IF(AND(41%<=J65,J65<=50%),5,IF(AND(51%<=J65,J65<=60%),6,IF(AND(61%<=J65,J65<=70%),7,IF(AND(71%<=J65,J65<=80%),8,IF(AND(81%<=J65,J65<=90%),9,IF(AND(91%<=J65,J65<=100%),10,\"\"))))))))))","v":{"$error":"#NAME?"}},{"$f":"IF(AND(0%<=J65,J65<=10%),\"nul\",IF(AND(11%<=J65,J65<=20%),\"quasi nul\",IF(AND(21%<=J65,J65<=30%),\"très faible\",IF(AND(31%<=J65,J65<=40%),\"faible\",IF(AND(41%<=J65,J65<=50%),\"moyen\",IF(AND(51%<=J65,J65<=60%),\"moyen élevé\",IF(AND(61%<=J65,J65<=70%),\"élevé\",IF(AND(71%<=J65,J65<=80%),\"très élevés\",IF(AND(81%<=J65,J65<=90%),\"trés fort\",IF(AND(91%<=J65,J65<=100%),\"extreme\",\"\"))))))))))","v":{"$error":"#NAME?"}}]
[null,"MARGE",null,{"$f":"IF(D81<>\"\",D81-D77,\"\")","v":{"$error":"#NAME?"}},null,null,"bénéfice/H",{"$f":"IF(D79<>\"\",D79/H81,\"\")","v":{"$error":"#NAME?"}}]
[]
[null,"PRIX DE VENTE",null,{"$f":"IF(D77<>\"\",PVHT_facture_poste_1,\"\")","v":{"$error":"#NAME?"}},null,null,"heures",{"$f":"IF(PVHT_facture_poste_1<>\"\",Heures_poste_1_réel,\"\")","v":{"$error":"#NAME?"}}]
[]
[]
[]
[null,"coeff de marge",null,{"$f":"IF(D81<>\"\",D81/D77,\"\")","v":{"$error":"#NAME?"}}]
[]
[null,"% de bénéfice =",null,{"$f":"IF(D81<>\"\",D79/D81*1,\"\")","v":{"$error":"#NAME?"}}]
[]
[]
[]
[{"$f":"IF(#REF!<>\"\",\"Poste 1\",\"\")","v":{"$error":"#REF!"}}]
[]
[null,null,null,{"$f":"IF(A91<>\"\",#REF!,\"\")","v":{"$error":"#REF!"}},null,null,null,null,{"$f":"IF(A91<>\"\",#REF!,\"\")","v":{"$error":"#REF!"}},{"$f":"IF(A91<>\"\",#REF!,\"\")","v":{"$error":"#REF!"}}]
[]
[]
[]
[null,"client :"]
[null,{"$f":"IF(#REF!<>\"\",#REF!,\"\")","v":{"$error":"#REF!"}}]
[]
[" ",{"$f":"IF(#REF!<>\"\",#REF!,\"\")","v":{"$error":"#REF!"}},null,{"$f":"IF(A91<>\"\",#REF!,\"\")","v":{"$error":"#REF!"}}]
[]
[]
[]
[]
[]
[null,null,null,"Prix de revient",null,"frais généraux",null,"couts directs",null,"% s/ P.R"]
[]
[]
[null,"MAIN D'OEUVRE",null,{"$f":"IF(F109<>\"\",F109+H109,\"\")","v":{"$error":"#NAME?"}},null,{"$f":"IF(H109<>\"\",H109*Fgx_mo,\"\")","v":{"$error":"#NAME?"}},null,{"$f":"IF(PVHT_facture_poste_2<>\"\",SUMIF(#REF!,Réf_mo,#REF!)/(1+Fgx_mo),\"\")","v":{"$error":"#NAME?"}},null,{"$f":"IF(Total_HT_Facture<>\"\",D109*1/D121,\"\")","v":{"$error":"#NAME?"}}]
[]
[null,"MATERIEL",null,{"$f":"IF(F111<>\"\",F111+H111,\"\")","v":{"$error":"#NAME?"}},null,{"$f":"IF(PVHT_facture_poste_2<>\"\",SUMIF(#REF!,Code_racine_matériel,#REF!),\"\")","v":{"$error":"#NAME?"}},null,{"$f":"IF(PVHT_facture_poste_2<>\"\",SUMIF(#REF!,Code_racine_matériel,#REF!),\"\")","v":{"$error":"#NAME?"}},null,{"$f":"IF(Total_HT_Facture<>\"\",D111*1/D121,\"\")","v":{"$error":"#NAME?"}}]
[]
[null,"MATERIAUX",null,{"$f":"IF(F113<>\"\",F113+H113,\"\")","v":{"$error":"#NAME?"}},null,{"$f":"IF(PVHT_facture_poste_2<>\"\",SUMIF(#REF!,Code_racine_matériaux,#REF!),\"\")","v":{"$error":"#NAME?"}},null,{"$f":"IF(PVHT_facture_poste_2<>\"\",SUMIF(#REF!,Code_racine_matériaux,#REF!),\"\")","v":{"$error":"#NAME?"}},null,{"$f":"IF(Total_HT_Facture<>\"\",D113*1/D121,\"\")","v":{"$error":"#NAME?"}}]
[]
[null,"LOCATION",null,{"$f":"IF(F115<>\"\",F115+H115,\"\")","v":{"$error":"#NAME?"}},null,{"$f":"IF(PVHT_facture_poste_2<>\"\",SUMIF(#REF!,Code_racine_location,#REF!),\"\")","v":{"$error":"#NAME?"}},null,{"$f":"IF(PVHT_facture_poste_2<>\"\",SUMIF(#REF!,Code_racine_location,#REF!),\"\")","v":{"$error":"#NAME?"}},null,{"$f":"IF(Total_HT_Facture<>\"\",D115*1/D121,\"\")","v":{"$error":"#NAME?"}}]
[]
[null,"SOUS-TRAITANCE",null,{"$f":"IF(F117<>\"\",F117+H117,\"\")","v":{"$error":"#NAME?"}},null,{"$f":"IF(PVHT_facture_poste_2<>\"\",SUMIF(#REF!,Code_racine_sous_traitantce,#REF!),\"\")","v":{"$error":"#NAME?"}},null,{"$f":"IF(PVHT_facture_poste_2<>\"\",SUMIF(#REF!,Code_racine_sous_traitantce,#REF!),\"\")","v":{"$error":"#NAME?"}},null,{"$f":"IF(Total_HT_Facture<>\"\",D117*1/D121,\"\")","v":{"$error":"#NAME?"}}]
[]
[]
[null,null,null,null,null,null,null,null,"ECHELLE"]
[null,"TOTAL",null,{"$f":"IF(PVHT_facture_poste_2<>\"\",D109+D111+D113+D115+D117,\"\")","v":{"$error":"#NAME?"}},null,{"$f":"IF(PVHT_facture_poste_2<>\"\",F109+F111+F113+F115+F117,\"\")","v":{"$error":"#NAME?"}},null,{"$f":"IF(PVHT_facture_poste_2<>\"\",H109+H111+H113+H115+H117,\"\")","v":{"$error":"#NAME?"}},"DE RISQUES"]
[null,null,null,null,null,null,null,null,{"$f":"IF(AND(0%<=J109,J109<=10%),1,IF(AND(11%<=J109,J109<=20%),2,IF(AND(21%<=J109,J109<=30%),3,IF(AND(31%<=J109,J109<=40%),4,IF(AND(41%<=J109,J109<=50%),5,IF(AND(51%<=J109,J109<=60%),6,IF(AND(61%<=J109,J109<=70%),7,IF(AND(71%<=J109,J109<=80%),8,IF(AND(81%<=J109,J109<=90%),9,IF(AND(91%<=J109,J109<=100%),10,\"\"))))))))))","v":{"$error":"#NAME?"}},{"$f":"IF(AND(0%<=J109,J109<=10%),\"nul\",IF(AND(11%<=J109,J109<=20%),\"quasi nul\",IF(AND(21%<=J109,J109<=30%),\"très faible\",IF(AND(31%<=J109,J109<=40%),\"faible\",IF(AND(41%<=J109,J109<=50%),\"moyen\",IF(AND(51%<=J109,J109<=60%),\"moyen élevé\",IF(AND(61%<=J109,J109<=70%),\"élevé\",IF(AND(71%<=J109,J109<=80%),\"très élevés\",IF(AND(81%<=J109,J109<=90%),\"trés fort\",IF(AND(91%<=J109,J109<=100%),\"extreme\",\"\"))))))))))","v":{"$error":"#NAME?"}}]
[null,"MARGE",null,{"$f":"IF(D125<>\"\",D125-D121,\"\")","v":{"$error":"#NAME?"}},null,null,"bénéfice/H",{"$f":"IF(D123<>\"\",D123/H125,\"\")","v":{"$error":"#NAME?"}}]
[]
[null,"PRIX DE VENTE",null,{"$f":"IF(D121<>\"\",PVHT_facture_poste_2,\"\")","v":{"$error":"#NAME?"}},null,null,"heures",{"$f":"IF(PVHT_facture_poste_2<>\"\",Heures_poste_2_réel,\"\")","v":{"$error":"#NAME?"}}]
[]
[]
[]
[null,"coeff de marge",null,{"$f":"IF(D125<>\"\",D125/D121,\"\")","v":{"$error":"#NAME?"}}]
[]
[null,"% de bénéfice =",null,{"$f":"IF(D125<>\"\",D123/D125*1,\"\")","v":{"$error":"#NAME?"}}]
[]
[]
[]
[]
[null,null,null,{"$f":"IF(A134<>\"\",#REF!,\"\")","v":""},null,null,null,null,{"$f":"IF(A134<>\"\",#REF!,\"\")","v":""},{"$f":"IF(A134<>\"\",#REF!,\"\")","v":""}]
[]
[]
[]
[null,"client :"]
[null,{"$f":"IF(#REF!<>\"\",#REF!,\"\")","v":{"$error":"#REF!"}}]
[]
[null,{"$f":"IF(#REF!<>\"\",#REF!,\"\")","v":{"$error":"#REF!"}},null,{"$f":"IF(A134<>\"\",#REF!,\"\")","v":""}]
[]
[]
[]
[]
[]
[null,null,null,"Prix de revient",null,"frais généraux",null,"couts directs",null,"% s/ P.R"]
[]
[]
[null,"MAIN D'OEUVRE",null,{"$f":"IF(F152<>\"\",F152+H152,\"\")","v":{"$error":"#NAME?"}},null,{"$f":"IF(H152<>\"\",H152*Fgx_mo,\"\")","v":{"$error":"#NAME?"}},null,{"$f":"IF(PVHT_facture_poste_3<>\"\",SUMIF(#REF!,Réf_mo,#REF!)/(1+Fgx_mo),\"\")","v":{"$error":"#NAME?"}},null,{"$f":"IF(Total_HT_Facture<>\"\",D152*1/D164,\"\")","v":{"$error":"#NAME?"}}]
[]
[null,"MATERIEL",null,{"$f":"IF(F154<>\"\",F154+H154,\"\")","v":{"$error":"#NAME?"}},null,{"$f":"IF(PVHT_facture_poste_3<>\"\",SUMIF(#REF!,Code_racine_matériel,#REF!),\"\")","v":{"$error":"#NAME?"}},null,{"$f":"IF(PVHT_facture_poste_3<>\"\",SUMIF(#REF!,Code_racine_matériel,#REF!),\"\")","v":{"$error":"#NAME?"}},null,{"$f":"IF(Total_HT_Facture<>\"\",D154*1/D164,\"\")","v":{"$error":"#NAME?"}}]
[]
[null,"MATERIAUX",null,{"$f":"IF(F156<>\"\",F156+H156,\"\")","v":{"$error":"#NAME?"}},null,{"$f":"IF(PVHT_facture_poste_3<>\"\",SUMIF(#REF!,Code_racine_matériaux,#REF!),\"\")","v":{"$error":"#NAME?"}},null,{"$f":"IF(PVHT_facture_poste_3<>\"\",SUMIF(#REF!,Code_racine_matériaux,#REF!),\"\")","v":{"$error":"#NAME?"}},null,{"$f":"IF(Total_HT_Facture<>\"\",D156*1/D164,\"\")","v":{"$error":"#NAME?"}}]
[]
[null,"LOCATION",null,{"$f":"IF(F158<>\"\",F158+H158,\"\")","v":{"$error":"#NAME?"}},null,{"$f":"IF(PVHT_facture_poste_3<>\"\",SUMIF(#REF!,Code_racine_location,#REF!),\"\")","v":{"$error":"#NAME?"}},null,{"$f":"IF(PVHT_facture_poste_3<>\"\",SUMIF(#REF!,Code_racine_location,#REF!),\"\")","v":{"$error":"#NAME?"}},null,{"$f":"IF(Total_HT_Facture<>\"\",D158*1/D164,\"\")","v":{"$error":"#NAME?"}}]
[]
[null,"SOUS-TRAITANCE",null,{"$f":"IF(F160<>\"\",F160+H160,\"\")","v":{"$error":"#NAME?"}},null,{"$f":"IF(PVHT_facture_poste_3<>\"\",SUMIF(#REF!,Code_racine_sous_traitantce,#REF!),\"\")","v":{"$error":"#NAME?"}},null,{"$f":"IF(PVHT_facture_poste_3<>\"\",SUMIF(#REF!,Code_racine_sous_traitantce,#REF!),\"\")","v":{"$error":"#NAME?"}},null,{"$f":"IF(Total_HT_Facture<>\"\",D160*1/D164,\"\")","v":{"$error":"#NAME?"}}]
[]
[]
[null,null,null,null,null,null,null,null,"ECHELLE"]
[null,"TOTAL",null,{"$f":"IF(PVHT_facture_poste_3<>\"\",D152+D154+D156+D158+D160,\"\")","v":{"$error":"#NAME?"}},null,{"$f":"IF(PVHT_facture_poste_3<>\"\",F152+F154+F156+F158+F160,\"\")","v":{"$error":"#NAME?"}},null,{"$f":"IF(PVHT_facture_poste_3<>\"\",H152+H154+H156+H158+H160,\"\")","v":{"$error":"#NAME?"}},"DE RISQUES"]
[null,null,null,null,null,null,null,null,{"$f":"IF(AND(0%<=J152,J152<=10%),1,IF(AND(11%<=J152,J152<=20%),2,IF(AND(21%<=J152,J152<=30%),3,IF(AND(31%<=J152,J152<=40%),4,IF(AND(41%<=J152,J152<=50%),5,IF(AND(51%<=J152,J152<=60%),6,IF(AND(61%<=J152,J152<=70%),7,IF(AND(71%<=J152,J152<=80%),8,IF(AND(81%<=J152,J152<=90%),9,IF(AND(91%<=J152,J152<=100%),10,\"\"))))))))))","v":{"$error":"#NAME?"}},{"$f":"IF(AND(0%<=J152,J152<=10%),\"nul\",IF(AND(11%<=J152,J152<=20%),\"quasi nul\",IF(AND(21%<=J152,J152<=30%),\"très faible\",IF(AND(31%<=J152,J152<=40%),\"faible\",IF(AND(41%<=J152,J152<=50%),\"moyen\",IF(AND(51%<=J152,J152<=60%),\"moyen élevé\",IF(AND(61%<=J152,J152<=70%),\"élevé\",IF(AND(71%<=J152,J152<=80%),\"très élevés\",IF(AND(81%<=J152,J152<=90%),\"trés fort\",IF(AND(91%<=J152,J152<=100%),\"extreme\",\"\"))))))))))","v":{"$error":"#NAME?"}}]
[null,"MARGE",null,{"$f":"IF(D168<>\"\",D168-D164,\"\")","v":{"$error":"#NAME?"}},null,null,"bénéfice/H",{"$f":"IF(D166<>\"\",D166/H168,\"\")","v":{"$error":"#NAME?"}}]
[]
[null,"PRIX DE VENTE",null,{"$f":"IF(D164<>\"\",PVHT_facture_poste_3,\"\")","v":{"$error":"#NAME?"}},null,null,"heures",{"$f":"IF(PVHT_facture_poste_3<>\"\",Heures_poste_3_réel,\"\")","v":{"$error":"#NAME?"}}]
[]
[]
[]
[null,"coeff de marge",null,{"$f":"IF(D168<>\"\",D168/D164,\"\")","v":{"$error":"#NAME?"}}]
[]
[null,"% de bénéfice =",null,{"$f":"IF(D168<>\"\",D166/D168*1,\"\")","v":{"$error":"#NAME?"}}]
[]
[]
[]
[]
[null,null,null,{"$f":"IF(A177<>\"\",#REF!,\"\")","v":""},null,null,null,null,{"$f":"IF(A177<>\"\",#REF!,\"\")","v":""},{"$f":"IF(A177<>\"\",#REF!,\"\")","v":""}]
[]
[]
[]
[null,"client :"]
[null,{"$f":"IF(#REF!<>\"\",#REF!,\"\")","v":{"$error":"#REF!"}}]
[]
[null,{"$f":"IF(#REF!<>\"\",#REF!,\"\")","v":{"$error":"#REF!"}},null,{"$f":"IF(A177<>\"\",#REF!,\"\")","v":""}]
[]
[]
[]
[]
[]
[null,null,null,"Prix de revient",null,"frais généraux",null,"couts directs",null,"% s/ P.R"]
[]
[]
[null,"MAIN D'OEUVRE",null,{"$f":"IF(F195<>\"\",F195+H195,\"\")","v":{"$error":"#NAME?"}},null,{"$f":"IF(H195<>\"\",H195*Fgx_mo,\"\")","v":{"$error":"#NAME?"}},null,{"$f":"IF(PVHT_facture_poste_4<>\"\",SUMIF(#REF!,Réf_mo,#REF!)/(1+Fgx_mo),\"\")","v":{"$error":"#NAME?"}},null,{"$f":"IF(Total_HT_Facture<>\"\",D195*1/D207,\"\")","v":{"$error":"#NAME?"}}]
[]
[null,"MATERIEL",null,{"$f":"IF(F197<>\"\",F197+H197,\"\")","v":{"$error":"#NAME?"}},null,{"$f":"IF(PVHT_facture_poste_4<>\"\",SUMIF(#REF!,Code_racine_matériel,#REF!),\"\")","v":{"$error":"#NAME?"}},null,{"$f":"IF(PVHT_facture_poste_4<>\"\",SUMIF(#REF!,Code_racine_matériel,#REF!),\"\")","v":{"$error":"#NAME?"}},null,{"$f":"IF(Total_HT_Facture<>\"\",D197*1/D207,\"\")","v":{"$error":"#NAME?"}}]
[]
[null,"MATERIAUX",null,{"$f":"IF(F199<>\"\",F199+H199,\"\")","v":{"$error":"#NAME?"}},null,{"$f":"IF(PVHT_facture_poste_4<>\"\",SUMIF(#REF!,Code_racine_matériaux,#REF!),\"\")","v":{"$error":"#NAME?"}},null,{"$f":"IF(PVHT_facture_poste_4<>\"\",SUMIF(#REF!,Code_racine_matériaux,#REF!),\"\")","v":{"$error":"#NAME?"}},null,{"$f":"IF(Total_HT_Facture<>\"\",D199*1/D207,\"\")","v":{"$error":"#NAME?"}}]
[]
[null,"LOCATION",null,{"$f":"IF(F201<>\"\",F201+H201,\"\")","v":{"$error":"#NAME?"}},null,{"$f":"IF(PVHT_facture_poste_4<>\"\",SUMIF(#REF!,Code_racine_location,#REF!),\"\")","v":{"$error":"#NAME?"}},null,{"$f":"IF(PVHT_facture_poste_4<>\"\",SUMIF(#REF!,Code_racine_location,#REF!),\"\")","v":{"$error":"#NAME?"}},null,{"$f":"IF(Total_HT_Facture<>\"\",D201*1/D207,\"\")","v":{"$error":"#NAME?"}}]
[]
[null,"SOUS-TRAITANCE",null,{"$f":"IF(F203<>\"\",F203+H203,\"\")","v":{"$error":"#NAME?"}},null,{"$f":"IF(PVHT_facture_poste_4<>\"\",SUMIF(#REF!,Code_racine_sous_traitantce,#REF!),\"\")","v":{"$error":"#NAME?"}},null,{"$f":"IF(PVHT_facture_poste_4<>\"\",SUMIF(#REF!,Code_racine_sous_traitantce,#REF!),\"\")","v":{"$error":"#NAME?"}},null,{"$f":"IF(Total_HT_Facture<>\"\",D203*1/D207,\"\")","v":{"$error":"#NAME?"}}]
[]
[]
[null,null,null,null,null,null,null,null,"ECHELLE"]
[null,"TOTAL",null,{"$f":"IF(PVHT_facture_poste_4<>\"\",D195+D197+D199+D201+D203,\"\")","v":{"$error":"#NAME?"}},null,{"$f":"IF(PVHT_facture_poste_4<>\"\",F195+F197+F199+F201+F203,\"\")","v":{"$error":"#NAME?"}},null,{"$f":"IF(PVHT_facture_poste_4<>\"\",H195+H197+H199+H201+H203,\"\")","v":{"$error":"#NAME?"}},"DE RISQUES"]
[null,null,null,null,null,null,null,null,{"$f":"IF(AND(0%<=J195,J195<=10%),1,IF(AND(11%<=J195,J195<=20%),2,IF(AND(21%<=J195,J195<=30%),3,IF(AND(31%<=J195,J195<=40%),4,IF(AND(41%<=J195,J195<=50%),5,IF(AND(51%<=J195,J195<=60%),6,IF(AND(61%<=J195,J195<=70%),7,IF(AND(71%<=J195,J195<=80%),8,IF(AND(81%<=J195,J195<=90%),9,IF(AND(91%<=J195,J195<=100%),10,\"\"))))))))))","v":{"$error":"#NAME?"}},{"$f":"IF(AND(0%<=J195,J195<=10%),\"nul\",IF(AND(11%<=J195,J195<=20%),\"quasi nul\",IF(AND(21%<=J195,J195<=30%),\"très faible\",IF(AND(31%<=J195,J195<=40%),\"faible\",IF(AND(41%<=J195,J195<=50%),\"moyen\",IF(AND(51%<=J195,J195<=60%),\"moyen élevé\",IF(AND(61%<=J195,J195<=70%),\"élevé\",IF(AND(71%<=J195,J195<=80%),\"très élevés\",IF(AND(81%<=J195,J195<=90%),\"trés fort\",IF(AND(91%<=J195,J195<=100%),\"extreme\",\"\"))))))))))","v":{"$error":"#NAME?"}}]
[null,"MARGE",null,{"$f":"IF(D211<>\"\",D211-D207,\"\")","v":{"$error":"#NAME?"}},null,null,"bénéfice/H",{"$f":"IF(D209<>\"\",D209/H211,\"\")","v":{"$error":"#NAME?"}}]
[]
[null,"PRIX DE VENTE",null,{"$f":"IF(D207<>\"\",PVHT_facture_poste_4,\"\")","v":{"$error":"#NAME?"}},null,null,"heures",{"$f":"IF(PVHT_facture_poste_4<>\"\",Heures_poste_4_réel,\"\")","v":{"$error":"#NAME?"}}]
[]
[]
[]
[null,"coeff de marge",null,{"$f":"IF(D211<>\"\",D211/D207,\"\")","v":{"$error":"#NAME?"}}]
[]
[null,"% de bénéfice =",null,{"$f":"IF(D211<>\"\",D209/D211*1,\"\")","v":{"$error":"#NAME?"}}]
[]
[]
[]
[]
[null,null,null,{"$f":"IF(A220<>\"\",#REF!,\"\")","v":""},null,null,null,null,{"$f":"IF(A220<>\"\",#REF!,\"\")","v":""},{"$f":"IF(A220<>\"\",#REF!,\"\")","v":""}]
[]
[]
[]
[null,"client :"]
[null,{"$f":"IF(#REF!<>\"\",#REF!,\"\")","v":{"$error":"#REF!"}}]
[]
[null,{"$f":"IF(#REF!<>\"\",#REF!,\"\")","v":{"$error":"#REF!"}},null,{"$f":"IF(A220<>\"\",#REF!,\"\")","v":""}]
[]
[]
[]
[]
[]
[null,null,null,"Prix de revient",null,"frais généraux",null,"couts directs",null,"% s/ P.R"]
[]
[]
[null,"MAIN D'OEUVRE",null,{"$f":"IF(F238<>\"\",F238+H238,\"\")","v":{"$error":"#NAME?"}},null,{"$f":"IF(H238<>\"\",H238*Fgx_mo,\"\")","v":{"$error":"#NAME?"}},null,{"$f":"IF(PVHT_facture_poste_5<>\"\",SUMIF(#REF!,Réf_mo,#REF!)/(1+Fgx_mo),\"\")","v":{"$error":"#NAME?"}},null,{"$f":"IF(Total_HT_Facture<>\"\",D238*1/D250,\"\")","v":{"$error":"#NAME?"}}]
[]
[null,"MATERIEL",null,{"$f":"IF(F240<>\"\",F240+H240,\"\")","v":{"$error":"#NAME?"}},null,{"$f":"IF(PVHT_facture_poste_5<>\"\",SUMIF(#REF!,Code_racine_matériel,#REF!),\"\")","v":{"$error":"#NAME?"}},null,{"$f":"IF(PVHT_facture_poste_5<>\"\",SUMIF(#REF!,Code_racine_matériel,#REF!),\"\")","v":{"$error":"#NAME?"}},null,{"$f":"IF(Total_HT_Facture<>\"\",D240*1/D250,\"\")","v":{"$error":"#NAME?"}}]
[]
[null,"MATERIAUX",null,{"$f":"IF(F242<>\"\",F242+H242,\"\")","v":{"$error":"#NAME?"}},null,{"$f":"IF(PVHT_facture_poste_5<>\"\",SUMIF(#REF!,Code_racine_matériaux,#REF!),\"\")","v":{"$error":"#NAME?"}},null,{"$f":"IF(PVHT_facture_poste_5<>\"\",SUMIF(#REF!,Code_racine_matériaux,#REF!),\"\")","v":{"$error":"#NAME?"}},null,{"$f":"IF(Total_HT_Facture<>\"\",D242*1/D250,\"\")","v":{"$error":"#NAME?"}}]
[]
[null,"LOCATION",null,{"$f":"IF(F244<>\"\",F244+H244,\"\")","v":{"$error":"#NAME?"}},null,{"$f":"IF(PVHT_facture_poste_5<>\"\",SUMIF(#REF!,Code_racine_location,#REF!),\"\")","v":{"$error":"#NAME?"}},null,{"$f":"IF(PVHT_facture_poste_5<>\"\",SUMIF(#REF!,Code_racine_location,#REF!),\"\")","v":{"$error":"#NAME?"}},null,{"$f":"IF(Total_HT_Facture<>\"\",D244*1/D250,\"\")","v":{"$error":"#NAME?"}}]
[]
[null,"SOUS-TRAITANCE",null,{"$f":"IF(F246<>\"\",F246+H246,\"\")","v":{"$error":"#NAME?"}},null,{"$f":"IF(PVHT_facture_poste_5<>\"\",SUMIF(#REF!,Code_racine_sous_traitantce,#REF!),\"\")","v":{"$error":"#NAME?"}},null,{"$f":"IF(PVHT_facture_poste_5<>\"\",SUMIF(#REF!,Code_racine_sous_traitantce,#REF!),\"\")","v":{"$error":"#NAME?"}},null,{"$f":"IF(Total_HT_Facture<>\"\",D246*1/D250,\"\")","v":{"$error":"#NAME?"}}]
[]
[]
[null,null,null,null,null,null,null,null,"ECHELLE"]
[null,"TOTAL",null,{"$f":"IF(PVHT_facture_poste_5<>\"\",D238+D240+D242+D244+D246,\"\")","v":{"$error":"#NAME?"}},null,{"$f":"IF(PVHT_facture_poste_5<>\"\",F238+F240+F242+F244+F246,\"\")","v":{"$error":"#NAME?"}},null,{"$f":"IF(PVHT_facture_poste_5<>\"\",H238+H240+H242+H244+H246,\"\")","v":{"$error":"#NAME?"}},"DE RISQUES"]
[null,null,null,null,null,null,null,null,{"$f":"IF(AND(0%<=J238,J238<=10%),1,IF(AND(11%<=J238,J238<=20%),2,IF(AND(21%<=J238,J238<=30%),3,IF(AND(31%<=J238,J238<=40%),4,IF(AND(41%<=J238,J238<=50%),5,IF(AND(51%<=J238,J238<=60%),6,IF(AND(61%<=J238,J238<=70%),7,IF(AND(71%<=J238,J238<=80%),8,IF(AND(81%<=J238,J238<=90%),9,IF(AND(91%<=J238,J238<=100%),10,\"\"))))))))))","v":{"$error":"#NAME?"}},{"$f":"IF(AND(0%<=J238,J238<=10%),\"nul\",IF(AND(11%<=J238,J238<=20%),\"quasi nul\",IF(AND(21%<=J238,J238<=30%),\"très faible\",IF(AND(31%<=J238,J238<=40%),\"faible\",IF(AND(41%<=J238,J238<=50%),\"moyen\",IF(AND(51%<=J238,J238<=60%),\"moyen élevé\",IF(AND(61%<=J238,J238<=70%),\"élevé\",IF(AND(71%<=J238,J238<=80%),\"très élevés\",IF(AND(81%<=J238,J238<=90%),\"trés fort\",IF(AND(91%<=J238,J238<=100%),\"extreme\",\"\"))))))))))","v":{"$error":"#NAME?"}}]
[null,"MARGE",null,{"$f":"IF(D254<>\"\",D254-D250,\"\")","v":{"$error":"#NAME?"}},null,null,"bénéfice/H",{"$f":"IF(D252<>\"\",D252/H254,\"\")","v":{"$error":"#NAME?"}}]
[]
[null,"PRIX DE VENTE",null,{"$f":"IF(D250<>\"\",PVHT_facture_poste_5,\"\")","v":{"$error":"#NAME?"}},null,null,"heures",{"$f":"IF(PVHT_facture_poste_5<>\"\",Heures_poste_5_réel,\"\")","v":{"$error":"#NAME?"}}]
[]
[]
[]
[null,"coeff de marge",null,{"$f":"IF(D254<>\"\",D254/D250,\"\")","v":{"$error":"#NAME?"}}]
[]
[null,"% de bénéfice =",null,{"$f":"IF(D254<>\"\",D252/D254*1,\"\")","v":{"$error":"#NAME?"}}]
[]
[]
[]
[]
[null,null,null,{"$f":"IF(A263<>\"\",#REF!,\"\")","v":""},null,null,null,null,{"$f":"IF(A263<>\"\",#REF!,\"\")","v":""},{"$f":"IF(A263<>\"\",#REF!,\"\")","v":""}]
[]
[]
[]
[null,"client :"]
[null,{"$f":"IF(#REF!<>\"\",#REF!,\"\")","v":{"$error":"#REF!"}}]
[]
[null,{"$f":"IF(#REF!<>\"\",#REF!,\"\")","v":{"$error":"#REF!"}},null,{"$f":"IF(A263<>\"\",#REF!,\"\")","v":""}]
[]
[]
[]
[]
[]
[null,null,null,"Prix de revient",null,"frais généraux",null,"couts directs",null,"% s/ P.R"]
[]
[]
[null,"MAIN D'OEUVRE",null,{"$f":"IF(F281<>\"\",F281+H281,\"\")","v":{"$error":"#NAME?"}},null,{"$f":"IF(H281<>\"\",H281*Fgx_mo,\"\")","v":{"$error":"#NAME?"}},null,{"$f":"IF(PVHT_facture_poste_6<>\"\",SUMIF(#REF!,Réf_mo,#REF!)/(1+Fgx_mo),\"\")","v":{"$error":"#NAME?"}},null,{"$f":"IF(Total_HT_Facture<>\"\",D281*1/D293,\"\")","v":{"$error":"#NAME?"}}]
[]
[null,"MATERIEL",null,{"$f":"IF(F283<>\"\",F283+H283,\"\")","v":{"$error":"#NAME?"}},null,{"$f":"IF(PVHT_facture_poste_6<>\"\",SUMIF(#REF!,Code_racine_matériel,#REF!),\"\")","v":{"$error":"#NAME?"}},null,{"$f":"IF(PVHT_facture_poste_6<>\"\",SUMIF(#REF!,Code_racine_matériel,#REF!),\"\")","v":{"$error":"#NAME?"}},null,{"$f":"IF(Total_HT_Facture<>\"\",D283*1/D293,\"\")","v":{"$error":"#NAME?"}}]
[]
[null,"MATERIAUX",null,{"$f":"IF(F285<>\"\",F285+H285,\"\")","v":{"$error":"#NAME?"}},null,{"$f":"IF(PVHT_facture_poste_6<>\"\",SUMIF(#REF!,Code_racine_matériaux,#REF!),\"\")","v":{"$error":"#NAME?"}},null,{"$f":"IF(PVHT_facture_poste_6<>\"\",SUMIF(#REF!,Code_racine_matériaux,#REF!),\"\")","v":{"$error":"#NAME?"}},null,{"$f":"IF(Total_HT_Facture<>\"\",D285*1/D293,\"\")","v":{"$error":"#NAME?"}}]
[]
[null,"LOCATION",null,{"$f":"IF(F287<>\"\",F287+H287,\"\")","v":{"$error":"#NAME?"}},null,{"$f":"IF(PVHT_facture_poste_6<>\"\",SUMIF(#REF!,Code_racine_location,#REF!),\"\")","v":{"$error":"#NAME?"}},null,{"$f":"IF(PVHT_facture_poste_6<>\"\",SUMIF(#REF!,Code_racine_location,#REF!),\"\")","v":{"$error":"#NAME?"}},null,{"$f":"IF(Total_HT_Facture<>\"\",D287*1/D293,\"\")","v":{"$error":"#NAME?"}}]
[]
[null,"SOUS-TRAITANCE",null,{"$f":"IF(F289<>\"\",F289+H289,\"\")","v":{"$error":"#NAME?"}},null,{"$f":"IF(PVHT_facture_poste_6<>\"\",SUMIF(#REF!,Code_racine_sous_traitantce,#REF!),\"\")","v":{"$error":"#NAME?"}},null,{"$f":"IF(PVHT_facture_poste_6<>\"\",SUMIF(#REF!,Code_racine_sous_traitantce,#REF!),\"\")","v":{"$error":"#NAME?"}},null,{"$f":"IF(Total_HT_Facture<>\"\",D289*1/D293,\"\")","v":{"$error":"#NAME?"}}]
[]
[]
[null,null,null,null,null,null,null,null,"ECHELLE"]
[null,"TOTAL",null,{"$f":"IF(PVHT_facture_poste_6<>\"\",D281+D283+D285+D287+D289,\"\")","v":{"$error":"#NAME?"}},null,{"$f":"IF(PVHT_facture_poste_6<>\"\",F281+F283+F285+F287+F289,\"\")","v":{"$error":"#NAME?"}},null,{"$f":"IF(PVHT_facture_poste_6<>\"\",H281+H283+H285+H287+H289,\"\")","v":{"$error":"#NAME?"}},"DE RISQUES"]
[null,null,null,null,null,null,null,null,{"$f":"IF(AND(0%<=J281,J281<=10%),1,IF(AND(11%<=J281,J281<=20%),2,IF(AND(21%<=J281,J281<=30%),3,IF(AND(31%<=J281,J281<=40%),4,IF(AND(41%<=J281,J281<=50%),5,IF(AND(51%<=J281,J281<=60%),6,IF(AND(61%<=J281,J281<=70%),7,IF(AND(71%<=J281,J281<=80%),8,IF(AND(81%<=J281,J281<=90%),9,IF(AND(91%<=J281,J281<=100%),10,\"\"))))))))))","v":{"$error":"#NAME?"}},{"$f":"IF(AND(0%<=J281,J281<=10%),\"nul\",IF(AND(11%<=J281,J281<=20%),\"quasi nul\",IF(AND(21%<=J281,J281<=30%),\"très faible\",IF(AND(31%<=J281,J281<=40%),\"faible\",IF(AND(41%<=J281,J281<=50%),\"moyen\",IF(AND(51%<=J281,J281<=60%),\"moyen élevé\",IF(AND(61%<=J281,J281<=70%),\"élevé\",IF(AND(71%<=J281,J281<=80%),\"très élevés\",IF(AND(81%<=J281,J281<=90%),\"trés fort\",IF(AND(91%<=J281,J281<=100%),\"extreme\",\"\"))))))))))","v":{"$error":"#NAME?"}}]
[null,"MARGE",null,{"$f":"IF(D297<>\"\",D297-D293,\"\")","v":{"$error":"#NAME?"}},null,null,"bénéfice/H",{"$f":"IF(D295<>\"\",D295/H297,\"\")","v":{"$error":"#NAME?"}}]
[]
[null,"PRIX DE VENTE",null,{"$f":"IF(D293<>\"\",PVHT_facture_poste_6,\"\")","v":{"$error":"#NAME?"}},null,null,"heures",{"$f":"IF(PVHT_facture_poste_6<>\"\",Heures_poste_6_réel,\"\")","v":{"$error":"#NAME?"}}]
[]
[]
[]
[null,"coeff de marge",null,{"$f":"IF(D297<>\"\",D297/D293,\"\")","v":{"$error":"#NAME?"}}]
[]
[null,"% de bénéfice =",null,{"$f":"IF(D297<>\"\",D295/D297*1,\"\")","v":{"$error":"#NAME?"}}]
[]
[]
[]
[]
[null,null,null,{"$f":"IF(A306<>\"\",#REF!,\"\")","v":""},null,null,null,null,{"$f":"IF(A306<>\"\",#REF!,\"\")","v":""},{"$f":"IF(A306<>\"\",#REF!,\"\")","v":""}]
[]
[]
[]
[null,"client :"]
[null,{"$f":"IF(#REF!<>\"\",#REF!,\"\")","v":{"$error":"#REF!"}}]
[]
[null,{"$f":"IF(#REF!<>\"\",#REF!,\"\")","v":{"$error":"#REF!"}},null,{"$f":"IF(A306<>\"\",#REF!,\"\")","v":""}]
[]
[]
[]
[]
[]
[null,null,null,"Prix de revient",null,"frais généraux",null,"couts directs",null,"% s/ P.R"]
[]
[]
[null,"MAIN D'OEUVRE",null,{"$f":"IF(F324<>\"\",F324+H324,\"\")","v":{"$error":"#NAME?"}},null,{"$f":"IF(H324<>\"\",H324*Fgx_mo,\"\")","v":{"$error":"#NAME?"}},null,{"$f":"IF(PVHT_facture_poste_7<>\"\",SUMIF(#REF!,Réf_mo,#REF!)/(1+Fgx_mo),\"\")","v":{"$error":"#NAME?"}},null,{"$f":"IF(Total_HT_Facture<>\"\",D324*1/D336,\"\")","v":{"$error":"#NAME?"}}]
[]
[null,"MATERIEL",null,{"$f":"IF(F326<>\"\",F326+H326,\"\")","v":{"$error":"#NAME?"}},null,{"$f":"IF(PVHT_facture_poste_7<>\"\",SUMIF(#REF!,Code_racine_matériel,#REF!),\"\")","v":{"$error":"#NAME?"}},null,{"$f":"IF(PVHT_facture_poste_7<>\"\",SUMIF(#REF!,Code_racine_matériel,#REF!),\"\")","v":{"$error":"#NAME?"}},null,{"$f":"IF(Total_HT_Facture<>\"\",D326*1/D336,\"\")","v":{"$error":"#NAME?"}}]
[]
[null,"MATERIAUX",null,{"$f":"IF(F328<>\"\",F328+H328,\"\")","v":{"$error":"#NAME?"}},null,{"$f":"IF(PVHT_facture_poste_7<>\"\",SUMIF(#REF!,Code_racine_matériaux,#REF!),\"\")","v":{"$error":"#NAME?"}},null,{"$f":"IF(PVHT_facture_poste_7<>\"\",SUMIF(#REF!,Code_racine_matériaux,#REF!),\"\")","v":{"$error":"#NAME?"}},null,{"$f":"IF(Total_HT_Facture<>\"\",D328*1/D336,\"\")","v":{"$error":"#NAME?"}}]
[]
[null,"LOCATION",null,{"$f":"IF(F330<>\"\",F330+H330,\"\")","v":{"$error":"#NAME?"}},null,{"$f":"IF(PVHT_facture_poste_7<>\"\",SUMIF(#REF!,Code_racine_location,#REF!),\"\")","v":{"$error":"#NAME?"}},null,{"$f":"IF(PVHT_facture_poste_7<>\"\",SUMIF(#REF!,Code_racine_location,#REF!),\"\")","v":{"$error":"#NAME?"}},null,{"$f":"IF(Total_HT_Facture<>\"\",D330*1/D336,\"\")","v":{"$error":"#NAME?"}}]
[]
[null,"SOUS-TRAITANCE",null,{"$f":"IF(F332<>\"\",F332+H332,\"\")","v":{"$error":"#NAME?"}},null,{"$f":"IF(PVHT_facture_poste_7<>\"\",SUMIF(#REF!,Code_racine_sous_traitantce,#REF!),\"\")","v":{"$error":"#NAME?"}},null,{"$f":"IF(PVHT_facture_poste_7<>\"\",SUMIF(#REF!,Code_racine_sous_traitantce,#REF!),\"\")","v":{"$error":"#NAME?"}},null,{"$f":"IF(Total_HT_Facture<>\"\",D332*1/D336,\"\")","v":{"$error":"#NAME?"}}]
[]
[]
[null,null,null,null,null,null,null,null,"ECHELLE"]
[null,"TOTAL",null,{"$f":"IF(PVHT_facture_poste_7<>\"\",D324+D326+D328+D330+D332,\"\")","v":{"$error":"#NAME?"}},null,{"$f":"IF(PVHT_facture_poste_7<>\"\",F324+F326+F328+F330+F332,\"\")","v":{"$error":"#NAME?"}},null,{"$f":"IF(PVHT_facture_poste_7<>\"\",H324+H326+H328+H330+H332,\"\")","v":{"$error":"#NAME?"}},"DE RISQUES"]
[null,null,null,null,null,null,null,null,{"$f":"IF(AND(0%<=J324,J324<=10%),1,IF(AND(11%<=J324,J324<=20%),2,IF(AND(21%<=J324,J324<=30%),3,IF(AND(31%<=J324,J324<=40%),4,IF(AND(41%<=J324,J324<=50%),5,IF(AND(51%<=J324,J324<=60%),6,IF(AND(61%<=J324,J324<=70%),7,IF(AND(71%<=J324,J324<=80%),8,IF(AND(81%<=J324,J324<=90%),9,IF(AND(91%<=J324,J324<=100%),10,\"\"))))))))))","v":{"$error":"#NAME?"}},{"$f":"IF(AND(0%<=J324,J324<=10%),\"nul\",IF(AND(11%<=J324,J324<=20%),\"quasi nul\",IF(AND(21%<=J324,J324<=30%),\"très faible\",IF(AND(31%<=J324,J324<=40%),\"faible\",IF(AND(41%<=J324,J324<=50%),\"moyen\",IF(AND(51%<=J324,J324<=60%),\"moyen élevé\",IF(AND(61%<=J324,J324<=70%),\"élevé\",IF(AND(71%<=J324,J324<=80%),\"très élevés\",IF(AND(81%<=J324,J324<=90%),\"trés fort\",IF(AND(91%<=J324,J324<=100%),\"extreme\",\"\"))))))))))","v":{"$error":"#NAME?"}}]
[null,"MARGE",null,{"$f":"IF(D340<>\"\",D340-D336,\"\")","v":{"$error":"#NAME?"}},null,null,"bénéfice/H",{"$f":"IF(D338<>\"\",D338/H340,\"\")","v":{"$error":"#NAME?"}}]
[]
[null,"PRIX DE VENTE",null,{"$f":"IF(D336<>\"\",PVHT_facture_poste_7,\"\")","v":{"$error":"#NAME?"}},null,null,"heures",{"$f":"IF(PVHT_facture_poste_7<>\"\",Heures_poste_7_réel,\"\")","v":{"$error":"#NAME?"}}]
[]
[]
[]
[null,"coeff de marge",null,{"$f":"IF(D340<>\"\",D340/D336,\"\")","v":{"$error":"#NAME?"}}]
[]
[null,"% de bénéfice =",null,{"$f":"IF(D340<>\"\",D338/D340*1,\"\")","v":{"$error":"#NAME?"}}]
[]
[]
[]
[]
[null,null,null,{"$f":"IF(A349<>\"\",#REF!,\"\")","v":""},null,null,null,null,{"$f":"IF(A349<>\"\",#REF!,\"\")","v":""},{"$f":"IF(A349<>\"\",#REF!,\"\")","v":""}]
[]
[]
[]
[null,"client :"]
[null,{"$f":"IF(#REF!<>\"\",#REF!,\"\")","v":{"$error":"#REF!"}}]
[]
[null,{"$f":"IF(#REF!<>\"\",#REF!,\"\")","v":{"$error":"#REF!"}},null,{"$f":"IF(A349<>\"\",#REF!,\"\")","v":""}]
[]
[]
[]
[]
[]
[null,null,null,"Prix de revient",null,"frais généraux",null,"couts directs",null,"% s/ P.R"]
[]
[]
[null,"MAIN D'OEUVRE",null,{"$f":"IF(F367<>\"\",F367+H367,\"\")","v":{"$error":"#NAME?"}},null,{"$f":"IF(H367<>\"\",H367*Fgx_mo,\"\")","v":{"$error":"#NAME?"}},null,{"$f":"IF(PVHT_facture_poste_8<>\"\",SUMIF(#REF!,Réf_mo,#REF!)/(1+Fgx_mo),\"\")","v":{"$error":"#NAME?"}},null,{"$f":"IF(Total_HT_Facture<>\"\",D367*1/D379,\"\")","v":{"$error":"#NAME?"}}]
[]
[null,"MATERIEL",null,{"$f":"IF(F369<>\"\",F369+H369,\"\")","v":{"$error":"#NAME?"}},null,{"$f":"IF(PVHT_facture_poste_8<>\"\",SUMIF(#REF!,Code_racine_matériel,#REF!),\"\")","v":{"$error":"#NAME?"}},null,{"$f":"IF(PVHT_facture_poste_8<>\"\",SUMIF(#REF!,Code_racine_matériel,#REF!),\"\")","v":{"$error":"#NAME?"}},null,{"$f":"IF(Total_HT_Facture<>\"\",D369*1/D379,\"\")","v":{"$error":"#NAME?"}}]
[]
[null,"MATERIAUX",null,{"$f":"IF(F371<>\"\",F371+H371,\"\")","v":{"$error":"#NAME?"}},null,{"$f":"IF(PVHT_facture_poste_8<>\"\",SUMIF(#REF!,Code_racine_matériaux,#REF!),\"\")","v":{"$error":"#NAME?"}},null,{"$f":"IF(PVHT_facture_poste_8<>\"\",SUMIF(#REF!,Code_racine_matériaux,#REF!),\"\")","v":{"$error":"#NAME?"}},null,{"$f":"IF(Total_HT_Facture<>\"\",D371*1/D379,\"\")","v":{"$error":"#NAME?"}}]
[]
[null,"LOCATION",null,{"$f":"IF(F373<>\"\",F373+H373,\"\")","v":{"$error":"#NAME?"}},null,{"$f":"IF(PVHT_facture_poste_8<>\"\",SUMIF(#REF!,Code_racine_location,#REF!),\"\")","v":{"$error":"#NAME?"}},null,{"$f":"IF(PVHT_facture_poste_8<>\"\",SUMIF(#REF!,Code_racine_location,#REF!),\"\")","v":{"$error":"#NAME?"}},null,{"$f":"IF(Total_HT_Facture<>\"\",D373*1/D379,\"\")","v":{"$error":"#NAME?"}}]
[]
[null,"SOUS-TRAITANCE",null,{"$f":"IF(F375<>\"\",F375+H375,\"\")","v":{"$error":"#NAME?"}},null,{"$f":"IF(PVHT_facture_poste_8<>\"\",SUMIF(#REF!,Code_racine_sous_traitantce,#REF!),\"\")","v":{"$error":"#NAME?"}},null,{"$f":"IF(PVHT_facture_poste_8<>\"\",SUMIF(#REF!,Code_racine_sous_traitantce,#REF!),\"\")","v":{"$error":"#NAME?"}},null,{"$f":"IF(Total_HT_Facture<>\"\",D375*1/D379,\"\")","v":{"$error":"#NAME?"}}]
[]
[]
[null,null,null,null,null,null,null,null,"ECHELLE"]
[null,"TOTAL",null,{"$f":"IF(PVHT_facture_poste_8<>\"\",D367+D369+D371+D373+D375,\"\")","v":{"$error":"#NAME?"}},null,{"$f":"IF(PVHT_facture_poste_8<>\"\",F367+F369+F371+F373+F375,\"\")","v":{"$error":"#NAME?"}},null,{"$f":"IF(PVHT_facture_poste_8<>\"\",H367+H369+H371+H373+H375,\"\")","v":{"$error":"#NAME?"}},"DE RISQUES"]
[null,null,null,null,null,null,null,null,{"$f":"IF(AND(0%<=J367,J367<=10%),1,IF(AND(11%<=J367,J367<=20%),2,IF(AND(21%<=J367,J367<=30%),3,IF(AND(31%<=J367,J367<=40%),4,IF(AND(41%<=J367,J367<=50%),5,IF(AND(51%<=J367,J367<=60%),6,IF(AND(61%<=J367,J367<=70%),7,IF(AND(71%<=J367,J367<=80%),8,IF(AND(81%<=J367,J367<=90%),9,IF(AND(91%<=J367,J367<=100%),10,\"\"))))))))))","v":{"$error":"#NAME?"}},{"$f":"IF(AND(0%<=J367,J367<=10%),\"nul\",IF(AND(11%<=J367,J367<=20%),\"quasi nul\",IF(AND(21%<=J367,J367<=30%),\"très faible\",IF(AND(31%<=J367,J367<=40%),\"faible\",IF(AND(41%<=J367,J367<=50%),\"moyen\",IF(AND(51%<=J367,J367<=60%),\"moyen élevé\",IF(AND(61%<=J367,J367<=70%),\"élevé\",IF(AND(71%<=J367,J367<=80%),\"très élevés\",IF(AND(81%<=J367,J367<=90%),\"trés fort\",IF(AND(91%<=J367,J367<=100%),\"extreme\",\"\"))))))))))","v":{"$error":"#NAME?"}}]
[null,"MARGE",null,{"$f":"IF(D383<>\"\",D383-D379,\"\")","v":{"$error":"#NAME?"}},null,null,"bénéfice/H",{"$f":"IF(D381<>\"\",D381/H383,\"\")","v":{"$error":"#NAME?"}}]
[]
[null,"PRIX DE VENTE",null,{"$f":"IF(D379<>\"\",PVHT_facture_poste_8,\"\")","v":{"$error":"#NAME?"}},null,null,"heures",{"$f":"IF(PVHT_facture_poste_8<>\"\",Heures_poste_8_réel,\"\")","v":{"$error":"#NAME?"}}]
[]
[]
[]
[null,"coeff de marge",null,{"$f":"IF(D383<>\"\",D383/D379,\"\")","v":{"$error":"#NAME?"}}]
[]
[null,"% de bénéfice =",null,{"$f":"IF(D383<>\"\",D381/D383*1,\"\")","v":{"$error":"#NAME?"}}]
[]
[]
[]
[]
[null,null,null,{"$f":"IF(A392<>\"\",#REF!,\"\")","v":""},null,null,null,null,{"$f":"IF(A392<>\"\",#REF!,\"\")","v":""},{"$f":"IF(A392<>\"\",#REF!,\"\")","v":""}]
[]
[]
[]
[null,"client :"]
[null,{"$f":"IF(#REF!<>\"\",#REF!,\"\")","v":{"$error":"#REF!"}}]
[]
[null,{"$f":"IF(#REF!<>\"\",#REF!,\"\")","v":{"$error":"#REF!"}},null,{"$f":"IF(A392<>\"\",#REF!,\"\")","v":""}]
[]
[]
[]
[]
[]
[null,null,null,"Prix de revient",null,"frais généraux",null,"couts directs",null,"% s/ P.R"]
[]
[]
[null,"MAIN D'OEUVRE",null,{"$f":"IF(F410<>\"\",F410+H410,\"\")","v":{"$error":"#NAME?"}},null,{"$f":"IF(H410<>\"\",H410*Fgx_mo,\"\")","v":{"$error":"#NAME?"}},null,{"$f":"IF(PVHT_facture_poste_9<>\"\",SUMIF(#REF!,Réf_mo,#REF!)/(1+Fgx_mo),\"\")","v":{"$error":"#NAME?"}},null,{"$f":"IF(Total_HT_Facture<>\"\",D410*1/D422,\"\")","v":{"$error":"#NAME?"}}]
[]
[null,"MATERIEL",null,{"$f":"IF(F412<>\"\",F412+H412,\"\")","v":{"$error":"#NAME?"}},null,{"$f":"IF(PVHT_facture_poste_9<>\"\",SUMIF(#REF!,Code_racine_matériel,#REF!),\"\")","v":{"$error":"#NAME?"}},null,{"$f":"IF(PVHT_facture_poste_9<>\"\",SUMIF(#REF!,Code_racine_matériel,#REF!),\"\")","v":{"$error":"#NAME?"}},null,{"$f":"IF(Total_HT_Facture<>\"\",D412*1/D422,\"\")","v":{"$error":"#NAME?"}}]
[]
[null,"MATERIAUX",null,{"$f":"IF(F414<>\"\",F414+H414,\"\")","v":{"$error":"#NAME?"}},null,{"$f":"IF(PVHT_facture_poste_9<>\"\",SUMIF(#REF!,Code_racine_matériaux,#REF!),\"\")","v":{"$error":"#NAME?"}},null,{"$f":"IF(PVHT_facture_poste_9<>\"\",SUMIF(#REF!,Code_racine_matériaux,#REF!),\"\")","v":{"$error":"#NAME?"}},null,{"$f":"IF(Total_HT_Facture<>\"\",D414*1/D422,\"\")","v":{"$error":"#NAME?"}}]
[]
[null,"LOCATION",null,{"$f":"IF(F416<>\"\",F416+H416,\"\")","v":{"$error":"#NAME?"}},null,{"$f":"IF(PVHT_facture_poste_9<>\"\",SUMIF(#REF!,Code_racine_location,#REF!),\"\")","v":{"$error":"#NAME?"}},null,{"$f":"IF(PVHT_facture_poste_9<>\"\",SUMIF(#REF!,Code_racine_location,#REF!),\"\")","v":{"$error":"#NAME?"}},null,{"$f":"IF(Total_HT_Facture<>\"\",D416*1/D422,\"\")","v":{"$error":"#NAME?"}}]
[]
[null,"SOUS-TRAITANCE",null,{"$f":"IF(F418<>\"\",F418+H418,\"\")","v":{"$error":"#NAME?"}},null,{"$f":"IF(PVHT_facture_poste_9<>\"\",SUMIF(#REF!,Code_racine_sous_traitantce,#REF!),\"\")","v":{"$error":"#NAME?"}},null,{"$f":"IF(PVHT_facture_poste_9<>\"\",SUMIF(#REF!,Code_racine_sous_traitantce,#REF!),\"\")","v":{"$error":"#NAME?"}},null,{"$f":"IF(Total_HT_Facture<>\"\",D418*1/D422,\"\")","v":{"$error":"#NAME?"}}]
[]
[]
[null,null,null,null,null,null,null,null,"ECHELLE"]
[null,"TOTAL",null,{"$f":"IF(PVHT_facture_poste_9<>\"\",D410+D412+D414+D416+D418,\"\")","v":{"$error":"#NAME?"}},null,{"$f":"IF(PVHT_facture_poste_9<>\"\",F410+F412+F414+F416+F418,\"\")","v":{"$error":"#NAME?"}},null,{"$f":"IF(PVHT_facture_poste_9<>\"\",H410+H412+H414+H416+H418,\"\")","v":{"$error":"#NAME?"}},"DE RISQUES"]
[null,null,null,null,null,null,null,null,{"$f":"IF(AND(0%<=J410,J410<=10%),1,IF(AND(11%<=J410,J410<=20%),2,IF(AND(21%<=J410,J410<=30%),3,IF(AND(31%<=J410,J410<=40%),4,IF(AND(41%<=J410,J410<=50%),5,IF(AND(51%<=J410,J410<=60%),6,IF(AND(61%<=J410,J410<=70%),7,IF(AND(71%<=J410,J410<=80%),8,IF(AND(81%<=J410,J410<=90%),9,IF(AND(91%<=J410,J410<=100%),10,\"\"))))))))))","v":{"$error":"#NAME?"}},{"$f":"IF(AND(0%<=J410,J410<=10%),\"nul\",IF(AND(11%<=J410,J410<=20%),\"quasi nul\",IF(AND(21%<=J410,J410<=30%),\"très faible\",IF(AND(31%<=J410,J410<=40%),\"faible\",IF(AND(41%<=J410,J410<=50%),\"moyen\",IF(AND(51%<=J410,J410<=60%),\"moyen élevé\",IF(AND(61%<=J410,J410<=70%),\"élevé\",IF(AND(71%<=J410,J410<=80%),\"très élevés\",IF(AND(81%<=J410,J410<=90%),\"trés fort\",IF(AND(91%<=J410,J410<=100%),\"extreme\",\"\"))))))))))","v":{"$error":"#NAME?"}}]
[null,"MARGE",null,{"$f":"IF(D426<>\"\",D426-D422,\"\")","v":{"$error":"#NAME?"}},null,null,"bénéfice/H",{"$f":"IF(D424<>\"\",D424/H426,\"\")","v":{"$error":"#NAME?"}}]
[]
[null,"PRIX DE VENTE",null,{"$f":"IF(D422<>\"\",PVHT_facture_poste_9,\"\")","v":{"$error":"#NAME?"}},null,null,"heures",{"$f":"IF(PVHT_facture_poste_9<>\"\",Heures_poste_9_réel,\"\")","v":{"$error":"#NAME?"}}]
[]
[]
[]
[null,"coeff de marge",null,{"$f":"IF(D426<>\"\",D426/D422,\"\")","v":{"$error":"#NAME?"}}]
[]
[null,"% de bénéfice =",null,{"$f":"IF(D426<>\"\",D424/D426*1,\"\")","v":{"$error":"#NAME?"}}]
[]
[]
[]
[]
[null,null,null,{"$f":"IF(A435<>\"\",#REF!,\"\")","v":""},null,null,null,null,{"$f":"IF(A435<>\"\",#REF!,\"\")","v":""},{"$f":"IF(A435<>\"\",#REF!,\"\")","v":""}]
[]
[]
[]
[null,"client :"]
[null,{"$f":"IF(#REF!<>\"\",#REF!,\"\")","v":{"$error":"#REF!"}}]
[]
[null,{"$f":"IF(#REF!<>\"\",#REF!,\"\")","v":{"$error":"#REF!"}},null,{"$f":"IF(A435<>\"\",#REF!,\"\")","v":""}]
[]
[]
[]
[]
[]
[null,null,null,"Prix de revient",null,"frais généraux",null,"couts directs",null,"% s/ P.R"]
[]
[]
[null,"MAIN D'OEUVRE",null,{"$f":"IF(F453<>\"\",F453+H453,\"\")","v":{"$error":"#NAME?"}},null,{"$f":"IF(H453<>\"\",H453*Fgx_mo,\"\")","v":{"$error":"#NAME?"}},null,{"$f":"IF(PVHT_facture_poste_10<>\"\",SUMIF(#REF!,Réf_mo,#REF!)/(1+Fgx_mo),\"\")","v":{"$error":"#NAME?"}},null,{"$f":"IF(Total_HT_Facture<>\"\",D453*1/D465,\"\")","v":{"$error":"#NAME?"}}]
[]
[null,"MATERIEL",null,{"$f":"IF(F455<>\"\",F455+H455,\"\")","v":{"$error":"#NAME?"}},null,{"$f":"IF(PVHT_facture_poste_10<>\"\",SUMIF(#REF!,Code_racine_matériel,#REF!),\"\")","v":{"$error":"#NAME?"}},null,{"$f":"IF(PVHT_facture_poste_10<>\"\",SUMIF(#REF!,Code_racine_matériel,#REF!),\"\")","v":{"$error":"#NAME?"}},null,{"$f":"IF(Total_HT_Facture<>\"\",D455*1/D465,\"\")","v":{"$error":"#NAME?"}}]
[]
[null,"MATERIAUX",null,{"$f":"IF(F457<>\"\",F457+H457,\"\")","v":{"$error":"#NAME?"}},null,{"$f":"IF(PVHT_facture_poste_10<>\"\",SUMIF(#REF!,Code_racine_matériaux,#REF!),\"\")","v":{"$error":"#NAME?"}},null,{"$f":"IF(PVHT_facture_poste_10<>\"\",SUMIF(#REF!,Code_racine_matériaux,#REF!),\"\")","v":{"$error":"#NAME?"}},null,{"$f":"IF(Total_HT_Facture<>\"\",D457*1/D465,\"\")","v":{"$error":"#NAME?"}}]
[]
[null,"LOCATION",null,{"$f":"IF(F459<>\"\",F459+H459,\"\")","v":{"$error":"#NAME?"}},null,{"$f":"IF(PVHT_facture_poste_10<>\"\",SUMIF(#REF!,Code_racine_location,#REF!),\"\")","v":{"$error":"#NAME?"}},null,{"$f":"IF(PVHT_facture_poste_10<>\"\",SUMIF(#REF!,Code_racine_location,#REF!),\"\")","v":{"$error":"#NAME?"}},null,{"$f":"IF(Total_HT_Facture<>\"\",D459*1/D465,\"\")","v":{"$error":"#NAME?"}}]
[]
[null,"SOUS-TRAITANCE",null,{"$f":"IF(F461<>\"\",F461+H461,\"\")","v":{"$error":"#NAME?"}},null,{"$f":"IF(PVHT_facture_poste_10<>\"\",SUMIF(#REF!,Code_racine_sous_traitantce,#REF!),\"\")","v":{"$error":"#NAME?"}},null,{"$f":"IF(PVHT_facture_poste_10<>\"\",SUMIF(#REF!,Code_racine_sous_traitantce,#REF!),\"\")","v":{"$error":"#NAME?"}},null,{"$f":"IF(Total_HT_Facture<>\"\",D461*1/D465,\"\")","v":{"$error":"#NAME?"}}]
[]
[]
[null,null,null,null,null,null,null,null,"ECHELLE"]
[null,"TOTAL",null,{"$f":"IF(PVHT_facture_poste_10<>\"\",D453+D455+D457+D459+D461,\"\")","v":{"$error":"#NAME?"}},null,{"$f":"IF(PVHT_facture_poste_10<>\"\",F453+F455+F457+F459+F461,\"\")","v":{"$error":"#NAME?"}},null,{"$f":"IF(PVHT_facture_poste_10<>\"\",H453+H455+H457+H459+H461,\"\")","v":{"$error":"#NAME?"}},"DE RISQUES"]
[null,null,null,null,null,null,null,null,{"$f":"IF(AND(0%<=J453,J453<=10%),1,IF(AND(11%<=J453,J453<=20%),2,IF(AND(21%<=J453,J453<=30%),3,IF(AND(31%<=J453,J453<=40%),4,IF(AND(41%<=J453,J453<=50%),5,IF(AND(51%<=J453,J453<=60%),6,IF(AND(61%<=J453,J453<=70%),7,IF(AND(71%<=J453,J453<=80%),8,IF(AND(81%<=J453,J453<=90%),9,IF(AND(91%<=J453,J453<=100%),10,\"\"))))))))))","v":{"$error":"#NAME?"}},{"$f":"IF(AND(0%<=J453,J453<=10%),\"nul\",IF(AND(11%<=J453,J453<=20%),\"quasi nul\",IF(AND(21%<=J453,J453<=30%),\"très faible\",IF(AND(31%<=J453,J453<=40%),\"faible\",IF(AND(41%<=J453,J453<=50%),\"moyen\",IF(AND(51%<=J453,J453<=60%),\"moyen élevé\",IF(AND(61%<=J453,J453<=70%),\"élevé\",IF(AND(71%<=J453,J453<=80%),\"très élevés\",IF(AND(81%<=J453,J453<=90%),\"trés fort\",IF(AND(91%<=J453,J453<=100%),\"extreme\",\"\"))))))))))","v":{"$error":"#NAME?"}}]
[null,"MARGE",null,{"$f":"IF(D469<>\"\",D469-D465,\"\")","v":{"$error":"#NAME?"}},null,null,"bénéfice/H",{"$f":"IF(D467<>\"\",D467/H469,\"\")","v":{"$error":"#NAME?"}}]
[]
[null,"PRIX DE VENTE",null,{"$f":"IF(D465<>\"\",PVHT_facture_poste_10,\"\")","v":{"$error":"#NAME?"}},null,null,"heures",{"$f":"IF(PVHT_facture_poste_10<>\"\",Heures_poste_10_réel,\"\")","v":{"$error":"#NAME?"}}]
[]
[]
[]
[null,"coeff de marge",null,{"$f":"IF(D469<>\"\",D469/D465,\"\")","v":{"$error":"#NAME?"}}]
[]
[null,"% de bénéfice =",null,{"$f":"IF(D469<>\"\",D467/D469*1,\"\")","v":{"$error":"#NAME?"}}]
[]
[]
[]
[]
[null,null,null,{"$f":"IF(A478<>\"\",#REF!,\"\")","v":""},null,null,null,null,{"$f":"IF(A478<>\"\",#REF!,\"\")","v":""},{"$f":"IF(A478<>\"\",#REF!,\"\")","v":""}]
[]
[]
[]
[null,"client :"]
[null,{"$f":"IF(#REF!<>\"\",#REF!,\"\")","v":{"$error":"#REF!"}}]
[]
[null,{"$f":"IF(#REF!<>\"\",#REF!,\"\")","v":{"$error":"#REF!"}},null,{"$f":"IF(A478<>\"\",#REF!,\"\")","v":""}]
[]
[]
[]
[]
[]
[null,null,null,"Prix de revient",null,"frais généraux",null,"couts directs",null,"% s/ P.R"]
[]
[]
[null,"MAIN D'OEUVRE",null,{"$f":"IF(F496<>\"\",F496+H496,\"\")","v":{"$error":"#NAME?"}},null,{"$f":"IF(H496<>\"\",H496*Fgx_mo,\"\")","v":{"$error":"#NAME?"}},null,{"$f":"IF(PVHT_facture_poste_11<>\"\",SUMIF(#REF!,Réf_mo,#REF!)/(1+Fgx_mo),\"\")","v":{"$error":"#NAME?"}},null,{"$f":"IF(Total_HT_Facture<>\"\",D496*1/D508,\"\")","v":{"$error":"#NAME?"}}]
[]
[null,"MATERIEL",null,{"$f":"IF(F498<>\"\",F498+H498,\"\")","v":{"$error":"#NAME?"}},null,{"$f":"IF(PVHT_facture_poste_11<>\"\",SUMIF(#REF!,Code_racine_matériel,#REF!),\"\")","v":{"$error":"#NAME?"}},null,{"$f":"IF(PVHT_facture_poste_11<>\"\",SUMIF(#REF!,Code_racine_matériel,#REF!),\"\")","v":{"$error":"#NAME?"}},null,{"$f":"IF(Total_HT_Facture<>\"\",D498*1/D508,\"\")","v":{"$error":"#NAME?"}}]
[]
[null,"MATERIAUX",null,{"$f":"IF(F500<>\"\",F500+H500,\"\")","v":{"$error":"#NAME?"}},null,{"$f":"IF(PVHT_facture_poste_11<>\"\",SUMIF(#REF!,Code_racine_matériaux,#REF!),\"\")","v":{"$error":"#NAME?"}},null,{"$f":"IF(PVHT_facture_poste_11<>\"\",SUMIF(#REF!,Code_racine_matériaux,#REF!),\"\")","v":{"$error":"#NAME?"}},null,{"$f":"IF(Total_HT_Facture<>\"\",D500*1/D508,\"\")","v":{"$error":"#NAME?"}}]
[]
[null,"LOCATION",null,{"$f":"IF(F502<>\"\",F502+H502,\"\")","v":{"$error":"#NAME?"}},null,{"$f":"IF(PVHT_facture_poste_11<>\"\",SUMIF(#REF!,Code_racine_location,#REF!),\"\")","v":{"$error":"#NAME?"}},null,{"$f":"IF(PVHT_facture_poste_11<>\"\",SUMIF(#REF!,Code_racine_location,#REF!),\"\")","v":{"$error":"#NAME?"}},null,{"$f":"IF(Total_HT_Facture<>\"\",D502*1/D508,\"\")","v":{"$error":"#NAME?"}}]
[]
[null,"SOUS-TRAITANCE",null,{"$f":"IF(F504<>\"\",F504+H504,\"\")","v":{"$error":"#NAME?"}},null,{"$f":"IF(PVHT_facture_poste_11<>\"\",SUMIF(#REF!,Code_racine_sous_traitantce,#REF!),\"\")","v":{"$error":"#NAME?"}},null,{"$f":"IF(PVHT_facture_poste_11<>\"\",SUMIF(#REF!,Code_racine_sous_traitantce,#REF!),\"\")","v":{"$error":"#NAME?"}},null,{"$f":"IF(Total_HT_Facture<>\"\",D504*1/D508,\"\")","v":{"$error":"#NAME?"}}]
[]
[]
[null,null,null,null,null,null,null,null,"ECHELLE"]
[null,"TOTAL",null,{"$f":"IF(PVHT_facture_poste_11<>\"\",D496+D498+D500+D502+D504,\"\")","v":{"$error":"#NAME?"}},null,{"$f":"IF(PVHT_facture_poste_11<>\"\",F496+F498+F500+F502+F504,\"\")","v":{"$error":"#NAME?"}},null,{"$f":"IF(PVHT_facture_poste_11<>\"\",H496+H498+H500+H502+H504,\"\")","v":{"$error":"#NAME?"}},"DE RISQUES"]
[null,null,null,null,null,null,null,null,{"$f":"IF(AND(0%<=J496,J496<=10%),1,IF(AND(11%<=J496,J496<=20%),2,IF(AND(21%<=J496,J496<=30%),3,IF(AND(31%<=J496,J496<=40%),4,IF(AND(41%<=J496,J496<=50%),5,IF(AND(51%<=J496,J496<=60%),6,IF(AND(61%<=J496,J496<=70%),7,IF(AND(71%<=J496,J496<=80%),8,IF(AND(81%<=J496,J496<=90%),9,IF(AND(91%<=J496,J496<=100%),10,\"\"))))))))))","v":{"$error":"#NAME?"}},{"$f":"IF(AND(0%<=J496,J496<=10%),\"nul\",IF(AND(11%<=J496,J496<=20%),\"quasi nul\",IF(AND(21%<=J496,J496<=30%),\"très faible\",IF(AND(31%<=J496,J496<=40%),\"faible\",IF(AND(41%<=J496,J496<=50%),\"moyen\",IF(AND(51%<=J496,J496<=60%),\"moyen élevé\",IF(AND(61%<=J496,J496<=70%),\"élevé\",IF(AND(71%<=J496,J496<=80%),\"très élevés\",IF(AND(81%<=J496,J496<=90%),\"trés fort\",IF(AND(91%<=J496,J496<=100%),\"extreme\",\"\"))))))))))","v":{"$error":"#NAME?"}}]
[null,"MARGE",null,{"$f":"IF(D512<>\"\",D512-D508,\"\")","v":{"$error":"#NAME?"}},null,null,"bénéfice/H",{"$f":"IF(D510<>\"\",D510/H512,\"\")","v":{"$error":"#NAME?"}}]
[]
[null,"PRIX DE VENTE",null,{"$f":"IF(D508<>\"\",PVHT_facture_poste_11,\"\")","v":{"$error":"#NAME?"}},null,null,"heures",{"$f":"IF(PVHT_facture_poste_11<>\"\",Heures_poste_11_réel,\"\")","v":{"$error":"#NAME?"}}]
[]
[]
[]
[null,"coeff de marge",null,{"$f":"IF(D512<>\"\",D512/D508,\"\")","v":{"$error":"#NAME?"}}]
[]
[null,"% de bénéfice =",null,{"$f":"IF(D512<>\"\",D510/D512*1,\"\")","v":{"$error":"#NAME?"}}]
[]
[]
[]
[]
[null,null,null,{"$f":"IF(A521<>\"\",#REF!,\"\")","v":""},null,null,null,null,{"$f":"IF(A521<>\"\",#REF!,\"\")","v":""},{"$f":"IF(A521<>\"\",#REF!,\"\")","v":""}]
[]
[]
[]
[null,"client :"]
[null,{"$f":"IF(#REF!<>\"\",#REF!,\"\")","v":{"$error":"#REF!"}}]
[]
[null,{"$f":"IF(#REF!<>\"\",#REF!,\"\")","v":{"$error":"#REF!"}},null,{"$f":"IF(A521<>\"\",#REF!,\"\")","v":""}]
[]
[]
[]
[]
[]
[null,null,null,"Prix de revient",null,"frais généraux",null,"couts directs",null,"% s/ P.R"]
[]
[]
[null,"MAIN D'OEUVRE",null,{"$f":"IF(F539<>\"\",F539+H539,\"\")","v":{"$error":"#NAME?"}},null,{"$f":"IF(H539<>\"\",H539*Fgx_mo,\"\")","v":{"$error":"#NAME?"}},null,{"$f":"IF(PVHT_facture_poste_12<>\"\",SUMIF(#REF!,Réf_mo,#REF!)/(1+Fgx_mo),\"\")","v":{"$error":"#NAME?"}},null,{"$f":"IF(Total_HT_Facture<>\"\",D539*1/D551,\"\")","v":{"$error":"#NAME?"}}]
[]
[null,"MATERIEL",null,{"$f":"IF(F541<>\"\",F541+H541,\"\")","v":{"$error":"#NAME?"}},null,{"$f":"IF(PVHT_facture_poste_12<>\"\",SUMIF(#REF!,Code_racine_matériel,#REF!),\"\")","v":{"$error":"#NAME?"}},null,{"$f":"IF(PVHT_facture_poste_12<>\"\",SUMIF(#REF!,Code_racine_matériel,#REF!),\"\")","v":{"$error":"#NAME?"}},null,{"$f":"IF(Total_HT_Facture<>\"\",D541*1/D551,\"\")","v":{"$error":"#NAME?"}}]
[]
[null,"MATERIAUX",null,{"$f":"IF(F543<>\"\",F543+H543,\"\")","v":{"$error":"#NAME?"}},null,{"$f":"IF(PVHT_facture_poste_12<>\"\",SUMIF(#REF!,Code_racine_matériaux,#REF!),\"\")","v":{"$error":"#NAME?"}},null,{"$f":"IF(PVHT_facture_poste_12<>\"\",SUMIF(#REF!,Code_racine_matériaux,#REF!),\"\")","v":{"$error":"#NAME?"}},null,{"$f":"IF(Total_HT_Facture<>\"\",D543*1/D551,\"\")","v":{"$error":"#NAME?"}}]
[]
[null,"LOCATION",null,{"$f":"IF(F545<>\"\",F545+H545,\"\")","v":{"$error":"#NAME?"}},null,{"$f":"IF(PVHT_facture_poste_12<>\"\",SUMIF(#REF!,Code_racine_location,#REF!),\"\")","v":{"$error":"#NAME?"}},null,{"$f":"IF(PVHT_facture_poste_12<>\"\",SUMIF(#REF!,Code_racine_location,#REF!),\"\")","v":{"$error":"#NAME?"}},null,{"$f":"IF(Total_HT_Facture<>\"\",D545*1/D551,\"\")","v":{"$error":"#NAME?"}}]
[]
[null,"SOUS-TRAITANCE",null,{"$f":"IF(F547<>\"\",F547+H547,\"\")","v":{"$error":"#NAME?"}},null,{"$f":"IF(PVHT_facture_poste_12<>\"\",SUMIF(#REF!,Code_racine_sous_traitantce,#REF!),\"\")","v":{"$error":"#NAME?"}},null,{"$f":"IF(PVHT_facture_poste_12<>\"\",SUMIF(#REF!,Code_racine_sous_traitantce,#REF!),\"\")","v":{"$error":"#NAME?"}},null,{"$f":"IF(Total_HT_Facture<>\"\",D547*1/D551,\"\")","v":{"$error":"#NAME?"}}]
[]
[]
[null,null,null,null,null,null,null,null,"ECHELLE"]
[null,"TOTAL",null,{"$f":"IF(PVHT_facture_poste_12<>\"\",D539+D541+D543+D545+D547,\"\")","v":{"$error":"#NAME?"}},null,{"$f":"IF(PVHT_facture_poste_12<>\"\",F539+F541+F543+F545+F547,\"\")","v":{"$error":"#NAME?"}},null,{"$f":"IF(PVHT_facture_poste_12<>\"\",H539+H541+H543+H545+H547,\"\")","v":{"$error":"#NAME?"}},"DE RISQUES"]
[null,null,null,null,null,null,null,null,{"$f":"IF(AND(0%<=J539,J539<=10%),1,IF(AND(11%<=J539,J539<=20%),2,IF(AND(21%<=J539,J539<=30%),3,IF(AND(31%<=J539,J539<=40%),4,IF(AND(41%<=J539,J539<=50%),5,IF(AND(51%<=J539,J539<=60%),6,IF(AND(61%<=J539,J539<=70%),7,IF(AND(71%<=J539,J539<=80%),8,IF(AND(81%<=J539,J539<=90%),9,IF(AND(91%<=J539,J539<=100%),10,\"\"))))))))))","v":{"$error":"#NAME?"}},{"$f":"IF(AND(0%<=J539,J539<=10%),\"nul\",IF(AND(11%<=J539,J539<=20%),\"quasi nul\",IF(AND(21%<=J539,J539<=30%),\"très faible\",IF(AND(31%<=J539,J539<=40%),\"faible\",IF(AND(41%<=J539,J539<=50%),\"moyen\",IF(AND(51%<=J539,J539<=60%),\"moyen élevé\",IF(AND(61%<=J539,J539<=70%),\"élevé\",IF(AND(71%<=J539,J539<=80%),\"très élevés\",IF(AND(81%<=J539,J539<=90%),\"trés fort\",IF(AND(91%<=J539,J539<=100%),\"extreme\",\"\"))))))))))","v":{"$error":"#NAME?"}}]
[null,"MARGE",null,{"$f":"IF(D555<>\"\",D555-D551,\"\")","v":{"$error":"#NAME?"}},null,null,"bénéfice/H",{"$f":"IF(D553<>\"\",D553/H555,\"\")","v":{"$error":"#NAME?"}}]
[]
[null,"PRIX DE VENTE",null,{"$f":"IF(D551<>\"\",PVHT_facture_poste_12,\"\")","v":{"$error":"#NAME?"}},null,null,"heures",{"$f":"IF(PVHT_facture_poste_12<>\"\",Heures_poste_12_réel,\"\")","v":{"$error":"#NAME?"}}]
[]
[]
[]
[null,"coeff de marge",null,{"$f":"IF(D555<>\"\",D555/D551,\"\")","v":{"$error":"#NAME?"}}]
[]
[null,"% de bénéfice =",null,{"$f":"IF(D555<>\"\",D553/D555*1,\"\")","v":{"$error":"#NAME?"}}]
[]
[]
[]
[]
[null,null,null,{"$f":"IF(A564<>\"\",#REF!,\"\")","v":""},null,null,null,null,{"$f":"IF(A564<>\"\",#REF!,\"\")","v":""},{"$f":"IF(A564<>\"\",#REF!,\"\")","v":""}]
[]
[]
[]
[null,"client :"]
[null,{"$f":"IF(#REF!<>\"\",#REF!,\"\")","v":{"$error":"#REF!"}}]
[]
[null,{"$f":"IF(#REF!<>\"\",#REF!,\"\")","v":{"$error":"#REF!"}},null,{"$f":"IF(A564<>\"\",#REF!,\"\")","v":""}]
[]
[]
[]
[]
[]
[null,null,null,"Prix de revient",null,"frais généraux",null,"couts directs",null,"% s/ P.R"]
[]
[]
[null,"MAIN D'OEUVRE",null,{"$f":"IF(F582<>\"\",F582+H582,\"\")","v":{"$error":"#NAME?"}},null,{"$f":"IF(H582<>\"\",H582*Fgx_mo,\"\")","v":{"$error":"#NAME?"}},null,{"$f":"IF(PVHT_facture_poste_13<>\"\",SUMIF(#REF!,Réf_mo,#REF!)/(1+Fgx_mo),\"\")","v":{"$error":"#NAME?"}},null,{"$f":"IF(Total_HT_Facture<>\"\",D582*1/D594,\"\")","v":{"$error":"#NAME?"}}]
[]
[null,"MATERIEL",null,{"$f":"IF(F584<>\"\",F584+H584,\"\")","v":{"$error":"#NAME?"}},null,{"$f":"IF(PVHT_facture_poste_13<>\"\",SUMIF(#REF!,Code_racine_matériel,#REF!),\"\")","v":{"$error":"#NAME?"}},null,{"$f":"IF(PVHT_facture_poste_13<>\"\",SUMIF(#REF!,Code_racine_matériel,#REF!),\"\")","v":{"$error":"#NAME?"}},null,{"$f":"IF(Total_HT_Facture<>\"\",D584*1/D594,\"\")","v":{"$error":"#NAME?"}}]
[]
[null,"MATERIAUX",null,{"$f":"IF(F586<>\"\",F586+H586,\"\")","v":{"$error":"#NAME?"}},null,{"$f":"IF(PVHT_facture_poste_13<>\"\",SUMIF(#REF!,Code_racine_matériaux,#REF!),\"\")","v":{"$error":"#NAME?"}},null,{"$f":"IF(PVHT_facture_poste_13<>\"\",SUMIF(#REF!,Code_racine_matériaux,#REF!),\"\")","v":{"$error":"#NAME?"}},null,{"$f":"IF(Total_HT_Facture<>\"\",D586*1/D594,\"\")","v":{"$error":"#NAME?"}}]
[]
[null,"LOCATION",null,{"$f":"IF(F588<>\"\",F588+H588,\"\")","v":{"$error":"#NAME?"}},null,{"$f":"IF(PVHT_facture_poste_13<>\"\",SUMIF(#REF!,Code_racine_location,#REF!),\"\")","v":{"$error":"#NAME?"}},null,{"$f":"IF(PVHT_facture_poste_13<>\"\",SUMIF(#REF!,Code_racine_location,#REF!),\"\")","v":{"$error":"#NAME?"}},null,{"$f":"IF(Total_HT_Facture<>\"\",D588*1/D594,\"\")","v":{"$error":"#NAME?"}}]
[]
[null,"SOUS-TRAITANCE",null,{"$f":"IF(F590<>\"\",F590+H590,\"\")","v":{"$error":"#NAME?"}},null,{"$f":"IF(PVHT_facture_poste_13<>\"\",SUMIF(#REF!,Code_racine_sous_traitantce,#REF!),\"\")","v":{"$error":"#NAME?"}},null,{"$f":"IF(PVHT_facture_poste_13<>\"\",SUMIF(#REF!,Code_racine_sous_traitantce,#REF!),\"\")","v":{"$error":"#NAME?"}},null,{"$f":"IF(Total_HT_Facture<>\"\",D590*1/D594,\"\")","v":{"$error":"#NAME?"}}]
[]
[]
[null,null,null,null,null,null,null,null,"ECHELLE"]
[null,"TOTAL",null,{"$f":"IF(PVHT_facture_poste_13<>\"\",D582+D584+D586+D588+D590,\"\")","v":{"$error":"#NAME?"}},null,{"$f":"IF(PVHT_facture_poste_13<>\"\",F582+F584+F586+F588+F590,\"\")","v":{"$error":"#NAME?"}},null,{"$f":"IF(PVHT_facture_poste_13<>\"\",H582+H584+H586+H588+H590,\"\")","v":{"$error":"#NAME?"}},"DE RISQUES"]
[null,null,null,null,null,null,null,null,{"$f":"IF(AND(0%<=J582,J582<=10%),1,IF(AND(11%<=J582,J582<=20%),2,IF(AND(21%<=J582,J582<=30%),3,IF(AND(31%<=J582,J582<=40%),4,IF(AND(41%<=J582,J582<=50%),5,IF(AND(51%<=J582,J582<=60%),6,IF(AND(61%<=J582,J582<=70%),7,IF(AND(71%<=J582,J582<=80%),8,IF(AND(81%<=J582,J582<=90%),9,IF(AND(91%<=J582,J582<=100%),10,\"\"))))))))))","v":{"$error":"#NAME?"}},{"$f":"IF(AND(0%<=J582,J582<=10%),\"nul\",IF(AND(11%<=J582,J582<=20%),\"quasi nul\",IF(AND(21%<=J582,J582<=30%),\"très faible\",IF(AND(31%<=J582,J582<=40%),\"faible\",IF(AND(41%<=J582,J582<=50%),\"moyen\",IF(AND(51%<=J582,J582<=60%),\"moyen élevé\",IF(AND(61%<=J582,J582<=70%),\"élevé\",IF(AND(71%<=J582,J582<=80%),\"très élevés\",IF(AND(81%<=J582,J582<=90%),\"trés fort\",IF(AND(91%<=J582,J582<=100%),\"extreme\",\"\"))))))))))","v":{"$error":"#NAME?"}}]
[null,"MARGE",null,{"$f":"IF(D598<>\"\",D598-D594,\"\")","v":{"$error":"#NAME?"}},null,null,"bénéfice/H",{"$f":"IF(D596<>\"\",D596/H598,\"\")","v":{"$error":"#NAME?"}}]
[]
[null,"PRIX DE VENTE",null,{"$f":"IF(D594<>\"\",PVHT_facture_poste_13,\"\")","v":{"$error":"#NAME?"}},null,null,"heures",{"$f":"IF(PVHT_facture_poste_13<>\"\",Heures_poste_13_réel,\"\")","v":{"$error":"#NAME?"}}]
[]
[]
[]
[null,"coeff de marge",null,{"$f":"IF(D598<>\"\",D598/D594,\"\")","v":{"$error":"#NAME?"}}]
[]
[null,"% de bénéfice =",null,{"$f":"IF(D598<>\"\",D596/D598*1,\"\")","v":{"$error":"#NAME?"}}]
[]
[]
[]
[]
[null,null,null,{"$f":"IF(A607<>\"\",#REF!,\"\")","v":""},null,null,null,null,{"$f":"IF(A607<>\"\",#REF!,\"\")","v":""},{"$f":"IF(A607<>\"\",#REF!,\"\")","v":""}]
[]
[]
[]
[null,"client :"]
[null,{"$f":"IF(#REF!<>\"\",#REF!,\"\")","v":{"$error":"#REF!"}}]
[]
[null,{"$f":"IF(#REF!<>\"\",#REF!,\"\")","v":{"$error":"#REF!"}},null,{"$f":"IF(A607<>\"\",#REF!,\"\")","v":""}]
[]
[]
[]
[]
[]
[null,null,null,"Prix de revient",null,"frais généraux",null,"couts directs",null,"% s/ P.R"]
[]
[]
[null,"MAIN D'OEUVRE",null,{"$f":"IF(F625<>\"\",F625+H625,\"\")","v":{"$error":"#NAME?"}},null,{"$f":"IF(H625<>\"\",H625*Fgx_mo,\"\")","v":{"$error":"#NAME?"}},null,{"$f":"IF(PVHT_facture_poste_14<>\"\",SUMIF(#REF!,Réf_mo,#REF!)/(1+Fgx_mo),\"\")","v":{"$error":"#NAME?"}},null,{"$f":"IF(Total_HT_Facture<>\"\",D625*1/D637,\"\")","v":{"$error":"#NAME?"}}]
[]
[null,"MATERIEL",null,{"$f":"IF(F627<>\"\",F627+H627,\"\")","v":{"$error":"#NAME?"}},null,{"$f":"IF(PVHT_facture_poste_14<>\"\",SUMIF(#REF!,Code_racine_matériel,#REF!),\"\")","v":{"$error":"#NAME?"}},null,{"$f":"IF(PVHT_facture_poste_14<>\"\",SUMIF(#REF!,Code_racine_matériel,#REF!),\"\")","v":{"$error":"#NAME?"}},null,{"$f":"IF(Total_HT_Facture<>\"\",D627*1/D637,\"\")","v":{"$error":"#NAME?"}}]
[]
[null,"MATERIAUX",null,{"$f":"IF(F629<>\"\",F629+H629,\"\")","v":{"$error":"#NAME?"}},null,{"$f":"IF(PVHT_facture_poste_14<>\"\",SUMIF(#REF!,Code_racine_matériaux,#REF!),\"\")","v":{"$error":"#NAME?"}},null,{"$f":"IF(PVHT_facture_poste_14<>\"\",SUMIF(#REF!,Code_racine_matériaux,#REF!),\"\")","v":{"$error":"#NAME?"}},null,{"$f":"IF(Total_HT_Facture<>\"\",D629*1/D637,\"\")","v":{"$error":"#NAME?"}}]
[]
[null,"LOCATION",null,{"$f":"IF(F631<>\"\",F631+H631,\"\")","v":{"$error":"#NAME?"}},null,{"$f":"IF(PVHT_facture_poste_14<>\"\",SUMIF(#REF!,Code_racine_location,#REF!),\"\")","v":{"$error":"#NAME?"}},null,{"$f":"IF(PVHT_facture_poste_14<>\"\",SUMIF(#REF!,Code_racine_location,#REF!),\"\")","v":{"$error":"#NAME?"}},null,{"$f":"IF(Total_HT_Facture<>\"\",D631*1/D637,\"\")","v":{"$error":"#NAME?"}}]
[]
[null,"SOUS-TRAITANCE",null,{"$f":"IF(F633<>\"\",F633+H633,\"\")","v":{"$error":"#NAME?"}},null,{"$f":"IF(PVHT_facture_poste_14<>\"\",SUMIF(#REF!,Code_racine_sous_traitantce,#REF!),\"\")","v":{"$error":"#NAME?"}},null,{"$f":"IF(PVHT_facture_poste_14<>\"\",SUMIF(#REF!,Code_racine_sous_traitantce,#REF!),\"\")","v":{"$error":"#NAME?"}},null,{"$f":"IF(Total_HT_Facture<>\"\",D633*1/D637,\"\")","v":{"$error":"#NAME?"}}]
[]
[]
[null,null,null,null,null,null,null,null,"ECHELLE"]
[null,"TOTAL",null,{"$f":"IF(PVHT_facture_poste_14<>\"\",D625+D627+D629+D631+D633,\"\")","v":{"$error":"#NAME?"}},null,{"$f":"IF(PVHT_facture_poste_14<>\"\",F625+F627+F629+F631+F633,\"\")","v":{"$error":"#NAME?"}},null,{"$f":"IF(PVHT_facture_poste_14<>\"\",H625+H627+H629+H631+H633,\"\")","v":{"$error":"#NAME?"}},"DE RISQUES"]
[null,null,null,null,null,null,null,null,{"$f":"IF(AND(0%<=J625,J625<=10%),1,IF(AND(11%<=J625,J625<=20%),2,IF(AND(21%<=J625,J625<=30%),3,IF(AND(31%<=J625,J625<=40%),4,IF(AND(41%<=J625,J625<=50%),5,IF(AND(51%<=J625,J625<=60%),6,IF(AND(61%<=J625,J625<=70%),7,IF(AND(71%<=J625,J625<=80%),8,IF(AND(81%<=J625,J625<=90%),9,IF(AND(91%<=J625,J625<=100%),10,\"\"))))))))))","v":{"$error":"#NAME?"}},{"$f":"IF(AND(0%<=J625,J625<=10%),\"nul\",IF(AND(11%<=J625,J625<=20%),\"quasi nul\",IF(AND(21%<=J625,J625<=30%),\"très faible\",IF(AND(31%<=J625,J625<=40%),\"faible\",IF(AND(41%<=J625,J625<=50%),\"moyen\",IF(AND(51%<=J625,J625<=60%),\"moyen élevé\",IF(AND(61%<=J625,J625<=70%),\"élevé\",IF(AND(71%<=J625,J625<=80%),\"très élevés\",IF(AND(81%<=J625,J625<=90%),\"trés fort\",IF(AND(91%<=J625,J625<=100%),\"extreme\",\"\"))))))))))","v":{"$error":"#NAME?"}}]
[null,"MARGE",null,{"$f":"IF(D641<>\"\",D641-D637,\"\")","v":{"$error":"#NAME?"}},null,null,"bénéfice/H",{"$f":"IF(D639<>\"\",D639/H641,\"\")","v":{"$error":"#NAME?"}}]
[]
[null,"PRIX DE VENTE",null,{"$f":"IF(D637<>\"\",PVHT_facture_poste_14,\"\")","v":{"$error":"#NAME?"}},null,null,"heures",{"$f":"IF(PVHT_facture_poste_14<>\"\",Heures_poste_14_réel,\"\")","v":{"$error":"#NAME?"}}]
[]
[]
[]
[null,"coeff de marge",null,{"$f":"IF(D641<>\"\",D641/D637,\"\")","v":{"$error":"#NAME?"}}]
[]
[null,"% de bénéfice =",null,{"$f":"IF(D641<>\"\",D639/D641*1,\"\")","v":{"$error":"#NAME?"}}]
[]
[]
[]
[]
[null,null,null,{"$f":"IF(A650<>\"\",#REF!,\"\")","v":""},null,null,null,null,{"$f":"IF(A650<>\"\",#REF!,\"\")","v":""},{"$f":"IF(A650<>\"\",#REF!,\"\")","v":""}]
[]
[]
[]
[null,"client :"]
[null,{"$f":"IF(#REF!<>\"\",#REF!,\"\")","v":{"$error":"#REF!"}}]
[]
[null,{"$f":"IF(#REF!<>\"\",#REF!,\"\")","v":{"$error":"#REF!"}},null,{"$f":"IF(A650<>\"\",#REF!,\"\")","v":""}]
[]
[]
[]
[]
[]
[null,null,null,"Prix de revient",null,"frais généraux",null,"couts directs",null,"% s/ P.R"]
[]
[]
[null,"MAIN D'OEUVRE",null,{"$f":"IF(F668<>\"\",F668+H668,\"\")","v":{"$error":"#NAME?"}},null,{"$f":"IF(H668<>\"\",H668*Fgx_mo,\"\")","v":{"$error":"#NAME?"}},null,{"$f":"IF(PVHT_facture_poste_15<>\"\",SUMIF(#REF!,Réf_mo,#REF!)/(1+Fgx_mo),\"\")","v":{"$error":"#NAME?"}},null,{"$f":"IF(Total_HT_Facture<>\"\",D668*1/D680,\"\")","v":{"$error":"#NAME?"}}]
[]
[null,"MATERIEL",null,{"$f":"IF(F670<>\"\",F670+H670,\"\")","v":{"$error":"#NAME?"}},null,{"$f":"IF(PVHT_facture_poste_15<>\"\",SUMIF(#REF!,Code_racine_matériel,#REF!),\"\")","v":{"$error":"#NAME?"}},null,{"$f":"IF(PVHT_facture_poste_15<>\"\",SUMIF(#REF!,Code_racine_matériel,#REF!),\"\")","v":{"$error":"#NAME?"}},null,{"$f":"IF(Total_HT_Facture<>\"\",D670*1/D680,\"\")","v":{"$error":"#NAME?"}}]
[]
[null,"MATERIAUX",null,{"$f":"IF(F672<>\"\",F672+H672,\"\")","v":{"$error":"#NAME?"}},null,{"$f":"IF(PVHT_facture_poste_15<>\"\",SUMIF(#REF!,Code_racine_matériaux,#REF!),\"\")","v":{"$error":"#NAME?"}},null,{"$f":"IF(PVHT_facture_poste_15<>\"\",SUMIF(#REF!,Code_racine_matériaux,#REF!),\"\")","v":{"$error":"#NAME?"}},null,{"$f":"IF(Total_HT_Facture<>\"\",D672*1/D680,\"\")","v":{"$error":"#NAME?"}}]
[]
[null,"LOCATION",null,{"$f":"IF(F674<>\"\",F674+H674,\"\")","v":{"$error":"#NAME?"}},null,{"$f":"IF(PVHT_facture_poste_15<>\"\",SUMIF(#REF!,Code_racine_location,#REF!),\"\")","v":{"$error":"#NAME?"}},null,{"$f":"IF(PVHT_facture_poste_15<>\"\",SUMIF(#REF!,Code_racine_location,#REF!),\"\")","v":{"$error":"#NAME?"}},null,{"$f":"IF(Total_HT_Facture<>\"\",D674*1/D680,\"\")","v":{"$error":"#NAME?"}}]
[]
[null,"SOUS-TRAITANCE",null,{"$f":"IF(F676<>\"\",F676+H676,\"\")","v":{"$error":"#NAME?"}},null,{"$f":"IF(PVHT_facture_poste_15<>\"\",SUMIF(#REF!,Code_racine_sous_traitantce,#REF!),\"\")","v":{"$error":"#NAME?"}},null,{"$f":"IF(PVHT_facture_poste_15<>\"\",SUMIF(#REF!,Code_racine_sous_traitantce,#REF!),\"\")","v":{"$error":"#NAME?"}},null,{"$f":"IF(Total_HT_Facture<>\"\",D676*1/D680,\"\")","v":{"$error":"#NAME?"}}]
[]
[]
[null,null,null,null,null,null,null,null,"ECHELLE"]
[null,"TOTAL",null,{"$f":"IF(PVHT_facture_poste_15<>\"\",D668+D670+D672+D674+D676,\"\")","v":{"$error":"#NAME?"}},null,{"$f":"IF(PVHT_facture_poste_15<>\"\",F668+F670+F672+F674+F676,\"\")","v":{"$error":"#NAME?"}},null,{"$f":"IF(PVHT_facture_poste_15<>\"\",H668+H670+H672+H674+H676,\"\")","v":{"$error":"#NAME?"}},"DE RISQUES"]
[null,null,null,null,null,null,null,null,{"$f":"IF(AND(0%<=J668,J668<=10%),1,IF(AND(11%<=J668,J668<=20%),2,IF(AND(21%<=J668,J668<=30%),3,IF(AND(31%<=J668,J668<=40%),4,IF(AND(41%<=J668,J668<=50%),5,IF(AND(51%<=J668,J668<=60%),6,IF(AND(61%<=J668,J668<=70%),7,IF(AND(71%<=J668,J668<=80%),8,IF(AND(81%<=J668,J668<=90%),9,IF(AND(91%<=J668,J668<=100%),10,\"\"))))))))))","v":{"$error":"#NAME?"}},{"$f":"IF(AND(0%<=J668,J668<=10%),\"nul\",IF(AND(11%<=J668,J668<=20%),\"quasi nul\",IF(AND(21%<=J668,J668<=30%),\"très faible\",IF(AND(31%<=J668,J668<=40%),\"faible\",IF(AND(41%<=J668,J668<=50%),\"moyen\",IF(AND(51%<=J668,J668<=60%),\"moyen élevé\",IF(AND(61%<=J668,J668<=70%),\"élevé\",IF(AND(71%<=J668,J668<=80%),\"très élevés\",IF(AND(81%<=J668,J668<=90%),\"trés fort\",IF(AND(91%<=J668,J668<=100%),\"extreme\",\"\"))))))))))","v":{"$error":"#NAME?"}}]
[null,"MARGE",null,{"$f":"IF(D684<>\"\",D684-D680,\"\")","v":{"$error":"#NAME?"}},null,null,"bénéfice/H",{"$f":"IF(D682<>\"\",D682/H684,\"\")","v":{"$error":"#NAME?"}}]
[]
[null,"PRIX DE VENTE",null,{"$f":"IF(D680<>\"\",PVHT_facture_poste_15,\"\")","v":{"$error":"#NAME?"}},null,null,"heures",{"$f":"IF(PVHT_facture_poste_15<>\"\",Heures_poste_15_réel,\"\")","v":{"$error":"#NAME?"}}]
[]
[]
[]
[null,"coeff de marge",null,{"$f":"IF(D684<>\"\",D684/D680,\"\")","v":{"$error":"#NAME?"}}]
[]
[null,"% de bénéfice =",null,{"$f":"IF(D684<>\"\",D682/D684*1,\"\")","v":{"$error":"#NAME?"}}]
[]
[]
[]
[]
[null,null,null,{"$f":"IF(A693<>\"\",#REF!,\"\")","v":""},null,null,null,null,{"$f":"IF(A693<>\"\",#REF!,\"\")","v":""},{"$f":"IF(A693<>\"\",#REF!,\"\")","v":""}]
[]
[]
[]
[null,"client :"]
[null,{"$f":"IF(#REF!<>\"\",#REF!,\"\")","v":{"$error":"#REF!"}}]
[]
[null,{"$f":"IF(#REF!<>\"\",#REF!,\"\")","v":{"$error":"#REF!"}},null,{"$f":"IF(A693<>\"\",#REF!,\"\")","v":""}]
[]
[]
[]
[]
[]
[null,null,null,"Prix de revient",null,"frais généraux",null,"couts directs",null,"% s/ P.R"]
[]
[]
[null,"MAIN D'OEUVRE",null,{"$f":"IF(F711<>\"\",F711+H711,\"\")","v":{"$error":"#NAME?"}},null,{"$f":"IF(H711<>\"\",H711*Fgx_mo,\"\")","v":{"$error":"#NAME?"}},null,{"$f":"IF(PVHT_facture_poste_16<>\"\",SUMIF(#REF!,Réf_mo,#REF!)/(1+Fgx_mo),\"\")","v":{"$error":"#NAME?"}},null,{"$f":"IF(Total_HT_Facture<>\"\",D711*1/D723,\"\")","v":{"$error":"#NAME?"}}]
[]
[null,"MATERIEL",null,{"$f":"IF(F713<>\"\",F713+H713,\"\")","v":{"$error":"#NAME?"}},null,{"$f":"IF(PVHT_facture_poste_16<>\"\",SUMIF(#REF!,Code_racine_matériel,#REF!),\"\")","v":{"$error":"#NAME?"}},null,{"$f":"IF(PVHT_facture_poste_16<>\"\",SUMIF(#REF!,Code_racine_matériel,#REF!),\"\")","v":{"$error":"#NAME?"}},null,{"$f":"IF(Total_HT_Facture<>\"\",D713*1/D723,\"\")","v":{"$error":"#NAME?"}}]
[]
[null,"MATERIAUX",null,{"$f":"IF(F715<>\"\",F715+H715,\"\")","v":{"$error":"#NAME?"}},null,{"$f":"IF(PVHT_facture_poste_16<>\"\",SUMIF(#REF!,Code_racine_matériaux,#REF!),\"\")","v":{"$error":"#NAME?"}},null,{"$f":"IF(PVHT_facture_poste_16<>\"\",SUMIF(#REF!,Code_racine_matériaux,#REF!),\"\")","v":{"$error":"#NAME?"}},null,{"$f":"IF(Total_HT_Facture<>\"\",D715*1/D723,\"\")","v":{"$error":"#NAME?"}}]
[]
[null,"LOCATION",null,{"$f":"IF(F717<>\"\",F717+H717,\"\")","v":{"$error":"#NAME?"}},null,{"$f":"IF(PVHT_facture_poste_16<>\"\",SUMIF(#REF!,Code_racine_location,#REF!),\"\")","v":{"$error":"#NAME?"}},null,{"$f":"IF(PVHT_facture_poste_16<>\"\",SUMIF(#REF!,Code_racine_location,#REF!),\"\")","v":{"$error":"#NAME?"}},null,{"$f":"IF(Total_HT_Facture<>\"\",D717*1/D723,\"\")","v":{"$error":"#NAME?"}}]
[]
[null,"SOUS-TRAITANCE",null,{"$f":"IF(F719<>\"\",F719+H719,\"\")","v":{"$error":"#NAME?"}},null,{"$f":"IF(PVHT_facture_poste_16<>\"\",SUMIF(#REF!,Code_racine_sous_traitantce,#REF!),\"\")","v":{"$error":"#NAME?"}},null,{"$f":"IF(PVHT_facture_poste_16<>\"\",SUMIF(#REF!,Code_racine_sous_traitantce,#REF!),\"\")","v":{"$error":"#NAME?"}},null,{"$f":"IF(Total_HT_Facture<>\"\",D719*1/D723,\"\")","v":{"$error":"#NAME?"}}]
[]
[]
[null,null,null,null,null,null,null,null,"ECHELLE"]
[null,"TOTAL",null,{"$f":"IF(PVHT_facture_poste_16<>\"\",D711+D713+D715+D717+D719,\"\")","v":{"$error":"#NAME?"}},null,{"$f":"IF(PVHT_facture_poste_16<>\"\",F711+F713+F715+F717+F719,\"\")","v":{"$error":"#NAME?"}},null,{"$f":"IF(PVHT_facture_poste_16<>\"\",H711+H713+H715+H717+H719,\"\")","v":{"$error":"#NAME?"}},"DE RISQUES"]
[null,null,null,null,null,null,null,null,{"$f":"IF(AND(0%<=J711,J711<=10%),1,IF(AND(11%<=J711,J711<=20%),2,IF(AND(21%<=J711,J711<=30%),3,IF(AND(31%<=J711,J711<=40%),4,IF(AND(41%<=J711,J711<=50%),5,IF(AND(51%<=J711,J711<=60%),6,IF(AND(61%<=J711,J711<=70%),7,IF(AND(71%<=J711,J711<=80%),8,IF(AND(81%<=J711,J711<=90%),9,IF(AND(91%<=J711,J711<=100%),10,\"\"))))))))))","v":{"$error":"#NAME?"}},{"$f":"IF(AND(0%<=J711,J711<=10%),\"nul\",IF(AND(11%<=J711,J711<=20%),\"quasi nul\",IF(AND(21%<=J711,J711<=30%),\"très faible\",IF(AND(31%<=J711,J711<=40%),\"faible\",IF(AND(41%<=J711,J711<=50%),\"moyen\",IF(AND(51%<=J711,J711<=60%),\"moyen élevé\",IF(AND(61%<=J711,J711<=70%),\"élevé\",IF(AND(71%<=J711,J711<=80%),\"très élevés\",IF(AND(81%<=J711,J711<=90%),\"trés fort\",IF(AND(91%<=J711,J711<=100%),\"extreme\",\"\"))))))))))","v":{"$error":"#NAME?"}}]
[null,"MARGE",null,{"$f":"IF(D727<>\"\",D727-D723,\"\")","v":{"$error":"#NAME?"}},null,null,"bénéfice/H",{"$f":"IF(D725<>\"\",D725/H727,\"\")","v":{"$error":"#NAME?"}}]
[]
[null,"PRIX DE VENTE",null,{"$f":"IF(D723<>\"\",PVHT_facture_poste_16,\"\")","v":{"$error":"#NAME?"}},null,null,"heures",{"$f":"IF(PVHT_facture_poste_16<>\"\",Heures_poste_16_réel,\"\")","v":{"$error":"#NAME?"}}]
[]
[]
[]
[null,"coeff de marge",null,{"$f":"IF(D727<>\"\",D727/D723,\"\")","v":{"$error":"#NAME?"}}]
[]
[null,"% de bénéfice =",null,{"$f":"IF(D727<>\"\",D725/D727*1,\"\")","v":{"$error":"#NAME?"}}]
[]
[]
[]
[]
[null,null,null,{"$f":"IF(A736<>\"\",#REF!,\"\")","v":""},null,null,null,null,{"$f":"IF(A736<>\"\",#REF!,\"\")","v":""},{"$f":"IF(A736<>\"\",#REF!,\"\")","v":""}]
[]
[]
[]
[null,"client :"]
[null,{"$f":"IF(#REF!<>\"\",#REF!,\"\")","v":{"$error":"#REF!"}}]
[]
[null,{"$f":"IF(#REF!<>\"\",#REF!,\"\")","v":{"$error":"#REF!"}},null,{"$f":"IF(A736<>\"\",#REF!,\"\")","v":""}]
[]
[]
[]
[]
[]
[null,null,null,"Prix de revient",null,"frais généraux",null,"couts directs",null,"% s/ P.R"]
[]
[]
[null,"MAIN D'OEUVRE",null,{"$f":"IF(F754<>\"\",F754+H754,\"\")","v":{"$error":"#NAME?"}},null,{"$f":"IF(H754<>\"\",H754*Fgx_mo,\"\")","v":{"$error":"#NAME?"}},null,{"$f":"IF(PVHT_facture_poste_17<>\"\",SUMIF(#REF!,Réf_mo,#REF!)/(1+Fgx_mo),\"\")","v":{"$error":"#NAME?"}},null,{"$f":"IF(Total_HT_Facture<>\"\",D754*1/D766,\"\")","v":{"$error":"#NAME?"}}]
[]
[null,"MATERIEL",null,{"$f":"IF(F756<>\"\",F756+H756,\"\")","v":{"$error":"#NAME?"}},null,{"$f":"IF(PVHT_facture_poste_17<>\"\",SUMIF(#REF!,Code_racine_matériel,#REF!),\"\")","v":{"$error":"#NAME?"}},null,{"$f":"IF(PVHT_facture_poste_17<>\"\",SUMIF(#REF!,Code_racine_matériel,#REF!),\"\")","v":{"$error":"#NAME?"}},null,{"$f":"IF(Total_HT_Facture<>\"\",D756*1/D766,\"\")","v":{"$error":"#NAME?"}}]
[]
[null,"MATERIAUX",null,{"$f":"IF(F758<>\"\",F758+H758,\"\")","v":{"$error":"#NAME?"}},null,{"$f":"IF(PVHT_facture_poste_17<>\"\",SUMIF(#REF!,Code_racine_matériaux,#REF!),\"\")","v":{"$error":"#NAME?"}},null,{"$f":"IF(PVHT_facture_poste_17<>\"\",SUMIF(#REF!,Code_racine_matériaux,#REF!),\"\")","v":{"$error":"#NAME?"}},null,{"$f":"IF(Total_HT_Facture<>\"\",D758*1/D766,\"\")","v":{"$error":"#NAME?"}}]
[]
[null,"LOCATION",null,{"$f":"IF(F760<>\"\",F760+H760,\"\")","v":{"$error":"#NAME?"}},null,{"$f":"IF(PVHT_facture_poste_17<>\"\",SUMIF(#REF!,Code_racine_location,#REF!),\"\")","v":{"$error":"#NAME?"}},null,{"$f":"IF(PVHT_facture_poste_17<>\"\",SUMIF(#REF!,Code_racine_location,#REF!),\"\")","v":{"$error":"#NAME?"}},null,{"$f":"IF(Total_HT_Facture<>\"\",D760*1/D766,\"\")","v":{"$error":"#NAME?"}}]
[]
[null,"SOUS-TRAITANCE",null,{"$f":"IF(F762<>\"\",F762+H762,\"\")","v":{"$error":"#NAME?"}},null,{"$f":"IF(PVHT_facture_poste_17<>\"\",SUMIF(#REF!,Code_racine_sous_traitantce,#REF!),\"\")","v":{"$error":"#NAME?"}},null,{"$f":"IF(PVHT_facture_poste_17<>\"\",SUMIF(#REF!,Code_racine_sous_traitantce,#REF!),\"\")","v":{"$error":"#NAME?"}},null,{"$f":"IF(Total_HT_Facture<>\"\",D762*1/D766,\"\")","v":{"$error":"#NAME?"}}]
[]
[]
[null,null,null,null,null,null,null,null,"ECHELLE"]
[null,"TOTAL",null,{"$f":"IF(PVHT_facture_poste_17<>\"\",D754+D756+D758+D760+D762,\"\")","v":{"$error":"#NAME?"}},null,{"$f":"IF(PVHT_facture_poste_17<>\"\",F754+F756+F758+F760+F762,\"\")","v":{"$error":"#NAME?"}},null,{"$f":"IF(PVHT_facture_poste_17<>\"\",H754+H756+H758+H760+H762,\"\")","v":{"$error":"#NAME?"}},"DE RISQUES"]
[null,null,null,null,null,null,null,null,{"$f":"IF(AND(0%<=J754,J754<=10%),1,IF(AND(11%<=J754,J754<=20%),2,IF(AND(21%<=J754,J754<=30%),3,IF(AND(31%<=J754,J754<=40%),4,IF(AND(41%<=J754,J754<=50%),5,IF(AND(51%<=J754,J754<=60%),6,IF(AND(61%<=J754,J754<=70%),7,IF(AND(71%<=J754,J754<=80%),8,IF(AND(81%<=J754,J754<=90%),9,IF(AND(91%<=J754,J754<=100%),10,\"\"))))))))))","v":{"$error":"#NAME?"}},{"$f":"IF(AND(0%<=J754,J754<=10%),\"nul\",IF(AND(11%<=J754,J754<=20%),\"quasi nul\",IF(AND(21%<=J754,J754<=30%),\"très faible\",IF(AND(31%<=J754,J754<=40%),\"faible\",IF(AND(41%<=J754,J754<=50%),\"moyen\",IF(AND(51%<=J754,J754<=60%),\"moyen élevé\",IF(AND(61%<=J754,J754<=70%),\"élevé\",IF(AND(71%<=J754,J754<=80%),\"très élevés\",IF(AND(81%<=J754,J754<=90%),\"trés fort\",IF(AND(91%<=J754,J754<=100%),\"extreme\",\"\"))))))))))","v":{"$error":"#NAME?"}}]
[null,"MARGE",null,{"$f":"IF(D770<>\"\",D770-D766,\"\")","v":{"$error":"#NAME?"}},null,null,"bénéfice/H",{"$f":"IF(D768<>\"\",D768/H770,\"\")","v":{"$error":"#NAME?"}}]
[]
[null,"PRIX DE VENTE",null,{"$f":"IF(D766<>\"\",PVHT_facture_poste_17,\"\")","v":{"$error":"#NAME?"}},null,null,"heures",{"$f":"IF(PVHT_facture_poste_17<>\"\",Heures_poste_17_réel,\"\")","v":{"$error":"#NAME?"}}]
[]
[]
[]
[null,"coeff de marge",null,{"$f":"IF(D770<>\"\",D770/D766,\"\")","v":{"$error":"#NAME?"}}]
[]
[null,"% de bénéfice =",null,{"$f":"IF(D770<>\"\",D768/D770*1,\"\")","v":{"$error":"#NAME?"}}]
[]
[]
[]
[]
[null,null,null,{"$f":"IF(A779<>\"\",#REF!,\"\")","v":""},null,null,null,null,{"$f":"IF(A779<>\"\",#REF!,\"\")","v":""},{"$f":"IF(A779<>\"\",#REF!,\"\")","v":""}]
[]
[]
[]
[null,"client :"]
[null,{"$f":"IF(#REF!<>\"\",#REF!,\"\")","v":{"$error":"#REF!"}}]
[]
[null,{"$f":"IF(#REF!<>\"\",#REF!,\"\")","v":{"$error":"#REF!"}},null,{"$f":"IF(A779<>\"\",#REF!,\"\")","v":""}]
[]
[]
[]
[]
[]
[null,null,null,"Prix de revient",null,"frais généraux",null,"couts directs",null,"% s/ P.R"]
[]
[]
[null,"MAIN D'OEUVRE",null,{"$f":"IF(F797<>\"\",F797+H797,\"\")","v":{"$error":"#NAME?"}},null,{"$f":"IF(H797<>\"\",H797*Fgx_mo,\"\")","v":{"$error":"#NAME?"}},null,{"$f":"IF(PVHT_facture_poste_18<>\"\",SUMIF(#REF!,Réf_mo,#REF!)/(1+Fgx_mo),\"\")","v":{"$error":"#NAME?"}},null,{"$f":"IF(Total_HT_Facture<>\"\",D797*1/D809,\"\")","v":{"$error":"#NAME?"}}]
[]
[null,"MATERIEL",null,{"$f":"IF(F799<>\"\",F799+H799,\"\")","v":{"$error":"#NAME?"}},null,{"$f":"IF(PVHT_facture_poste_18<>\"\",SUMIF(#REF!,Code_racine_matériel,#REF!),\"\")","v":{"$error":"#NAME?"}},null,{"$f":"IF(PVHT_facture_poste_18<>\"\",SUMIF(#REF!,Code_racine_matériel,#REF!),\"\")","v":{"$error":"#NAME?"}},null,{"$f":"IF(Total_HT_Facture<>\"\",D799*1/D809,\"\")","v":{"$error":"#NAME?"}}]
[]
[null,"MATERIAUX",null,{"$f":"IF(F801<>\"\",F801+H801,\"\")","v":{"$error":"#NAME?"}},null,{"$f":"IF(PVHT_facture_poste_18<>\"\",SUMIF(#REF!,Code_racine_matériaux,#REF!),\"\")","v":{"$error":"#NAME?"}},null,{"$f":"IF(PVHT_facture_poste_18<>\"\",SUMIF(#REF!,Code_racine_matériaux,#REF!),\"\")","v":{"$error":"#NAME?"}},null,{"$f":"IF(Total_HT_Facture<>\"\",D801*1/D809,\"\")","v":{"$error":"#NAME?"}}]
[]
[null,"LOCATION",null,{"$f":"IF(F803<>\"\",F803+H803,\"\")","v":{"$error":"#NAME?"}},null,{"$f":"IF(PVHT_facture_poste_18<>\"\",SUMIF(#REF!,Code_racine_location,#REF!),\"\")","v":{"$error":"#NAME?"}},null,{"$f":"IF(PVHT_facture_poste_18<>\"\",SUMIF(#REF!,Code_racine_location,#REF!),\"\")","v":{"$error":"#NAME?"}},null,{"$f":"IF(Total_HT_Facture<>\"\",D803*1/D809,\"\")","v":{"$error":"#NAME?"}}]
[]
[null,"SOUS-TRAITANCE",null,{"$f":"IF(F805<>\"\",F805+H805,\"\")","v":{"$error":"#NAME?"}},null,{"$f":"IF(PVHT_facture_poste_18<>\"\",SUMIF(#REF!,Code_racine_sous_traitantce,#REF!),\"\")","v":{"$error":"#NAME?"}},null,{"$f":"IF(PVHT_facture_poste_18<>\"\",SUMIF(#REF!,Code_racine_sous_traitantce,#REF!),\"\")","v":{"$error":"#NAME?"}},null,{"$f":"IF(Total_HT_Facture<>\"\",D805*1/D809,\"\")","v":{"$error":"#NAME?"}}]
[]
[]
[null,null,null,null,null,null,null,null,"ECHELLE"]
[null,"TOTAL",null,{"$f":"IF(PVHT_facture_poste_18<>\"\",D797+D799+D801+D803+D805,\"\")","v":{"$error":"#NAME?"}},null,{"$f":"IF(PVHT_facture_poste_18<>\"\",F797+F799+F801+F803+F805,\"\")","v":{"$error":"#NAME?"}},null,{"$f":"IF(PVHT_facture_poste_18<>\"\",H797+H799+H801+H803+H805,\"\")","v":{"$error":"#NAME?"}},"DE RISQUES"]
[null,null,null,null,null,null,null,null,{"$f":"IF(AND(0%<=J797,J797<=10%),1,IF(AND(11%<=J797,J797<=20%),2,IF(AND(21%<=J797,J797<=30%),3,IF(AND(31%<=J797,J797<=40%),4,IF(AND(41%<=J797,J797<=50%),5,IF(AND(51%<=J797,J797<=60%),6,IF(AND(61%<=J797,J797<=70%),7,IF(AND(71%<=J797,J797<=80%),8,IF(AND(81%<=J797,J797<=90%),9,IF(AND(91%<=J797,J797<=100%),10,\"\"))))))))))","v":{"$error":"#NAME?"}},{"$f":"IF(AND(0%<=J797,J797<=10%),\"nul\",IF(AND(11%<=J797,J797<=20%),\"quasi nul\",IF(AND(21%<=J797,J797<=30%),\"très faible\",IF(AND(31%<=J797,J797<=40%),\"faible\",IF(AND(41%<=J797,J797<=50%),\"moyen\",IF(AND(51%<=J797,J797<=60%),\"moyen élevé\",IF(AND(61%<=J797,J797<=70%),\"élevé\",IF(AND(71%<=J797,J797<=80%),\"très élevés\",IF(AND(81%<=J797,J797<=90%),\"trés fort\",IF(AND(91%<=J797,J797<=100%),\"extreme\",\"\"))))))))))","v":{"$error":"#NAME?"}}]
[null,"MARGE",null,{"$f":"IF(D813<>\"\",D813-D809,\"\")","v":{"$error":"#NAME?"}},null,null,"bénéfice/H",{"$f":"IF(D811<>\"\",D811/H813,\"\")","v":{"$error":"#NAME?"}}]
[]
[null,"PRIX DE VENTE",null,{"$f":"IF(D809<>\"\",PVHT_facture_poste_18,\"\")","v":{"$error":"#NAME?"}},null,null,"heures",{"$f":"IF(PVHT_facture_poste_18<>\"\",Heures_poste_18_réel,\"\")","v":{"$error":"#NAME?"}}]
[]
[]
[]
[null,"coeff de marge",null,{"$f":"IF(D813<>\"\",D813/D809,\"\")","v":{"$error":"#NAME?"}}]
[]
[null,"% de bénéfice =",null,{"$f":"IF(D813<>\"\",D811/D813*1,\"\")","v":{"$error":"#NAME?"}}]
[]
[]
[]
[]
[null,null,null,{"$f":"IF(A822<>\"\",#REF!,\"\")","v":""},null,null,null,null,{"$f":"IF(A822<>\"\",#REF!,\"\")","v":""},{"$f":"IF(A822<>\"\",#REF!,\"\")","v":""}]
[]
[]
[]
[null,"client :"]
[null,{"$f":"IF(#REF!<>\"\",#REF!,\"\")","v":{"$error":"#REF!"}}]
[]
[null,{"$f":"IF(#REF!<>\"\",#REF!,\"\")","v":{"$error":"#REF!"}},null,{"$f":"IF(A822<>\"\",#REF!,\"\")","v":""}]
[]
[]
[]
[]
[]
[null,null,null,"Prix de revient",null,"frais généraux",null,"couts directs",null,"% s/ P.R"]
[]
[]
[null,"MAIN D'OEUVRE",null,{"$f":"IF(F840<>\"\",F840+H840,\"\")","v":{"$error":"#NAME?"}},null,{"$f":"IF(H840<>\"\",H840*Fgx_mo,\"\")","v":{"$error":"#NAME?"}},null,{"$f":"IF(PVHT_facture_poste_19<>\"\",SUMIF(#REF!,Réf_mo,#REF!)/(1+Fgx_mo),\"\")","v":{"$error":"#NAME?"}},null,{"$f":"IF(Total_HT_Facture<>\"\",D840*1/D852,\"\")","v":{"$error":"#NAME?"}}]
[]
[null,"MATERIEL",null,{"$f":"IF(F842<>\"\",F842+H842,\"\")","v":{"$error":"#NAME?"}},null,{"$f":"IF(PVHT_facture_poste_19<>\"\",SUMIF(#REF!,Code_racine_matériel,#REF!),\"\")","v":{"$error":"#NAME?"}},null,{"$f":"IF(PVHT_facture_poste_19<>\"\",SUMIF(#REF!,Code_racine_matériel,#REF!),\"\")","v":{"$error":"#NAME?"}},null,{"$f":"IF(Total_HT_Facture<>\"\",D842*1/D852,\"\")","v":{"$error":"#NAME?"}}]
[]
[null,"MATERIAUX",null,{"$f":"IF(F844<>\"\",F844+H844,\"\")","v":{"$error":"#NAME?"}},null,{"$f":"IF(PVHT_facture_poste_19<>\"\",SUMIF(#REF!,Code_racine_matériaux,#REF!),\"\")","v":{"$error":"#NAME?"}},null,{"$f":"IF(PVHT_facture_poste_19<>\"\",SUMIF(#REF!,Code_racine_matériaux,#REF!),\"\")","v":{"$error":"#NAME?"}},null,{"$f":"IF(Total_HT_Facture<>\"\",D844*1/D852,\"\")","v":{"$error":"#NAME?"}}]
[]
[null,"LOCATION",null,{"$f":"IF(F846<>\"\",F846+H846,\"\")","v":{"$error":"#NAME?"}},null,{"$f":"IF(PVHT_facture_poste_19<>\"\",SUMIF(#REF!,Code_racine_location,#REF!),\"\")","v":{"$error":"#NAME?"}},null,{"$f":"IF(PVHT_facture_poste_19<>\"\",SUMIF(#REF!,Code_racine_location,#REF!),\"\")","v":{"$error":"#NAME?"}},null,{"$f":"IF(Total_HT_Facture<>\"\",D846*1/D852,\"\")","v":{"$error":"#NAME?"}}]
[]
[null,"SOUS-TRAITANCE",null,{"$f":"IF(F848<>\"\",F848+H848,\"\")","v":{"$error":"#NAME?"}},null,{"$f":"IF(PVHT_facture_poste_19<>\"\",SUMIF(#REF!,Code_racine_sous_traitantce,#REF!),\"\")","v":{"$error":"#NAME?"}},null,{"$f":"IF(PVHT_facture_poste_19<>\"\",SUMIF(#REF!,Code_racine_sous_traitantce,#REF!),\"\")","v":{"$error":"#NAME?"}},null,{"$f":"IF(Total_HT_Facture<>\"\",D848*1/D852,\"\")","v":{"$error":"#NAME?"}}]
[]
[]
[null,null,null,null,null,null,null,null,"ECHELLE"]
[null,"TOTAL",null,{"$f":"IF(PVHT_facture_poste_19<>\"\",D840+D842+D844+D846+D848,\"\")","v":{"$error":"#NAME?"}},null,{"$f":"IF(PVHT_facture_poste_19<>\"\",F840+F842+F844+F846+F848,\"\")","v":{"$error":"#NAME?"}},null,{"$f":"IF(PVHT_facture_poste_19<>\"\",H840+H842+H844+H846+H848,\"\")","v":{"$error":"#NAME?"}},"DE RISQUES"]
[null,null,null,null,null,null,null,null,{"$f":"IF(AND(0%<=J840,J840<=10%),1,IF(AND(11%<=J840,J840<=20%),2,IF(AND(21%<=J840,J840<=30%),3,IF(AND(31%<=J840,J840<=40%),4,IF(AND(41%<=J840,J840<=50%),5,IF(AND(51%<=J840,J840<=60%),6,IF(AND(61%<=J840,J840<=70%),7,IF(AND(71%<=J840,J840<=80%),8,IF(AND(81%<=J840,J840<=90%),9,IF(AND(91%<=J840,J840<=100%),10,\"\"))))))))))","v":{"$error":"#NAME?"}},{"$f":"IF(AND(0%<=J840,J840<=10%),\"nul\",IF(AND(11%<=J840,J840<=20%),\"quasi nul\",IF(AND(21%<=J840,J840<=30%),\"très faible\",IF(AND(31%<=J840,J840<=40%),\"faible\",IF(AND(41%<=J840,J840<=50%),\"moyen\",IF(AND(51%<=J840,J840<=60%),\"moyen élevé\",IF(AND(61%<=J840,J840<=70%),\"élevé\",IF(AND(71%<=J840,J840<=80%),\"très élevés\",IF(AND(81%<=J840,J840<=90%),\"trés fort\",IF(AND(91%<=J840,J840<=100%),\"extreme\",\"\"))))))))))","v":{"$error":"#NAME?"}}]
[null,"MARGE",null,{"$f":"IF(D856<>\"\",D856-D852,\"\")","v":{"$error":"#NAME?"}},null,null,"bénéfice/H",{"$f":"IF(D854<>\"\",D854/H856,\"\")","v":{"$error":"#NAME?"}}]
[]
[null,"PRIX DE VENTE",null,{"$f":"IF(D852<>\"\",PVHT_facture_poste_19,\"\")","v":{"$error":"#NAME?"}},null,null,"heures",{"$f":"IF(PVHT_facture_poste_19<>\"\",Heures_poste_19_réel,\"\")","v":{"$error":"#NAME?"}}]
[]
[]
[]
[null,"coeff de marge",null,{"$f":"IF(D856<>\"\",D856/D852,\"\")","v":{"$error":"#NAME?"}}]
[]
[null,"% de bénéfice =",null,{"$f":"IF(D856<>\"\",D854/D856*1,\"\")","v":{"$error":"#NAME?"}}]
[]
[]
[]
[]
[null,null,null,{"$f":"IF(A865<>\"\",#REF!,\"\")","v":""},null,null,null,null,{"$f":"IF(A865<>\"\",#REF!,\"\")","v":""},{"$f":"IF(A865<>\"\",#REF!,\"\")","v":""}]
[]
[]
[]
[null,"client :"]
[null,{"$f":"IF(#REF!<>\"\",#REF!,\"\")","v":{"$error":"#REF!"}}]
[]
[null,{"$f":"IF(#REF!<>\"\",#REF!,\"\")","v":{"$error":"#REF!"}},null,{"$f":"IF(A865<>\"\",#REF!,\"\")","v":""}]
[]
[]
[]
[]
[]
[null,null,null,"Prix de revient",null,"frais généraux",null,"couts directs",null,"% s/ P.R"]
[]
[]
[null,"MAIN D'OEUVRE",null,{"$f":"IF(F883<>\"\",F883+H883,\"\")","v":{"$error":"#NAME?"}},null,{"$f":"IF(H883<>\"\",H883*Fgx_mo,\"\")","v":{"$error":"#NAME?"}},null,{"$f":"IF(PVHT_facture_poste_20<>\"\",SUMIF(#REF!,Réf_mo,#REF!)/(1+Fgx_mo),\"\")","v":{"$error":"#NAME?"}},null,{"$f":"IF(Total_HT_Facture<>\"\",D883*1/D895,\"\")","v":{"$error":"#NAME?"}}]
[]
[null,"MATERIEL",null,{"$f":"IF(F885<>\"\",F885+H885,\"\")","v":{"$error":"#NAME?"}},null,{"$f":"IF(PVHT_facture_poste_20<>\"\",SUMIF(#REF!,Code_racine_matériel,#REF!),\"\")","v":{"$error":"#NAME?"}},null,{"$f":"IF(PVHT_facture_poste_20<>\"\",SUMIF(#REF!,Code_racine_matériel,#REF!),\"\")","v":{"$error":"#NAME?"}},null,{"$f":"IF(Total_HT_Facture<>\"\",D885*1/D895,\"\")","v":{"$error":"#NAME?"}}]
[]
[null,"MATERIAUX",null,{"$f":"IF(F887<>\"\",F887+H887,\"\")","v":{"$error":"#NAME?"}},null,{"$f":"IF(PVHT_facture_poste_20<>\"\",SUMIF(#REF!,Code_racine_matériaux,#REF!),\"\")","v":{"$error":"#NAME?"}},null,{"$f":"IF(PVHT_facture_poste_20<>\"\",SUMIF(#REF!,Code_racine_matériaux,#REF!),\"\")","v":{"$error":"#NAME?"}},null,{"$f":"IF(Total_HT_Facture<>\"\",D887*1/D895,\"\")","v":{"$error":"#NAME?"}}]
[]
[null,"LOCATION",null,{"$f":"IF(F889<>\"\",F889+H889,\"\")","v":{"$error":"#NAME?"}},null,{"$f":"IF(PVHT_facture_poste_20<>\"\",SUMIF(#REF!,Code_racine_location,#REF!),\"\")","v":{"$error":"#NAME?"}},null,{"$f":"IF(PVHT_facture_poste_20<>\"\",SUMIF(#REF!,Code_racine_location,#REF!),\"\")","v":{"$error":"#NAME?"}},null,{"$f":"IF(Total_HT_Facture<>\"\",D889*1/D895,\"\")","v":{"$error":"#NAME?"}}]
[]
[null,"SOUS-TRAITANCE",null,{"$f":"IF(F891<>\"\",F891+H891,\"\")","v":{"$error":"#NAME?"}},null,{"$f":"IF(PVHT_facture_poste_20<>\"\",SUMIF(#REF!,Code_racine_sous_traitantce,#REF!),\"\")","v":{"$error":"#NAME?"}},null,{"$f":"IF(PVHT_facture_poste_20<>\"\",SUMIF(#REF!,Code_racine_sous_traitantce,#REF!),\"\")","v":{"$error":"#NAME?"}},null,{"$f":"IF(Total_HT_Facture<>\"\",D891*1/D895,\"\")","v":{"$error":"#NAME?"}}]
[]
[]
[null,null,null,null,null,null,null,null,"ECHELLE"]
[null,"TOTAL",null,{"$f":"IF(PVHT_facture_poste_20<>\"\",D883+D885+D887+D889+D891,\"\")","v":{"$error":"#NAME?"}},null,{"$f":"IF(PVHT_facture_poste_20<>\"\",F883+F885+F887+F889+F891,\"\")","v":{"$error":"#NAME?"}},null,{"$f":"IF(PVHT_facture_poste_20<>\"\",H883+H885+H887+H889+H891,\"\")","v":{"$error":"#NAME?"}},"DE RISQUES"]
[null,null,null,null,null,null,null,null,{"$f":"IF(AND(0%<=J883,J883<=10%),1,IF(AND(11%<=J883,J883<=20%),2,IF(AND(21%<=J883,J883<=30%),3,IF(AND(31%<=J883,J883<=40%),4,IF(AND(41%<=J883,J883<=50%),5,IF(AND(51%<=J883,J883<=60%),6,IF(AND(61%<=J883,J883<=70%),7,IF(AND(71%<=J883,J883<=80%),8,IF(AND(81%<=J883,J883<=90%),9,IF(AND(91%<=J883,J883<=100%),10,\"\"))))))))))","v":{"$error":"#NAME?"}},{"$f":"IF(AND(0%<=J883,J883<=10%),\"nul\",IF(AND(11%<=J883,J883<=20%),\"quasi nul\",IF(AND(21%<=J883,J883<=30%),\"très faible\",IF(AND(31%<=J883,J883<=40%),\"faible\",IF(AND(41%<=J883,J883<=50%),\"moyen\",IF(AND(51%<=J883,J883<=60%),\"moyen élevé\",IF(AND(61%<=J883,J883<=70%),\"élevé\",IF(AND(71%<=J883,J883<=80%),\"très élevés\",IF(AND(81%<=J883,J883<=90%),\"trés fort\",IF(AND(91%<=J883,J883<=100%),\"extreme\",\"\"))))))))))","v":{"$error":"#NAME?"}}]
[null,"MARGE",null,{"$f":"IF(D899<>\"\",D899-D895,\"\")","v":{"$error":"#NAME?"}},null,null,"bénéfice/H",{"$f":"IF(D897<>\"\",D897/H899,\"\")","v":{"$error":"#NAME?"}}]
[]
[null,"PRIX DE VENTE",null,{"$f":"IF(D895<>\"\",PVHT_facture_poste_20,\"\")","v":{"$error":"#NAME?"}},null,null,"heures",{"$f":"IF(PVHT_facture_poste_20<>\"\",Heures_poste_20_réel,\"\")","v":{"$error":"#NAME?"}}]
[]
[]
[]
[null,"coeff de marge",null,{"$f":"IF(D899<>\"\",D899/D895,\"\")","v":{"$error":"#NAME?"}}]
[]
[null,"% de bénéfice =",null,{"$f":"IF(D899<>\"\",D897/D899*1,\"\")","v":{"$error":"#NAME?"}}]

{"sheet":"Articles","index":5,"n_rows":16,"n_cols":20,"rows_kept":16,"cut":false,"hidden":false,"merged":[]}
["Article","Désignation","Variété","Taille","Conditionnement","Forme","Famille","Unité achat","Unités vente","Corf unité","Fournisseur","compte vente","observation","Prix d'achat","Prix ht","Prix TTc","code tva","Date d'achat","ref art fourniture","texte article"]
["Gazon euroclass","GAZON EUROCLASS RAPIDGREEN10KG  ",null,null,null,null,"MTGAZO","KG","KG",null,"VERALIA",null,null,6.2,null,null,1,"2016-08-07",500118,"EUROCLASS"]
["Gazon pro 22","GAZON PRO 22 = EM22 EN 15KG     ",null,null,null,null,"MTGAZO","KG","KG",null,"VERALIA",null,null,5.12,null,null,1,"2016-08-07",412215,"ECO MAINTENANCE EM-22"]
["Gazon eurospace","GAZON EUROSPACE 10           ",null,null,null,null,"MTGAZO","KG","KG",null,"VERALIA",null,null,5.07,null,null,1,"2016-08-07",500119,"EUROSPACE"]
["Gazon pro 28","GAZON PRO 28 = EM28 EN 15KG",null,null,null,null,"MTGAZO","KG","KG",null,"VERALIA",null,null,8.82,null,null,1,"2016-08-07",412815]
["Gazon pro 12","GAZON PRO 12 = SG12 EN 15    ",null,null,null,null,"MTGAZO","KG","KG",null,"VERALIA",null,null,4.13,null,null,1,"2016-08-07",411215,"SPEEDY GREEN SG-12"]
["Gazon euros eco","GAZON EUROSPACE ECO 10       ",null,null,null,null,"MTGAZO","KG","KG",null,"VERALIA",null,null,4.2300000000000004,null,null,1,"2016-08-07",500120,"EUROSPACE ECO"]
["gazon grd espac","GAZON GRAND ESPACE 403030 / 15KG",null,null,null,null,"MTGAZO","KG","KG",null,"VERALIA",null,null,3.5249999999999999,null,null,1,"2016-08-07",41403030,"Grand Espace"]
["Gazon pro 50","GAZON PRO 50 = SP50 EN 15KG",null,null,null,null,"MTGAZO","KG","KG",null,"VERALIA",null,null,4.38,null,null,1,"2016-08-07",415015]
["gazon regarniss","GAZON EUROSPORT REGAR RAPIDGRE",null,null,null,null,"MTGAZO","KG","KG",null,"VERALIA",null,null,5.26,null,null,1,"2016-08-07",500122,"en sac de 10kg"]
["Gaz Syn Summum","GAZON SYNTHETIQUE SUMMUM        ",null,null,null,null,"MTGAZO","M²","M²",null,"VERALIA",null,null,32.22,null,null,1,"2016-08-07",501959,"GAZON SUMMUM"]
["Gaz Syn Eco","GAZON SYNTHETIQ ECONOMIC 2X25",null,null,null,null,"MTGAZO","M²","M²",null,"VERALIA",null,null,16.13,null,null,1,"2016-08-07",501956]
["Organi100%nat","ORGANIC VEGETAL 25KG 100% NAT      ",null,null,null,null,"MTPLAN","KG","KG",null,"VERALIA",null,null,0.52900000000000003,null,null,1,"2016-08-07",500078,"ORGANIC VEGETAL"]
["Orgaequi7-2-9","ORGANIC EQUIL 7-2-9 1 25KG         ",null,null,null,null,"MTPLAN","KG","KG",null,"VERALIA",null,null,0.88800000000000001,null,null,1,"2016-08-07",502124]
["Eng16-5-20+5 4M","ENG. CLASSIC 16-5-20+5 (4M) 25KG",null,null,null,null,"MTPLAN","KG","KG",null,"VERALIA",null,null,1.7370000000000001,null,null,1,"2016-08-07",58165205,"MULTIGREEN CLASSIC 16.5.20"]
["Pelle","Pelle à chenille 7T",null,null,null,null,"ST","H","H",null,"Murie",null,null,100,null,null,1,"2016-08-07"]

{"sheet":"Opération","index":6,"n_rows":104,"n_cols":12,"rows_kept":104,"cut":false,"hidden":false,"merged":[]}
["Code","Désigantion","Pris de revient","Unité de vente","Temps préparation","Temps opération","Qualification","% improductivité","Matériel","Quantité matériel","Unité matériel","Coût horaire matériel"]
["ABATTAGE","Abattage",10,"h",0,0,"O3",0]
["AÉRATION","Aération",10,"h",0,0,"O2",0]
["AMENDEMENT","Amendement",10,"h",0,0,"O2",0]
["APPORTFACT","Apport facture",10,"h",0,0,"O3",0]
["APPRO","Approvisionnement",10,"h",0,0,"O3",0]
["ARROSAGE","Arrosage",10,"h",0,0,"O2",0]
["ATTENTE","Attente",10,"h",0,0,"O2",0]
["BINAGE","Binage",10,"h",0,0,"O3",0]
["BROYAGE","Broyage",10,"h",0,0,"O2",0]
["CHARGEMENT","Chargement",10,"h",0,0,"O2",0]
["COMPACTAGE","Compactage",10,"h",0,0,"O3",0]
["COULAGE","Coulage",10,"h",0,0,"O2",0]
["DÉBROUS","Débroussaillage",10,"h",0,0,"O2",0]
["DÉCAISSEM","Décaissement",10,"h",0,0,"O3",0,"L_pel2T5",null,"h",15]
["DÉCOMPACT","Décompactage",10,"h",0,0,"O2",0]
["DÉCOUPE","Découpe",10,"h",0,0,"O2",0]
["DÉCOUPEBOR","Découpe bordure",10,"h",0,0,"O2",0]
["DÉMOLITION","Démolition",10,"h",0,0,"O2",0]
["DÉSACTIVÉ","Désactivé",10,"h",0,0,"O2",0]
["DÉSHERBAGE","Désherbage",10,"h",0,0,"O2",0]
["DESSOUCHAG","Dessouchage",10,"h",0,0,"O2",0]
["DISPOPLANT","Disposition plante",10,"h",0,0,"O2",0]
["ELAGAGE","Elagage",10,"h",0,0,"O2",0]
["ENFOUISSEM","Enfouissement",10,"h",0,0,"O2",0]
["EPIERRAGE","Epierrage",10,"h",0,0,"O2",0]
["ETANCHÉITÉ","Etanchéité",10,"h",0,0,"O2",0]
["ETUDE","Etude",10,"h",0,0,"O2",0]
["EVACUATION","Evacuation",10,"h",0,0,"O2",0]
["FERRAILLAG","Ferraillage",10,"h",0,0,"O2",0]
["FINITION","Finition",10,"h",0,0,"O2",0]
["GRIFFAGE","Griffage",10,"h",0,0,"O2",0]
["HABILLAGE","Habillage",10,"h",0,0,"O2",0]
["HAUBANAGE","Haubanage",10,"h",0,0,"O2",0]
["HERSAGE","Hersage",10,"h",0,0,"O2",0]
["HYDROFUGE","Hydrofuge",10,"h",0,0,"O2",0]
["IMPLANTAT","Implantation",10,"h",0,0,"O2",0]
["INSTALLAT","Installation",10,"h",0,0,"O2",0]
["INSTCENROB","Installation centrale robot",10,"h",0,0,"O2",0]
["JOINT","Joint",10,"h",0,0,"O2",0]
["MANUTENTIO","Manutention",10,"h",0,0,"O2",0]
["MÉLANGE","Mélange",10,"h",0,0,"O2",0]
["MONTAGEGAB","Montage gabion",10,"h",0,0,"O2",0]
["M/DÉCHAFAU","Montage/démontage échafaudage",10,"h",0,0,"O2",0]
["NETTOYAGE","Nettoyage",10,"h",0,0,"O2",0]
["NIVELLEME","Nivellement",10,"h",0,0,"O2",0]
["OUVERTFOSS","Ouverture fosse",10,"h",0,0,"O2",0]
["OUVERTTRAN","Ouverture tranchée",10,"h",0,0,"O2",0]
["OUVERTTROU","Ouverture trou",10,"h",0,0,"O2",0]
["PAILLAGE","Paillage",10,"h",0,0,"O2",0]
["PARAMROB","Paramétrage robot",10,"h",0,0,"O2",0]
["PHOTOCHANT","Photo Chantier",10,"h",0,0,"O2",0]
["PIÉGETAUP","Piégeage taupe",10,"h",0,0,"O2",0]
["PLANTATION","Plantation",10,"h",0,0,"O2",0]
["PONÇAGE","Ponçage",10,"h",0,0,"O2",0]
["POSE","Pose",10,"h",0,0,"O2",0]
["POSBOITLET","pose boite aux lettre",10,"h",0,0,"O2",0]
["POSFILPÉRI","Pose fil périmétrique",10,"h",0,0,"O2",0]
["POSEGABION","Pose gabion",10,"h",0,0,"O2",0]
["POSENIDAGR","Pose nidagravel",10,"h",0,0,"O2",0]
["POSPLAQSOU","Pose plaque soubassement",10,"h",0,0,"O2",0]
["POSPORTAIL","Pose portail",10,"h",0,0,"O2",0]
["POSPORTILL","Pose portillon",10,"h",0,0,"O2",0]
["POSEPOTEAU","Pose poteau",10,"h",0,0,"O2",0]
["POSREG/GRI","Pose regard/grille",10,"h",0,0,"O2",0]
["PRÉPARATIO","Préparation",10,"h",0,0,"O2",0]
["PRÉPABOUIL","Préparation Bouillie/mélange",10,"h",0,0,"O2",0]
["PRÉPANIDAG","Préparation nidagravel",10,"h",0,0,"O2",0]
["PRÉSDEVIS","Présentation devis",10,"h",0,0,"O2",0]
["PROTECTMIN","Protection minéralisante",10,"h",0,0,"O2",0]
["PROUVRAPTX","Protection ouvrage après travaux",10,"h",0,0,"O2",0]
["PROUVRAVTX","Protection ouvrage avant travaux",10,"h",0,0,"O2",0]
["PULVÉRISAT","Pulvérisation",10,"h",0,0,"O2",0]
["PURGE","Purge",10,"h",0,0,"O2",0]
["RAMASFEUIL","Ramassage feuilles",10,"h",0,0,"O2",0]
["RANGEMENT","Rangement",10,"h",0,0,"O2",0]
["RECEPAGE","Recepage",10,"h",0,0,"O2",0]
["RÉCLIVRAIS","Réception livraison",10,"h",0,0,"O2",0]
["RÉDRAPPORT","Rédaction rapport",10,"h",0,0,"O2",0]
["RÉGPORTAIL","Réglage portail",10,"h",0,0,"O2",0]
["RÉGPORTILL","Réglage portillon",10,"h",0,0,"O2",0]
["REMPLIGAB","Remplissage gabion",10,"h",0,0,"O2",0]
["REMPLISNID","Remplissage nidagravel",10,"h",0,0,"O2",0]
["RINÇAGEMAT","Rinçage matériel",10,"h",0,0,"O2",0]
["ROGNAGE","Rognage souche",10,"h",0,0,"O2",0]
["ROULAGE","Roulage",10,"h",0,0,"O2",0]
["SARCLAGE","Sarclage",10,"h",0,0,"O2",0]
["SCARIFICAT","Scarification",10,"h",0,0,"O2",0]
["SCIAGE","Sciage",10,"h",0,0,"O2",0]
["SEMIS","Semis",10,"h",0,0,"O2",0]
["SURVEILLAN","Surveillance",10,"h",0,0,"O2",0]
["TAILLEPIER","Taille pierre",10,"h",0,0,"O2",0]
["TENSIONGRI","Tension grillage",10,"h",0,0,"O2",0]
["TERRASSEME","Terrassement",10,"h",0,0,"O2",0]
["TIRCÂBLE","Tirage câble",10,"h",0,0,"O2",0]
["TONTE","Tonte",10,"h",0,0,"O2",0]
["TRAITEMENT","Traitement",10,"h",0,0,"O2",0]
["TRAJET","Trajet",10,"h",0,0,"O2",0]
["TRAVAILSOL","Travail sol",10,"h",0,0,"O2",0]
["TRI PIERRE","Tri pierre",10,"h",0,0,"O2",0]
["TUTEURAGE","Tuteurage",10,"h",0,0,"O2",0]
["VISITE","Visite chantier",10,"h",0,0,"O2",0]
["TLROSA","Taille rosier",10,"h",0,0,"O2",0]
["TLWISCHI","Taille wisteria",10,"h",0,0,"O3",0]

{"sheet":"Sous ensemble existant","index":7,"n_rows":0,"n_cols":0,"rows_kept":0,"cut":false,"hidden":false,"merged":[]}